{"text_format":"1","workbook":"xlsx","n_sheets":25,"sheets":["Project Information","Matrix","Small Project Checklist","Pre-Design Checklist ","SD Checklist","DD Checklist","CD Checklist","Const. Checklist","Post Const. Checklist","Cx Thresholds","Scorecard","ScorecardTABLE","MATRIX TABLE","Small Proj TABLE","Pre-Design TABLE","SD TABLE","DD TABLE","CD TABLE","Const. TABLE","Post Const. TABLE","Info to Export Matrix","Info to Export Checklist","Info to Export Checklist Notes","Info to Export Scorecard","Info to Export Scorecard Notes"],"not_rendered":{"charts":0,"images":6,"macros":1,"external_links":0,"defined_names":5,"comments":15,"pivot_tables":0},"unopened":[],"bounds":{"document_bytes":16777216,"sheet_cells":100000,"rows_first":2000,"rows_last":500,"rows_between":2000,"halvings":0,"cell_chars":16384,"cell_head_chars":4096},"cells_cut":0,"cells_raw":0,"read":"whole","date_system":"1900"}

{"sheet":"Project Information","index":0,"n_rows":29,"n_cols":10,"rows_kept":29,"cut":false,"hidden":false,"merged":[[25,3,25,8],[17,3,17,8],[2,5,2,9],[12,3,12,8],[13,3,13,8],[4,1,10,9],[24,3,24,8],[20,3,20,8],[19,3,19,8],[18,3,18,8],[22,3,22,8],[14,3,16,8],[14,2,16,2]]}
[]
[null,null,null,null,null,null,null,null,null,"Facilities Operations and Development"]
[null,null,null,null,null,"Sustainability Applicability Matrix (SAM)"]
[]
[null,"INSTRUCTIONS:  the green highlighted cells within the Sustainability Applicability Matrix shall be completed to identify which sustainability requirements are applicable to the project based on project type, scope, and budget. Additionally, once the 'Project Information' and 'Matrix' tabs are completed, the applicable 'Checklist' tabs will self populate and shall be used by the Project Team. Please upload completed matrix to the eBuilder Platform."]
[]
[]
[]
[]
[]
[]
[]
[null,null,"Project Number"]
[null,null,"Project Name"]
[null,null,"Brief Project Description"]
[]
[]
[null,null,"University Jurisdiction",{"$f":"IFERROR(VLOOKUP('MATRIX TABLE'!$X$5,'MATRIX TABLE'!$X$6:$Y$11,2,FALSE),\"\")","v":"Facilities Operations and Development"}]
[null,null,"Project Manager"]
[null,null,"Date"]
[null,null,"Total Project Cost",10000]
[null,null,"Type of Project",{"$f":"VLOOKUP('MATRIX TABLE'!$R$5,'MATRIX TABLE'!$R$6:$S$9,2,FALSE)","v":"Renovation"}]
[null,null,null,{"$f":"IF('MATRIX TABLE'!$R$5=4,'MATRIX TABLE'!$S$13,IF('MATRIX TABLE'!$R$5=5,'MATRIX TABLE'!$S$17,\"\"))","v":""}]
[]
[null,null,"Prepared by"]
[null,null,null,"Project Manager (or Designee)"]
[]
[]
[null,null,null,null,null,null,null,null,null,"Matrix Update Date:  10-13-2022"]

{"sheet":"Matrix","index":1,"n_rows":94,"n_cols":17,"rows_kept":94,"cut":false,"hidden":false,"merged":[[4,2,6,11],[21,7,21,8],[15,7,15,11],[16,7,16,8],[17,9,17,10],[18,9,18,10],[19,9,19,10],[20,7,20,11]]}
[]
[]
[null,null,{"$f":"\"Sustainability Applicability Matrix (SAM)\"&IF('Project Information'!$D$21<'MATRIX TABLE'!$S$2,\" - PROJECT DOES NOT MEET MINIMUM COST\",\"\")","v":"Sustainability Applicability Matrix (SAM)"}]
[]
[null,null,"INSTRUCTIONS:  Click the checkbox for each of the categories impacted by the project, which will identify the applicable sections within BDS Division 18 that the design team shall follow.  Categories that are grayed out are not applicable based on a combination of project budget and type. "]
[]
[]
[null,null,{"$f":"\"Project Name:        \"&'Project Information'!D14","v":"Project Name:        "}]
[null,null,{"$f":"\"Project Number:   \"&'Project Information'!D13","v":"Project Number:   "}]
[null,null,"Project Type:          Renovation"]
[]
[null,null,"Sustainability Categories",null,null,null,null,null,null,"Applicable Sections to Review",null,null,"Reviewer"]
[]
[null,null,"COMMISSIONING"]
[]
[null,null,null,null,null,null,null,"Instructions:  Please click the checkbox if the project includes the space types below.  Any work performed for CSI Division 22, 23, 25, and 26 shall follow the commissioning requirements indicated for that specific space. ",null,null,null,null,null,null,null,null,"temp temp"]
[null,null,null,null,null,null,null,"Space Type ",null,"Fundamental & Enhanced Commissioning",null,"Notes"]
[null,null,null,null,null,null,null,null,null,{"$f":"IF(D18,'Cx Thresholds'!C9,'Cx Thresholds'!E9)","v":"n/a"},null,{"$f":"IF(D18,'Cx Thresholds'!D9,'Cx Thresholds'!G9)","v":"n/a"},null,null,null,null,"temp temp"]
[null,null,null,null,null,null,null,null,null,{"$f":"IF(D19,'Cx Thresholds'!C10,'Cx Thresholds'!E10)","v":"n/a"},null,{"$f":"IF(D19,'Cx Thresholds'!D10,'Cx Thresholds'!G10)","v":"n/a"},null,null,null,null,"temp temp"]
[null,null,null,null,null,null,null,null,null,{"$f":"IF(D20,'Cx Thresholds'!C12,'Cx Thresholds'!E12)","v":"n/a"},null,{"$f":"IF(D20,'Cx Thresholds'!D12,'Cx Thresholds'!G12)","v":"n/a"},null,null,null,null,"temp temp"]
[null,null,null,null,null,null,null,"Instructions:  For space types not indicated above, please select from the dropdowns for project scope that includes work in the CSI Division indicated below.  The combination of the anticipated cost and scope of work will indicate the level of commissioning. \n ",null,null,null,null,null,null,null,null,"temp temp"]
[null,null,null,null,null,null,null,"CSI Division",null,"Fundamental Commissioning","Enhanced Commissioning ","Notes"]
[null,null,null,null,null,null,null,"Division 22 - Plumbing"]
[null,null,null,null,null,null,null,"Division Construction Cost            Scope of work"]
[null,null,null,null,null,null,null,null,null,{"$f":"'Cx Thresholds'!E17","v":"n/a"},{"$f":"'Cx Thresholds'!F17","v":"n/a"},{"$f":"'Cx Thresholds'!G17","v":"n/a"},null,null,null,null,"temp temp"]
[null,null,null,null,null,null,null,"Division 23 - Mechanical"]
[null,null,null,null,null,null,null,"Division Construction Cost            Scope of work"]
[null,null,null,null,null,null,null,null,null,{"$f":"'Cx Thresholds'!E18","v":"n/a"},{"$f":"'Cx Thresholds'!F18","v":"n/a"},{"$f":"'Cx Thresholds'!G18","v":"n/a"},null,null,null,null,"temp temp"]
[null,null,null,null,null,null,null,"Division 25 - Controls / Integrated Automation"]
[null,null,null,null,null,null,null,"Division Construction Cost            Scope of work"]
[null,null,null,null,null,null,null,null,null,{"$f":"'Cx Thresholds'!E19","v":"n/a"},{"$f":"'Cx Thresholds'!F19","v":"n/a"},{"$f":"'Cx Thresholds'!G19","v":"n/a"},null,null,null,null,"temp temp"]
[null,null,null,null,null,null,null,"Division 26 - Electrical"]
[null,null,null,null,null,null,null,"Division Construction Cost            Scope of work"]
[null,null,null,null,null,null,null,null,null,{"$f":"'Cx Thresholds'!E20","v":"n/a"},{"$f":"'Cx Thresholds'!F20","v":"n/a"},{"$f":"'Cx Thresholds'!G20","v":"n/a"},null,null,null,null,"temp temp"]
[]
[null,null,"ENERGY EFFICIENCY"]
[]
[null,null,null,false,{"$f":"D38","v":false},{"$f":"TRANSPOSE('MATRIX TABLE'!F2:L2)","v":true},{"$f":"IF('MATRIX TABLE'!$R$5=4,\"X\",\"\")","v":""},"HVAC",null,{"$f":"IFERROR(VLOOKUP(ROW(J38)-ROW(J$38)+1,'MATRIX TABLE'!$B$3:$C$26,2,FALSE),\"\")","v":""},null,null,{"$f":"IFERROR(VLOOKUP(ROW(M38)-ROW(M$38)+1,'MATRIX TABLE'!$B$3:$Q$26,16,FALSE),\"\")","v":""}]
[null,null,null,false,{"$f":"D39","v":false},true,{"$f":"IF('MATRIX TABLE'!$R$5=4,\"X\",\"\")","v":""},{"$f":"'MATRIX TABLE'!G1","v":"Lighting (Indoor)"},null,{"$f":"IFERROR(VLOOKUP(ROW(J39)-ROW(J$38)+1,'MATRIX TABLE'!$B$3:$C$26,2,FALSE),\"\")","v":""},null,null,{"$f":"IFERROR(VLOOKUP(ROW(M39)-ROW(M$38)+1,'MATRIX TABLE'!$B$3:$Q$26,16,FALSE),\"\")","v":""}]
[null,null,null,false,{"$f":"D40","v":false},true,null,{"$f":"'MATRIX TABLE'!H1","v":"Lighting (Outdoor)"},null,{"$f":"IFERROR(VLOOKUP(ROW(J40)-ROW(J$38)+1,'MATRIX TABLE'!$B$3:$C$26,2,FALSE),\"\")","v":""},null,null,{"$f":"IFERROR(VLOOKUP(ROW(M40)-ROW(M$38)+1,'MATRIX TABLE'!$B$3:$Q$26,16,FALSE),\"\")","v":""}]
[null,null,null,false,false,true,{"$f":"IF('MATRIX TABLE'!$R$5=4,\"X\",\"\")","v":""},"Electrical Equipment (e.g. motors or pumps)",null,{"$f":"IFERROR(VLOOKUP(ROW(J41)-ROW(J$38)+1,'MATRIX TABLE'!$B$3:$C$26,2,FALSE),\"\")","v":""},null,null,{"$f":"IFERROR(VLOOKUP(ROW(M41)-ROW(M$38)+1,'MATRIX TABLE'!$B$3:$Q$26,16,FALSE),\"\")","v":""}]
[null,null,null,false,false,true,{"$f":"IF('MATRIX TABLE'!$R$5=4,\"X\",\"\")","v":""},"Building Envelope",null,{"$f":"IFERROR(VLOOKUP(ROW(J42)-ROW(J$38)+1,'MATRIX TABLE'!$B$3:$C$26,2,FALSE),\"\")","v":""},null,null,{"$f":"IFERROR(VLOOKUP(ROW(M42)-ROW(M$38)+1,'MATRIX TABLE'!$B$3:$Q$26,16,FALSE),\"\")","v":""}]
[null,null,null,false,false,true,{"$f":"IF('MATRIX TABLE'!$R$5=4,\"X\",\"\")","v":""},"Water Heating",null,{"$f":"IFERROR(VLOOKUP(ROW(J43)-ROW(J$38)+1,'MATRIX TABLE'!$B$3:$C$26,2,FALSE),\"\")","v":""},null,null,{"$f":"IFERROR(VLOOKUP(ROW(M43)-ROW(M$38)+1,'MATRIX TABLE'!$B$3:$Q$26,16,FALSE),\"\")","v":""}]
[null,null,null,false,false,true,{"$f":"IF('MATRIX TABLE'!$R$5=4,\"X\",\"\")","v":""},"Power Distribution Systems",null,{"$f":"IFERROR(VLOOKUP(ROW(J44)-ROW(J$38)+1,'MATRIX TABLE'!$B$3:$C$26,2,FALSE),\"\")","v":""},null,null,{"$f":"IFERROR(VLOOKUP(ROW(M44)-ROW(M$38)+1,'MATRIX TABLE'!$B$3:$Q$26,16,FALSE),\"\")","v":""}]
[null,null,null,false,{"$f":"F45","v":false},{"$f":"'MATRIX TABLE'!B24>0","v":false},{"$f":"IF(AND('MATRIX TABLE'!$R$5=4,'Project Information'!$D$21>='MATRIX TABLE'!$O$23),\"X\",\"\")","v":""},"Site EUI Performance",null,{"$f":"IFERROR(VLOOKUP(ROW(J45)-ROW(J$38)+1,'MATRIX TABLE'!$B$3:$C$26,2,FALSE),\"\")","v":""},null,null,{"$f":"IFERROR(VLOOKUP(ROW(M45)-ROW(M$38)+1,'MATRIX TABLE'!$B$3:$Q$26,16,FALSE),\"\")","v":""}]
[null,null,null,null,null,null,null,null,null,{"$f":"IFERROR(VLOOKUP(ROW(J46)-ROW(J$38)+1,'MATRIX TABLE'!$B$3:$C$26,2,FALSE),\"\")","v":""},null,null,{"$f":"IFERROR(VLOOKUP(ROW(M46)-ROW(M$38)+1,'MATRIX TABLE'!$B$3:$Q$26,16,FALSE),\"\")","v":""}]
[null,null,null,null,null,null,null,null,null,{"$f":"IFERROR(VLOOKUP(ROW(J47)-ROW(J$38)+1,'MATRIX TABLE'!$B$3:$C$26,2,FALSE),\"\")","v":""},null,null,{"$f":"IFERROR(VLOOKUP(ROW(M47)-ROW(M$38)+1,'MATRIX TABLE'!$B$3:$Q$26,16,FALSE),\"\")","v":""}]
[null,null,null,null,null,null,null,null,null,{"$f":"IFERROR(VLOOKUP(ROW(J48)-ROW(J$38)+1,'MATRIX TABLE'!$B$3:$C$26,2,FALSE),\"\")","v":""},null,null,{"$f":"IFERROR(VLOOKUP(ROW(M48)-ROW(M$38)+1,'MATRIX TABLE'!$B$3:$Q$26,16,FALSE),\"\")","v":""}]
[null,null,null,null,null,null,null,null,null,{"$f":"IFERROR(VLOOKUP(ROW(J49)-ROW(J$38)+1,'MATRIX TABLE'!$B$3:$C$26,2,FALSE),\"\")","v":""},null,null,{"$f":"IFERROR(VLOOKUP(ROW(M49)-ROW(M$38)+1,'MATRIX TABLE'!$B$3:$Q$26,16,FALSE),\"\")","v":""}]
[null,null,null,null,null,null,null,null,null,{"$f":"IFERROR(VLOOKUP(ROW(J50)-ROW(J$38)+1,'MATRIX TABLE'!$B$3:$C$26,2,FALSE),\"\")","v":""}]
[]
[null,null,"WATER USE EFFICIENCY"]
[]
[null,null,null,null,{"$f":"D54","v":0},{"$f":"'MATRIX TABLE'!N28","v":true},null,"Landscape Design",null,{"$f":"IFERROR(VLOOKUP(ROW(J54)-ROW(J$54)+1,'MATRIX TABLE'!$B$28:$C$42,2,FALSE),\"\")","v":""},null,null,{"$f":"IFERROR(VLOOKUP(ROW(M54)-ROW(M$54)+1,'MATRIX TABLE'!$B$28:$Q$42,16,FALSE),\"\")","v":""}]
[null,null,null,null,{"$f":"D55","v":0},{"$f":"'MATRIX TABLE'!N29","v":true},null,"Irrigation",null,{"$f":"IFERROR(VLOOKUP(ROW(J55)-ROW(J$54)+1,'MATRIX TABLE'!$B$28:$C$42,2,FALSE),\"\")","v":""},null,null,{"$f":"IFERROR(VLOOKUP(ROW(M55)-ROW(M$54)+1,'MATRIX TABLE'!$B$28:$Q$42,16,FALSE),\"\")","v":""}]
[null,null,null,null,{"$f":"D56","v":0},{"$f":"'MATRIX TABLE'!N30","v":true},{"$f":"IF('MATRIX TABLE'!$R$5=4,\"X\",\"\")","v":""},"Plumbing Fixtures and Fittings",null,{"$f":"IFERROR(VLOOKUP(ROW(J56)-ROW(J$54)+1,'MATRIX TABLE'!$B$28:$C$42,2,FALSE),\"\")","v":""},null,null,{"$f":"IFERROR(VLOOKUP(ROW(M56)-ROW(M$54)+1,'MATRIX TABLE'!$B$28:$Q$42,16,FALSE),\"\")","v":""}]
[null,null,null,false,{"$f":"D57","v":false},{"$f":"'MATRIX TABLE'!N31","v":true},null,"Appliances (Dish Washers, Clothes Washers, Ice Machines) ",null,{"$f":"IFERROR(VLOOKUP(ROW(J57)-ROW(J$54)+1,'MATRIX TABLE'!$B$28:$C$42,2,FALSE),\"\")","v":""},null,null,{"$f":"IFERROR(VLOOKUP(ROW(M57)-ROW(M$54)+1,'MATRIX TABLE'!$B$28:$Q$42,16,FALSE),\"\")","v":""}]
[null,null,null,null,0,{"$f":"'MATRIX TABLE'!N32","v":true},null,"HVAC (Cooling Towers and Evaporative Coolers)",null,{"$f":"IFERROR(VLOOKUP(ROW(J58)-ROW(J$54)+1,'MATRIX TABLE'!$B$28:$C$42,2,FALSE),\"\")","v":""},null,null,{"$f":"IFERROR(VLOOKUP(ROW(M58)-ROW(M$54)+1,'MATRIX TABLE'!$B$28:$Q$42,16,FALSE),\"\")","v":""}]
[null,null,null,null,0,{"$f":"'MATRIX TABLE'!N33","v":true},null,"Roof Spray Systems",null,{"$f":"IFERROR(VLOOKUP(ROW(J59)-ROW(J$54)+1,'MATRIX TABLE'!$B$28:$C$42,2,FALSE),\"\")","v":""},null,null,{"$f":"IFERROR(VLOOKUP(ROW(M59)-ROW(M$54)+1,'MATRIX TABLE'!$B$28:$Q$42,16,FALSE),\"\")","v":""}]
[null,null,null,null,0,{"$f":"'MATRIX TABLE'!N34","v":true},null,"Commercial Food Service Operations",null,{"$f":"IFERROR(VLOOKUP(ROW(J60)-ROW(J$54)+1,'MATRIX TABLE'!$B$28:$C$42,2,FALSE),\"\")","v":""},null,null,{"$f":"IFERROR(VLOOKUP(ROW(M60)-ROW(M$54)+1,'MATRIX TABLE'!$B$28:$Q$42,16,FALSE),\"\")","v":""}]
[null,null,null,false,false,{"$f":"'MATRIX TABLE'!N35","v":true},null,"Medical and Laboratory Facilities",null,{"$f":"IFERROR(VLOOKUP(ROW(J61)-ROW(J$54)+1,'MATRIX TABLE'!$B$28:$C$42,2,FALSE),\"\")","v":""},null,null,{"$f":"IFERROR(VLOOKUP(ROW(M61)-ROW(M$54)+1,'MATRIX TABLE'!$B$28:$Q$42,16,FALSE),\"\")","v":""}]
[null,null,null,false,false,{"$f":"'MATRIX TABLE'!N36","v":true},null,"Special Water Features (Fountains, Pools, Spas)",null,{"$f":"IFERROR(VLOOKUP(ROW(J62)-ROW(J$54)+1,'MATRIX TABLE'!$B$28:$C$42,2,FALSE),\"\")","v":""},null,null,{"$f":"IFERROR(VLOOKUP(ROW(M62)-ROW(M$54)+1,'MATRIX TABLE'!$B$28:$Q$42,16,FALSE),\"\")","v":""}]
[null,null,null,false,false,{"$f":"'MATRIX TABLE'!N37","v":true},null,"Water Softeners",null,{"$f":"IFERROR(VLOOKUP(ROW(J63)-ROW(J$54)+1,'MATRIX TABLE'!$B$28:$C$42,2,FALSE),\"\")","v":""},null,null,{"$f":"IFERROR(VLOOKUP(ROW(M63)-ROW(M$54)+1,'MATRIX TABLE'!$B$28:$Q$42,16,FALSE),\"\")","v":""}]
[null,null,null,false,false,{"$f":"'MATRIX TABLE'!N38","v":true},null,"Reverse Osmosis Water Treatment Systems",null,{"$f":"IFERROR(VLOOKUP(ROW(J64)-ROW(J$54)+1,'MATRIX TABLE'!$B$28:$C$42,2,FALSE),\"\")","v":""},null,null,{"$f":"IFERROR(VLOOKUP(ROW(M64)-ROW(M$54)+1,'MATRIX TABLE'!$B$28:$Q$42,16,FALSE),\"\")","v":""}]
[null,null,null,null,{"$f":"F65","v":false},{"$f":"'MATRIX TABLE'!B39>0","v":false},{"$f":"IF(AND('MATRIX TABLE'!$R$5=4,'Project Information'!$D$21>='MATRIX TABLE'!$O$39),\"X\",\"\")","v":""},"Water Use Intensity",null,{"$f":"IFERROR(VLOOKUP(ROW(J65)-ROW(J$54)+1,'MATRIX TABLE'!$B$28:$C$42,2,FALSE),\"\")","v":""},null,null,{"$f":"IFERROR(VLOOKUP(ROW(M65)-ROW(M$54)+1,'MATRIX TABLE'!$B$28:$Q$42,16,FALSE),\"\")","v":""}]
[null,null,null,null,null,null,null,null,null,{"$f":"IFERROR(VLOOKUP(ROW(J66)-ROW(J$54)+1,'MATRIX TABLE'!$B$28:$C$42,2,FALSE),\"\")","v":""},null,null,{"$f":"IFERROR(VLOOKUP(ROW(M66)-ROW(M$54)+1,'MATRIX TABLE'!$B$28:$Q$42,16,FALSE),\"\")","v":""}]
[null,null,null,null,null,null,null,null,null,{"$f":"IFERROR(VLOOKUP(ROW(J67)-ROW(J$54)+1,'MATRIX TABLE'!$B$28:$C$42,2,FALSE),\"\")","v":""},null,null,{"$f":"IFERROR(VLOOKUP(ROW(M67)-ROW(M$54)+1,'MATRIX TABLE'!$B$28:$Q$42,16,FALSE),\"\")","v":""}]
[]
[null,null,"ECOSYSTEM SERVICES IMPROVEMENT"]
[]
[null,null,null,null,{"$f":"D71","v":0},{"$f":"'MATRIX TABLE'!N44","v":false},{"$f":"IF('MATRIX TABLE'!$R$5=4,\"X\",\"\")","v":""},{"$f":"'MATRIX TABLE'!D43","v":"Impact to outdoor landscape / exterior site work"},null,{"$f":"IFERROR(VLOOKUP(ROW(J71)-ROW(J$71)+1,'MATRIX TABLE'!$B$44:$C$45,2,FALSE),\"\")","v":""},null,null,{"$f":"'MATRIX TABLE'!Q44","v":0}]
[]
[null,null,"MATERIALS"]
[]
[null,null,null,null,{"$f":"D75","v":0},{"$f":"'MATRIX TABLE'!I47","v":false},{"$f":"IF('MATRIX TABLE'!$R$5=4,\"X\",\"\")","v":""},"Construction Materials",null,{"$f":"IFERROR(VLOOKUP(ROW(J75)-ROW(J$75)+1,'MATRIX TABLE'!$B$48:$C$54,2,FALSE),\"\")","v":""},null,null,{"$f":"IFERROR(VLOOKUP(ROW(M75)-ROW(M$75)+1,'MATRIX TABLE'!$B$48:$Q$54,16,FALSE),\"\")","v":""}]
[null,null,null,null,{"$f":"D76","v":0},{"$f":"'MATRIX TABLE'!G47","v":false},{"$f":"IF('MATRIX TABLE'!$R$5=4,\"X\",\"\")","v":""},"Construction Waste",null,{"$f":"IFERROR(VLOOKUP(ROW(J76)-ROW(J$75)+1,'MATRIX TABLE'!$B$48:$C$54,2,FALSE),\"\")","v":""},null,null,{"$f":"IFERROR(VLOOKUP(ROW(M76)-ROW(M$75)+1,'MATRIX TABLE'!$B$48:$Q$54,16,FALSE),\"\")","v":""}]
[null,null,null,null,{"$f":"D77","v":0},null,{"$f":"IF('MATRIX TABLE'!$R$5=4,\"X\",\"\")","v":""},"Recycling, Compost, Trash Collection",null,{"$f":"IFERROR(VLOOKUP(ROW(J77)-ROW(J$75)+1,'MATRIX TABLE'!$B$48:$C$54,2,FALSE),\"\")","v":""},null,null,{"$f":"IFERROR(VLOOKUP(ROW(M77)-ROW(M$75)+1,'MATRIX TABLE'!$B$48:$Q$54,16,FALSE),\"\")","v":""}]
[null,null,null,null,null,null,null,null,null,{"$f":"IFERROR(VLOOKUP(ROW(J78)-ROW(J$75)+1,'MATRIX TABLE'!$B$48:$C$54,2,FALSE),\"\")","v":""},null,null,{"$f":"IFERROR(VLOOKUP(ROW(M78)-ROW(M$75)+1,'MATRIX TABLE'!$B$48:$Q$54,16,FALSE),\"\")","v":""}]
[null,null,null,null,null,null,null,null,null,{"$f":"IFERROR(VLOOKUP(ROW(J79)-ROW(J$75)+1,'MATRIX TABLE'!$B$48:$C$54,2,FALSE),\"\")","v":""},null,null,{"$f":"IFERROR(VLOOKUP(ROW(M79)-ROW(M$75)+1,'MATRIX TABLE'!$B$48:$Q$54,16,FALSE),\"\")","v":""}]
[null,null,null,null,null,null,null,null,null,{"$f":"IFERROR(VLOOKUP(ROW(J80)-ROW(J$75)+1,'MATRIX TABLE'!$B$48:$C$54,2,FALSE),\"\")","v":""}]
[null,null,"USER EXPERIENCE/INDOOR ENVIRONMENTAL QUALITY"]
[]
[null,null,null,null,{"$f":"D38","v":false},{"$f":"TRANSPOSE('MATRIX TABLE'!F56:J56)","v":true},null,{"$f":"'MATRIX TABLE'!F55","v":"HVAC"},null,{"$f":"IFERROR(VLOOKUP(ROW(J83)-ROW(J$83)+1,'MATRIX TABLE'!$B$57:$C$69,2,FALSE),\"\")","v":""},null,null,{"$f":"IFERROR(VLOOKUP(ROW(M83)-ROW(M$83)+1,'MATRIX TABLE'!$B$57:$Q$69,16,FALSE),\"\")","v":""}]
[null,null,null,null,{"$f":"E39","v":false},true,null,{"$f":"'MATRIX TABLE'!G55","v":"Lighting (Indoor)"},null,{"$f":"IFERROR(VLOOKUP(ROW(J84)-ROW(J$83)+1,'MATRIX TABLE'!$B$57:$C$69,2,FALSE),\"\")","v":""},null,null,{"$f":"IFERROR(VLOOKUP(ROW(M84)-ROW(M$83)+1,'MATRIX TABLE'!$B$57:$Q$69,16,FALSE),\"\")","v":""}]
[null,null,null,null,{"$f":"E40","v":false},true,null,{"$f":"'MATRIX TABLE'!H$55","v":"Lighting (Outdoor)"},null,{"$f":"IFERROR(VLOOKUP(ROW(J85)-ROW(J$83)+1,'MATRIX TABLE'!$B$57:$C$69,2,FALSE),\"\")","v":""},null,null,{"$f":"IFERROR(VLOOKUP(ROW(M85)-ROW(M$83)+1,'MATRIX TABLE'!$B$57:$Q$69,16,FALSE),\"\")","v":""}]
[null,null,null,null,{"$f":"D86","v":0},true,{"$f":"IF('MATRIX TABLE'!$R$5=4,\"X\",\"\")","v":""},{"$f":"'MATRIX TABLE'!I$55","v":"Interior Materials and Finishes"},null,{"$f":"IFERROR(VLOOKUP(ROW(J86)-ROW(J$83)+1,'MATRIX TABLE'!$B$57:$C$69,2,FALSE),\"\")","v":""},null,null,{"$f":"IFERROR(VLOOKUP(ROW(M86)-ROW(M$83)+1,'MATRIX TABLE'!$B$57:$Q$69,16,FALSE),\"\")","v":""}]
[null,null,null,null,{"$f":"D87","v":0},true,{"$f":"IF('MATRIX TABLE'!$R$5=4,\"X\",\"\")","v":""},{"$f":"'MATRIX TABLE'!J$55","v":"Entrance/Exit Modifications"},null,{"$f":"IFERROR(VLOOKUP(ROW(J87)-ROW(J$83)+1,'MATRIX TABLE'!$B$57:$C$69,2,FALSE),\"\")","v":""},null,null,{"$f":"IFERROR(VLOOKUP(ROW(M87)-ROW(M$83)+1,'MATRIX TABLE'!$B$57:$Q$69,16,FALSE),\"\")","v":""}]
[null,null,null,null,null,null,null,null,null,{"$f":"IFERROR(VLOOKUP(ROW(J88)-ROW(J$83)+1,'MATRIX TABLE'!$B$57:$C$69,2,FALSE),\"\")","v":""},null,null,{"$f":"IFERROR(VLOOKUP(ROW(M88)-ROW(M$83)+1,'MATRIX TABLE'!$B$57:$Q$69,16,FALSE),\"\")","v":""}]
[null,null,null,null,null,null,null,null,null,{"$f":"IFERROR(VLOOKUP(ROW(J89)-ROW(J$83)+1,'MATRIX TABLE'!$B$57:$C$69,2,FALSE),\"\")","v":""},null,null,{"$f":"IFERROR(VLOOKUP(ROW(M89)-ROW(M$83)+1,'MATRIX TABLE'!$B$57:$Q$69,16,FALSE),\"\")","v":""}]
[null,null,null,null,null,null,null,null,null,{"$f":"IFERROR(VLOOKUP(ROW(J90)-ROW(J$83)+1,'MATRIX TABLE'!$B$57:$C$69,2,FALSE),\"\")","v":""},null,null,{"$f":"IFERROR(VLOOKUP(ROW(M90)-ROW(M$83)+1,'MATRIX TABLE'!$B$57:$Q$69,16,FALSE),\"\")","v":""}]
[null,null,null,null,null,null,null,null,null,{"$f":"IFERROR(VLOOKUP(ROW(J91)-ROW(J$83)+1,'MATRIX TABLE'!$B$57:$C$69,2,FALSE),\"\")","v":""},null,null,{"$f":"IFERROR(VLOOKUP(ROW(M91)-ROW(M$83)+1,'MATRIX TABLE'!$B$57:$Q$69,16,FALSE),\"\")","v":""}]
[null,null,null,null,null,null,null,null,null,{"$f":"IFERROR(VLOOKUP(ROW(J92)-ROW(J$83)+1,'MATRIX TABLE'!$B$57:$C$69,2,FALSE),\"\")","v":""},null,null,{"$f":"IFERROR(VLOOKUP(ROW(M92)-ROW(M$83)+1,'MATRIX TABLE'!$B$57:$Q$69,16,FALSE),\"\")","v":""}]
[null,null,null,null,null,null,null,null,null,{"$f":"IFERROR(VLOOKUP(ROW(J93)-ROW(J$83)+1,'MATRIX TABLE'!$B$57:$C$69,2,FALSE),\"\")","v":""},null,null,{"$f":"IFERROR(VLOOKUP(ROW(M93)-ROW(M$83)+1,'MATRIX TABLE'!$B$57:$Q$69,16,FALSE),\"\")","v":""}]
[null,null,null,null,null,null,null,null,null,{"$f":"IFERROR(VLOOKUP(ROW(J94)-ROW(J$83)+1,'MATRIX TABLE'!$B$57:$C$69,2,FALSE),\"\")","v":""}]

{"sheet":"Small Project Checklist","index":2,"n_rows":40,"n_cols":7,"rows_kept":40,"cut":false,"hidden":false,"merged":[[0,2,1,2]]}
["SMALL PROJECT CHECKLIST"]
[]
[{"$f":"\"Project Name:         \"&'Project Information'!D14","v":"Project Name:         "}]
[{"$f":"\"Project Number:     \"&'Project Information'!D13","v":"Project Number:     "}]
[{"$f":"\"Project Manager:   \"&'Project Information'!D19","v":"Project Manager:   "}]
[{"$f":"\"Project Type:           \"&IFERROR(LEFT('Project Information'!$D$22,SEARCH(\"~*\",'Project Information'!$D$22)-1),'Project Information'!$D$22)","v":"Project Type:           Renovation"}]
["Checklist Completion Date:"]
[]
["CATEGORY","COMPLETED?","REQUIREMENT","NOTES","Task Completed by ","Task\n Reviewed by ","Task Approved by "]
[{"$f":"UPPER(IFERROR(VLOOKUP(ROW(H10)-ROW(H$10)+1,'Small Proj TABLE'!$B$2:$D$77,2,FALSE),\"\"))","v":"GENERAL"},null,{"$f":"IFERROR(VLOOKUP(ROW(H10)-ROW(H$10)+1,'Small Proj TABLE'!$B$2:$H$77,4,FALSE),\"\")","v":"00 00 17.1.1       Submit update Sustainability Applicability Matrix through eBuilder"},null,{"$f":"IFERROR(VLOOKUP(ROW(H21)-ROW(H$21)+1,'Pre-Design TABLE'!$B$3:$H$23,5,FALSE),\"\")","v":""},{"$f":"IFERROR(VLOOKUP(ROW(H21)-ROW(H$21)+1,'Pre-Design TABLE'!$B$3:$H$23,6,FALSE),\"\")","v":""},{"$f":"IFERROR(VLOOKUP(ROW(H21)-ROW(H$21)+1,'Pre-Design TABLE'!$B$3:$H$23,7,FALSE),\"\")","v":""}]
[{"$f":"UPPER(IFERROR(VLOOKUP(ROW(H11)-ROW(H$10)+1,'Small Proj TABLE'!$B$2:$D$77,2,FALSE),\"\"))","v":"GENERAL"},null,{"$f":"IFERROR(VLOOKUP(ROW(H11)-ROW(H$10)+1,'Small Proj TABLE'!$B$2:$H$77,4,FALSE),\"\")","v":"00 00 17.1.2       Submit updated OPR through eBuilder (if applicable)"},null,{"$f":"IFERROR(VLOOKUP(ROW(H22)-ROW(H$21)+1,'Pre-Design TABLE'!$B$3:$H$23,5,FALSE),\"\")","v":"A/E"},{"$f":"IFERROR(VLOOKUP(ROW(H22)-ROW(H$21)+1,'Pre-Design TABLE'!$B$3:$H$23,6,FALSE),\"\")","v":0},{"$f":"IFERROR(VLOOKUP(ROW(H22)-ROW(H$21)+1,'Pre-Design TABLE'!$B$3:$H$23,7,FALSE),\"\")","v":0}]
[{"$f":"UPPER(IFERROR(VLOOKUP(ROW(H12)-ROW(H$10)+1,'Small Proj TABLE'!$B$2:$D$77,2,FALSE),\"\"))","v":""},null,{"$f":"IFERROR(VLOOKUP(ROW(H12)-ROW(H$10)+1,'Small Proj TABLE'!$B$2:$H$77,4,FALSE),\"\")","v":0},null,{"$f":"IFERROR(VLOOKUP(ROW(H23)-ROW(H$21)+1,'Pre-Design TABLE'!$B$3:$H$23,5,FALSE),\"\")","v":0},{"$f":"IFERROR(VLOOKUP(ROW(H23)-ROW(H$21)+1,'Pre-Design TABLE'!$B$3:$H$23,6,FALSE),\"\")","v":0},{"$f":"IFERROR(VLOOKUP(ROW(H23)-ROW(H$21)+1,'Pre-Design TABLE'!$B$3:$H$23,7,FALSE),\"\")","v":0}]
[{"$f":"UPPER(IFERROR(VLOOKUP(ROW(H13)-ROW(H$10)+1,'Small Proj TABLE'!$B$2:$D$77,2,FALSE),\"\"))","v":""},null,{"$f":"IFERROR(VLOOKUP(ROW(H13)-ROW(H$10)+1,'Small Proj TABLE'!$B$2:$H$77,4,FALSE),\"\")","v":""},null,{"$f":"IFERROR(VLOOKUP(ROW(H24)-ROW(H$21)+1,'Pre-Design TABLE'!$B$3:$H$23,5,FALSE),\"\")","v":""},{"$f":"IFERROR(VLOOKUP(ROW(H24)-ROW(H$21)+1,'Pre-Design TABLE'!$B$3:$H$23,6,FALSE),\"\")","v":""},{"$f":"IFERROR(VLOOKUP(ROW(H24)-ROW(H$21)+1,'Pre-Design TABLE'!$B$3:$H$23,7,FALSE),\"\")","v":""}]
[{"$f":"UPPER(IFERROR(VLOOKUP(ROW(H14)-ROW(H$10)+1,'Small Proj TABLE'!$B$2:$D$77,2,FALSE),\"\"))","v":""},null,{"$f":"IFERROR(VLOOKUP(ROW(H14)-ROW(H$10)+1,'Small Proj TABLE'!$B$2:$H$77,4,FALSE),\"\")","v":""},null,{"$f":"IFERROR(VLOOKUP(ROW(H25)-ROW(H$21)+1,'Pre-Design TABLE'!$B$3:$H$23,5,FALSE),\"\")","v":""},{"$f":"IFERROR(VLOOKUP(ROW(H25)-ROW(H$21)+1,'Pre-Design TABLE'!$B$3:$H$23,6,FALSE),\"\")","v":""},{"$f":"IFERROR(VLOOKUP(ROW(H25)-ROW(H$21)+1,'Pre-Design TABLE'!$B$3:$H$23,7,FALSE),\"\")","v":""}]
[{"$f":"UPPER(IFERROR(VLOOKUP(ROW(H15)-ROW(H$10)+1,'Small Proj TABLE'!$B$2:$D$77,2,FALSE),\"\"))","v":""},null,{"$f":"IFERROR(VLOOKUP(ROW(H15)-ROW(H$10)+1,'Small Proj TABLE'!$B$2:$H$77,4,FALSE),\"\")","v":""},null,{"$f":"IFERROR(VLOOKUP(ROW(H26)-ROW(H$21)+1,'Pre-Design TABLE'!$B$3:$H$23,5,FALSE),\"\")","v":""},{"$f":"IFERROR(VLOOKUP(ROW(H26)-ROW(H$21)+1,'Pre-Design TABLE'!$B$3:$H$23,6,FALSE),\"\")","v":""},{"$f":"IFERROR(VLOOKUP(ROW(H26)-ROW(H$21)+1,'Pre-Design TABLE'!$B$3:$H$23,7,FALSE),\"\")","v":""}]
[{"$f":"UPPER(IFERROR(VLOOKUP(ROW(H16)-ROW(H$10)+1,'Small Proj TABLE'!$B$2:$D$77,2,FALSE),\"\"))","v":""},null,{"$f":"IFERROR(VLOOKUP(ROW(H16)-ROW(H$10)+1,'Small Proj TABLE'!$B$2:$H$77,4,FALSE),\"\")","v":""},null,{"$f":"IFERROR(VLOOKUP(ROW(H27)-ROW(H$21)+1,'Pre-Design TABLE'!$B$3:$H$23,5,FALSE),\"\")","v":""},{"$f":"IFERROR(VLOOKUP(ROW(H27)-ROW(H$21)+1,'Pre-Design TABLE'!$B$3:$H$23,6,FALSE),\"\")","v":""},{"$f":"IFERROR(VLOOKUP(ROW(H27)-ROW(H$21)+1,'Pre-Design TABLE'!$B$3:$H$23,7,FALSE),\"\")","v":""}]
[{"$f":"UPPER(IFERROR(VLOOKUP(ROW(H17)-ROW(H$10)+1,'Small Proj TABLE'!$B$2:$D$77,2,FALSE),\"\"))","v":""},null,{"$f":"IFERROR(VLOOKUP(ROW(H17)-ROW(H$10)+1,'Small Proj TABLE'!$B$2:$H$77,4,FALSE),\"\")","v":""},null,{"$f":"IFERROR(VLOOKUP(ROW(H28)-ROW(H$21)+1,'Pre-Design TABLE'!$B$3:$H$23,5,FALSE),\"\")","v":""},{"$f":"IFERROR(VLOOKUP(ROW(H28)-ROW(H$21)+1,'Pre-Design TABLE'!$B$3:$H$23,6,FALSE),\"\")","v":""},{"$f":"IFERROR(VLOOKUP(ROW(H28)-ROW(H$21)+1,'Pre-Design TABLE'!$B$3:$H$23,7,FALSE),\"\")","v":""}]
[{"$f":"UPPER(IFERROR(VLOOKUP(ROW(H18)-ROW(H$10)+1,'Small Proj TABLE'!$B$2:$D$77,2,FALSE),\"\"))","v":""},null,{"$f":"IFERROR(VLOOKUP(ROW(H18)-ROW(H$10)+1,'Small Proj TABLE'!$B$2:$H$77,4,FALSE),\"\")","v":""},null,{"$f":"IFERROR(VLOOKUP(ROW(H29)-ROW(H$21)+1,'Pre-Design TABLE'!$B$3:$H$23,5,FALSE),\"\")","v":""},{"$f":"IFERROR(VLOOKUP(ROW(H29)-ROW(H$21)+1,'Pre-Design TABLE'!$B$3:$H$23,6,FALSE),\"\")","v":""},{"$f":"IFERROR(VLOOKUP(ROW(H29)-ROW(H$21)+1,'Pre-Design TABLE'!$B$3:$H$23,7,FALSE),\"\")","v":""}]
[{"$f":"UPPER(IFERROR(VLOOKUP(ROW(H19)-ROW(H$10)+1,'Small Proj TABLE'!$B$2:$D$77,2,FALSE),\"\"))","v":""},null,{"$f":"IFERROR(VLOOKUP(ROW(H19)-ROW(H$10)+1,'Small Proj TABLE'!$B$2:$H$77,4,FALSE),\"\")","v":""},null,{"$f":"IFERROR(VLOOKUP(ROW(H30)-ROW(H$21)+1,'Pre-Design TABLE'!$B$3:$H$23,5,FALSE),\"\")","v":""},{"$f":"IFERROR(VLOOKUP(ROW(H30)-ROW(H$21)+1,'Pre-Design TABLE'!$B$3:$H$23,6,FALSE),\"\")","v":""},{"$f":"IFERROR(VLOOKUP(ROW(H30)-ROW(H$21)+1,'Pre-Design TABLE'!$B$3:$H$23,7,FALSE),\"\")","v":""}]
[{"$f":"UPPER(IFERROR(VLOOKUP(ROW(H20)-ROW(H$10)+1,'Small Proj TABLE'!$B$2:$D$77,2,FALSE),\"\"))","v":""},null,{"$f":"IFERROR(VLOOKUP(ROW(H20)-ROW(H$10)+1,'Small Proj TABLE'!$B$2:$H$77,4,FALSE),\"\")","v":""},null,{"$f":"IFERROR(VLOOKUP(ROW(H31)-ROW(H$21)+1,'Pre-Design TABLE'!$B$3:$H$23,5,FALSE),\"\")","v":""},{"$f":"IFERROR(VLOOKUP(ROW(H31)-ROW(H$21)+1,'Pre-Design TABLE'!$B$3:$H$23,6,FALSE),\"\")","v":""},{"$f":"IFERROR(VLOOKUP(ROW(H31)-ROW(H$21)+1,'Pre-Design TABLE'!$B$3:$H$23,7,FALSE),\"\")","v":""}]
[{"$f":"UPPER(IFERROR(VLOOKUP(ROW(H21)-ROW(H$10)+1,'Small Proj TABLE'!$B$2:$D$77,2,FALSE),\"\"))","v":""},null,{"$f":"IFERROR(VLOOKUP(ROW(H21)-ROW(H$10)+1,'Small Proj TABLE'!$B$2:$H$77,4,FALSE),\"\")","v":""},null,{"$f":"IFERROR(VLOOKUP(ROW(H32)-ROW(H$21)+1,'Pre-Design TABLE'!$B$3:$H$23,5,FALSE),\"\")","v":""},{"$f":"IFERROR(VLOOKUP(ROW(H32)-ROW(H$21)+1,'Pre-Design TABLE'!$B$3:$H$23,6,FALSE),\"\")","v":""},{"$f":"IFERROR(VLOOKUP(ROW(H32)-ROW(H$21)+1,'Pre-Design TABLE'!$B$3:$H$23,7,FALSE),\"\")","v":""}]
[{"$f":"UPPER(IFERROR(VLOOKUP(ROW(H33)-ROW(H$21)+1,'Small Proj TABLE'!$B$2:$D$77,2,FALSE),\"\"))","v":""},null,{"$f":"IFERROR(VLOOKUP(ROW(H22)-ROW(H$10)+1,'Small Proj TABLE'!$B$2:$H$77,4,FALSE),\"\")","v":""},null,{"$f":"IFERROR(VLOOKUP(ROW(H33)-ROW(H$21)+1,'Pre-Design TABLE'!$B$3:$H$23,5,FALSE),\"\")","v":""},{"$f":"IFERROR(VLOOKUP(ROW(H33)-ROW(H$21)+1,'Pre-Design TABLE'!$B$3:$H$23,6,FALSE),\"\")","v":""},{"$f":"IFERROR(VLOOKUP(ROW(H33)-ROW(H$21)+1,'Pre-Design TABLE'!$B$3:$H$23,7,FALSE),\"\")","v":""}]
[{"$f":"UPPER(IFERROR(VLOOKUP(ROW(H34)-ROW(H$21)+1,'Small Proj TABLE'!$B$2:$D$77,2,FALSE),\"\"))","v":""},null,{"$f":"IFERROR(VLOOKUP(ROW(H23)-ROW(H$10)+1,'Small Proj TABLE'!$B$2:$H$77,4,FALSE),\"\")","v":""},null,{"$f":"IFERROR(VLOOKUP(ROW(H34)-ROW(H$21)+1,'Pre-Design TABLE'!$B$3:$H$23,5,FALSE),\"\")","v":""},{"$f":"IFERROR(VLOOKUP(ROW(H34)-ROW(H$21)+1,'Pre-Design TABLE'!$B$3:$H$23,6,FALSE),\"\")","v":""},{"$f":"IFERROR(VLOOKUP(ROW(H34)-ROW(H$21)+1,'Pre-Design TABLE'!$B$3:$H$23,7,FALSE),\"\")","v":""}]
[{"$f":"UPPER(IFERROR(VLOOKUP(ROW(H35)-ROW(H$21)+1,'Small Proj TABLE'!$B$2:$D$77,2,FALSE),\"\"))","v":""},null,{"$f":"IFERROR(VLOOKUP(ROW(H24)-ROW(H$10)+1,'Small Proj TABLE'!$B$2:$H$77,4,FALSE),\"\")","v":""},null,{"$f":"IFERROR(VLOOKUP(ROW(H35)-ROW(H$21)+1,'Pre-Design TABLE'!$B$3:$H$23,5,FALSE),\"\")","v":""},{"$f":"IFERROR(VLOOKUP(ROW(H35)-ROW(H$21)+1,'Pre-Design TABLE'!$B$3:$H$23,6,FALSE),\"\")","v":""},{"$f":"IFERROR(VLOOKUP(ROW(H35)-ROW(H$21)+1,'Pre-Design TABLE'!$B$3:$H$23,7,FALSE),\"\")","v":""}]
[{"$f":"UPPER(IFERROR(VLOOKUP(ROW(H36)-ROW(H$21)+1,'Small Proj TABLE'!$B$2:$D$77,2,FALSE),\"\"))","v":""},null,{"$f":"IFERROR(VLOOKUP(ROW(H25)-ROW(H$10)+1,'Small Proj TABLE'!$B$2:$H$77,4,FALSE),\"\")","v":""},null,{"$f":"IFERROR(VLOOKUP(ROW(H36)-ROW(H$21)+1,'Pre-Design TABLE'!$B$3:$H$23,5,FALSE),\"\")","v":""},{"$f":"IFERROR(VLOOKUP(ROW(H36)-ROW(H$21)+1,'Pre-Design TABLE'!$B$3:$H$23,6,FALSE),\"\")","v":""},{"$f":"IFERROR(VLOOKUP(ROW(H36)-ROW(H$21)+1,'Pre-Design TABLE'!$B$3:$H$23,7,FALSE),\"\")","v":""}]
[{"$f":"UPPER(IFERROR(VLOOKUP(ROW(H37)-ROW(H$21)+1,'Small Proj TABLE'!$B$2:$D$77,2,FALSE),\"\"))","v":""},null,{"$f":"IFERROR(VLOOKUP(ROW(H26)-ROW(H$10)+1,'Small Proj TABLE'!$B$2:$H$77,4,FALSE),\"\")","v":""},null,{"$f":"IFERROR(VLOOKUP(ROW(H37)-ROW(H$21)+1,'Pre-Design TABLE'!$B$3:$H$23,5,FALSE),\"\")","v":""},{"$f":"IFERROR(VLOOKUP(ROW(H37)-ROW(H$21)+1,'Pre-Design TABLE'!$B$3:$H$23,6,FALSE),\"\")","v":""},{"$f":"IFERROR(VLOOKUP(ROW(H37)-ROW(H$21)+1,'Pre-Design TABLE'!$B$3:$H$23,7,FALSE),\"\")","v":""}]
[{"$f":"UPPER(IFERROR(VLOOKUP(ROW(H38)-ROW(H$21)+1,'Small Proj TABLE'!$B$2:$D$77,2,FALSE),\"\"))","v":""},null,{"$f":"IFERROR(VLOOKUP(ROW(H27)-ROW(H$10)+1,'Small Proj TABLE'!$B$2:$H$77,4,FALSE),\"\")","v":""},null,{"$f":"IFERROR(VLOOKUP(ROW(H38)-ROW(H$21)+1,'Pre-Design TABLE'!$B$3:$H$23,5,FALSE),\"\")","v":""},{"$f":"IFERROR(VLOOKUP(ROW(H38)-ROW(H$21)+1,'Pre-Design TABLE'!$B$3:$H$23,6,FALSE),\"\")","v":""},{"$f":"IFERROR(VLOOKUP(ROW(H38)-ROW(H$21)+1,'Pre-Design TABLE'!$B$3:$H$23,7,FALSE),\"\")","v":""}]
[{"$f":"UPPER(IFERROR(VLOOKUP(ROW(H39)-ROW(H$21)+1,'Small Proj TABLE'!$B$2:$D$77,2,FALSE),\"\"))","v":""},null,{"$f":"IFERROR(VLOOKUP(ROW(H28)-ROW(H$10)+1,'Small Proj TABLE'!$B$2:$H$77,4,FALSE),\"\")","v":""},null,{"$f":"IFERROR(VLOOKUP(ROW(G39)-ROW(F$21)+1,'Pre-Design TABLE'!$B$3:$H$23,5,FALSE),\"\")","v":""},{"$f":"IFERROR(VLOOKUP(ROW(H39)-ROW(G$21)+1,'Pre-Design TABLE'!$B$3:$H$23,5,FALSE),\"\")","v":""},{"$f":"IFERROR(VLOOKUP(ROW(I39)-ROW(H$21)+1,'Pre-Design TABLE'!$B$3:$H$23,5,FALSE),\"\")","v":""}]
[{"$f":"UPPER(IFERROR(VLOOKUP(ROW(H40)-ROW(H$21)+1,'Small Proj TABLE'!$B$2:$D$77,2,FALSE),\"\"))","v":""},null,{"$f":"IFERROR(VLOOKUP(ROW(H29)-ROW(H$10)+1,'Small Proj TABLE'!$B$2:$H$77,4,FALSE),\"\")","v":""}]
[{"$f":"UPPER(IFERROR(VLOOKUP(ROW(H41)-ROW(H$21)+1,'Small Proj TABLE'!$B$2:$D$77,2,FALSE),\"\"))","v":""},null,{"$f":"IFERROR(VLOOKUP(ROW(H30)-ROW(H$10)+1,'Small Proj TABLE'!$B$2:$H$77,4,FALSE),\"\")","v":""}]
[{"$f":"UPPER(IFERROR(VLOOKUP(ROW(H42)-ROW(H$21)+1,'Small Proj TABLE'!$B$2:$D$77,2,FALSE),\"\"))","v":""},null,{"$f":"IFERROR(VLOOKUP(ROW(H31)-ROW(H$10)+1,'Small Proj TABLE'!$B$2:$H$77,4,FALSE),\"\")","v":""}]
[{"$f":"UPPER(IFERROR(VLOOKUP(ROW(H43)-ROW(H$21)+1,'Small Proj TABLE'!$B$2:$D$77,2,FALSE),\"\"))","v":""},null,{"$f":"IFERROR(VLOOKUP(ROW(H32)-ROW(H$10)+1,'Small Proj TABLE'!$B$2:$H$77,4,FALSE),\"\")","v":""}]
[{"$f":"UPPER(IFERROR(VLOOKUP(ROW(H44)-ROW(H$21)+1,'Small Proj TABLE'!$B$2:$D$77,2,FALSE),\"\"))","v":""},null,{"$f":"IFERROR(VLOOKUP(ROW(H33)-ROW(H$10)+1,'Small Proj TABLE'!$B$2:$H$77,4,FALSE),\"\")","v":""}]
[{"$f":"UPPER(IFERROR(VLOOKUP(ROW(H45)-ROW(H$21)+1,'Small Proj TABLE'!$B$2:$D$77,2,FALSE),\"\"))","v":""},null,{"$f":"IFERROR(VLOOKUP(ROW(H34)-ROW(H$10)+1,'Small Proj TABLE'!$B$2:$H$77,4,FALSE),\"\")","v":""}]
[{"$f":"UPPER(IFERROR(VLOOKUP(ROW(H46)-ROW(H$21)+1,'Small Proj TABLE'!$B$2:$D$77,2,FALSE),\"\"))","v":""},null,{"$f":"IFERROR(VLOOKUP(ROW(H35)-ROW(H$10)+1,'Small Proj TABLE'!$B$2:$H$77,4,FALSE),\"\")","v":""}]
[{"$f":"UPPER(IFERROR(VLOOKUP(ROW(H47)-ROW(H$21)+1,'Small Proj TABLE'!$B$2:$D$77,2,FALSE),\"\"))","v":""},null,{"$f":"IFERROR(VLOOKUP(ROW(H36)-ROW(H$10)+1,'Small Proj TABLE'!$B$2:$H$77,4,FALSE),\"\")","v":""}]
[{"$f":"UPPER(IFERROR(VLOOKUP(ROW(H48)-ROW(H$21)+1,'Small Proj TABLE'!$B$2:$D$77,2,FALSE),\"\"))","v":""},null,{"$f":"IFERROR(VLOOKUP(ROW(H37)-ROW(H$10)+1,'Small Proj TABLE'!$B$2:$H$77,4,FALSE),\"\")","v":""}]
[{"$f":"UPPER(IFERROR(VLOOKUP(ROW(H49)-ROW(H$21)+1,'Small Proj TABLE'!$B$2:$D$77,2,FALSE),\"\"))","v":""},null,{"$f":"IFERROR(VLOOKUP(ROW(H38)-ROW(H$10)+1,'Small Proj TABLE'!$B$2:$H$77,4,FALSE),\"\")","v":""}]
[{"$f":"UPPER(IFERROR(VLOOKUP(ROW(H50)-ROW(H$21)+1,'Small Proj TABLE'!$B$2:$D$77,2,FALSE),\"\"))","v":""},null,{"$f":"IFERROR(VLOOKUP(ROW(H39)-ROW(H$10)+1,'Small Proj TABLE'!$B$2:$H$77,4,FALSE),\"\")","v":""}]
[{"$f":"UPPER(IFERROR(VLOOKUP(ROW(H51)-ROW(H$21)+1,'Small Proj TABLE'!$B$2:$D$77,2,FALSE),\"\"))","v":""},null,{"$f":"IFERROR(VLOOKUP(ROW(H40)-ROW(H$10)+1,'Small Proj TABLE'!$B$2:$H$77,4,FALSE),\"\")","v":""}]

{"sheet":"Pre-Design Checklist ","index":3,"n_rows":50,"n_cols":8,"rows_kept":50,"cut":false,"hidden":false,"merged":[]}
["PROJECT SUSTAINABILITY CHECKLIST - End of Project Concept / Pre-design"]
[]
[{"$f":"\"Project Name:         \"&'Project Information'!D14","v":"Project Name:         "}]
[{"$f":"\"Project Number:     \"&'Project Information'!D13","v":"Project Number:     "}]
[{"$f":"\"Project Manager:   \"&'Project Information'!D19","v":"Project Manager:   "}]
[{"$f":"\"Project Type:           \"&IFERROR(LEFT('Project Information'!$D$22,SEARCH(\"~*\",'Project Information'!$D$22)-1),'Project Information'!$D$22)","v":"Project Type:           Renovation"}]
["Checklist Completion Date:"]
[]
["CATEGORY","COMPLETED?","SECTION","REQUIREMENT","NOTES","Task Completed by ","Task\n Reviewed by ","Task Approved by "]
[{"$f":"UPPER(IFERROR(VLOOKUP(ROW(I21)-ROW(I$21)+1,'Pre-Design TABLE'!$B$2:$C$26,2,FALSE),\"\"))","v":"GENERAL"},null,{"$f":"IFERROR(VLOOKUP(ROW(H10)-ROW(H$10)+1,'Pre-Design TABLE'!$B$2:$H$26,3,FALSE),\"\")","v":"00 00 17.1.1     "},{"$f":"IFERROR(VLOOKUP(ROW(I10)-ROW(I$10)+1,'Pre-Design TABLE'!$B$2:$H$26,4,FALSE),\"\")","v":"Submit updated Sustainability Applicability Matrix (SAM) through eBuilder "},null,{"$f":"IFERROR(VLOOKUP(ROW(I21)-ROW(I$21)+1,'Pre-Design TABLE'!$B$2:$H$26,5,FALSE),\"\")","v":0},{"$f":"IFERROR(VLOOKUP(ROW(I21)-ROW(I$21)+1,'Pre-Design TABLE'!$B$2:$H$26,6,FALSE),\"\")","v":0},{"$f":"IFERROR(VLOOKUP(ROW(I21)-ROW(I$21)+1,'Pre-Design TABLE'!$B$2:$H$26,7,FALSE),\"\")","v":0}]
[{"$f":"UPPER(IFERROR(VLOOKUP(ROW(I22)-ROW(I$21)+1,'Pre-Design TABLE'!$B$2:$C$26,2,FALSE),\"\"))","v":"GENERAL"},null,{"$f":"IFERROR(VLOOKUP(ROW(H11)-ROW(H$10)+1,'Pre-Design TABLE'!$B$2:$H$26,3,FALSE),\"\")","v":"00 00 17.1.2 "},{"$f":"IFERROR(VLOOKUP(ROW(I11)-ROW(I$10)+1,'Pre-Design TABLE'!$B$2:$H$26,4,FALSE),\"\")","v":"Submit updated OPR through eBuilder "},null,{"$f":"IFERROR(VLOOKUP(ROW(I22)-ROW(I$21)+1,'Pre-Design TABLE'!$B$2:$H$26,5,FALSE),\"\")","v":"A/E"},{"$f":"IFERROR(VLOOKUP(ROW(I22)-ROW(I$21)+1,'Pre-Design TABLE'!$B$2:$H$26,6,FALSE),\"\")","v":0},{"$f":"IFERROR(VLOOKUP(ROW(I22)-ROW(I$21)+1,'Pre-Design TABLE'!$B$2:$H$26,7,FALSE),\"\")","v":0}]
[{"$f":"UPPER(IFERROR(VLOOKUP(ROW(I23)-ROW(I$21)+1,'Pre-Design TABLE'!$B$2:$C$26,2,FALSE),\"\"))","v":""},null,{"$f":"IFERROR(VLOOKUP(ROW(H12)-ROW(H$10)+1,'Pre-Design TABLE'!$B$2:$H$26,3,FALSE),\"\")","v":0},{"$f":"IFERROR(VLOOKUP(ROW(I12)-ROW(I$10)+1,'Pre-Design TABLE'!$B$2:$H$26,4,FALSE),\"\")","v":0},null,{"$f":"IFERROR(VLOOKUP(ROW(I23)-ROW(I$21)+1,'Pre-Design TABLE'!$B$2:$H$26,5,FALSE),\"\")","v":0},{"$f":"IFERROR(VLOOKUP(ROW(I23)-ROW(I$21)+1,'Pre-Design TABLE'!$B$2:$H$26,6,FALSE),\"\")","v":0},{"$f":"IFERROR(VLOOKUP(ROW(I23)-ROW(I$21)+1,'Pre-Design TABLE'!$B$2:$H$26,7,FALSE),\"\")","v":0}]
[{"$f":"UPPER(IFERROR(VLOOKUP(ROW(I24)-ROW(I$21)+1,'Pre-Design TABLE'!$B$2:$C$26,2,FALSE),\"\"))","v":""},null,{"$f":"IFERROR(VLOOKUP(ROW(H13)-ROW(H$10)+1,'Pre-Design TABLE'!$B$2:$H$26,3,FALSE),\"\")","v":""},{"$f":"IFERROR(VLOOKUP(ROW(I13)-ROW(I$10)+1,'Pre-Design TABLE'!$B$2:$H$26,4,FALSE),\"\")","v":""},null,{"$f":"IFERROR(VLOOKUP(ROW(I24)-ROW(I$21)+1,'Pre-Design TABLE'!$B$2:$H$26,5,FALSE),\"\")","v":""},{"$f":"IFERROR(VLOOKUP(ROW(I24)-ROW(I$21)+1,'Pre-Design TABLE'!$B$2:$H$26,6,FALSE),\"\")","v":""},{"$f":"IFERROR(VLOOKUP(ROW(I24)-ROW(I$21)+1,'Pre-Design TABLE'!$B$2:$H$26,7,FALSE),\"\")","v":""}]
[{"$f":"UPPER(IFERROR(VLOOKUP(ROW(I25)-ROW(I$21)+1,'Pre-Design TABLE'!$B$2:$C$26,2,FALSE),\"\"))","v":""},null,{"$f":"IFERROR(VLOOKUP(ROW(H14)-ROW(H$10)+1,'Pre-Design TABLE'!$B$2:$H$26,3,FALSE),\"\")","v":""},{"$f":"IFERROR(VLOOKUP(ROW(I14)-ROW(I$10)+1,'Pre-Design TABLE'!$B$2:$H$26,4,FALSE),\"\")","v":""},null,{"$f":"IFERROR(VLOOKUP(ROW(I25)-ROW(I$21)+1,'Pre-Design TABLE'!$B$2:$H$26,5,FALSE),\"\")","v":""},{"$f":"IFERROR(VLOOKUP(ROW(I25)-ROW(I$21)+1,'Pre-Design TABLE'!$B$2:$H$26,6,FALSE),\"\")","v":""},{"$f":"IFERROR(VLOOKUP(ROW(I25)-ROW(I$21)+1,'Pre-Design TABLE'!$B$2:$H$26,7,FALSE),\"\")","v":""}]
[{"$f":"UPPER(IFERROR(VLOOKUP(ROW(I26)-ROW(I$21)+1,'Pre-Design TABLE'!$B$2:$C$26,2,FALSE),\"\"))","v":""},null,{"$f":"IFERROR(VLOOKUP(ROW(H15)-ROW(H$10)+1,'Pre-Design TABLE'!$B$2:$H$26,3,FALSE),\"\")","v":""},{"$f":"IFERROR(VLOOKUP(ROW(I15)-ROW(I$10)+1,'Pre-Design TABLE'!$B$2:$H$26,4,FALSE),\"\")","v":""},null,{"$f":"IFERROR(VLOOKUP(ROW(I26)-ROW(I$21)+1,'Pre-Design TABLE'!$B$2:$H$26,5,FALSE),\"\")","v":""},{"$f":"IFERROR(VLOOKUP(ROW(I26)-ROW(I$21)+1,'Pre-Design TABLE'!$B$2:$H$26,6,FALSE),\"\")","v":""},{"$f":"IFERROR(VLOOKUP(ROW(I26)-ROW(I$21)+1,'Pre-Design TABLE'!$B$2:$H$26,7,FALSE),\"\")","v":""}]
[{"$f":"UPPER(IFERROR(VLOOKUP(ROW(I27)-ROW(I$21)+1,'Pre-Design TABLE'!$B$2:$C$26,2,FALSE),\"\"))","v":""},null,{"$f":"IFERROR(VLOOKUP(ROW(H16)-ROW(H$10)+1,'Pre-Design TABLE'!$B$2:$H$26,3,FALSE),\"\")","v":""},{"$f":"IFERROR(VLOOKUP(ROW(I16)-ROW(I$10)+1,'Pre-Design TABLE'!$B$2:$H$26,4,FALSE),\"\")","v":""},null,{"$f":"IFERROR(VLOOKUP(ROW(I27)-ROW(I$21)+1,'Pre-Design TABLE'!$B$2:$H$26,5,FALSE),\"\")","v":""},{"$f":"IFERROR(VLOOKUP(ROW(I27)-ROW(I$21)+1,'Pre-Design TABLE'!$B$2:$H$26,6,FALSE),\"\")","v":""},{"$f":"IFERROR(VLOOKUP(ROW(I27)-ROW(I$21)+1,'Pre-Design TABLE'!$B$2:$H$26,7,FALSE),\"\")","v":""}]
[{"$f":"UPPER(IFERROR(VLOOKUP(ROW(I28)-ROW(I$21)+1,'Pre-Design TABLE'!$B$2:$C$26,2,FALSE),\"\"))","v":""},null,{"$f":"IFERROR(VLOOKUP(ROW(H17)-ROW(H$10)+1,'Pre-Design TABLE'!$B$2:$H$26,3,FALSE),\"\")","v":""},{"$f":"IFERROR(VLOOKUP(ROW(I17)-ROW(I$10)+1,'Pre-Design TABLE'!$B$2:$H$26,4,FALSE),\"\")","v":""},null,{"$f":"IFERROR(VLOOKUP(ROW(I28)-ROW(I$21)+1,'Pre-Design TABLE'!$B$2:$H$26,5,FALSE),\"\")","v":""},{"$f":"IFERROR(VLOOKUP(ROW(I28)-ROW(I$21)+1,'Pre-Design TABLE'!$B$2:$H$26,6,FALSE),\"\")","v":""},{"$f":"IFERROR(VLOOKUP(ROW(I28)-ROW(I$21)+1,'Pre-Design TABLE'!$B$2:$H$26,7,FALSE),\"\")","v":""}]
[{"$f":"UPPER(IFERROR(VLOOKUP(ROW(I29)-ROW(I$21)+1,'Pre-Design TABLE'!$B$2:$C$26,2,FALSE),\"\"))","v":""},null,{"$f":"IFERROR(VLOOKUP(ROW(H18)-ROW(H$10)+1,'Pre-Design TABLE'!$B$2:$H$26,3,FALSE),\"\")","v":""},{"$f":"IFERROR(VLOOKUP(ROW(I18)-ROW(I$10)+1,'Pre-Design TABLE'!$B$2:$H$26,4,FALSE),\"\")","v":""},null,{"$f":"IFERROR(VLOOKUP(ROW(I29)-ROW(I$21)+1,'Pre-Design TABLE'!$B$2:$H$26,5,FALSE),\"\")","v":""},{"$f":"IFERROR(VLOOKUP(ROW(I29)-ROW(I$21)+1,'Pre-Design TABLE'!$B$2:$H$26,6,FALSE),\"\")","v":""},{"$f":"IFERROR(VLOOKUP(ROW(I29)-ROW(I$21)+1,'Pre-Design TABLE'!$B$2:$H$26,7,FALSE),\"\")","v":""}]
[{"$f":"UPPER(IFERROR(VLOOKUP(ROW(I30)-ROW(I$21)+1,'Pre-Design TABLE'!$B$2:$C$26,2,FALSE),\"\"))","v":""},null,{"$f":"IFERROR(VLOOKUP(ROW(H19)-ROW(H$10)+1,'Pre-Design TABLE'!$B$2:$H$26,3,FALSE),\"\")","v":""},{"$f":"IFERROR(VLOOKUP(ROW(I19)-ROW(I$10)+1,'Pre-Design TABLE'!$B$2:$H$26,4,FALSE),\"\")","v":""},null,{"$f":"IFERROR(VLOOKUP(ROW(I30)-ROW(I$21)+1,'Pre-Design TABLE'!$B$2:$H$26,5,FALSE),\"\")","v":""},{"$f":"IFERROR(VLOOKUP(ROW(I30)-ROW(I$21)+1,'Pre-Design TABLE'!$B$2:$H$26,6,FALSE),\"\")","v":""},{"$f":"IFERROR(VLOOKUP(ROW(I30)-ROW(I$21)+1,'Pre-Design TABLE'!$B$2:$H$26,7,FALSE),\"\")","v":""}]
[{"$f":"UPPER(IFERROR(VLOOKUP(ROW(I31)-ROW(I$21)+1,'Pre-Design TABLE'!$B$2:$C$26,2,FALSE),\"\"))","v":""},null,{"$f":"IFERROR(VLOOKUP(ROW(H20)-ROW(H$10)+1,'Pre-Design TABLE'!$B$2:$H$26,3,FALSE),\"\")","v":""},{"$f":"IFERROR(VLOOKUP(ROW(I20)-ROW(I$10)+1,'Pre-Design TABLE'!$B$2:$H$26,4,FALSE),\"\")","v":""},null,{"$f":"IFERROR(VLOOKUP(ROW(I31)-ROW(I$21)+1,'Pre-Design TABLE'!$B$2:$H$26,5,FALSE),\"\")","v":""},{"$f":"IFERROR(VLOOKUP(ROW(I31)-ROW(I$21)+1,'Pre-Design TABLE'!$B$2:$H$26,6,FALSE),\"\")","v":""},{"$f":"IFERROR(VLOOKUP(ROW(I31)-ROW(I$21)+1,'Pre-Design TABLE'!$B$2:$H$26,7,FALSE),\"\")","v":""}]
[{"$f":"UPPER(IFERROR(VLOOKUP(ROW(I32)-ROW(I$21)+1,'Pre-Design TABLE'!$B$2:$C$26,2,FALSE),\"\"))","v":""},null,{"$f":"IFERROR(VLOOKUP(ROW(H21)-ROW(H$10)+1,'Pre-Design TABLE'!$B$2:$H$26,3,FALSE),\"\")","v":""},{"$f":"IFERROR(VLOOKUP(ROW(I21)-ROW(I$10)+1,'Pre-Design TABLE'!$B$2:$H$26,4,FALSE),\"\")","v":""},null,{"$f":"IFERROR(VLOOKUP(ROW(I32)-ROW(I$21)+1,'Pre-Design TABLE'!$B$2:$H$26,5,FALSE),\"\")","v":""},{"$f":"IFERROR(VLOOKUP(ROW(I32)-ROW(I$21)+1,'Pre-Design TABLE'!$B$2:$H$26,6,FALSE),\"\")","v":""},{"$f":"IFERROR(VLOOKUP(ROW(I32)-ROW(I$21)+1,'Pre-Design TABLE'!$B$2:$H$26,7,FALSE),\"\")","v":""}]
[{"$f":"UPPER(IFERROR(VLOOKUP(ROW(I33)-ROW(I$21)+1,'Pre-Design TABLE'!$B$2:$C$26,2,FALSE),\"\"))","v":""},null,{"$f":"IFERROR(VLOOKUP(ROW(H22)-ROW(H$10)+1,'Pre-Design TABLE'!$B$2:$H$26,3,FALSE),\"\")","v":""},{"$f":"IFERROR(VLOOKUP(ROW(I22)-ROW(I$10)+1,'Pre-Design TABLE'!$B$2:$H$26,4,FALSE),\"\")","v":""},null,{"$f":"IFERROR(VLOOKUP(ROW(I33)-ROW(I$21)+1,'Pre-Design TABLE'!$B$2:$H$26,5,FALSE),\"\")","v":""},{"$f":"IFERROR(VLOOKUP(ROW(I33)-ROW(I$21)+1,'Pre-Design TABLE'!$B$2:$H$26,6,FALSE),\"\")","v":""},{"$f":"IFERROR(VLOOKUP(ROW(I33)-ROW(I$21)+1,'Pre-Design TABLE'!$B$2:$H$26,7,FALSE),\"\")","v":""}]
[{"$f":"UPPER(IFERROR(VLOOKUP(ROW(I34)-ROW(I$21)+1,'Pre-Design TABLE'!$B$2:$C$26,2,FALSE),\"\"))","v":""},null,{"$f":"IFERROR(VLOOKUP(ROW(H23)-ROW(H$10)+1,'Pre-Design TABLE'!$B$2:$H$26,3,FALSE),\"\")","v":""},{"$f":"IFERROR(VLOOKUP(ROW(I23)-ROW(I$10)+1,'Pre-Design TABLE'!$B$2:$H$26,4,FALSE),\"\")","v":""},null,{"$f":"IFERROR(VLOOKUP(ROW(I34)-ROW(I$21)+1,'Pre-Design TABLE'!$B$2:$H$26,5,FALSE),\"\")","v":""},{"$f":"IFERROR(VLOOKUP(ROW(I34)-ROW(I$21)+1,'Pre-Design TABLE'!$B$2:$H$26,6,FALSE),\"\")","v":""},{"$f":"IFERROR(VLOOKUP(ROW(I34)-ROW(I$21)+1,'Pre-Design TABLE'!$B$2:$H$26,7,FALSE),\"\")","v":""}]
[{"$f":"UPPER(IFERROR(VLOOKUP(ROW(I35)-ROW(I$21)+1,'Pre-Design TABLE'!$B$2:$C$26,2,FALSE),\"\"))","v":""},null,{"$f":"IFERROR(VLOOKUP(ROW(H24)-ROW(H$10)+1,'Pre-Design TABLE'!$B$2:$H$26,3,FALSE),\"\")","v":""},{"$f":"IFERROR(VLOOKUP(ROW(I24)-ROW(I$10)+1,'Pre-Design TABLE'!$B$2:$H$26,4,FALSE),\"\")","v":""},null,{"$f":"IFERROR(VLOOKUP(ROW(I35)-ROW(I$21)+1,'Pre-Design TABLE'!$B$2:$H$26,5,FALSE),\"\")","v":""},{"$f":"IFERROR(VLOOKUP(ROW(I35)-ROW(I$21)+1,'Pre-Design TABLE'!$B$2:$H$26,6,FALSE),\"\")","v":""},{"$f":"IFERROR(VLOOKUP(ROW(I35)-ROW(I$21)+1,'Pre-Design TABLE'!$B$2:$H$26,7,FALSE),\"\")","v":""}]
[{"$f":"UPPER(IFERROR(VLOOKUP(ROW(I36)-ROW(I$21)+1,'Pre-Design TABLE'!$B$2:$C$26,2,FALSE),\"\"))","v":""},null,{"$f":"IFERROR(VLOOKUP(ROW(H25)-ROW(H$10)+1,'Pre-Design TABLE'!$B$2:$H$26,3,FALSE),\"\")","v":""},{"$f":"IFERROR(VLOOKUP(ROW(I25)-ROW(I$10)+1,'Pre-Design TABLE'!$B$2:$H$26,4,FALSE),\"\")","v":""},null,{"$f":"IFERROR(VLOOKUP(ROW(I36)-ROW(I$21)+1,'Pre-Design TABLE'!$B$2:$H$26,5,FALSE),\"\")","v":""},{"$f":"IFERROR(VLOOKUP(ROW(I36)-ROW(I$21)+1,'Pre-Design TABLE'!$B$2:$H$26,6,FALSE),\"\")","v":""},{"$f":"IFERROR(VLOOKUP(ROW(I36)-ROW(I$21)+1,'Pre-Design TABLE'!$B$2:$H$26,7,FALSE),\"\")","v":""}]
[{"$f":"UPPER(IFERROR(VLOOKUP(ROW(I37)-ROW(I$21)+1,'Pre-Design TABLE'!$B$2:$C$26,2,FALSE),\"\"))","v":""},null,{"$f":"IFERROR(VLOOKUP(ROW(H26)-ROW(H$10)+1,'Pre-Design TABLE'!$B$2:$H$26,3,FALSE),\"\")","v":""},{"$f":"IFERROR(VLOOKUP(ROW(I26)-ROW(I$10)+1,'Pre-Design TABLE'!$B$2:$H$26,4,FALSE),\"\")","v":""},null,{"$f":"IFERROR(VLOOKUP(ROW(I37)-ROW(I$21)+1,'Pre-Design TABLE'!$B$2:$H$26,5,FALSE),\"\")","v":""},{"$f":"IFERROR(VLOOKUP(ROW(I37)-ROW(I$21)+1,'Pre-Design TABLE'!$B$2:$H$26,6,FALSE),\"\")","v":""},{"$f":"IFERROR(VLOOKUP(ROW(I37)-ROW(I$21)+1,'Pre-Design TABLE'!$B$2:$H$26,7,FALSE),\"\")","v":""}]
[{"$f":"UPPER(IFERROR(VLOOKUP(ROW(I38)-ROW(I$21)+1,'Pre-Design TABLE'!$B$2:$C$26,2,FALSE),\"\"))","v":""},null,{"$f":"IFERROR(VLOOKUP(ROW(H27)-ROW(H$10)+1,'Pre-Design TABLE'!$B$2:$H$26,3,FALSE),\"\")","v":""},{"$f":"IFERROR(VLOOKUP(ROW(I27)-ROW(I$10)+1,'Pre-Design TABLE'!$B$2:$H$26,4,FALSE),\"\")","v":""},null,{"$f":"IFERROR(VLOOKUP(ROW(I38)-ROW(I$21)+1,'Pre-Design TABLE'!$B$2:$H$26,5,FALSE),\"\")","v":""},{"$f":"IFERROR(VLOOKUP(ROW(I38)-ROW(I$21)+1,'Pre-Design TABLE'!$B$2:$H$26,6,FALSE),\"\")","v":""},{"$f":"IFERROR(VLOOKUP(ROW(I38)-ROW(I$21)+1,'Pre-Design TABLE'!$B$2:$H$26,7,FALSE),\"\")","v":""}]
[{"$f":"UPPER(IFERROR(VLOOKUP(ROW(I39)-ROW(I$21)+1,'Pre-Design TABLE'!$B$2:$C$26,2,FALSE),\"\"))","v":""},null,{"$f":"IFERROR(VLOOKUP(ROW(H28)-ROW(H$10)+1,'Pre-Design TABLE'!$B$2:$H$26,3,FALSE),\"\")","v":""},{"$f":"IFERROR(VLOOKUP(ROW(I28)-ROW(I$10)+1,'Pre-Design TABLE'!$B$2:$H$26,4,FALSE),\"\")","v":""},null,{"$f":"IFERROR(VLOOKUP(ROW(I39)-ROW(I$21)+1,'Pre-Design TABLE'!$B$2:$H$26,5,FALSE),\"\")","v":""},{"$f":"IFERROR(VLOOKUP(ROW(I39)-ROW(I$21)+1,'Pre-Design TABLE'!$B$2:$H$26,6,FALSE),\"\")","v":""},{"$f":"IFERROR(VLOOKUP(ROW(I39)-ROW(I$21)+1,'Pre-Design TABLE'!$B$2:$H$26,7,FALSE),\"\")","v":""}]
[{"$f":"UPPER(IFERROR(VLOOKUP(ROW(I40)-ROW(I$21)+1,'Pre-Design TABLE'!$B$2:$C$26,2,FALSE),\"\"))","v":""},null,{"$f":"IFERROR(VLOOKUP(ROW(H29)-ROW(H$10)+1,'Pre-Design TABLE'!$B$2:$H$26,3,FALSE),\"\")","v":""},{"$f":"IFERROR(VLOOKUP(ROW(I29)-ROW(I$10)+1,'Pre-Design TABLE'!$B$2:$H$26,4,FALSE),\"\")","v":""},null,{"$f":"IFERROR(VLOOKUP(ROW(I40)-ROW(I$21)+1,'Pre-Design TABLE'!$B$2:$H$26,5,FALSE),\"\")","v":""},{"$f":"IFERROR(VLOOKUP(ROW(I40)-ROW(I$21)+1,'Pre-Design TABLE'!$B$2:$H$26,6,FALSE),\"\")","v":""},{"$f":"IFERROR(VLOOKUP(ROW(I40)-ROW(I$21)+1,'Pre-Design TABLE'!$B$2:$H$26,7,FALSE),\"\")","v":""}]
[{"$f":"UPPER(IFERROR(VLOOKUP(ROW(I41)-ROW(I$21)+1,'Pre-Design TABLE'!$B$2:$C$26,2,FALSE),\"\"))","v":""},null,{"$f":"IFERROR(VLOOKUP(ROW(H30)-ROW(H$10)+1,'Pre-Design TABLE'!$B$2:$H$26,3,FALSE),\"\")","v":""},{"$f":"IFERROR(VLOOKUP(ROW(I30)-ROW(I$10)+1,'Pre-Design TABLE'!$B$2:$H$26,4,FALSE),\"\")","v":""},null,{"$f":"IFERROR(VLOOKUP(ROW(I41)-ROW(I$21)+1,'Pre-Design TABLE'!$B$2:$H$26,5,FALSE),\"\")","v":""},{"$f":"IFERROR(VLOOKUP(ROW(I41)-ROW(I$21)+1,'Pre-Design TABLE'!$B$2:$H$26,6,FALSE),\"\")","v":""},{"$f":"IFERROR(VLOOKUP(ROW(I41)-ROW(I$21)+1,'Pre-Design TABLE'!$B$2:$H$26,7,FALSE),\"\")","v":""}]
[{"$f":"UPPER(IFERROR(VLOOKUP(ROW(I42)-ROW(I$21)+1,'Pre-Design TABLE'!$B$2:$C$26,2,FALSE),\"\"))","v":""},null,{"$f":"IFERROR(VLOOKUP(ROW(H31)-ROW(H$10)+1,'Pre-Design TABLE'!$B$2:$H$26,3,FALSE),\"\")","v":""},{"$f":"IFERROR(VLOOKUP(ROW(I31)-ROW(I$10)+1,'Pre-Design TABLE'!$B$2:$H$26,4,FALSE),\"\")","v":""},null,{"$f":"IFERROR(VLOOKUP(ROW(I42)-ROW(I$21)+1,'Pre-Design TABLE'!$B$2:$H$26,5,FALSE),\"\")","v":""},{"$f":"IFERROR(VLOOKUP(ROW(I42)-ROW(I$21)+1,'Pre-Design TABLE'!$B$2:$H$26,6,FALSE),\"\")","v":""},{"$f":"IFERROR(VLOOKUP(ROW(I42)-ROW(I$21)+1,'Pre-Design TABLE'!$B$2:$H$26,7,FALSE),\"\")","v":""}]
[{"$f":"UPPER(IFERROR(VLOOKUP(ROW(I43)-ROW(I$21)+1,'Pre-Design TABLE'!$B$2:$C$26,2,FALSE),\"\"))","v":""},null,{"$f":"IFERROR(VLOOKUP(ROW(H32)-ROW(H$10)+1,'Pre-Design TABLE'!$B$2:$H$26,3,FALSE),\"\")","v":""},{"$f":"IFERROR(VLOOKUP(ROW(I32)-ROW(I$10)+1,'Pre-Design TABLE'!$B$2:$H$26,4,FALSE),\"\")","v":""},null,{"$f":"IFERROR(VLOOKUP(ROW(I43)-ROW(I$21)+1,'Pre-Design TABLE'!$B$2:$H$26,5,FALSE),\"\")","v":""},{"$f":"IFERROR(VLOOKUP(ROW(I43)-ROW(I$21)+1,'Pre-Design TABLE'!$B$2:$H$26,6,FALSE),\"\")","v":""},{"$f":"IFERROR(VLOOKUP(ROW(I43)-ROW(I$21)+1,'Pre-Design TABLE'!$B$2:$H$26,7,FALSE),\"\")","v":""}]
[{"$f":"UPPER(IFERROR(VLOOKUP(ROW(I44)-ROW(I$21)+1,'Pre-Design TABLE'!$B$2:$C$26,2,FALSE),\"\"))","v":""},null,{"$f":"IFERROR(VLOOKUP(ROW(H33)-ROW(H$10)+1,'Pre-Design TABLE'!$B$2:$H$26,3,FALSE),\"\")","v":""},{"$f":"IFERROR(VLOOKUP(ROW(I33)-ROW(I$10)+1,'Pre-Design TABLE'!$B$2:$H$26,4,FALSE),\"\")","v":""},null,{"$f":"IFERROR(VLOOKUP(ROW(I44)-ROW(I$21)+1,'Pre-Design TABLE'!$B$2:$H$26,5,FALSE),\"\")","v":""},{"$f":"IFERROR(VLOOKUP(ROW(I44)-ROW(I$21)+1,'Pre-Design TABLE'!$B$2:$H$26,6,FALSE),\"\")","v":""},{"$f":"IFERROR(VLOOKUP(ROW(I44)-ROW(I$21)+1,'Pre-Design TABLE'!$B$2:$H$26,7,FALSE),\"\")","v":""}]
[{"$f":"UPPER(IFERROR(VLOOKUP(ROW(I45)-ROW(I$21)+1,'Pre-Design TABLE'!$B$3:$C$23,2,FALSE),\"\"))","v":""},null,{"$f":"IFERROR(VLOOKUP(ROW(H34)-ROW(H$10)+1,'Pre-Design TABLE'!$B$2:$H$26,3,FALSE),\"\")","v":""},{"$f":"IFERROR(VLOOKUP(ROW(I34)-ROW(I$10)+1,'Pre-Design TABLE'!$B$2:$H$26,4,FALSE),\"\")","v":""}]
[{"$f":"UPPER(IFERROR(VLOOKUP(ROW(I46)-ROW(I$21)+1,'Pre-Design TABLE'!$B$3:$C$23,2,FALSE),\"\"))","v":""},null,{"$f":"IFERROR(VLOOKUP(ROW(H35)-ROW(H$10)+1,'Pre-Design TABLE'!$B$2:$H$26,3,FALSE),\"\")","v":""},{"$f":"IFERROR(VLOOKUP(ROW(I35)-ROW(I$10)+1,'Pre-Design TABLE'!$B$2:$H$26,4,FALSE),\"\")","v":""}]
[{"$f":"UPPER(IFERROR(VLOOKUP(ROW(I47)-ROW(I$21)+1,'Pre-Design TABLE'!$B$3:$C$23,2,FALSE),\"\"))","v":""},null,{"$f":"IFERROR(VLOOKUP(ROW(H36)-ROW(H$10)+1,'Pre-Design TABLE'!$B$2:$H$26,3,FALSE),\"\")","v":""},{"$f":"IFERROR(VLOOKUP(ROW(I36)-ROW(I$10)+1,'Pre-Design TABLE'!$B$2:$H$26,4,FALSE),\"\")","v":""}]
[{"$f":"UPPER(IFERROR(VLOOKUP(ROW(I48)-ROW(I$21)+1,'Pre-Design TABLE'!$B$3:$C$23,2,FALSE),\"\"))","v":""},null,{"$f":"IFERROR(VLOOKUP(ROW(H37)-ROW(H$10)+1,'Pre-Design TABLE'!$B$2:$H$26,3,FALSE),\"\")","v":""},{"$f":"IFERROR(VLOOKUP(ROW(I37)-ROW(I$10)+1,'Pre-Design TABLE'!$B$2:$H$26,4,FALSE),\"\")","v":""}]
[{"$f":"UPPER(IFERROR(VLOOKUP(ROW(I49)-ROW(I$21)+1,'Pre-Design TABLE'!$B$3:$C$23,2,FALSE),\"\"))","v":""},null,{"$f":"IFERROR(VLOOKUP(ROW(H38)-ROW(H$10)+1,'Pre-Design TABLE'!$B$2:$H$26,3,FALSE),\"\")","v":""},{"$f":"IFERROR(VLOOKUP(ROW(I38)-ROW(I$10)+1,'Pre-Design TABLE'!$B$2:$H$26,4,FALSE),\"\")","v":""}]
[{"$f":"UPPER(IFERROR(VLOOKUP(ROW(I50)-ROW(I$21)+1,'Pre-Design TABLE'!$B$3:$C$23,2,FALSE),\"\"))","v":""},null,{"$f":"IFERROR(VLOOKUP(ROW(H39)-ROW(H$10)+1,'Pre-Design TABLE'!$B$2:$H$26,3,FALSE),\"\")","v":""},{"$f":"IFERROR(VLOOKUP(ROW(I39)-ROW(I$10)+1,'Pre-Design TABLE'!$B$2:$H$26,4,FALSE),\"\")","v":""}]
[{"$f":"UPPER(IFERROR(VLOOKUP(ROW(I51)-ROW(I$21)+1,'Pre-Design TABLE'!$B$3:$C$23,2,FALSE),\"\"))","v":""},null,{"$f":"IFERROR(VLOOKUP(ROW(H40)-ROW(H$10)+1,'Pre-Design TABLE'!$B$2:$H$26,3,FALSE),\"\")","v":""},{"$f":"IFERROR(VLOOKUP(ROW(I40)-ROW(I$10)+1,'Pre-Design TABLE'!$B$2:$H$26,4,FALSE),\"\")","v":""}]
[{"$f":"UPPER(IFERROR(VLOOKUP(ROW(I52)-ROW(I$21)+1,'Pre-Design TABLE'!$B$3:$C$23,2,FALSE),\"\"))","v":""},null,{"$f":"IFERROR(VLOOKUP(ROW(H41)-ROW(H$10)+1,'Pre-Design TABLE'!$B$2:$H$26,3,FALSE),\"\")","v":""},{"$f":"IFERROR(VLOOKUP(ROW(I41)-ROW(I$10)+1,'Pre-Design TABLE'!$B$2:$H$26,4,FALSE),\"\")","v":""}]
[{"$f":"UPPER(IFERROR(VLOOKUP(ROW(I53)-ROW(I$21)+1,'Pre-Design TABLE'!$B$3:$C$23,2,FALSE),\"\"))","v":""},null,{"$f":"IFERROR(VLOOKUP(ROW(H42)-ROW(H$10)+1,'Pre-Design TABLE'!$B$2:$H$26,3,FALSE),\"\")","v":""},{"$f":"IFERROR(VLOOKUP(ROW(I42)-ROW(I$10)+1,'Pre-Design TABLE'!$B$2:$H$26,4,FALSE),\"\")","v":""}]
[{"$f":"UPPER(IFERROR(VLOOKUP(ROW(I54)-ROW(I$21)+1,'Pre-Design TABLE'!$B$3:$C$23,2,FALSE),\"\"))","v":""},null,{"$f":"IFERROR(VLOOKUP(ROW(H43)-ROW(H$10)+1,'Pre-Design TABLE'!$B$2:$H$26,3,FALSE),\"\")","v":""},{"$f":"IFERROR(VLOOKUP(ROW(I43)-ROW(I$10)+1,'Pre-Design TABLE'!$B$2:$H$26,4,FALSE),\"\")","v":""}]
[{"$f":"UPPER(IFERROR(VLOOKUP(ROW(I55)-ROW(I$21)+1,'Pre-Design TABLE'!$B$3:$C$23,2,FALSE),\"\"))","v":""},null,{"$f":"IFERROR(VLOOKUP(ROW(H44)-ROW(H$10)+1,'Pre-Design TABLE'!$B$2:$H$26,3,FALSE),\"\")","v":""},{"$f":"IFERROR(VLOOKUP(ROW(I44)-ROW(I$10)+1,'Pre-Design TABLE'!$B$2:$H$26,4,FALSE),\"\")","v":""}]
[{"$f":"UPPER(IFERROR(VLOOKUP(ROW(I56)-ROW(I$21)+1,'Pre-Design TABLE'!$B$3:$C$23,2,FALSE),\"\"))","v":""},null,{"$f":"IFERROR(VLOOKUP(ROW(H45)-ROW(H$10)+1,'Pre-Design TABLE'!$B$2:$H$26,3,FALSE),\"\")","v":""},{"$f":"IFERROR(VLOOKUP(ROW(I45)-ROW(I$10)+1,'Pre-Design TABLE'!$B$2:$H$26,4,FALSE),\"\")","v":""}]
[{"$f":"UPPER(IFERROR(VLOOKUP(ROW(I57)-ROW(I$21)+1,'Pre-Design TABLE'!$B$3:$C$23,2,FALSE),\"\"))","v":""},null,{"$f":"IFERROR(VLOOKUP(ROW(H46)-ROW(H$10)+1,'Pre-Design TABLE'!$B$2:$H$26,3,FALSE),\"\")","v":""},{"$f":"IFERROR(VLOOKUP(ROW(I46)-ROW(I$10)+1,'Pre-Design TABLE'!$B$2:$H$26,4,FALSE),\"\")","v":""}]
[{"$f":"UPPER(IFERROR(VLOOKUP(ROW(I58)-ROW(I$21)+1,'Pre-Design TABLE'!$B$3:$C$23,2,FALSE),\"\"))","v":""},null,{"$f":"IFERROR(VLOOKUP(ROW(H47)-ROW(H$10)+1,'Pre-Design TABLE'!$B$2:$H$26,3,FALSE),\"\")","v":""},{"$f":"IFERROR(VLOOKUP(ROW(I47)-ROW(I$10)+1,'Pre-Design TABLE'!$B$2:$H$26,4,FALSE),\"\")","v":""}]
[{"$f":"UPPER(IFERROR(VLOOKUP(ROW(I59)-ROW(I$21)+1,'Pre-Design TABLE'!$B$3:$C$23,2,FALSE),\"\"))","v":""},null,{"$f":"IFERROR(VLOOKUP(ROW(H48)-ROW(H$10)+1,'Pre-Design TABLE'!$B$2:$H$26,3,FALSE),\"\")","v":""},{"$f":"IFERROR(VLOOKUP(ROW(I48)-ROW(I$10)+1,'Pre-Design TABLE'!$B$2:$H$26,4,FALSE),\"\")","v":""}]
[{"$f":"UPPER(IFERROR(VLOOKUP(ROW(I60)-ROW(I$21)+1,'Pre-Design TABLE'!$B$3:$C$23,2,FALSE),\"\"))","v":""},null,{"$f":"IFERROR(VLOOKUP(ROW(H49)-ROW(H$10)+1,'Pre-Design TABLE'!$B$2:$H$26,3,FALSE),\"\")","v":""},{"$f":"IFERROR(VLOOKUP(ROW(I49)-ROW(I$10)+1,'Pre-Design TABLE'!$B$2:$H$26,4,FALSE),\"\")","v":""}]
[{"$f":"UPPER(IFERROR(VLOOKUP(ROW(I61)-ROW(I$21)+1,'Pre-Design TABLE'!$B$3:$C$23,2,FALSE),\"\"))","v":""},null,{"$f":"IFERROR(VLOOKUP(ROW(H50)-ROW(H$10)+1,'Pre-Design TABLE'!$B$2:$H$26,3,FALSE),\"\")","v":""},{"$f":"IFERROR(VLOOKUP(ROW(I50)-ROW(I$10)+1,'Pre-Design TABLE'!$B$2:$H$26,4,FALSE),\"\")","v":""}]

{"sheet":"SD Checklist","index":4,"n_rows":48,"n_cols":8,"rows_kept":48,"cut":false,"hidden":false,"merged":[]}
["PROJECT SUSTAINABILITY CHECKLIST - Schematic Design"]
[]
[{"$f":"\"Project Name:         \"&'Project Information'!D14","v":"Project Name:         "}]
[{"$f":"\"Project Number:     \"&'Project Information'!D13","v":"Project Number:     "}]
[{"$f":"\"Project Manager:   \"&'Project Information'!D19","v":"Project Manager:   "}]
[{"$f":"\"Project Type:           \"&IFERROR(LEFT('Project Information'!$D$22,SEARCH(\"~*\",'Project Information'!$D$22)-1),'Project Information'!$D$22)","v":"Project Type:           Renovation"}]
["Checklist Completion Date:"]
[]
["CATEGORY","COMPLETED?","SECTION","REQUIREMENT ","NOTES","Task Completed by ","Task\n Reviewed by ","Task Approved by "]
[{"$f":"UPPER(IFERROR(VLOOKUP(ROW(I10)-ROW(I$10)+1,'SD TABLE'!$B$2:$C$46,2,FALSE),\"\"))","v":"GENERAL"},null,{"$f":"IFERROR(VLOOKUP(ROW(H10)-ROW(H$10)+1,'SD TABLE'!$B$2:$H$46,3,FALSE),\"\")","v":"00 00 17.1.1     "},{"$f":"IFERROR(VLOOKUP(ROW(I10)-ROW(I$10)+1,'SD TABLE'!$B$2:$H$46,4,FALSE),\"\")","v":"Submit updated Sustainability Applicability Matrix through eBuilder "},null,{"$f":"IFERROR(VLOOKUP(ROW(I10)-ROW(I$10)+1,'SD TABLE'!$B$2:$H$46,5,FALSE),\"\")","v":0},{"$f":"IFERROR(VLOOKUP(ROW(I10)-ROW(I$10)+1,'SD TABLE'!$B$2:$H$46,6,FALSE),\"\")","v":0},{"$f":"IFERROR(VLOOKUP(ROW(I10)-ROW(I$10)+1,'SD TABLE'!$B$2:$H$46,7,FALSE),\"\")","v":0}]
[{"$f":"UPPER(IFERROR(VLOOKUP(ROW(I11)-ROW(I$10)+1,'SD TABLE'!$B$2:$C$46,2,FALSE),\"\"))","v":"GENERAL"},null,{"$f":"IFERROR(VLOOKUP(ROW(H11)-ROW(H$10)+1,'SD TABLE'!$B$2:$H$46,3,FALSE),\"\")","v":"00 00 17.1.2 "},{"$f":"IFERROR(VLOOKUP(ROW(I11)-ROW(I$10)+1,'SD TABLE'!$B$2:$H$46,4,FALSE),\"\")","v":"Submit updated OPR through eBuilder "},null,{"$f":"IFERROR(VLOOKUP(ROW(I11)-ROW(I$10)+1,'SD TABLE'!$B$2:$H$46,5,FALSE),\"\")","v":0},{"$f":"IFERROR(VLOOKUP(ROW(I11)-ROW(I$10)+1,'SD TABLE'!$B$2:$H$46,6,FALSE),\"\")","v":0},{"$f":"IFERROR(VLOOKUP(ROW(I11)-ROW(I$10)+1,'SD TABLE'!$B$2:$H$46,7,FALSE),\"\")","v":0}]
[{"$f":"UPPER(IFERROR(VLOOKUP(ROW(I12)-ROW(I$10)+1,'SD TABLE'!$B$2:$C$46,2,FALSE),\"\"))","v":"GENERAL"},null,{"$f":"IFERROR(VLOOKUP(ROW(H12)-ROW(H$10)+1,'SD TABLE'!$B$2:$H$46,3,FALSE),\"\")","v":"00 00 17.1.3.5"},{"$f":"IFERROR(VLOOKUP(ROW(I12)-ROW(I$10)+1,'SD TABLE'!$B$2:$H$46,4,FALSE),\"\")","v":"Basis of Design narrative delivered early in SD"},null,{"$f":"IFERROR(VLOOKUP(ROW(I12)-ROW(I$10)+1,'SD TABLE'!$B$2:$H$46,5,FALSE),\"\")","v":" "},{"$f":"IFERROR(VLOOKUP(ROW(I12)-ROW(I$10)+1,'SD TABLE'!$B$2:$H$46,6,FALSE),\"\")","v":0},{"$f":"IFERROR(VLOOKUP(ROW(I12)-ROW(I$10)+1,'SD TABLE'!$B$2:$H$46,7,FALSE),\"\")","v":0}]
[{"$f":"UPPER(IFERROR(VLOOKUP(ROW(I13)-ROW(I$10)+1,'SD TABLE'!$B$2:$C$46,2,FALSE),\"\"))","v":""},null,{"$f":"IFERROR(VLOOKUP(ROW(H13)-ROW(H$10)+1,'SD TABLE'!$B$2:$H$46,3,FALSE),\"\")","v":0},{"$f":"IFERROR(VLOOKUP(ROW(I13)-ROW(I$10)+1,'SD TABLE'!$B$2:$H$46,4,FALSE),\"\")","v":0},null,{"$f":"IFERROR(VLOOKUP(ROW(I13)-ROW(I$10)+1,'SD TABLE'!$B$2:$H$46,5,FALSE),\"\")","v":0},{"$f":"IFERROR(VLOOKUP(ROW(I13)-ROW(I$10)+1,'SD TABLE'!$B$2:$H$46,6,FALSE),\"\")","v":0},{"$f":"IFERROR(VLOOKUP(ROW(I13)-ROW(I$10)+1,'SD TABLE'!$B$2:$H$46,7,FALSE),\"\")","v":0}]
[{"$f":"UPPER(IFERROR(VLOOKUP(ROW(I14)-ROW(I$10)+1,'SD TABLE'!$B$2:$C$46,2,FALSE),\"\"))","v":""},null,{"$f":"IFERROR(VLOOKUP(ROW(H14)-ROW(H$10)+1,'SD TABLE'!$B$2:$H$46,3,FALSE),\"\")","v":""},{"$f":"IFERROR(VLOOKUP(ROW(I14)-ROW(I$10)+1,'SD TABLE'!$B$2:$H$46,4,FALSE),\"\")","v":""},null,{"$f":"IFERROR(VLOOKUP(ROW(I14)-ROW(I$10)+1,'SD TABLE'!$B$2:$H$46,5,FALSE),\"\")","v":""},{"$f":"IFERROR(VLOOKUP(ROW(I14)-ROW(I$10)+1,'SD TABLE'!$B$2:$H$46,6,FALSE),\"\")","v":""},{"$f":"IFERROR(VLOOKUP(ROW(I14)-ROW(I$10)+1,'SD TABLE'!$B$2:$H$46,7,FALSE),\"\")","v":""}]
[{"$f":"UPPER(IFERROR(VLOOKUP(ROW(I15)-ROW(I$10)+1,'SD TABLE'!$B$2:$C$46,2,FALSE),\"\"))","v":""},null,{"$f":"IFERROR(VLOOKUP(ROW(H15)-ROW(H$10)+1,'SD TABLE'!$B$2:$H$46,3,FALSE),\"\")","v":""},{"$f":"IFERROR(VLOOKUP(ROW(I15)-ROW(I$10)+1,'SD TABLE'!$B$2:$H$46,4,FALSE),\"\")","v":""},null,{"$f":"IFERROR(VLOOKUP(ROW(I15)-ROW(I$10)+1,'SD TABLE'!$B$2:$H$46,5,FALSE),\"\")","v":""},{"$f":"IFERROR(VLOOKUP(ROW(I15)-ROW(I$10)+1,'SD TABLE'!$B$2:$H$46,6,FALSE),\"\")","v":""},{"$f":"IFERROR(VLOOKUP(ROW(I15)-ROW(I$10)+1,'SD TABLE'!$B$2:$H$46,7,FALSE),\"\")","v":""}]
[{"$f":"UPPER(IFERROR(VLOOKUP(ROW(I16)-ROW(I$10)+1,'SD TABLE'!$B$2:$C$46,2,FALSE),\"\"))","v":""},null,{"$f":"IFERROR(VLOOKUP(ROW(H16)-ROW(H$10)+1,'SD TABLE'!$B$2:$H$46,3,FALSE),\"\")","v":""},{"$f":"IFERROR(VLOOKUP(ROW(I16)-ROW(I$10)+1,'SD TABLE'!$B$2:$H$46,4,FALSE),\"\")","v":""},null,{"$f":"IFERROR(VLOOKUP(ROW(I16)-ROW(I$10)+1,'SD TABLE'!$B$2:$H$46,5,FALSE),\"\")","v":""},{"$f":"IFERROR(VLOOKUP(ROW(I16)-ROW(I$10)+1,'SD TABLE'!$B$2:$H$46,6,FALSE),\"\")","v":""},{"$f":"IFERROR(VLOOKUP(ROW(I16)-ROW(I$10)+1,'SD TABLE'!$B$2:$H$46,7,FALSE),\"\")","v":""}]
[{"$f":"UPPER(IFERROR(VLOOKUP(ROW(I17)-ROW(I$10)+1,'SD TABLE'!$B$2:$C$46,2,FALSE),\"\"))","v":""},null,{"$f":"IFERROR(VLOOKUP(ROW(H17)-ROW(H$10)+1,'SD TABLE'!$B$2:$H$46,3,FALSE),\"\")","v":""},{"$f":"IFERROR(VLOOKUP(ROW(I17)-ROW(I$10)+1,'SD TABLE'!$B$2:$H$46,4,FALSE),\"\")","v":""},null,{"$f":"IFERROR(VLOOKUP(ROW(I17)-ROW(I$10)+1,'SD TABLE'!$B$2:$H$46,5,FALSE),\"\")","v":""},{"$f":"IFERROR(VLOOKUP(ROW(I17)-ROW(I$10)+1,'SD TABLE'!$B$2:$H$46,6,FALSE),\"\")","v":""},{"$f":"IFERROR(VLOOKUP(ROW(I17)-ROW(I$10)+1,'SD TABLE'!$B$2:$H$46,7,FALSE),\"\")","v":""}]
[{"$f":"UPPER(IFERROR(VLOOKUP(ROW(I18)-ROW(I$10)+1,'SD TABLE'!$B$2:$C$46,2,FALSE),\"\"))","v":""},null,{"$f":"IFERROR(VLOOKUP(ROW(H18)-ROW(H$10)+1,'SD TABLE'!$B$2:$H$46,3,FALSE),\"\")","v":""},{"$f":"IFERROR(VLOOKUP(ROW(I18)-ROW(I$10)+1,'SD TABLE'!$B$2:$H$46,4,FALSE),\"\")","v":""},null,{"$f":"IFERROR(VLOOKUP(ROW(I18)-ROW(I$10)+1,'SD TABLE'!$B$2:$H$46,5,FALSE),\"\")","v":""},{"$f":"IFERROR(VLOOKUP(ROW(I18)-ROW(I$10)+1,'SD TABLE'!$B$2:$H$46,6,FALSE),\"\")","v":""},{"$f":"IFERROR(VLOOKUP(ROW(I18)-ROW(I$10)+1,'SD TABLE'!$B$2:$H$46,7,FALSE),\"\")","v":""}]
[{"$f":"UPPER(IFERROR(VLOOKUP(ROW(I19)-ROW(I$10)+1,'SD TABLE'!$B$2:$C$46,2,FALSE),\"\"))","v":""},null,{"$f":"IFERROR(VLOOKUP(ROW(H19)-ROW(H$10)+1,'SD TABLE'!$B$2:$H$46,3,FALSE),\"\")","v":""},{"$f":"IFERROR(VLOOKUP(ROW(I19)-ROW(I$10)+1,'SD TABLE'!$B$2:$H$46,4,FALSE),\"\")","v":""},null,{"$f":"IFERROR(VLOOKUP(ROW(I19)-ROW(I$10)+1,'SD TABLE'!$B$2:$H$46,5,FALSE),\"\")","v":""},{"$f":"IFERROR(VLOOKUP(ROW(I19)-ROW(I$10)+1,'SD TABLE'!$B$2:$H$46,6,FALSE),\"\")","v":""},{"$f":"IFERROR(VLOOKUP(ROW(I19)-ROW(I$10)+1,'SD TABLE'!$B$2:$H$46,7,FALSE),\"\")","v":""}]
[{"$f":"UPPER(IFERROR(VLOOKUP(ROW(I20)-ROW(I$10)+1,'SD TABLE'!$B$2:$C$46,2,FALSE),\"\"))","v":""},null,{"$f":"IFERROR(VLOOKUP(ROW(H20)-ROW(H$10)+1,'SD TABLE'!$B$2:$H$46,3,FALSE),\"\")","v":""},{"$f":"IFERROR(VLOOKUP(ROW(I20)-ROW(I$10)+1,'SD TABLE'!$B$2:$H$46,4,FALSE),\"\")","v":""},null,{"$f":"IFERROR(VLOOKUP(ROW(I20)-ROW(I$10)+1,'SD TABLE'!$B$2:$H$46,5,FALSE),\"\")","v":""},{"$f":"IFERROR(VLOOKUP(ROW(I20)-ROW(I$10)+1,'SD TABLE'!$B$2:$H$46,6,FALSE),\"\")","v":""},{"$f":"IFERROR(VLOOKUP(ROW(I20)-ROW(I$10)+1,'SD TABLE'!$B$2:$H$46,7,FALSE),\"\")","v":""}]
[{"$f":"UPPER(IFERROR(VLOOKUP(ROW(I21)-ROW(I$10)+1,'SD TABLE'!$B$2:$C$46,2,FALSE),\"\"))","v":""},null,{"$f":"IFERROR(VLOOKUP(ROW(H21)-ROW(H$10)+1,'SD TABLE'!$B$2:$H$46,3,FALSE),\"\")","v":""},{"$f":"IFERROR(VLOOKUP(ROW(I21)-ROW(I$10)+1,'SD TABLE'!$B$2:$H$46,4,FALSE),\"\")","v":""},null,{"$f":"IFERROR(VLOOKUP(ROW(I21)-ROW(I$10)+1,'SD TABLE'!$B$2:$H$46,5,FALSE),\"\")","v":""},{"$f":"IFERROR(VLOOKUP(ROW(I21)-ROW(I$10)+1,'SD TABLE'!$B$2:$H$46,6,FALSE),\"\")","v":""},{"$f":"IFERROR(VLOOKUP(ROW(I21)-ROW(I$10)+1,'SD TABLE'!$B$2:$H$46,7,FALSE),\"\")","v":""}]
[{"$f":"UPPER(IFERROR(VLOOKUP(ROW(I22)-ROW(I$10)+1,'SD TABLE'!$B$2:$C$46,2,FALSE),\"\"))","v":""},null,{"$f":"IFERROR(VLOOKUP(ROW(H22)-ROW(H$10)+1,'SD TABLE'!$B$2:$H$46,3,FALSE),\"\")","v":""},{"$f":"IFERROR(VLOOKUP(ROW(I22)-ROW(I$10)+1,'SD TABLE'!$B$2:$H$46,4,FALSE),\"\")","v":""},null,{"$f":"IFERROR(VLOOKUP(ROW(I22)-ROW(I$10)+1,'SD TABLE'!$B$2:$H$46,5,FALSE),\"\")","v":""},{"$f":"IFERROR(VLOOKUP(ROW(I22)-ROW(I$10)+1,'SD TABLE'!$B$2:$H$46,6,FALSE),\"\")","v":""},{"$f":"IFERROR(VLOOKUP(ROW(I22)-ROW(I$10)+1,'SD TABLE'!$B$2:$H$46,7,FALSE),\"\")","v":""}]
[{"$f":"UPPER(IFERROR(VLOOKUP(ROW(I23)-ROW(I$10)+1,'SD TABLE'!$B$2:$C$46,2,FALSE),\"\"))","v":""},null,{"$f":"IFERROR(VLOOKUP(ROW(H23)-ROW(H$10)+1,'SD TABLE'!$B$2:$H$46,3,FALSE),\"\")","v":""},{"$f":"IFERROR(VLOOKUP(ROW(I23)-ROW(I$10)+1,'SD TABLE'!$B$2:$H$46,4,FALSE),\"\")","v":""},null,{"$f":"IFERROR(VLOOKUP(ROW(I23)-ROW(I$10)+1,'SD TABLE'!$B$2:$H$46,5,FALSE),\"\")","v":""},{"$f":"IFERROR(VLOOKUP(ROW(I23)-ROW(I$10)+1,'SD TABLE'!$B$2:$H$46,6,FALSE),\"\")","v":""},{"$f":"IFERROR(VLOOKUP(ROW(I23)-ROW(I$10)+1,'SD TABLE'!$B$2:$H$46,7,FALSE),\"\")","v":""}]
[{"$f":"UPPER(IFERROR(VLOOKUP(ROW(I24)-ROW(I$10)+1,'SD TABLE'!$B$2:$C$46,2,FALSE),\"\"))","v":""},null,{"$f":"IFERROR(VLOOKUP(ROW(H24)-ROW(H$10)+1,'SD TABLE'!$B$2:$H$46,3,FALSE),\"\")","v":""},{"$f":"IFERROR(VLOOKUP(ROW(I24)-ROW(I$10)+1,'SD TABLE'!$B$2:$H$46,4,FALSE),\"\")","v":""},null,{"$f":"IFERROR(VLOOKUP(ROW(I24)-ROW(I$10)+1,'SD TABLE'!$B$2:$H$46,5,FALSE),\"\")","v":""},{"$f":"IFERROR(VLOOKUP(ROW(I24)-ROW(I$10)+1,'SD TABLE'!$B$2:$H$46,6,FALSE),\"\")","v":""},{"$f":"IFERROR(VLOOKUP(ROW(I24)-ROW(I$10)+1,'SD TABLE'!$B$2:$H$46,7,FALSE),\"\")","v":""}]
[{"$f":"UPPER(IFERROR(VLOOKUP(ROW(I25)-ROW(I$10)+1,'SD TABLE'!$B$2:$C$46,2,FALSE),\"\"))","v":""},null,{"$f":"IFERROR(VLOOKUP(ROW(H25)-ROW(H$10)+1,'SD TABLE'!$B$2:$H$46,3,FALSE),\"\")","v":""},{"$f":"IFERROR(VLOOKUP(ROW(I25)-ROW(I$10)+1,'SD TABLE'!$B$2:$H$46,4,FALSE),\"\")","v":""},null,{"$f":"IFERROR(VLOOKUP(ROW(I25)-ROW(I$10)+1,'SD TABLE'!$B$2:$H$46,5,FALSE),\"\")","v":""},{"$f":"IFERROR(VLOOKUP(ROW(I25)-ROW(I$10)+1,'SD TABLE'!$B$2:$H$46,6,FALSE),\"\")","v":""},{"$f":"IFERROR(VLOOKUP(ROW(I25)-ROW(I$10)+1,'SD TABLE'!$B$2:$H$46,7,FALSE),\"\")","v":""}]
[{"$f":"UPPER(IFERROR(VLOOKUP(ROW(I26)-ROW(I$10)+1,'SD TABLE'!$B$2:$C$46,2,FALSE),\"\"))","v":""},null,{"$f":"IFERROR(VLOOKUP(ROW(H26)-ROW(H$10)+1,'SD TABLE'!$B$2:$H$46,3,FALSE),\"\")","v":""},{"$f":"IFERROR(VLOOKUP(ROW(I26)-ROW(I$10)+1,'SD TABLE'!$B$2:$H$46,4,FALSE),\"\")","v":""},null,{"$f":"IFERROR(VLOOKUP(ROW(I26)-ROW(I$10)+1,'SD TABLE'!$B$2:$H$46,5,FALSE),\"\")","v":""},{"$f":"IFERROR(VLOOKUP(ROW(I26)-ROW(I$10)+1,'SD TABLE'!$B$2:$H$46,6,FALSE),\"\")","v":""},{"$f":"IFERROR(VLOOKUP(ROW(I26)-ROW(I$10)+1,'SD TABLE'!$B$2:$H$46,7,FALSE),\"\")","v":""}]
[{"$f":"UPPER(IFERROR(VLOOKUP(ROW(I27)-ROW(I$10)+1,'SD TABLE'!$B$2:$C$46,2,FALSE),\"\"))","v":""},null,{"$f":"IFERROR(VLOOKUP(ROW(H27)-ROW(H$10)+1,'SD TABLE'!$B$2:$H$46,3,FALSE),\"\")","v":""},{"$f":"IFERROR(VLOOKUP(ROW(I27)-ROW(I$10)+1,'SD TABLE'!$B$2:$H$46,4,FALSE),\"\")","v":""},null,{"$f":"IFERROR(VLOOKUP(ROW(I27)-ROW(I$10)+1,'SD TABLE'!$B$2:$H$46,5,FALSE),\"\")","v":""},{"$f":"IFERROR(VLOOKUP(ROW(I27)-ROW(I$10)+1,'SD TABLE'!$B$2:$H$46,6,FALSE),\"\")","v":""},{"$f":"IFERROR(VLOOKUP(ROW(I27)-ROW(I$10)+1,'SD TABLE'!$B$2:$H$46,7,FALSE),\"\")","v":""}]
[{"$f":"UPPER(IFERROR(VLOOKUP(ROW(I28)-ROW(I$10)+1,'SD TABLE'!$B$2:$C$46,2,FALSE),\"\"))","v":""},null,{"$f":"IFERROR(VLOOKUP(ROW(H28)-ROW(H$10)+1,'SD TABLE'!$B$2:$H$46,3,FALSE),\"\")","v":""},{"$f":"IFERROR(VLOOKUP(ROW(I28)-ROW(I$10)+1,'SD TABLE'!$B$2:$H$46,4,FALSE),\"\")","v":""},null,{"$f":"IFERROR(VLOOKUP(ROW(I28)-ROW(I$10)+1,'SD TABLE'!$B$2:$H$46,5,FALSE),\"\")","v":""},{"$f":"IFERROR(VLOOKUP(ROW(I28)-ROW(I$10)+1,'SD TABLE'!$B$2:$H$46,6,FALSE),\"\")","v":""},{"$f":"IFERROR(VLOOKUP(ROW(I28)-ROW(I$10)+1,'SD TABLE'!$B$2:$H$46,7,FALSE),\"\")","v":""}]
[{"$f":"UPPER(IFERROR(VLOOKUP(ROW(I29)-ROW(I$10)+1,'SD TABLE'!$B$2:$C$46,2,FALSE),\"\"))","v":""},null,{"$f":"IFERROR(VLOOKUP(ROW(H29)-ROW(H$10)+1,'SD TABLE'!$B$2:$H$46,3,FALSE),\"\")","v":""},{"$f":"IFERROR(VLOOKUP(ROW(I29)-ROW(I$10)+1,'SD TABLE'!$B$2:$H$46,4,FALSE),\"\")","v":""},null,{"$f":"IFERROR(VLOOKUP(ROW(I29)-ROW(I$10)+1,'SD TABLE'!$B$2:$H$46,5,FALSE),\"\")","v":""},{"$f":"IFERROR(VLOOKUP(ROW(I29)-ROW(I$10)+1,'SD TABLE'!$B$2:$H$46,6,FALSE),\"\")","v":""},{"$f":"IFERROR(VLOOKUP(ROW(I29)-ROW(I$10)+1,'SD TABLE'!$B$2:$H$46,7,FALSE),\"\")","v":""}]
[{"$f":"UPPER(IFERROR(VLOOKUP(ROW(I30)-ROW(I$10)+1,'SD TABLE'!$B$2:$C$46,2,FALSE),\"\"))","v":""},null,{"$f":"IFERROR(VLOOKUP(ROW(H30)-ROW(H$10)+1,'SD TABLE'!$B$2:$H$46,3,FALSE),\"\")","v":""},{"$f":"IFERROR(VLOOKUP(ROW(I30)-ROW(I$10)+1,'SD TABLE'!$B$2:$H$46,4,FALSE),\"\")","v":""}]
[{"$f":"UPPER(IFERROR(VLOOKUP(ROW(I31)-ROW(I$10)+1,'SD TABLE'!$B$2:$C$46,2,FALSE),\"\"))","v":""},null,{"$f":"IFERROR(VLOOKUP(ROW(H31)-ROW(H$10)+1,'SD TABLE'!$B$2:$H$46,3,FALSE),\"\")","v":""},{"$f":"IFERROR(VLOOKUP(ROW(I31)-ROW(I$10)+1,'SD TABLE'!$B$2:$H$46,4,FALSE),\"\")","v":""}]
[{"$f":"UPPER(IFERROR(VLOOKUP(ROW(I32)-ROW(I$10)+1,'SD TABLE'!$B$2:$C$46,2,FALSE),\"\"))","v":""},null,{"$f":"IFERROR(VLOOKUP(ROW(H32)-ROW(H$10)+1,'SD TABLE'!$B$2:$H$46,3,FALSE),\"\")","v":""},{"$f":"IFERROR(VLOOKUP(ROW(I32)-ROW(I$10)+1,'SD TABLE'!$B$2:$H$46,4,FALSE),\"\")","v":""}]
[{"$f":"UPPER(IFERROR(VLOOKUP(ROW(I33)-ROW(I$10)+1,'SD TABLE'!$B$2:$C$46,2,FALSE),\"\"))","v":""},null,{"$f":"IFERROR(VLOOKUP(ROW(H33)-ROW(H$10)+1,'SD TABLE'!$B$2:$H$46,3,FALSE),\"\")","v":""},{"$f":"IFERROR(VLOOKUP(ROW(I33)-ROW(I$10)+1,'SD TABLE'!$B$2:$H$46,4,FALSE),\"\")","v":""}]
[{"$f":"UPPER(IFERROR(VLOOKUP(ROW(I34)-ROW(I$10)+1,'SD TABLE'!$B$2:$C$46,2,FALSE),\"\"))","v":""},null,{"$f":"IFERROR(VLOOKUP(ROW(H34)-ROW(H$10)+1,'SD TABLE'!$B$2:$H$46,3,FALSE),\"\")","v":""},{"$f":"IFERROR(VLOOKUP(ROW(I34)-ROW(I$10)+1,'SD TABLE'!$B$2:$H$46,4,FALSE),\"\")","v":""}]
[{"$f":"UPPER(IFERROR(VLOOKUP(ROW(I35)-ROW(I$10)+1,'SD TABLE'!$B$2:$C$46,2,FALSE),\"\"))","v":""},null,{"$f":"IFERROR(VLOOKUP(ROW(H35)-ROW(H$10)+1,'SD TABLE'!$B$2:$H$46,3,FALSE),\"\")","v":""},{"$f":"IFERROR(VLOOKUP(ROW(I35)-ROW(I$10)+1,'SD TABLE'!$B$2:$H$46,4,FALSE),\"\")","v":""}]
[{"$f":"UPPER(IFERROR(VLOOKUP(ROW(I36)-ROW(I$10)+1,'SD TABLE'!$B$2:$C$46,2,FALSE),\"\"))","v":""},null,{"$f":"IFERROR(VLOOKUP(ROW(H36)-ROW(H$10)+1,'SD TABLE'!$B$2:$H$46,3,FALSE),\"\")","v":""},{"$f":"IFERROR(VLOOKUP(ROW(I36)-ROW(I$10)+1,'SD TABLE'!$B$2:$H$46,4,FALSE),\"\")","v":""}]
[{"$f":"UPPER(IFERROR(VLOOKUP(ROW(I37)-ROW(I$10)+1,'SD TABLE'!$B$2:$C$46,2,FALSE),\"\"))","v":""},null,{"$f":"IFERROR(VLOOKUP(ROW(H37)-ROW(H$10)+1,'SD TABLE'!$B$2:$H$46,3,FALSE),\"\")","v":""},{"$f":"IFERROR(VLOOKUP(ROW(I37)-ROW(I$10)+1,'SD TABLE'!$B$2:$H$46,4,FALSE),\"\")","v":""}]
[{"$f":"UPPER(IFERROR(VLOOKUP(ROW(I38)-ROW(I$10)+1,'SD TABLE'!$B$2:$C$46,2,FALSE),\"\"))","v":""},null,{"$f":"IFERROR(VLOOKUP(ROW(H38)-ROW(H$10)+1,'SD TABLE'!$B$2:$H$46,3,FALSE),\"\")","v":""},{"$f":"IFERROR(VLOOKUP(ROW(I38)-ROW(I$10)+1,'SD TABLE'!$B$2:$H$46,4,FALSE),\"\")","v":""}]
[{"$f":"UPPER(IFERROR(VLOOKUP(ROW(I39)-ROW(I$10)+1,'SD TABLE'!$B$2:$C$46,2,FALSE),\"\"))","v":""},null,{"$f":"IFERROR(VLOOKUP(ROW(H39)-ROW(H$10)+1,'SD TABLE'!$B$2:$H$46,3,FALSE),\"\")","v":""},{"$f":"IFERROR(VLOOKUP(ROW(I39)-ROW(I$10)+1,'SD TABLE'!$B$2:$H$46,4,FALSE),\"\")","v":""}]
[{"$f":"UPPER(IFERROR(VLOOKUP(ROW(I40)-ROW(I$10)+1,'SD TABLE'!$B$2:$C$46,2,FALSE),\"\"))","v":""},null,{"$f":"IFERROR(VLOOKUP(ROW(H40)-ROW(H$10)+1,'SD TABLE'!$B$2:$H$46,3,FALSE),\"\")","v":""},{"$f":"IFERROR(VLOOKUP(ROW(I40)-ROW(I$10)+1,'SD TABLE'!$B$2:$H$46,4,FALSE),\"\")","v":""}]
[{"$f":"UPPER(IFERROR(VLOOKUP(ROW(I41)-ROW(I$10)+1,'SD TABLE'!$B$2:$C$46,2,FALSE),\"\"))","v":""},null,{"$f":"IFERROR(VLOOKUP(ROW(H41)-ROW(H$10)+1,'SD TABLE'!$B$2:$H$46,3,FALSE),\"\")","v":""},{"$f":"IFERROR(VLOOKUP(ROW(I41)-ROW(I$10)+1,'SD TABLE'!$B$2:$H$46,4,FALSE),\"\")","v":""}]
[{"$f":"UPPER(IFERROR(VLOOKUP(ROW(I42)-ROW(I$10)+1,'SD TABLE'!$B$2:$C$46,2,FALSE),\"\"))","v":""},null,{"$f":"IFERROR(VLOOKUP(ROW(H42)-ROW(H$10)+1,'SD TABLE'!$B$2:$H$46,3,FALSE),\"\")","v":""},{"$f":"IFERROR(VLOOKUP(ROW(I42)-ROW(I$10)+1,'SD TABLE'!$B$2:$H$46,4,FALSE),\"\")","v":""}]
[{"$f":"UPPER(IFERROR(VLOOKUP(ROW(I43)-ROW(I$10)+1,'SD TABLE'!$B$2:$C$46,2,FALSE),\"\"))","v":""},null,{"$f":"IFERROR(VLOOKUP(ROW(H43)-ROW(H$10)+1,'SD TABLE'!$B$2:$H$46,3,FALSE),\"\")","v":""},{"$f":"IFERROR(VLOOKUP(ROW(I43)-ROW(I$10)+1,'SD TABLE'!$B$2:$H$46,4,FALSE),\"\")","v":""}]
[{"$f":"UPPER(IFERROR(VLOOKUP(ROW(I44)-ROW(I$10)+1,'SD TABLE'!$B$2:$C$46,2,FALSE),\"\"))","v":""},null,{"$f":"IFERROR(VLOOKUP(ROW(H44)-ROW(H$10)+1,'SD TABLE'!$B$2:$H$46,3,FALSE),\"\")","v":""},{"$f":"IFERROR(VLOOKUP(ROW(I44)-ROW(I$10)+1,'SD TABLE'!$B$2:$H$46,4,FALSE),\"\")","v":""}]
[{"$f":"UPPER(IFERROR(VLOOKUP(ROW(I45)-ROW(I$10)+1,'SD TABLE'!$B$2:$C$46,2,FALSE),\"\"))","v":""},null,{"$f":"IFERROR(VLOOKUP(ROW(H45)-ROW(H$10)+1,'SD TABLE'!$B$2:$H$46,3,FALSE),\"\")","v":""},{"$f":"IFERROR(VLOOKUP(ROW(I45)-ROW(I$10)+1,'SD TABLE'!$B$2:$H$46,4,FALSE),\"\")","v":""}]
[{"$f":"UPPER(IFERROR(VLOOKUP(ROW(I46)-ROW(I$10)+1,'SD TABLE'!$B$2:$C$46,2,FALSE),\"\"))","v":""},null,{"$f":"IFERROR(VLOOKUP(ROW(H46)-ROW(H$10)+1,'SD TABLE'!$B$2:$H$46,3,FALSE),\"\")","v":""},{"$f":"IFERROR(VLOOKUP(ROW(I46)-ROW(I$10)+1,'SD TABLE'!$B$2:$H$46,4,FALSE),\"\")","v":""}]
[{"$f":"UPPER(IFERROR(VLOOKUP(ROW(I47)-ROW(I$10)+1,'SD TABLE'!$B$2:$C$46,2,FALSE),\"\"))","v":""},null,{"$f":"IFERROR(VLOOKUP(ROW(H47)-ROW(H$10)+1,'SD TABLE'!$B$2:$H$46,3,FALSE),\"\")","v":""},{"$f":"IFERROR(VLOOKUP(ROW(I47)-ROW(I$10)+1,'SD TABLE'!$B$2:$H$46,4,FALSE),\"\")","v":""}]
[{"$f":"UPPER(IFERROR(VLOOKUP(ROW(I48)-ROW(I$10)+1,'SD TABLE'!$B$2:$C$46,2,FALSE),\"\"))","v":""},null,{"$f":"IFERROR(VLOOKUP(ROW(H48)-ROW(H$10)+1,'SD TABLE'!$B$2:$H$46,3,FALSE),\"\")","v":""},{"$f":"IFERROR(VLOOKUP(ROW(I48)-ROW(I$10)+1,'SD TABLE'!$B$2:$H$46,4,FALSE),\"\")","v":""}]

{"sheet":"DD Checklist","index":5,"n_rows":50,"n_cols":8,"rows_kept":50,"cut":false,"hidden":false,"merged":[[0,0,0,4]]}
["PROJECT SUSTAINABILITY CHECKLIST - Design Development"]
[]
[{"$f":"\"Project Name:         \"&'Project Information'!D14","v":"Project Name:         "}]
[{"$f":"\"Project Number:     \"&'Project Information'!D13","v":"Project Number:     "}]
[{"$f":"\"Project Manager:   \"&'Project Information'!D19","v":"Project Manager:   "}]
[{"$f":"\"Project Type:           \"&IFERROR(LEFT('Project Information'!$D$22,SEARCH(\"~*\",'Project Information'!$D$22)-1),'Project Information'!$D$22)","v":"Project Type:           Renovation"}]
["Checklist Completion Date:"]
[]
["CATEGORY","COMPLETED?","SECTION","REQUIREMENT","NOTES","Task Completed by ","Task\n Reviewed by ","Task Approved by "]
[{"$f":"UPPER(IFERROR(VLOOKUP(ROW(I10)-ROW(I$10)+1,'DD TABLE'!$B$2:$C$47,2,FALSE),\"\"))","v":"GENERAL"},null,{"$f":"IFERROR(VLOOKUP(ROW(H10)-ROW(H$10)+1,'DD TABLE'!$B$2:$H$48,3,FALSE),\"\")","v":"00 00 18.1.1 "},{"$f":"IFERROR(VLOOKUP(ROW(I10)-ROW(I$10)+1,'DD TABLE'!$B$2:$H$47,4,FALSE),\"\")","v":"Submit updated Sustainability Applicability Matrix through eBuilder (if applicable)"},null,{"$f":"IFERROR(VLOOKUP(ROW(I10)-ROW(I$10)+1,'DD TABLE'!$B$2:$H$47,5,FALSE),\"\")","v":"PM"},{"$f":"IFERROR(VLOOKUP(ROW(I10)-ROW(I$10)+1,'DD TABLE'!$B$2:$H$47,6,FALSE),\"\")","v":0},{"$f":"IFERROR(VLOOKUP(ROW(I10)-ROW(I$10)+1,'DD TABLE'!$B$2:$H$47,7,FALSE),\"\")","v":0}]
[{"$f":"UPPER(IFERROR(VLOOKUP(ROW(I11)-ROW(I$10)+1,'DD TABLE'!$B$2:$C$47,2,FALSE),\"\"))","v":"GENERAL"},null,{"$f":"IFERROR(VLOOKUP(ROW(H11)-ROW(H$10)+1,'DD TABLE'!$B$2:$H$48,3,FALSE),\"\")","v":"00 00 17.1.2"},{"$f":"IFERROR(VLOOKUP(ROW(I11)-ROW(I$10)+1,'DD TABLE'!$B$2:$H$47,4,FALSE),\"\")","v":"Submit updated OPR through eBuilder (if applicable)"},null,{"$f":"IFERROR(VLOOKUP(ROW(I11)-ROW(I$10)+1,'DD TABLE'!$B$2:$H$47,5,FALSE),\"\")","v":0},{"$f":"IFERROR(VLOOKUP(ROW(I11)-ROW(I$10)+1,'DD TABLE'!$B$2:$H$47,6,FALSE),\"\")","v":0},{"$f":"IFERROR(VLOOKUP(ROW(I11)-ROW(I$10)+1,'DD TABLE'!$B$2:$H$47,7,FALSE),\"\")","v":0}]
[{"$f":"UPPER(IFERROR(VLOOKUP(ROW(I12)-ROW(I$10)+1,'DD TABLE'!$B$2:$C$47,2,FALSE),\"\"))","v":""},null,{"$f":"IFERROR(VLOOKUP(ROW(H12)-ROW(H$10)+1,'DD TABLE'!$B$2:$H$48,3,FALSE),\"\")","v":0},{"$f":"IFERROR(VLOOKUP(ROW(I12)-ROW(I$10)+1,'DD TABLE'!$B$2:$H$47,4,FALSE),\"\")","v":0},null,{"$f":"IFERROR(VLOOKUP(ROW(I12)-ROW(I$10)+1,'DD TABLE'!$B$2:$H$47,5,FALSE),\"\")","v":0},{"$f":"IFERROR(VLOOKUP(ROW(I12)-ROW(I$10)+1,'DD TABLE'!$B$2:$H$47,6,FALSE),\"\")","v":0},{"$f":"IFERROR(VLOOKUP(ROW(I12)-ROW(I$10)+1,'DD TABLE'!$B$2:$H$47,7,FALSE),\"\")","v":0}]
[{"$f":"UPPER(IFERROR(VLOOKUP(ROW(I13)-ROW(I$10)+1,'DD TABLE'!$B$2:$C$47,2,FALSE),\"\"))","v":""},null,{"$f":"IFERROR(VLOOKUP(ROW(H13)-ROW(H$10)+1,'DD TABLE'!$B$2:$H$48,3,FALSE),\"\")","v":""},{"$f":"IFERROR(VLOOKUP(ROW(I13)-ROW(I$10)+1,'DD TABLE'!$B$2:$H$47,4,FALSE),\"\")","v":""},null,{"$f":"IFERROR(VLOOKUP(ROW(I13)-ROW(I$10)+1,'DD TABLE'!$B$2:$H$47,5,FALSE),\"\")","v":""},{"$f":"IFERROR(VLOOKUP(ROW(I13)-ROW(I$10)+1,'DD TABLE'!$B$2:$H$47,6,FALSE),\"\")","v":""},{"$f":"IFERROR(VLOOKUP(ROW(I13)-ROW(I$10)+1,'DD TABLE'!$B$2:$H$47,7,FALSE),\"\")","v":""}]
[{"$f":"UPPER(IFERROR(VLOOKUP(ROW(I14)-ROW(I$10)+1,'DD TABLE'!$B$2:$C$47,2,FALSE),\"\"))","v":""},null,{"$f":"IFERROR(VLOOKUP(ROW(H14)-ROW(H$10)+1,'DD TABLE'!$B$2:$H$48,3,FALSE),\"\")","v":""},{"$f":"IFERROR(VLOOKUP(ROW(I14)-ROW(I$10)+1,'DD TABLE'!$B$2:$H$47,4,FALSE),\"\")","v":""},null,{"$f":"IFERROR(VLOOKUP(ROW(I14)-ROW(I$10)+1,'DD TABLE'!$B$2:$H$47,5,FALSE),\"\")","v":""},{"$f":"IFERROR(VLOOKUP(ROW(I14)-ROW(I$10)+1,'DD TABLE'!$B$2:$H$47,6,FALSE),\"\")","v":""},{"$f":"IFERROR(VLOOKUP(ROW(I14)-ROW(I$10)+1,'DD TABLE'!$B$2:$H$47,7,FALSE),\"\")","v":""}]
[{"$f":"UPPER(IFERROR(VLOOKUP(ROW(I15)-ROW(I$10)+1,'DD TABLE'!$B$2:$C$47,2,FALSE),\"\"))","v":""},null,{"$f":"IFERROR(VLOOKUP(ROW(H15)-ROW(H$10)+1,'DD TABLE'!$B$2:$H$48,3,FALSE),\"\")","v":""},{"$f":"IFERROR(VLOOKUP(ROW(I15)-ROW(I$10)+1,'DD TABLE'!$B$2:$H$47,4,FALSE),\"\")","v":""},null,{"$f":"IFERROR(VLOOKUP(ROW(I15)-ROW(I$10)+1,'DD TABLE'!$B$2:$H$47,5,FALSE),\"\")","v":""},{"$f":"IFERROR(VLOOKUP(ROW(I15)-ROW(I$10)+1,'DD TABLE'!$B$2:$H$47,6,FALSE),\"\")","v":""},{"$f":"IFERROR(VLOOKUP(ROW(I15)-ROW(I$10)+1,'DD TABLE'!$B$2:$H$47,7,FALSE),\"\")","v":""}]
[{"$f":"UPPER(IFERROR(VLOOKUP(ROW(I16)-ROW(I$10)+1,'DD TABLE'!$B$2:$C$47,2,FALSE),\"\"))","v":""},null,{"$f":"IFERROR(VLOOKUP(ROW(H16)-ROW(H$10)+1,'DD TABLE'!$B$2:$H$48,3,FALSE),\"\")","v":""},{"$f":"IFERROR(VLOOKUP(ROW(I16)-ROW(I$10)+1,'DD TABLE'!$B$2:$H$47,4,FALSE),\"\")","v":""},null,{"$f":"IFERROR(VLOOKUP(ROW(I16)-ROW(I$10)+1,'DD TABLE'!$B$2:$H$47,5,FALSE),\"\")","v":""},{"$f":"IFERROR(VLOOKUP(ROW(I16)-ROW(I$10)+1,'DD TABLE'!$B$2:$H$47,6,FALSE),\"\")","v":""},{"$f":"IFERROR(VLOOKUP(ROW(I16)-ROW(I$10)+1,'DD TABLE'!$B$2:$H$47,7,FALSE),\"\")","v":""}]
[{"$f":"UPPER(IFERROR(VLOOKUP(ROW(I17)-ROW(I$10)+1,'DD TABLE'!$B$2:$C$47,2,FALSE),\"\"))","v":""},null,{"$f":"IFERROR(VLOOKUP(ROW(H17)-ROW(H$10)+1,'DD TABLE'!$B$2:$H$48,3,FALSE),\"\")","v":""},{"$f":"IFERROR(VLOOKUP(ROW(I17)-ROW(I$10)+1,'DD TABLE'!$B$2:$H$47,4,FALSE),\"\")","v":""},null,{"$f":"IFERROR(VLOOKUP(ROW(I17)-ROW(I$10)+1,'DD TABLE'!$B$2:$H$47,5,FALSE),\"\")","v":""},{"$f":"IFERROR(VLOOKUP(ROW(I17)-ROW(I$10)+1,'DD TABLE'!$B$2:$H$47,6,FALSE),\"\")","v":""},{"$f":"IFERROR(VLOOKUP(ROW(I17)-ROW(I$10)+1,'DD TABLE'!$B$2:$H$47,7,FALSE),\"\")","v":""}]
[{"$f":"UPPER(IFERROR(VLOOKUP(ROW(I18)-ROW(I$10)+1,'DD TABLE'!$B$2:$C$47,2,FALSE),\"\"))","v":""},null,{"$f":"IFERROR(VLOOKUP(ROW(H18)-ROW(H$10)+1,'DD TABLE'!$B$2:$H$48,3,FALSE),\"\")","v":""},{"$f":"IFERROR(VLOOKUP(ROW(I18)-ROW(I$10)+1,'DD TABLE'!$B$2:$H$47,4,FALSE),\"\")","v":""},null,{"$f":"IFERROR(VLOOKUP(ROW(I18)-ROW(I$10)+1,'DD TABLE'!$B$2:$H$47,5,FALSE),\"\")","v":""},{"$f":"IFERROR(VLOOKUP(ROW(I18)-ROW(I$10)+1,'DD TABLE'!$B$2:$H$47,6,FALSE),\"\")","v":""},{"$f":"IFERROR(VLOOKUP(ROW(I18)-ROW(I$10)+1,'DD TABLE'!$B$2:$H$47,7,FALSE),\"\")","v":""}]
[{"$f":"UPPER(IFERROR(VLOOKUP(ROW(I19)-ROW(I$10)+1,'DD TABLE'!$B$2:$C$47,2,FALSE),\"\"))","v":""},null,{"$f":"IFERROR(VLOOKUP(ROW(H19)-ROW(H$10)+1,'DD TABLE'!$B$2:$H$48,3,FALSE),\"\")","v":""},{"$f":"IFERROR(VLOOKUP(ROW(I19)-ROW(I$10)+1,'DD TABLE'!$B$2:$H$47,4,FALSE),\"\")","v":""},null,{"$f":"IFERROR(VLOOKUP(ROW(I19)-ROW(I$10)+1,'DD TABLE'!$B$2:$H$47,5,FALSE),\"\")","v":""},{"$f":"IFERROR(VLOOKUP(ROW(I19)-ROW(I$10)+1,'DD TABLE'!$B$2:$H$47,6,FALSE),\"\")","v":""},{"$f":"IFERROR(VLOOKUP(ROW(I19)-ROW(I$10)+1,'DD TABLE'!$B$2:$H$47,7,FALSE),\"\")","v":""}]
[{"$f":"UPPER(IFERROR(VLOOKUP(ROW(I20)-ROW(I$10)+1,'DD TABLE'!$B$2:$C$47,2,FALSE),\"\"))","v":""},null,{"$f":"IFERROR(VLOOKUP(ROW(H20)-ROW(H$10)+1,'DD TABLE'!$B$2:$H$48,3,FALSE),\"\")","v":""},{"$f":"IFERROR(VLOOKUP(ROW(I20)-ROW(I$10)+1,'DD TABLE'!$B$2:$H$47,4,FALSE),\"\")","v":""},null,{"$f":"IFERROR(VLOOKUP(ROW(I20)-ROW(I$10)+1,'DD TABLE'!$B$2:$H$47,5,FALSE),\"\")","v":""},{"$f":"IFERROR(VLOOKUP(ROW(I20)-ROW(I$10)+1,'DD TABLE'!$B$2:$H$47,6,FALSE),\"\")","v":""},{"$f":"IFERROR(VLOOKUP(ROW(I20)-ROW(I$10)+1,'DD TABLE'!$B$2:$H$47,7,FALSE),\"\")","v":""}]
[{"$f":"UPPER(IFERROR(VLOOKUP(ROW(I21)-ROW(I$10)+1,'DD TABLE'!$B$2:$C$47,2,FALSE),\"\"))","v":""},null,{"$f":"IFERROR(VLOOKUP(ROW(H21)-ROW(H$10)+1,'DD TABLE'!$B$2:$H$48,3,FALSE),\"\")","v":""},{"$f":"IFERROR(VLOOKUP(ROW(I21)-ROW(I$10)+1,'DD TABLE'!$B$2:$H$47,4,FALSE),\"\")","v":""},null,{"$f":"IFERROR(VLOOKUP(ROW(I21)-ROW(I$10)+1,'DD TABLE'!$B$2:$H$47,5,FALSE),\"\")","v":""},{"$f":"IFERROR(VLOOKUP(ROW(I21)-ROW(I$10)+1,'DD TABLE'!$B$2:$H$47,6,FALSE),\"\")","v":""},{"$f":"IFERROR(VLOOKUP(ROW(I21)-ROW(I$10)+1,'DD TABLE'!$B$2:$H$47,7,FALSE),\"\")","v":""}]
[{"$f":"UPPER(IFERROR(VLOOKUP(ROW(I22)-ROW(I$10)+1,'DD TABLE'!$B$2:$C$47,2,FALSE),\"\"))","v":""},null,{"$f":"IFERROR(VLOOKUP(ROW(H22)-ROW(H$10)+1,'DD TABLE'!$B$2:$H$48,3,FALSE),\"\")","v":""},{"$f":"IFERROR(VLOOKUP(ROW(I22)-ROW(I$10)+1,'DD TABLE'!$B$2:$H$47,4,FALSE),\"\")","v":""},null,{"$f":"IFERROR(VLOOKUP(ROW(I22)-ROW(I$10)+1,'DD TABLE'!$B$2:$H$47,5,FALSE),\"\")","v":""},{"$f":"IFERROR(VLOOKUP(ROW(I22)-ROW(I$10)+1,'DD TABLE'!$B$2:$H$47,6,FALSE),\"\")","v":""},{"$f":"IFERROR(VLOOKUP(ROW(I22)-ROW(I$10)+1,'DD TABLE'!$B$2:$H$47,7,FALSE),\"\")","v":""}]
[{"$f":"UPPER(IFERROR(VLOOKUP(ROW(I23)-ROW(I$10)+1,'DD TABLE'!$B$2:$C$47,2,FALSE),\"\"))","v":""},null,{"$f":"IFERROR(VLOOKUP(ROW(H23)-ROW(H$10)+1,'DD TABLE'!$B$2:$H$48,3,FALSE),\"\")","v":""},{"$f":"IFERROR(VLOOKUP(ROW(I23)-ROW(I$10)+1,'DD TABLE'!$B$2:$H$47,4,FALSE),\"\")","v":""},null,{"$f":"IFERROR(VLOOKUP(ROW(I23)-ROW(I$10)+1,'DD TABLE'!$B$2:$H$47,5,FALSE),\"\")","v":""},{"$f":"IFERROR(VLOOKUP(ROW(I23)-ROW(I$10)+1,'DD TABLE'!$B$2:$H$47,6,FALSE),\"\")","v":""},{"$f":"IFERROR(VLOOKUP(ROW(I23)-ROW(I$10)+1,'DD TABLE'!$B$2:$H$47,7,FALSE),\"\")","v":""}]
[{"$f":"UPPER(IFERROR(VLOOKUP(ROW(I24)-ROW(I$10)+1,'DD TABLE'!$B$2:$C$47,2,FALSE),\"\"))","v":""},null,{"$f":"IFERROR(VLOOKUP(ROW(H24)-ROW(H$10)+1,'DD TABLE'!$B$2:$H$48,3,FALSE),\"\")","v":""},{"$f":"IFERROR(VLOOKUP(ROW(I24)-ROW(I$10)+1,'DD TABLE'!$B$2:$H$47,4,FALSE),\"\")","v":""},null,{"$f":"IFERROR(VLOOKUP(ROW(I24)-ROW(I$10)+1,'DD TABLE'!$B$2:$H$47,5,FALSE),\"\")","v":""},{"$f":"IFERROR(VLOOKUP(ROW(I24)-ROW(I$10)+1,'DD TABLE'!$B$2:$H$47,6,FALSE),\"\")","v":""},{"$f":"IFERROR(VLOOKUP(ROW(I24)-ROW(I$10)+1,'DD TABLE'!$B$2:$H$47,7,FALSE),\"\")","v":""}]
[{"$f":"UPPER(IFERROR(VLOOKUP(ROW(I25)-ROW(I$10)+1,'DD TABLE'!$B$2:$C$47,2,FALSE),\"\"))","v":""},null,{"$f":"IFERROR(VLOOKUP(ROW(H25)-ROW(H$10)+1,'DD TABLE'!$B$2:$H$48,3,FALSE),\"\")","v":""},{"$f":"IFERROR(VLOOKUP(ROW(I25)-ROW(I$10)+1,'DD TABLE'!$B$2:$H$47,4,FALSE),\"\")","v":""},null,{"$f":"IFERROR(VLOOKUP(ROW(I25)-ROW(I$10)+1,'DD TABLE'!$B$2:$H$47,5,FALSE),\"\")","v":""},{"$f":"IFERROR(VLOOKUP(ROW(I25)-ROW(I$10)+1,'DD TABLE'!$B$2:$H$47,6,FALSE),\"\")","v":""},{"$f":"IFERROR(VLOOKUP(ROW(I25)-ROW(I$10)+1,'DD TABLE'!$B$2:$H$47,7,FALSE),\"\")","v":""}]
[{"$f":"UPPER(IFERROR(VLOOKUP(ROW(I26)-ROW(I$10)+1,'DD TABLE'!$B$2:$C$47,2,FALSE),\"\"))","v":""},null,{"$f":"IFERROR(VLOOKUP(ROW(H26)-ROW(H$10)+1,'DD TABLE'!$B$2:$H$48,3,FALSE),\"\")","v":""},{"$f":"IFERROR(VLOOKUP(ROW(I26)-ROW(I$10)+1,'DD TABLE'!$B$2:$H$47,4,FALSE),\"\")","v":""},null,{"$f":"IFERROR(VLOOKUP(ROW(I26)-ROW(I$10)+1,'DD TABLE'!$B$2:$H$47,5,FALSE),\"\")","v":""},{"$f":"IFERROR(VLOOKUP(ROW(I26)-ROW(I$10)+1,'DD TABLE'!$B$2:$H$47,6,FALSE),\"\")","v":""},{"$f":"IFERROR(VLOOKUP(ROW(I26)-ROW(I$10)+1,'DD TABLE'!$B$2:$H$47,7,FALSE),\"\")","v":""}]
[{"$f":"UPPER(IFERROR(VLOOKUP(ROW(I27)-ROW(I$10)+1,'DD TABLE'!$B$2:$C$47,2,FALSE),\"\"))","v":""},null,{"$f":"IFERROR(VLOOKUP(ROW(H27)-ROW(H$10)+1,'DD TABLE'!$B$2:$H$48,3,FALSE),\"\")","v":""},{"$f":"IFERROR(VLOOKUP(ROW(I27)-ROW(I$10)+1,'DD TABLE'!$B$2:$H$47,4,FALSE),\"\")","v":""},null,{"$f":"IFERROR(VLOOKUP(ROW(I27)-ROW(I$10)+1,'DD TABLE'!$B$2:$H$47,5,FALSE),\"\")","v":""},{"$f":"IFERROR(VLOOKUP(ROW(I27)-ROW(I$10)+1,'DD TABLE'!$B$2:$H$47,6,FALSE),\"\")","v":""},{"$f":"IFERROR(VLOOKUP(ROW(I27)-ROW(I$10)+1,'DD TABLE'!$B$2:$H$47,7,FALSE),\"\")","v":""}]
[{"$f":"UPPER(IFERROR(VLOOKUP(ROW(I28)-ROW(I$10)+1,'DD TABLE'!$B$2:$C$47,2,FALSE),\"\"))","v":""},null,{"$f":"IFERROR(VLOOKUP(ROW(H28)-ROW(H$10)+1,'DD TABLE'!$B$2:$H$48,3,FALSE),\"\")","v":""},{"$f":"IFERROR(VLOOKUP(ROW(I28)-ROW(I$10)+1,'DD TABLE'!$B$2:$H$47,4,FALSE),\"\")","v":""}]
[{"$f":"UPPER(IFERROR(VLOOKUP(ROW(I29)-ROW(I$10)+1,'DD TABLE'!$B$2:$C$47,2,FALSE),\"\"))","v":""},null,{"$f":"IFERROR(VLOOKUP(ROW(H29)-ROW(H$10)+1,'DD TABLE'!$B$2:$H$48,3,FALSE),\"\")","v":""},{"$f":"IFERROR(VLOOKUP(ROW(I29)-ROW(I$10)+1,'DD TABLE'!$B$2:$H$47,4,FALSE),\"\")","v":""}]
[{"$f":"UPPER(IFERROR(VLOOKUP(ROW(I30)-ROW(I$10)+1,'DD TABLE'!$B$2:$C$47,2,FALSE),\"\"))","v":""},null,{"$f":"IFERROR(VLOOKUP(ROW(H30)-ROW(H$10)+1,'DD TABLE'!$B$2:$H$48,3,FALSE),\"\")","v":""},{"$f":"IFERROR(VLOOKUP(ROW(I30)-ROW(I$10)+1,'DD TABLE'!$B$2:$H$47,4,FALSE),\"\")","v":""}]
[{"$f":"UPPER(IFERROR(VLOOKUP(ROW(I31)-ROW(I$10)+1,'DD TABLE'!$B$2:$C$47,2,FALSE),\"\"))","v":""},null,{"$f":"IFERROR(VLOOKUP(ROW(H31)-ROW(H$10)+1,'DD TABLE'!$B$2:$H$48,3,FALSE),\"\")","v":""},{"$f":"IFERROR(VLOOKUP(ROW(I31)-ROW(I$10)+1,'DD TABLE'!$B$2:$H$47,4,FALSE),\"\")","v":""}]
[{"$f":"UPPER(IFERROR(VLOOKUP(ROW(I32)-ROW(I$10)+1,'DD TABLE'!$B$2:$C$47,2,FALSE),\"\"))","v":""},null,{"$f":"IFERROR(VLOOKUP(ROW(H32)-ROW(H$10)+1,'DD TABLE'!$B$2:$H$48,3,FALSE),\"\")","v":""},{"$f":"IFERROR(VLOOKUP(ROW(I32)-ROW(I$10)+1,'DD TABLE'!$B$2:$H$47,4,FALSE),\"\")","v":""}]
[{"$f":"UPPER(IFERROR(VLOOKUP(ROW(I33)-ROW(I$10)+1,'DD TABLE'!$B$2:$C$47,2,FALSE),\"\"))","v":""},null,{"$f":"IFERROR(VLOOKUP(ROW(H33)-ROW(H$10)+1,'DD TABLE'!$B$2:$H$48,3,FALSE),\"\")","v":""},{"$f":"IFERROR(VLOOKUP(ROW(I33)-ROW(I$10)+1,'DD TABLE'!$B$2:$H$47,4,FALSE),\"\")","v":""}]
[{"$f":"UPPER(IFERROR(VLOOKUP(ROW(I34)-ROW(I$10)+1,'DD TABLE'!$B$2:$C$47,2,FALSE),\"\"))","v":""},null,{"$f":"IFERROR(VLOOKUP(ROW(H34)-ROW(H$10)+1,'DD TABLE'!$B$2:$H$48,3,FALSE),\"\")","v":""},{"$f":"IFERROR(VLOOKUP(ROW(I34)-ROW(I$10)+1,'DD TABLE'!$B$2:$H$47,4,FALSE),\"\")","v":""}]
[{"$f":"UPPER(IFERROR(VLOOKUP(ROW(I35)-ROW(I$10)+1,'DD TABLE'!$B$2:$C$47,2,FALSE),\"\"))","v":""},null,{"$f":"IFERROR(VLOOKUP(ROW(H35)-ROW(H$10)+1,'DD TABLE'!$B$2:$H$48,3,FALSE),\"\")","v":""},{"$f":"IFERROR(VLOOKUP(ROW(I35)-ROW(I$10)+1,'DD TABLE'!$B$2:$H$47,4,FALSE),\"\")","v":""}]
[{"$f":"UPPER(IFERROR(VLOOKUP(ROW(I36)-ROW(I$10)+1,'DD TABLE'!$B$2:$C$47,2,FALSE),\"\"))","v":""},null,{"$f":"IFERROR(VLOOKUP(ROW(H36)-ROW(H$10)+1,'DD TABLE'!$B$2:$H$48,3,FALSE),\"\")","v":""},{"$f":"IFERROR(VLOOKUP(ROW(I36)-ROW(I$10)+1,'DD TABLE'!$B$2:$H$47,4,FALSE),\"\")","v":""}]
[{"$f":"UPPER(IFERROR(VLOOKUP(ROW(I37)-ROW(I$10)+1,'DD TABLE'!$B$2:$C$47,2,FALSE),\"\"))","v":""},null,{"$f":"IFERROR(VLOOKUP(ROW(H37)-ROW(H$10)+1,'DD TABLE'!$B$2:$H$48,3,FALSE),\"\")","v":""},{"$f":"IFERROR(VLOOKUP(ROW(I37)-ROW(I$10)+1,'DD TABLE'!$B$2:$H$47,4,FALSE),\"\")","v":""}]
[{"$f":"UPPER(IFERROR(VLOOKUP(ROW(I38)-ROW(I$10)+1,'DD TABLE'!$B$2:$C$47,2,FALSE),\"\"))","v":""},null,{"$f":"IFERROR(VLOOKUP(ROW(H38)-ROW(H$10)+1,'DD TABLE'!$B$2:$H$48,3,FALSE),\"\")","v":""},{"$f":"IFERROR(VLOOKUP(ROW(I38)-ROW(I$10)+1,'DD TABLE'!$B$2:$H$47,4,FALSE),\"\")","v":""}]
[{"$f":"UPPER(IFERROR(VLOOKUP(ROW(I39)-ROW(I$10)+1,'DD TABLE'!$B$2:$C$47,2,FALSE),\"\"))","v":""},null,{"$f":"IFERROR(VLOOKUP(ROW(H39)-ROW(H$10)+1,'DD TABLE'!$B$2:$H$48,3,FALSE),\"\")","v":""},{"$f":"IFERROR(VLOOKUP(ROW(I39)-ROW(I$10)+1,'DD TABLE'!$B$2:$H$47,4,FALSE),\"\")","v":""}]
[{"$f":"UPPER(IFERROR(VLOOKUP(ROW(I40)-ROW(I$10)+1,'DD TABLE'!$B$2:$C$47,2,FALSE),\"\"))","v":""},null,{"$f":"IFERROR(VLOOKUP(ROW(H40)-ROW(H$10)+1,'DD TABLE'!$B$2:$H$48,3,FALSE),\"\")","v":""},{"$f":"IFERROR(VLOOKUP(ROW(I40)-ROW(I$10)+1,'DD TABLE'!$B$2:$H$47,4,FALSE),\"\")","v":""}]
[{"$f":"UPPER(IFERROR(VLOOKUP(ROW(I41)-ROW(I$10)+1,'DD TABLE'!$B$2:$C$47,2,FALSE),\"\"))","v":""},null,{"$f":"IFERROR(VLOOKUP(ROW(H41)-ROW(H$10)+1,'DD TABLE'!$B$2:$H$48,3,FALSE),\"\")","v":""},{"$f":"IFERROR(VLOOKUP(ROW(I41)-ROW(I$10)+1,'DD TABLE'!$B$2:$H$47,4,FALSE),\"\")","v":""}]
[{"$f":"UPPER(IFERROR(VLOOKUP(ROW(I42)-ROW(I$10)+1,'DD TABLE'!$B$2:$C$47,2,FALSE),\"\"))","v":""},null,{"$f":"IFERROR(VLOOKUP(ROW(H42)-ROW(H$10)+1,'DD TABLE'!$B$2:$H$48,3,FALSE),\"\")","v":""},{"$f":"IFERROR(VLOOKUP(ROW(I42)-ROW(I$10)+1,'DD TABLE'!$B$2:$H$47,4,FALSE),\"\")","v":""}]
[{"$f":"UPPER(IFERROR(VLOOKUP(ROW(I43)-ROW(I$10)+1,'DD TABLE'!$B$2:$C$47,2,FALSE),\"\"))","v":""},null,{"$f":"IFERROR(VLOOKUP(ROW(H43)-ROW(H$10)+1,'DD TABLE'!$B$2:$H$48,3,FALSE),\"\")","v":""},{"$f":"IFERROR(VLOOKUP(ROW(I43)-ROW(I$10)+1,'DD TABLE'!$B$2:$H$47,4,FALSE),\"\")","v":""}]
[{"$f":"UPPER(IFERROR(VLOOKUP(ROW(I44)-ROW(I$10)+1,'DD TABLE'!$B$2:$C$47,2,FALSE),\"\"))","v":""},null,{"$f":"IFERROR(VLOOKUP(ROW(H44)-ROW(H$10)+1,'DD TABLE'!$B$2:$H$48,3,FALSE),\"\")","v":""},{"$f":"IFERROR(VLOOKUP(ROW(I44)-ROW(I$10)+1,'DD TABLE'!$B$2:$H$47,4,FALSE),\"\")","v":""}]
[{"$f":"UPPER(IFERROR(VLOOKUP(ROW(I45)-ROW(I$10)+1,'DD TABLE'!$B$2:$C$47,2,FALSE),\"\"))","v":""},null,{"$f":"IFERROR(VLOOKUP(ROW(H45)-ROW(H$10)+1,'DD TABLE'!$B$2:$H$48,3,FALSE),\"\")","v":""},{"$f":"IFERROR(VLOOKUP(ROW(I45)-ROW(I$10)+1,'DD TABLE'!$B$2:$H$47,4,FALSE),\"\")","v":""}]
[{"$f":"UPPER(IFERROR(VLOOKUP(ROW(I46)-ROW(I$10)+1,'DD TABLE'!$B$2:$C$47,2,FALSE),\"\"))","v":""},null,{"$f":"IFERROR(VLOOKUP(ROW(H46)-ROW(H$10)+1,'DD TABLE'!$B$2:$H$48,3,FALSE),\"\")","v":""},{"$f":"IFERROR(VLOOKUP(ROW(I46)-ROW(I$10)+1,'DD TABLE'!$B$2:$H$47,4,FALSE),\"\")","v":""}]
[{"$f":"UPPER(IFERROR(VLOOKUP(ROW(I47)-ROW(I$10)+1,'DD TABLE'!$B$2:$C$47,2,FALSE),\"\"))","v":""},null,{"$f":"IFERROR(VLOOKUP(ROW(H47)-ROW(H$10)+1,'DD TABLE'!$B$2:$H$48,3,FALSE),\"\")","v":""},{"$f":"IFERROR(VLOOKUP(ROW(I47)-ROW(I$10)+1,'DD TABLE'!$B$2:$H$47,4,FALSE),\"\")","v":""}]
[{"$f":"UPPER(IFERROR(VLOOKUP(ROW(I48)-ROW(I$10)+1,'DD TABLE'!$B$2:$C$47,2,FALSE),\"\"))","v":""},null,{"$f":"IFERROR(VLOOKUP(ROW(H48)-ROW(H$10)+1,'DD TABLE'!$B$2:$H$48,3,FALSE),\"\")","v":""},{"$f":"IFERROR(VLOOKUP(ROW(I48)-ROW(I$10)+1,'DD TABLE'!$B$2:$H$47,4,FALSE),\"\")","v":""}]
[{"$f":"UPPER(IFERROR(VLOOKUP(ROW(I49)-ROW(I$10)+1,'DD TABLE'!$B$2:$C$47,2,FALSE),\"\"))","v":""},null,{"$f":"IFERROR(VLOOKUP(ROW(H49)-ROW(H$10)+1,'DD TABLE'!$B$2:$H$48,3,FALSE),\"\")","v":""},{"$f":"IFERROR(VLOOKUP(ROW(I49)-ROW(I$10)+1,'DD TABLE'!$B$2:$H$47,4,FALSE),\"\")","v":""}]
[{"$f":"UPPER(IFERROR(VLOOKUP(ROW(I50)-ROW(I$10)+1,'DD TABLE'!$B$2:$C$47,2,FALSE),\"\"))","v":""},null,{"$f":"IFERROR(VLOOKUP(ROW(H50)-ROW(H$10)+1,'DD TABLE'!$B$2:$H$48,3,FALSE),\"\")","v":""},{"$f":"IFERROR(VLOOKUP(ROW(I50)-ROW(I$10)+1,'DD TABLE'!$B$2:$H$47,4,FALSE),\"\")","v":""}]

{"sheet":"CD Checklist","index":6,"n_rows":50,"n_cols":8,"rows_kept":50,"cut":false,"hidden":false,"merged":[[0,0,0,4]]}
["PROJECT SUSTAINABILITY CHECKLIST - Construction Documents"]
[]
[{"$f":"\"Project Name:         \"&'Project Information'!D14","v":"Project Name:         "}]
[{"$f":"\"Project Number:     \"&'Project Information'!D13","v":"Project Number:     "}]
[{"$f":"\"Project Manager:   \"&'Project Information'!D19","v":"Project Manager:   "}]
[{"$f":"\"Project Type:           \"&IFERROR(LEFT('Project Information'!$D$22,SEARCH(\"~*\",'Project Information'!$D$22)-1),'Project Information'!$D$22)","v":"Project Type:           Renovation"}]
["Checklist Completion Date:"]
[]
["CATEGORY","COMPLETED?","SECTION","REQUIREMENT ","NOTES","Task Completed by ","Task\n Reviewed by ","Task Approved by "]
[{"$f":"UPPER(IFERROR(VLOOKUP(ROW(I10)-ROW(I$10)+1,'CD TABLE'!$B$2:$C$48,2,FALSE),\"\"))","v":"GENERAL"},null,{"$f":"IFERROR(VLOOKUP(ROW(H10)-ROW(H$10)+1,'CD TABLE'!$B$2:$H$48,3,FALSE),\"\")","v":"00 00 19.1.1 "},{"$f":"IFERROR(VLOOKUP(ROW(I10)-ROW(I$10)+1,'CD TABLE'!$B$2:$H$48,4,FALSE),\"\")","v":"Submit updated Sustainability Applicability Matrix through eBuilder (if applicable)"},null,{"$f":"IFERROR(VLOOKUP(ROW(I10)-ROW(I$10)+1,'CD TABLE'!$B$2:$H$48,5,FALSE),\"\")","v":"PM"},{"$f":"IFERROR(VLOOKUP(ROW(I10)-ROW(I$10)+1,'CD TABLE'!$B$2:$H$48,6,FALSE),\"\")","v":0},{"$f":"IFERROR(VLOOKUP(ROW(I10)-ROW(I$10)+1,'CD TABLE'!$B$2:$H$48,7,FALSE),\"\")","v":0}]
[{"$f":"UPPER(IFERROR(VLOOKUP(ROW(I11)-ROW(I$10)+1,'CD TABLE'!$B$2:$C$48,2,FALSE),\"\"))","v":"GENERAL"},null,{"$f":"IFERROR(VLOOKUP(ROW(H11)-ROW(H$10)+1,'CD TABLE'!$B$2:$H$48,3,FALSE),\"\")","v":"00 00 17.1.2"},{"$f":"IFERROR(VLOOKUP(ROW(I11)-ROW(I$10)+1,'CD TABLE'!$B$2:$H$48,4,FALSE),\"\")","v":"Submit updated OPR through eBuilder (if applicable)"},null,{"$f":"IFERROR(VLOOKUP(ROW(I12)-ROW(I$11)+1,'CD TABLE'!$B$2:$H$48,5,FALSE),\"\")","v":0},{"$f":"IFERROR(VLOOKUP(ROW(I12)-ROW(I$11)+1,'CD TABLE'!$B$2:$H$48,6,FALSE),\"\")","v":0},{"$f":"IFERROR(VLOOKUP(ROW(I12)-ROW(I$11)+1,'CD TABLE'!$B$2:$H$48,7,FALSE),\"\")","v":0}]
[{"$f":"UPPER(IFERROR(VLOOKUP(ROW(I12)-ROW(I$10)+1,'CD TABLE'!$B$2:$C$48,2,FALSE),\"\"))","v":""},null,{"$f":"IFERROR(VLOOKUP(ROW(H12)-ROW(H$10)+1,'CD TABLE'!$B$2:$H$48,3,FALSE),\"\")","v":0},{"$f":"IFERROR(VLOOKUP(ROW(I12)-ROW(I$10)+1,'CD TABLE'!$B$2:$H$48,4,FALSE),\"\")","v":0},null,{"$f":"IFERROR(VLOOKUP(ROW(I13)-ROW(I$11)+1,'CD TABLE'!$B$2:$H$48,5,FALSE),\"\")","v":0},{"$f":"IFERROR(VLOOKUP(ROW(I13)-ROW(I$11)+1,'CD TABLE'!$B$2:$H$48,6,FALSE),\"\")","v":0},{"$f":"IFERROR(VLOOKUP(ROW(I13)-ROW(I$11)+1,'CD TABLE'!$B$2:$H$48,7,FALSE),\"\")","v":0}]
[{"$f":"UPPER(IFERROR(VLOOKUP(ROW(I13)-ROW(I$10)+1,'CD TABLE'!$B$2:$C$48,2,FALSE),\"\"))","v":""},null,{"$f":"IFERROR(VLOOKUP(ROW(H13)-ROW(H$10)+1,'CD TABLE'!$B$2:$H$48,3,FALSE),\"\")","v":""},{"$f":"IFERROR(VLOOKUP(ROW(I13)-ROW(I$10)+1,'CD TABLE'!$B$2:$H$48,4,FALSE),\"\")","v":""},null,{"$f":"IFERROR(VLOOKUP(ROW(I14)-ROW(I$11)+1,'CD TABLE'!$B$2:$H$48,5,FALSE),\"\")","v":""},{"$f":"IFERROR(VLOOKUP(ROW(I14)-ROW(I$11)+1,'CD TABLE'!$B$2:$H$48,6,FALSE),\"\")","v":""},{"$f":"IFERROR(VLOOKUP(ROW(I14)-ROW(I$11)+1,'CD TABLE'!$B$2:$H$48,7,FALSE),\"\")","v":""}]
[{"$f":"UPPER(IFERROR(VLOOKUP(ROW(I14)-ROW(I$10)+1,'CD TABLE'!$B$2:$C$48,2,FALSE),\"\"))","v":""},null,{"$f":"IFERROR(VLOOKUP(ROW(H14)-ROW(H$10)+1,'CD TABLE'!$B$2:$H$48,3,FALSE),\"\")","v":""},{"$f":"IFERROR(VLOOKUP(ROW(I14)-ROW(I$10)+1,'CD TABLE'!$B$2:$H$48,4,FALSE),\"\")","v":""},null,{"$f":"IFERROR(VLOOKUP(ROW(I15)-ROW(I$11)+1,'CD TABLE'!$B$2:$H$48,5,FALSE),\"\")","v":""},{"$f":"IFERROR(VLOOKUP(ROW(I15)-ROW(I$11)+1,'CD TABLE'!$B$2:$H$48,6,FALSE),\"\")","v":""},{"$f":"IFERROR(VLOOKUP(ROW(I15)-ROW(I$11)+1,'CD TABLE'!$B$2:$H$48,7,FALSE),\"\")","v":""}]
[{"$f":"UPPER(IFERROR(VLOOKUP(ROW(I15)-ROW(I$10)+1,'CD TABLE'!$B$2:$C$48,2,FALSE),\"\"))","v":""},null,{"$f":"IFERROR(VLOOKUP(ROW(H15)-ROW(H$10)+1,'CD TABLE'!$B$2:$H$48,3,FALSE),\"\")","v":""},{"$f":"IFERROR(VLOOKUP(ROW(I15)-ROW(I$10)+1,'CD TABLE'!$B$2:$H$48,4,FALSE),\"\")","v":""},null,{"$f":"IFERROR(VLOOKUP(ROW(I16)-ROW(I$11)+1,'CD TABLE'!$B$2:$H$48,5,FALSE),\"\")","v":""},{"$f":"IFERROR(VLOOKUP(ROW(I16)-ROW(I$11)+1,'CD TABLE'!$B$2:$H$48,6,FALSE),\"\")","v":""},{"$f":"IFERROR(VLOOKUP(ROW(I16)-ROW(I$11)+1,'CD TABLE'!$B$2:$H$48,7,FALSE),\"\")","v":""}]
[{"$f":"UPPER(IFERROR(VLOOKUP(ROW(I16)-ROW(I$10)+1,'CD TABLE'!$B$2:$C$48,2,FALSE),\"\"))","v":""},null,{"$f":"IFERROR(VLOOKUP(ROW(H16)-ROW(H$10)+1,'CD TABLE'!$B$2:$H$48,3,FALSE),\"\")","v":""},{"$f":"IFERROR(VLOOKUP(ROW(I16)-ROW(I$10)+1,'CD TABLE'!$B$2:$H$48,4,FALSE),\"\")","v":""},null,{"$f":"IFERROR(VLOOKUP(ROW(I17)-ROW(I$11)+1,'CD TABLE'!$B$2:$H$48,5,FALSE),\"\")","v":""},{"$f":"IFERROR(VLOOKUP(ROW(I17)-ROW(I$11)+1,'CD TABLE'!$B$2:$H$48,6,FALSE),\"\")","v":""},{"$f":"IFERROR(VLOOKUP(ROW(I17)-ROW(I$11)+1,'CD TABLE'!$B$2:$H$48,7,FALSE),\"\")","v":""}]
[{"$f":"UPPER(IFERROR(VLOOKUP(ROW(I17)-ROW(I$10)+1,'CD TABLE'!$B$2:$C$48,2,FALSE),\"\"))","v":""},null,{"$f":"IFERROR(VLOOKUP(ROW(H17)-ROW(H$10)+1,'CD TABLE'!$B$2:$H$48,3,FALSE),\"\")","v":""},{"$f":"IFERROR(VLOOKUP(ROW(I17)-ROW(I$10)+1,'CD TABLE'!$B$2:$H$48,4,FALSE),\"\")","v":""},null,{"$f":"IFERROR(VLOOKUP(ROW(I18)-ROW(I$11)+1,'CD TABLE'!$B$2:$H$48,5,FALSE),\"\")","v":""},{"$f":"IFERROR(VLOOKUP(ROW(I18)-ROW(I$11)+1,'CD TABLE'!$B$2:$H$48,6,FALSE),\"\")","v":""},{"$f":"IFERROR(VLOOKUP(ROW(I18)-ROW(I$11)+1,'CD TABLE'!$B$2:$H$48,7,FALSE),\"\")","v":""}]
[{"$f":"UPPER(IFERROR(VLOOKUP(ROW(I18)-ROW(I$10)+1,'CD TABLE'!$B$2:$C$48,2,FALSE),\"\"))","v":""},null,{"$f":"IFERROR(VLOOKUP(ROW(H18)-ROW(H$10)+1,'CD TABLE'!$B$2:$H$48,3,FALSE),\"\")","v":""},{"$f":"IFERROR(VLOOKUP(ROW(I18)-ROW(I$10)+1,'CD TABLE'!$B$2:$H$48,4,FALSE),\"\")","v":""},null,{"$f":"IFERROR(VLOOKUP(ROW(I19)-ROW(I$11)+1,'CD TABLE'!$B$2:$H$48,5,FALSE),\"\")","v":""},{"$f":"IFERROR(VLOOKUP(ROW(I19)-ROW(I$11)+1,'CD TABLE'!$B$2:$H$48,6,FALSE),\"\")","v":""},{"$f":"IFERROR(VLOOKUP(ROW(I19)-ROW(I$11)+1,'CD TABLE'!$B$2:$H$48,7,FALSE),\"\")","v":""}]
[{"$f":"UPPER(IFERROR(VLOOKUP(ROW(I19)-ROW(I$10)+1,'CD TABLE'!$B$2:$C$48,2,FALSE),\"\"))","v":""},null,{"$f":"IFERROR(VLOOKUP(ROW(H19)-ROW(H$10)+1,'CD TABLE'!$B$2:$H$48,3,FALSE),\"\")","v":""},{"$f":"IFERROR(VLOOKUP(ROW(I19)-ROW(I$10)+1,'CD TABLE'!$B$2:$H$48,4,FALSE),\"\")","v":""},null,{"$f":"IFERROR(VLOOKUP(ROW(I20)-ROW(I$11)+1,'CD TABLE'!$B$2:$H$48,5,FALSE),\"\")","v":""},{"$f":"IFERROR(VLOOKUP(ROW(I20)-ROW(I$11)+1,'CD TABLE'!$B$2:$H$48,6,FALSE),\"\")","v":""},{"$f":"IFERROR(VLOOKUP(ROW(I20)-ROW(I$11)+1,'CD TABLE'!$B$2:$H$48,7,FALSE),\"\")","v":""}]
[{"$f":"UPPER(IFERROR(VLOOKUP(ROW(I20)-ROW(I$10)+1,'CD TABLE'!$B$2:$C$48,2,FALSE),\"\"))","v":""},null,{"$f":"IFERROR(VLOOKUP(ROW(H20)-ROW(H$10)+1,'CD TABLE'!$B$2:$H$48,3,FALSE),\"\")","v":""},{"$f":"IFERROR(VLOOKUP(ROW(I20)-ROW(I$10)+1,'CD TABLE'!$B$2:$H$48,4,FALSE),\"\")","v":""},null,{"$f":"IFERROR(VLOOKUP(ROW(I21)-ROW(I$11)+1,'CD TABLE'!$B$2:$H$48,5,FALSE),\"\")","v":""},{"$f":"IFERROR(VLOOKUP(ROW(I21)-ROW(I$11)+1,'CD TABLE'!$B$2:$H$48,6,FALSE),\"\")","v":""},{"$f":"IFERROR(VLOOKUP(ROW(I21)-ROW(I$11)+1,'CD TABLE'!$B$2:$H$48,7,FALSE),\"\")","v":""}]
[{"$f":"UPPER(IFERROR(VLOOKUP(ROW(I21)-ROW(I$10)+1,'CD TABLE'!$B$2:$C$48,2,FALSE),\"\"))","v":""},null,{"$f":"IFERROR(VLOOKUP(ROW(H21)-ROW(H$10)+1,'CD TABLE'!$B$2:$H$48,3,FALSE),\"\")","v":""},{"$f":"IFERROR(VLOOKUP(ROW(I21)-ROW(I$10)+1,'CD TABLE'!$B$2:$H$48,4,FALSE),\"\")","v":""},null,{"$f":"IFERROR(VLOOKUP(ROW(I22)-ROW(I$11)+1,'CD TABLE'!$B$2:$H$48,5,FALSE),\"\")","v":""},{"$f":"IFERROR(VLOOKUP(ROW(I22)-ROW(I$11)+1,'CD TABLE'!$B$2:$H$48,6,FALSE),\"\")","v":""},{"$f":"IFERROR(VLOOKUP(ROW(I22)-ROW(I$11)+1,'CD TABLE'!$B$2:$H$48,7,FALSE),\"\")","v":""}]
[{"$f":"UPPER(IFERROR(VLOOKUP(ROW(I22)-ROW(I$10)+1,'CD TABLE'!$B$2:$C$48,2,FALSE),\"\"))","v":""},null,{"$f":"IFERROR(VLOOKUP(ROW(H22)-ROW(H$10)+1,'CD TABLE'!$B$2:$H$48,3,FALSE),\"\")","v":""},{"$f":"IFERROR(VLOOKUP(ROW(I22)-ROW(I$10)+1,'CD TABLE'!$B$2:$H$48,4,FALSE),\"\")","v":""},null,{"$f":"IFERROR(VLOOKUP(ROW(I23)-ROW(I$11)+1,'CD TABLE'!$B$2:$H$48,5,FALSE),\"\")","v":""},{"$f":"IFERROR(VLOOKUP(ROW(I23)-ROW(I$11)+1,'CD TABLE'!$B$2:$H$48,6,FALSE),\"\")","v":""},{"$f":"IFERROR(VLOOKUP(ROW(I23)-ROW(I$11)+1,'CD TABLE'!$B$2:$H$48,7,FALSE),\"\")","v":""}]
[{"$f":"UPPER(IFERROR(VLOOKUP(ROW(I23)-ROW(I$10)+1,'CD TABLE'!$B$2:$C$48,2,FALSE),\"\"))","v":""},null,{"$f":"IFERROR(VLOOKUP(ROW(H23)-ROW(H$10)+1,'CD TABLE'!$B$2:$H$48,3,FALSE),\"\")","v":""},{"$f":"IFERROR(VLOOKUP(ROW(I23)-ROW(I$10)+1,'CD TABLE'!$B$2:$H$48,4,FALSE),\"\")","v":""},null,{"$f":"IFERROR(VLOOKUP(ROW(I24)-ROW(I$11)+1,'CD TABLE'!$B$2:$H$48,5,FALSE),\"\")","v":""},{"$f":"IFERROR(VLOOKUP(ROW(I24)-ROW(I$11)+1,'CD TABLE'!$B$2:$H$48,6,FALSE),\"\")","v":""},{"$f":"IFERROR(VLOOKUP(ROW(I24)-ROW(I$11)+1,'CD TABLE'!$B$2:$H$48,7,FALSE),\"\")","v":""}]
[{"$f":"UPPER(IFERROR(VLOOKUP(ROW(I24)-ROW(I$10)+1,'CD TABLE'!$B$2:$C$48,2,FALSE),\"\"))","v":""},null,{"$f":"IFERROR(VLOOKUP(ROW(H24)-ROW(H$10)+1,'CD TABLE'!$B$2:$H$48,3,FALSE),\"\")","v":""},{"$f":"IFERROR(VLOOKUP(ROW(I24)-ROW(I$10)+1,'CD TABLE'!$B$2:$H$48,4,FALSE),\"\")","v":""},null,{"$f":"IFERROR(VLOOKUP(ROW(I25)-ROW(I$11)+1,'CD TABLE'!$B$2:$H$48,5,FALSE),\"\")","v":""},{"$f":"IFERROR(VLOOKUP(ROW(I25)-ROW(I$11)+1,'CD TABLE'!$B$2:$H$48,6,FALSE),\"\")","v":""},{"$f":"IFERROR(VLOOKUP(ROW(I25)-ROW(I$11)+1,'CD TABLE'!$B$2:$H$48,7,FALSE),\"\")","v":""}]
[{"$f":"UPPER(IFERROR(VLOOKUP(ROW(I25)-ROW(I$10)+1,'CD TABLE'!$B$2:$C$48,2,FALSE),\"\"))","v":""},null,{"$f":"IFERROR(VLOOKUP(ROW(H25)-ROW(H$10)+1,'CD TABLE'!$B$2:$H$48,3,FALSE),\"\")","v":""},{"$f":"IFERROR(VLOOKUP(ROW(I25)-ROW(I$10)+1,'CD TABLE'!$B$2:$H$48,4,FALSE),\"\")","v":""},null,{"$f":"IFERROR(VLOOKUP(ROW(I26)-ROW(I$11)+1,'CD TABLE'!$B$2:$H$48,5,FALSE),\"\")","v":""},{"$f":"IFERROR(VLOOKUP(ROW(I26)-ROW(I$11)+1,'CD TABLE'!$B$2:$H$48,6,FALSE),\"\")","v":""},{"$f":"IFERROR(VLOOKUP(ROW(I26)-ROW(I$11)+1,'CD TABLE'!$B$2:$H$48,7,FALSE),\"\")","v":""}]
[{"$f":"UPPER(IFERROR(VLOOKUP(ROW(I26)-ROW(I$10)+1,'CD TABLE'!$B$2:$C$48,2,FALSE),\"\"))","v":""},null,{"$f":"IFERROR(VLOOKUP(ROW(H26)-ROW(H$10)+1,'CD TABLE'!$B$2:$H$48,3,FALSE),\"\")","v":""},{"$f":"IFERROR(VLOOKUP(ROW(I26)-ROW(I$10)+1,'CD TABLE'!$B$2:$H$48,4,FALSE),\"\")","v":""},null,{"$f":"IFERROR(VLOOKUP(ROW(I27)-ROW(I$11)+1,'CD TABLE'!$B$2:$H$48,5,FALSE),\"\")","v":""},{"$f":"IFERROR(VLOOKUP(ROW(I27)-ROW(I$11)+1,'CD TABLE'!$B$2:$H$48,6,FALSE),\"\")","v":""},{"$f":"IFERROR(VLOOKUP(ROW(I27)-ROW(I$11)+1,'CD TABLE'!$B$2:$H$48,7,FALSE),\"\")","v":""}]
[{"$f":"UPPER(IFERROR(VLOOKUP(ROW(I27)-ROW(I$10)+1,'CD TABLE'!$B$2:$C$48,2,FALSE),\"\"))","v":""},null,{"$f":"IFERROR(VLOOKUP(ROW(H27)-ROW(H$10)+1,'CD TABLE'!$B$2:$H$48,3,FALSE),\"\")","v":""},{"$f":"IFERROR(VLOOKUP(ROW(I27)-ROW(I$10)+1,'CD TABLE'!$B$2:$H$48,4,FALSE),\"\")","v":""},null,{"$f":"IFERROR(VLOOKUP(ROW(I28)-ROW(I$11)+1,'CD TABLE'!$B$2:$H$48,5,FALSE),\"\")","v":""},{"$f":"IFERROR(VLOOKUP(ROW(I28)-ROW(I$11)+1,'CD TABLE'!$B$2:$H$48,6,FALSE),\"\")","v":""},{"$f":"IFERROR(VLOOKUP(ROW(I28)-ROW(I$11)+1,'CD TABLE'!$B$2:$H$48,7,FALSE),\"\")","v":""}]
[{"$f":"UPPER(IFERROR(VLOOKUP(ROW(I28)-ROW(I$10)+1,'CD TABLE'!$B$2:$C$48,2,FALSE),\"\"))","v":""},null,{"$f":"IFERROR(VLOOKUP(ROW(H28)-ROW(H$10)+1,'CD TABLE'!$B$2:$H$48,3,FALSE),\"\")","v":""},{"$f":"IFERROR(VLOOKUP(ROW(I28)-ROW(I$10)+1,'CD TABLE'!$B$2:$H$48,4,FALSE),\"\")","v":""},null,{"$f":"IFERROR(VLOOKUP(ROW(I29)-ROW(I$11)+1,'CD TABLE'!$B$2:$H$48,5,FALSE),\"\")","v":""},{"$f":"IFERROR(VLOOKUP(ROW(I29)-ROW(I$11)+1,'CD TABLE'!$B$2:$H$48,6,FALSE),\"\")","v":""},{"$f":"IFERROR(VLOOKUP(ROW(I29)-ROW(I$11)+1,'CD TABLE'!$B$2:$H$48,7,FALSE),\"\")","v":""}]
[{"$f":"UPPER(IFERROR(VLOOKUP(ROW(I29)-ROW(I$10)+1,'CD TABLE'!$B$2:$C$48,2,FALSE),\"\"))","v":""},null,{"$f":"IFERROR(VLOOKUP(ROW(H29)-ROW(H$10)+1,'CD TABLE'!$B$2:$H$48,3,FALSE),\"\")","v":""},{"$f":"IFERROR(VLOOKUP(ROW(I29)-ROW(I$10)+1,'CD TABLE'!$B$2:$H$48,4,FALSE),\"\")","v":""},null,{"$f":"IFERROR(VLOOKUP(ROW(I30)-ROW(I$11)+1,'CD TABLE'!$B$2:$H$48,5,FALSE),\"\")","v":""},{"$f":"IFERROR(VLOOKUP(ROW(I30)-ROW(I$11)+1,'CD TABLE'!$B$2:$H$48,6,FALSE),\"\")","v":""},{"$f":"IFERROR(VLOOKUP(ROW(I30)-ROW(I$11)+1,'CD TABLE'!$B$2:$H$48,7,FALSE),\"\")","v":""}]
[{"$f":"UPPER(IFERROR(VLOOKUP(ROW(I30)-ROW(I$10)+1,'CD TABLE'!$B$2:$C$48,2,FALSE),\"\"))","v":""},null,{"$f":"IFERROR(VLOOKUP(ROW(H30)-ROW(H$10)+1,'CD TABLE'!$B$2:$H$48,3,FALSE),\"\")","v":""},{"$f":"IFERROR(VLOOKUP(ROW(I30)-ROW(I$10)+1,'CD TABLE'!$B$2:$H$48,4,FALSE),\"\")","v":""},null,{"$f":"IFERROR(VLOOKUP(ROW(I31)-ROW(I$11)+1,'CD TABLE'!$B$2:$H$48,5,FALSE),\"\")","v":""},{"$f":"IFERROR(VLOOKUP(ROW(H41)-ROW(G$21)+1,'DD TABLE'!$B$2:$H$47,6,FALSE),\"\")","v":""},{"$f":"IFERROR(VLOOKUP(ROW(H41)-ROW(H$21)+1,'DD TABLE'!$B$2:$H$47,7,FALSE),\"\")","v":""}]
[{"$f":"UPPER(IFERROR(VLOOKUP(ROW(I31)-ROW(I$10)+1,'CD TABLE'!$B$2:$C$48,2,FALSE),\"\"))","v":""},null,{"$f":"IFERROR(VLOOKUP(ROW(H31)-ROW(H$10)+1,'CD TABLE'!$B$2:$H$48,3,FALSE),\"\")","v":""},{"$f":"IFERROR(VLOOKUP(ROW(I31)-ROW(I$10)+1,'CD TABLE'!$B$2:$H$48,4,FALSE),\"\")","v":""},null,{"$f":"IFERROR(VLOOKUP(ROW(I32)-ROW(I$11)+1,'CD TABLE'!$B$2:$H$48,5,FALSE),\"\")","v":""},{"$f":"IFERROR(VLOOKUP(ROW(H42)-ROW(G$21)+1,'DD TABLE'!$B$2:$H$47,6,FALSE),\"\")","v":""},{"$f":"IFERROR(VLOOKUP(ROW(H42)-ROW(H$21)+1,'DD TABLE'!$B$2:$H$47,7,FALSE),\"\")","v":""}]
[{"$f":"UPPER(IFERROR(VLOOKUP(ROW(I32)-ROW(I$10)+1,'CD TABLE'!$B$2:$C$48,2,FALSE),\"\"))","v":""},null,{"$f":"IFERROR(VLOOKUP(ROW(H32)-ROW(H$10)+1,'CD TABLE'!$B$2:$H$48,3,FALSE),\"\")","v":""},{"$f":"IFERROR(VLOOKUP(ROW(I32)-ROW(I$10)+1,'CD TABLE'!$B$2:$H$48,4,FALSE),\"\")","v":""}]
[{"$f":"UPPER(IFERROR(VLOOKUP(ROW(I33)-ROW(I$10)+1,'CD TABLE'!$B$2:$C$48,2,FALSE),\"\"))","v":""},null,{"$f":"IFERROR(VLOOKUP(ROW(H33)-ROW(H$10)+1,'CD TABLE'!$B$2:$H$48,3,FALSE),\"\")","v":""},{"$f":"IFERROR(VLOOKUP(ROW(I33)-ROW(I$10)+1,'CD TABLE'!$B$2:$H$48,4,FALSE),\"\")","v":""}]
[{"$f":"UPPER(IFERROR(VLOOKUP(ROW(I34)-ROW(I$10)+1,'CD TABLE'!$B$2:$C$48,2,FALSE),\"\"))","v":""},null,{"$f":"IFERROR(VLOOKUP(ROW(H34)-ROW(H$10)+1,'CD TABLE'!$B$2:$H$48,3,FALSE),\"\")","v":""},{"$f":"IFERROR(VLOOKUP(ROW(I34)-ROW(I$10)+1,'CD TABLE'!$B$2:$H$48,4,FALSE),\"\")","v":""}]
[{"$f":"UPPER(IFERROR(VLOOKUP(ROW(I35)-ROW(I$10)+1,'CD TABLE'!$B$2:$C$48,2,FALSE),\"\"))","v":""},null,{"$f":"IFERROR(VLOOKUP(ROW(H35)-ROW(H$10)+1,'CD TABLE'!$B$2:$H$48,3,FALSE),\"\")","v":""},{"$f":"IFERROR(VLOOKUP(ROW(I35)-ROW(I$10)+1,'CD TABLE'!$B$2:$H$48,4,FALSE),\"\")","v":""}]
[{"$f":"UPPER(IFERROR(VLOOKUP(ROW(I36)-ROW(I$10)+1,'CD TABLE'!$B$2:$C$48,2,FALSE),\"\"))","v":""},null,{"$f":"IFERROR(VLOOKUP(ROW(H36)-ROW(H$10)+1,'CD TABLE'!$B$2:$H$48,3,FALSE),\"\")","v":""},{"$f":"IFERROR(VLOOKUP(ROW(I36)-ROW(I$10)+1,'CD TABLE'!$B$2:$H$48,4,FALSE),\"\")","v":""}]
[{"$f":"UPPER(IFERROR(VLOOKUP(ROW(I37)-ROW(I$10)+1,'CD TABLE'!$B$2:$C$48,2,FALSE),\"\"))","v":""},null,{"$f":"IFERROR(VLOOKUP(ROW(H37)-ROW(H$10)+1,'CD TABLE'!$B$2:$H$48,3,FALSE),\"\")","v":""},{"$f":"IFERROR(VLOOKUP(ROW(I37)-ROW(I$10)+1,'CD TABLE'!$B$2:$H$48,4,FALSE),\"\")","v":""}]
[{"$f":"UPPER(IFERROR(VLOOKUP(ROW(I38)-ROW(I$10)+1,'CD TABLE'!$B$2:$C$48,2,FALSE),\"\"))","v":""},null,{"$f":"IFERROR(VLOOKUP(ROW(H38)-ROW(H$10)+1,'CD TABLE'!$B$2:$H$48,3,FALSE),\"\")","v":""},{"$f":"IFERROR(VLOOKUP(ROW(I38)-ROW(I$10)+1,'CD TABLE'!$B$2:$H$48,4,FALSE),\"\")","v":""}]
[{"$f":"UPPER(IFERROR(VLOOKUP(ROW(I39)-ROW(I$10)+1,'CD TABLE'!$B$2:$C$48,2,FALSE),\"\"))","v":""},null,{"$f":"IFERROR(VLOOKUP(ROW(H39)-ROW(H$10)+1,'CD TABLE'!$B$2:$H$48,3,FALSE),\"\")","v":""},{"$f":"IFERROR(VLOOKUP(ROW(I39)-ROW(I$10)+1,'CD TABLE'!$B$2:$H$48,4,FALSE),\"\")","v":""}]
[{"$f":"UPPER(IFERROR(VLOOKUP(ROW(I40)-ROW(I$10)+1,'CD TABLE'!$B$2:$C$48,2,FALSE),\"\"))","v":""},null,{"$f":"IFERROR(VLOOKUP(ROW(H40)-ROW(H$10)+1,'CD TABLE'!$B$2:$H$48,3,FALSE),\"\")","v":""},{"$f":"IFERROR(VLOOKUP(ROW(I40)-ROW(I$10)+1,'CD TABLE'!$B$2:$H$48,4,FALSE),\"\")","v":""}]
[{"$f":"UPPER(IFERROR(VLOOKUP(ROW(I41)-ROW(I$10)+1,'CD TABLE'!$B$2:$C$48,2,FALSE),\"\"))","v":""},null,{"$f":"IFERROR(VLOOKUP(ROW(H41)-ROW(H$10)+1,'CD TABLE'!$B$2:$H$48,3,FALSE),\"\")","v":""},{"$f":"IFERROR(VLOOKUP(ROW(I41)-ROW(I$10)+1,'CD TABLE'!$B$2:$H$48,4,FALSE),\"\")","v":""}]
[{"$f":"UPPER(IFERROR(VLOOKUP(ROW(I42)-ROW(I$10)+1,'CD TABLE'!$B$2:$C$48,2,FALSE),\"\"))","v":""},null,{"$f":"IFERROR(VLOOKUP(ROW(H42)-ROW(H$10)+1,'CD TABLE'!$B$2:$H$48,3,FALSE),\"\")","v":""},{"$f":"IFERROR(VLOOKUP(ROW(I42)-ROW(I$10)+1,'CD TABLE'!$B$2:$H$48,4,FALSE),\"\")","v":""}]
[{"$f":"UPPER(IFERROR(VLOOKUP(ROW(I43)-ROW(I$10)+1,'CD TABLE'!$B$2:$C$48,2,FALSE),\"\"))","v":""},null,{"$f":"IFERROR(VLOOKUP(ROW(H43)-ROW(H$10)+1,'CD TABLE'!$B$2:$H$48,3,FALSE),\"\")","v":""},{"$f":"IFERROR(VLOOKUP(ROW(I43)-ROW(I$10)+1,'CD TABLE'!$B$2:$H$48,4,FALSE),\"\")","v":""}]
[{"$f":"UPPER(IFERROR(VLOOKUP(ROW(I44)-ROW(I$10)+1,'CD TABLE'!$B$2:$C$48,2,FALSE),\"\"))","v":""},null,{"$f":"IFERROR(VLOOKUP(ROW(H44)-ROW(H$10)+1,'CD TABLE'!$B$2:$H$48,3,FALSE),\"\")","v":""},{"$f":"IFERROR(VLOOKUP(ROW(I44)-ROW(I$10)+1,'CD TABLE'!$B$2:$H$48,4,FALSE),\"\")","v":""}]
[{"$f":"UPPER(IFERROR(VLOOKUP(ROW(I45)-ROW(I$10)+1,'CD TABLE'!$B$2:$C$48,2,FALSE),\"\"))","v":""},null,{"$f":"IFERROR(VLOOKUP(ROW(H45)-ROW(H$10)+1,'CD TABLE'!$B$2:$H$48,3,FALSE),\"\")","v":""},{"$f":"IFERROR(VLOOKUP(ROW(I45)-ROW(I$10)+1,'CD TABLE'!$B$2:$H$48,4,FALSE),\"\")","v":""}]
[{"$f":"UPPER(IFERROR(VLOOKUP(ROW(I46)-ROW(I$10)+1,'CD TABLE'!$B$2:$C$48,2,FALSE),\"\"))","v":""},null,{"$f":"IFERROR(VLOOKUP(ROW(H46)-ROW(H$10)+1,'CD TABLE'!$B$2:$H$48,3,FALSE),\"\")","v":""},{"$f":"IFERROR(VLOOKUP(ROW(I46)-ROW(I$10)+1,'CD TABLE'!$B$2:$H$48,4,FALSE),\"\")","v":""}]
[{"$f":"UPPER(IFERROR(VLOOKUP(ROW(I47)-ROW(I$10)+1,'CD TABLE'!$B$2:$C$48,2,FALSE),\"\"))","v":""},null,{"$f":"IFERROR(VLOOKUP(ROW(H47)-ROW(H$10)+1,'CD TABLE'!$B$2:$H$48,3,FALSE),\"\")","v":""},{"$f":"IFERROR(VLOOKUP(ROW(I47)-ROW(I$10)+1,'CD TABLE'!$B$2:$H$48,4,FALSE),\"\")","v":""}]
[{"$f":"UPPER(IFERROR(VLOOKUP(ROW(I48)-ROW(I$10)+1,'CD TABLE'!$B$2:$C$48,2,FALSE),\"\"))","v":""},null,{"$f":"IFERROR(VLOOKUP(ROW(H48)-ROW(H$10)+1,'CD TABLE'!$B$2:$H$48,3,FALSE),\"\")","v":""},{"$f":"IFERROR(VLOOKUP(ROW(I48)-ROW(I$10)+1,'CD TABLE'!$B$2:$H$48,4,FALSE),\"\")","v":""}]
[{"$f":"UPPER(IFERROR(VLOOKUP(ROW(I49)-ROW(I$10)+1,'CD TABLE'!$B$2:$C$48,2,FALSE),\"\"))","v":""},null,{"$f":"IFERROR(VLOOKUP(ROW(H49)-ROW(H$10)+1,'CD TABLE'!$B$2:$H$48,3,FALSE),\"\")","v":""},{"$f":"IFERROR(VLOOKUP(ROW(I49)-ROW(I$10)+1,'CD TABLE'!$B$2:$H$48,4,FALSE),\"\")","v":""}]
[null,null,{"$f":"IFERROR(VLOOKUP(ROW(H50)-ROW(H$10)+1,'CD TABLE'!$B$2:$H$48,3,FALSE),\"\")","v":""},{"$f":"IFERROR(VLOOKUP(ROW(I50)-ROW(I$10)+1,'CD TABLE'!$B$2:$H$48,4,FALSE),\"\")","v":""}]

{"sheet":"Const. Checklist","index":7,"n_rows":50,"n_cols":5,"rows_kept":50,"cut":false,"hidden":false,"merged":[[0,0,0,4]]}
["PROJECT SUSTAINABILITY CHECKLIST - Substantial Construction"]
[]
[{"$f":"\"Project Name:         \"&'Project Information'!D14","v":"Project Name:         "}]
[{"$f":"\"Project Number:     \"&'Project Information'!D13","v":"Project Number:     "}]
[{"$f":"\"Project Manager:   \"&'Project Information'!D19","v":"Project Manager:   "}]
[{"$f":"\"Project Type:           \"&IFERROR(LEFT('Project Information'!$D$22,SEARCH(\"~*\",'Project Information'!$D$22)-1),'Project Information'!$D$22)","v":"Project Type:           Renovation"}]
["Checklist Completion Date:"]
[]
["CATEGORY","COMPLETED?","SECTION","REQUIREMENT ","NOTES"]
[{"$f":"UPPER(IFERROR(VLOOKUP(ROW(F10)-ROW(F$10)+1,'Const. TABLE'!$B$2:$D$42,2,FALSE),\"\"))","v":"GENERAL"},null,{"$f":"IFERROR(VLOOKUP(ROW(E10)-ROW(E$10)+1,'Const. TABLE'!$B$2:$H$42,3,FALSE),\"\")","v":"00 00 20.1.1"},{"$f":"IFERROR(VLOOKUP(ROW(F10)-ROW(F$10)+1,'Const. TABLE'!$B$2:$H$42,4,FALSE),\"\")","v":"Submit updated Sustainability Applicability Matrix through eBuilder (if applicable)"}]
[{"$f":"UPPER(IFERROR(VLOOKUP(ROW(F12)-ROW(F$11)+1,'Const. TABLE'!$B$2:$D$42,2,FALSE),\"\"))","v":"GENERAL"},null,{"$f":"IFERROR(VLOOKUP(ROW(E11)-ROW(E$10)+1,'Const. TABLE'!$B$2:$H$42,3,FALSE),\"\")","v":"00 00 17.1.2"},{"$f":"IFERROR(VLOOKUP(ROW(F11)-ROW(F$10)+1,'Const. TABLE'!$B$2:$H$42,4,FALSE),\"\")","v":"Submit updated OPR through eBuilder (if applicable)"}]
[{"$f":"UPPER(IFERROR(VLOOKUP(ROW(F13)-ROW(F$11)+1,'Const. TABLE'!$B$2:$D$42,2,FALSE),\"\"))","v":""},null,{"$f":"IFERROR(VLOOKUP(ROW(E12)-ROW(E$10)+1,'Const. TABLE'!$B$2:$H$42,3,FALSE),\"\")","v":0},{"$f":"IFERROR(VLOOKUP(ROW(F12)-ROW(F$10)+1,'Const. TABLE'!$B$2:$H$42,4,FALSE),\"\")","v":0}]
[{"$f":"UPPER(IFERROR(VLOOKUP(ROW(F14)-ROW(F$11)+1,'Const. TABLE'!$B$2:$D$42,2,FALSE),\"\"))","v":""},null,{"$f":"IFERROR(VLOOKUP(ROW(E13)-ROW(E$10)+1,'Const. TABLE'!$B$2:$H$42,3,FALSE),\"\")","v":""},{"$f":"IFERROR(VLOOKUP(ROW(F13)-ROW(F$10)+1,'Const. TABLE'!$B$2:$H$42,4,FALSE),\"\")","v":""}]
[{"$f":"UPPER(IFERROR(VLOOKUP(ROW(F15)-ROW(F$11)+1,'Const. TABLE'!$B$2:$D$42,2,FALSE),\"\"))","v":""},null,{"$f":"IFERROR(VLOOKUP(ROW(E14)-ROW(E$10)+1,'Const. TABLE'!$B$2:$H$42,3,FALSE),\"\")","v":""},{"$f":"IFERROR(VLOOKUP(ROW(F14)-ROW(F$10)+1,'Const. TABLE'!$B$2:$H$42,4,FALSE),\"\")","v":""}]
[{"$f":"UPPER(IFERROR(VLOOKUP(ROW(F16)-ROW(F$11)+1,'Const. TABLE'!$B$2:$D$42,2,FALSE),\"\"))","v":""},null,{"$f":"IFERROR(VLOOKUP(ROW(E15)-ROW(E$10)+1,'Const. TABLE'!$B$2:$H$42,3,FALSE),\"\")","v":""},{"$f":"IFERROR(VLOOKUP(ROW(F15)-ROW(F$10)+1,'Const. TABLE'!$B$2:$H$42,4,FALSE),\"\")","v":""}]
[{"$f":"UPPER(IFERROR(VLOOKUP(ROW(F17)-ROW(F$11)+1,'Const. TABLE'!$B$2:$D$42,2,FALSE),\"\"))","v":""},null,{"$f":"IFERROR(VLOOKUP(ROW(E16)-ROW(E$10)+1,'Const. TABLE'!$B$2:$H$42,3,FALSE),\"\")","v":""},{"$f":"IFERROR(VLOOKUP(ROW(F16)-ROW(F$10)+1,'Const. TABLE'!$B$2:$H$42,4,FALSE),\"\")","v":""}]
[{"$f":"UPPER(IFERROR(VLOOKUP(ROW(F18)-ROW(F$11)+1,'Const. TABLE'!$B$2:$D$42,2,FALSE),\"\"))","v":""},null,{"$f":"IFERROR(VLOOKUP(ROW(E17)-ROW(E$10)+1,'Const. TABLE'!$B$2:$H$42,3,FALSE),\"\")","v":""},{"$f":"IFERROR(VLOOKUP(ROW(F17)-ROW(F$10)+1,'Const. TABLE'!$B$2:$H$42,4,FALSE),\"\")","v":""}]
[{"$f":"UPPER(IFERROR(VLOOKUP(ROW(F19)-ROW(F$11)+1,'Const. TABLE'!$B$2:$D$42,2,FALSE),\"\"))","v":""},null,{"$f":"IFERROR(VLOOKUP(ROW(E18)-ROW(E$10)+1,'Const. TABLE'!$B$2:$H$42,3,FALSE),\"\")","v":""},{"$f":"IFERROR(VLOOKUP(ROW(F18)-ROW(F$10)+1,'Const. TABLE'!$B$2:$H$42,4,FALSE),\"\")","v":""}]
[{"$f":"UPPER(IFERROR(VLOOKUP(ROW(F20)-ROW(F$11)+1,'Const. TABLE'!$B$2:$D$42,2,FALSE),\"\"))","v":""},null,{"$f":"IFERROR(VLOOKUP(ROW(E19)-ROW(E$10)+1,'Const. TABLE'!$B$2:$H$42,3,FALSE),\"\")","v":""},{"$f":"IFERROR(VLOOKUP(ROW(F19)-ROW(F$10)+1,'Const. TABLE'!$B$2:$H$42,4,FALSE),\"\")","v":""}]
[{"$f":"UPPER(IFERROR(VLOOKUP(ROW(F21)-ROW(F$11)+1,'Const. TABLE'!$B$2:$D$42,2,FALSE),\"\"))","v":""},null,{"$f":"IFERROR(VLOOKUP(ROW(E20)-ROW(E$10)+1,'Const. TABLE'!$B$2:$H$42,3,FALSE),\"\")","v":""},{"$f":"IFERROR(VLOOKUP(ROW(F20)-ROW(F$10)+1,'Const. TABLE'!$B$2:$H$42,4,FALSE),\"\")","v":""}]
[{"$f":"UPPER(IFERROR(VLOOKUP(ROW(F22)-ROW(F$11)+1,'Const. TABLE'!$B$2:$D$42,2,FALSE),\"\"))","v":""},null,{"$f":"IFERROR(VLOOKUP(ROW(E21)-ROW(E$10)+1,'Const. TABLE'!$B$2:$H$42,3,FALSE),\"\")","v":""},{"$f":"IFERROR(VLOOKUP(ROW(F21)-ROW(F$10)+1,'Const. TABLE'!$B$2:$H$42,4,FALSE),\"\")","v":""}]
[{"$f":"UPPER(IFERROR(VLOOKUP(ROW(F23)-ROW(F$11)+1,'Const. TABLE'!$B$2:$D$42,2,FALSE),\"\"))","v":""},null,{"$f":"IFERROR(VLOOKUP(ROW(E22)-ROW(E$10)+1,'Const. TABLE'!$B$2:$H$42,3,FALSE),\"\")","v":""},{"$f":"IFERROR(VLOOKUP(ROW(F22)-ROW(F$10)+1,'Const. TABLE'!$B$2:$H$42,4,FALSE),\"\")","v":""}]
[{"$f":"UPPER(IFERROR(VLOOKUP(ROW(F24)-ROW(F$11)+1,'Const. TABLE'!$B$2:$D$42,2,FALSE),\"\"))","v":""},null,{"$f":"IFERROR(VLOOKUP(ROW(E23)-ROW(E$10)+1,'Const. TABLE'!$B$2:$H$42,3,FALSE),\"\")","v":""},{"$f":"IFERROR(VLOOKUP(ROW(F23)-ROW(F$10)+1,'Const. TABLE'!$B$2:$H$42,4,FALSE),\"\")","v":""}]
[{"$f":"UPPER(IFERROR(VLOOKUP(ROW(F25)-ROW(F$11)+1,'Const. TABLE'!$B$2:$D$42,2,FALSE),\"\"))","v":""},null,{"$f":"IFERROR(VLOOKUP(ROW(E24)-ROW(E$10)+1,'Const. TABLE'!$B$2:$H$42,3,FALSE),\"\")","v":""},{"$f":"IFERROR(VLOOKUP(ROW(F24)-ROW(F$10)+1,'Const. TABLE'!$B$2:$H$42,4,FALSE),\"\")","v":""}]
[{"$f":"UPPER(IFERROR(VLOOKUP(ROW(F26)-ROW(F$11)+1,'Const. TABLE'!$B$2:$D$42,2,FALSE),\"\"))","v":""},null,{"$f":"IFERROR(VLOOKUP(ROW(E25)-ROW(E$10)+1,'Const. TABLE'!$B$2:$H$42,3,FALSE),\"\")","v":""},{"$f":"IFERROR(VLOOKUP(ROW(F25)-ROW(F$10)+1,'Const. TABLE'!$B$2:$H$42,4,FALSE),\"\")","v":""}]
[{"$f":"UPPER(IFERROR(VLOOKUP(ROW(F27)-ROW(F$11)+1,'Const. TABLE'!$B$2:$D$42,2,FALSE),\"\"))","v":""},null,{"$f":"IFERROR(VLOOKUP(ROW(E26)-ROW(E$10)+1,'Const. TABLE'!$B$2:$H$42,3,FALSE),\"\")","v":""},{"$f":"IFERROR(VLOOKUP(ROW(F26)-ROW(F$10)+1,'Const. TABLE'!$B$2:$H$42,4,FALSE),\"\")","v":""}]
[{"$f":"UPPER(IFERROR(VLOOKUP(ROW(F28)-ROW(F$11)+1,'Const. TABLE'!$B$2:$D$42,2,FALSE),\"\"))","v":""},null,{"$f":"IFERROR(VLOOKUP(ROW(E27)-ROW(E$10)+1,'Const. TABLE'!$B$2:$H$42,3,FALSE),\"\")","v":""},{"$f":"IFERROR(VLOOKUP(ROW(F27)-ROW(F$10)+1,'Const. TABLE'!$B$2:$H$42,4,FALSE),\"\")","v":""}]
[{"$f":"UPPER(IFERROR(VLOOKUP(ROW(F29)-ROW(F$11)+1,'Const. TABLE'!$B$2:$D$42,2,FALSE),\"\"))","v":""},null,{"$f":"IFERROR(VLOOKUP(ROW(E28)-ROW(E$10)+1,'Const. TABLE'!$B$2:$H$42,3,FALSE),\"\")","v":""},{"$f":"IFERROR(VLOOKUP(ROW(F28)-ROW(F$10)+1,'Const. TABLE'!$B$2:$H$42,4,FALSE),\"\")","v":""}]
[{"$f":"UPPER(IFERROR(VLOOKUP(ROW(F30)-ROW(F$11)+1,'Const. TABLE'!$B$2:$D$42,2,FALSE),\"\"))","v":""},null,{"$f":"IFERROR(VLOOKUP(ROW(E29)-ROW(E$10)+1,'Const. TABLE'!$B$2:$H$42,3,FALSE),\"\")","v":""},{"$f":"IFERROR(VLOOKUP(ROW(F29)-ROW(F$10)+1,'Const. TABLE'!$B$2:$H$42,4,FALSE),\"\")","v":""}]
[{"$f":"UPPER(IFERROR(VLOOKUP(ROW(F31)-ROW(F$11)+1,'Const. TABLE'!$B$2:$D$42,2,FALSE),\"\"))","v":""},null,{"$f":"IFERROR(VLOOKUP(ROW(E30)-ROW(E$10)+1,'Const. TABLE'!$B$2:$H$42,3,FALSE),\"\")","v":""},{"$f":"IFERROR(VLOOKUP(ROW(F30)-ROW(F$10)+1,'Const. TABLE'!$B$2:$H$42,4,FALSE),\"\")","v":""}]
[{"$f":"UPPER(IFERROR(VLOOKUP(ROW(F32)-ROW(F$11)+1,'Const. TABLE'!$B$2:$D$42,2,FALSE),\"\"))","v":""},null,{"$f":"IFERROR(VLOOKUP(ROW(E31)-ROW(E$10)+1,'Const. TABLE'!$B$2:$H$42,3,FALSE),\"\")","v":""},{"$f":"IFERROR(VLOOKUP(ROW(F31)-ROW(F$10)+1,'Const. TABLE'!$B$2:$H$42,4,FALSE),\"\")","v":""}]
[{"$f":"UPPER(IFERROR(VLOOKUP(ROW(F33)-ROW(F$11)+1,'Const. TABLE'!$B$2:$D$42,2,FALSE),\"\"))","v":""},null,{"$f":"IFERROR(VLOOKUP(ROW(E32)-ROW(E$10)+1,'Const. TABLE'!$B$2:$H$42,3,FALSE),\"\")","v":""},{"$f":"IFERROR(VLOOKUP(ROW(F32)-ROW(F$10)+1,'Const. TABLE'!$B$2:$H$42,4,FALSE),\"\")","v":""}]
[{"$f":"UPPER(IFERROR(VLOOKUP(ROW(F34)-ROW(F$11)+1,'Const. TABLE'!$B$2:$D$42,2,FALSE),\"\"))","v":""},null,{"$f":"IFERROR(VLOOKUP(ROW(E33)-ROW(E$10)+1,'Const. TABLE'!$B$2:$H$42,3,FALSE),\"\")","v":""},{"$f":"IFERROR(VLOOKUP(ROW(F33)-ROW(F$10)+1,'Const. TABLE'!$B$2:$H$42,4,FALSE),\"\")","v":""}]
[{"$f":"UPPER(IFERROR(VLOOKUP(ROW(F35)-ROW(F$11)+1,'Const. TABLE'!$B$2:$D$42,2,FALSE),\"\"))","v":""},null,{"$f":"IFERROR(VLOOKUP(ROW(E34)-ROW(E$10)+1,'Const. TABLE'!$B$2:$H$42,3,FALSE),\"\")","v":""},{"$f":"IFERROR(VLOOKUP(ROW(F34)-ROW(F$10)+1,'Const. TABLE'!$B$2:$H$42,4,FALSE),\"\")","v":""}]
[{"$f":"UPPER(IFERROR(VLOOKUP(ROW(F36)-ROW(F$11)+1,'Const. TABLE'!$B$2:$D$42,2,FALSE),\"\"))","v":""},null,{"$f":"IFERROR(VLOOKUP(ROW(E35)-ROW(E$10)+1,'Const. TABLE'!$B$2:$H$42,3,FALSE),\"\")","v":""},{"$f":"IFERROR(VLOOKUP(ROW(F35)-ROW(F$10)+1,'Const. TABLE'!$B$2:$H$42,4,FALSE),\"\")","v":""}]
[{"$f":"UPPER(IFERROR(VLOOKUP(ROW(F37)-ROW(F$11)+1,'Const. TABLE'!$B$2:$D$42,2,FALSE),\"\"))","v":""},null,{"$f":"IFERROR(VLOOKUP(ROW(E36)-ROW(E$10)+1,'Const. TABLE'!$B$2:$H$42,3,FALSE),\"\")","v":""},{"$f":"IFERROR(VLOOKUP(ROW(F36)-ROW(F$10)+1,'Const. TABLE'!$B$2:$H$42,4,FALSE),\"\")","v":""}]
[{"$f":"UPPER(IFERROR(VLOOKUP(ROW(F38)-ROW(F$11)+1,'Const. TABLE'!$B$2:$D$42,2,FALSE),\"\"))","v":""},null,{"$f":"IFERROR(VLOOKUP(ROW(E37)-ROW(E$10)+1,'Const. TABLE'!$B$2:$H$42,3,FALSE),\"\")","v":""},{"$f":"IFERROR(VLOOKUP(ROW(F37)-ROW(F$10)+1,'Const. TABLE'!$B$2:$H$42,4,FALSE),\"\")","v":""}]
[{"$f":"UPPER(IFERROR(VLOOKUP(ROW(F39)-ROW(F$11)+1,'Const. TABLE'!$B$2:$D$42,2,FALSE),\"\"))","v":""},null,{"$f":"IFERROR(VLOOKUP(ROW(E38)-ROW(E$10)+1,'Const. TABLE'!$B$2:$H$42,3,FALSE),\"\")","v":""},{"$f":"IFERROR(VLOOKUP(ROW(F38)-ROW(F$10)+1,'Const. TABLE'!$B$2:$H$42,4,FALSE),\"\")","v":""}]
[{"$f":"UPPER(IFERROR(VLOOKUP(ROW(F40)-ROW(F$11)+1,'Const. TABLE'!$B$2:$D$42,2,FALSE),\"\"))","v":""},null,{"$f":"IFERROR(VLOOKUP(ROW(E39)-ROW(E$10)+1,'Const. TABLE'!$B$2:$H$42,3,FALSE),\"\")","v":""},{"$f":"IFERROR(VLOOKUP(ROW(F39)-ROW(F$10)+1,'Const. TABLE'!$B$2:$H$42,4,FALSE),\"\")","v":""}]
[{"$f":"UPPER(IFERROR(VLOOKUP(ROW(F41)-ROW(F$11)+1,'Const. TABLE'!$B$2:$D$42,2,FALSE),\"\"))","v":""},null,{"$f":"IFERROR(VLOOKUP(ROW(E40)-ROW(E$10)+1,'Const. TABLE'!$B$2:$H$42,3,FALSE),\"\")","v":""},{"$f":"IFERROR(VLOOKUP(ROW(F40)-ROW(F$10)+1,'Const. TABLE'!$B$2:$H$42,4,FALSE),\"\")","v":""}]
[{"$f":"UPPER(IFERROR(VLOOKUP(ROW(F42)-ROW(F$11)+1,'Const. TABLE'!$B$2:$D$42,2,FALSE),\"\"))","v":""},null,{"$f":"IFERROR(VLOOKUP(ROW(E41)-ROW(E$10)+1,'Const. TABLE'!$B$2:$H$42,3,FALSE),\"\")","v":""},{"$f":"IFERROR(VLOOKUP(ROW(F41)-ROW(F$10)+1,'Const. TABLE'!$B$2:$H$42,4,FALSE),\"\")","v":""}]
[{"$f":"UPPER(IFERROR(VLOOKUP(ROW(F43)-ROW(F$11)+1,'Const. TABLE'!$B$2:$D$42,2,FALSE),\"\"))","v":""},null,{"$f":"IFERROR(VLOOKUP(ROW(E42)-ROW(E$10)+1,'Const. TABLE'!$B$2:$H$42,3,FALSE),\"\")","v":""},{"$f":"IFERROR(VLOOKUP(ROW(F42)-ROW(F$10)+1,'Const. TABLE'!$B$2:$H$42,4,FALSE),\"\")","v":""}]
[{"$f":"UPPER(IFERROR(VLOOKUP(ROW(F44)-ROW(F$11)+1,'Const. TABLE'!$B$2:$D$42,2,FALSE),\"\"))","v":""},null,{"$f":"IFERROR(VLOOKUP(ROW(E43)-ROW(E$10)+1,'Const. TABLE'!$B$2:$H$42,3,FALSE),\"\")","v":""},{"$f":"IFERROR(VLOOKUP(ROW(F43)-ROW(F$10)+1,'Const. TABLE'!$B$2:$H$42,4,FALSE),\"\")","v":""}]
[{"$f":"UPPER(IFERROR(VLOOKUP(ROW(F45)-ROW(F$11)+1,'Const. TABLE'!$B$2:$D$42,2,FALSE),\"\"))","v":""},null,{"$f":"IFERROR(VLOOKUP(ROW(E44)-ROW(E$10)+1,'Const. TABLE'!$B$2:$H$42,3,FALSE),\"\")","v":""},{"$f":"IFERROR(VLOOKUP(ROW(F44)-ROW(F$10)+1,'Const. TABLE'!$B$2:$H$42,4,FALSE),\"\")","v":""}]
[{"$f":"UPPER(IFERROR(VLOOKUP(ROW(F46)-ROW(F$11)+1,'Const. TABLE'!$B$2:$D$42,2,FALSE),\"\"))","v":""},null,{"$f":"IFERROR(VLOOKUP(ROW(E45)-ROW(E$10)+1,'Const. TABLE'!$B$2:$H$42,3,FALSE),\"\")","v":""},{"$f":"IFERROR(VLOOKUP(ROW(F45)-ROW(F$10)+1,'Const. TABLE'!$B$2:$H$42,4,FALSE),\"\")","v":""}]
[{"$f":"UPPER(IFERROR(VLOOKUP(ROW(F47)-ROW(F$11)+1,'Const. TABLE'!$B$2:$D$42,2,FALSE),\"\"))","v":""},null,{"$f":"IFERROR(VLOOKUP(ROW(E46)-ROW(E$10)+1,'Const. TABLE'!$B$2:$H$42,3,FALSE),\"\")","v":""},{"$f":"IFERROR(VLOOKUP(ROW(F46)-ROW(F$10)+1,'Const. TABLE'!$B$2:$H$42,4,FALSE),\"\")","v":""}]
[{"$f":"UPPER(IFERROR(VLOOKUP(ROW(F48)-ROW(F$11)+1,'Const. TABLE'!$B$2:$D$42,2,FALSE),\"\"))","v":""},null,{"$f":"IFERROR(VLOOKUP(ROW(E47)-ROW(E$10)+1,'Const. TABLE'!$B$2:$H$42,3,FALSE),\"\")","v":""},{"$f":"IFERROR(VLOOKUP(ROW(F47)-ROW(F$10)+1,'Const. TABLE'!$B$2:$H$42,4,FALSE),\"\")","v":""}]
[{"$f":"UPPER(IFERROR(VLOOKUP(ROW(F49)-ROW(F$11)+1,'Const. TABLE'!$B$2:$D$42,2,FALSE),\"\"))","v":""},null,{"$f":"IFERROR(VLOOKUP(ROW(E48)-ROW(E$10)+1,'Const. TABLE'!$B$2:$H$42,3,FALSE),\"\")","v":""},{"$f":"IFERROR(VLOOKUP(ROW(F48)-ROW(F$10)+1,'Const. TABLE'!$B$2:$H$42,4,FALSE),\"\")","v":""}]
[{"$f":"UPPER(IFERROR(VLOOKUP(ROW(F50)-ROW(F$11)+1,'Const. TABLE'!$B$2:$D$42,2,FALSE),\"\"))","v":""},null,{"$f":"IFERROR(VLOOKUP(ROW(E49)-ROW(E$10)+1,'Const. TABLE'!$B$2:$H$42,3,FALSE),\"\")","v":""},{"$f":"IFERROR(VLOOKUP(ROW(F49)-ROW(F$10)+1,'Const. TABLE'!$B$2:$H$42,4,FALSE),\"\")","v":""}]
[{"$f":"UPPER(IFERROR(VLOOKUP(ROW(F51)-ROW(F$11)+1,'Const. TABLE'!$B$2:$D$42,2,FALSE),\"\"))","v":""},null,{"$f":"IFERROR(VLOOKUP(ROW(E50)-ROW(E$10)+1,'Const. TABLE'!$B$2:$H$42,3,FALSE),\"\")","v":""},{"$f":"IFERROR(VLOOKUP(ROW(F50)-ROW(F$10)+1,'Const. TABLE'!$B$2:$H$42,4,FALSE),\"\")","v":""}]

{"sheet":"Post Const. Checklist","index":8,"n_rows":30,"n_cols":5,"rows_kept":30,"cut":false,"hidden":false,"merged":[[0,0,0,4]]}
["PROJECT SUSTAINABILITY CHECKLIST - Post Construction"]
[]
[{"$f":"\"Project Name:         \"&'Project Information'!D14","v":"Project Name:         "}]
[{"$f":"\"Project Number:     \"&'Project Information'!D13","v":"Project Number:     "}]
[{"$f":"\"Project Manager:   \"&'Project Information'!D19","v":"Project Manager:   "}]
[{"$f":"\"Project Type:           \"&IFERROR(LEFT('Project Information'!$D$22,SEARCH(\"~*\",'Project Information'!$D$22)-1),'Project Information'!$D$22)","v":"Project Type:           Renovation"}]
["Checklist Completion Date:"]
[]
["CATEGORY","COMPLETED?","SECTION","REQUIREMENT ","NOTES"]
[{"$f":"UPPER(IFERROR(VLOOKUP(ROW(F10)-ROW(F$10)+1,'Post Const. TABLE'!$B$2:$D$34,2,FALSE),\"\"))","v":"GENERAL"},null,{"$f":"IFERROR(VLOOKUP(ROW(E10)-ROW(E$10)+1,'Post Const. TABLE'!$B$2:$H$34,3,FALSE),\"\")","v":"00 00 21.1.1"},{"$f":"IFERROR(VLOOKUP(ROW(F10)-ROW(F$10)+1,'Post Const. TABLE'!$B$2:$H$34,4,FALSE),\"\")","v":"Submit update Sustainability Applicability Matrix (if applicable)"}]
[{"$f":"UPPER(IFERROR(VLOOKUP(ROW(F12)-ROW(F$11)+1,'Post Const. TABLE'!$B$2:$D$34,2,FALSE),\"\"))","v":"GENERAL"},null,{"$f":"IFERROR(VLOOKUP(ROW(E11)-ROW(E$10)+1,'Post Const. TABLE'!$B$2:$H$34,3,FALSE),\"\")","v":"00 00 17.1.2"},{"$f":"IFERROR(VLOOKUP(ROW(F11)-ROW(F$10)+1,'Post Const. TABLE'!$B$2:$H$34,4,FALSE),\"\")","v":"Submit updated OPR through eBuilder (if applicable)"}]
[{"$f":"UPPER(IFERROR(VLOOKUP(ROW(F13)-ROW(F$11)+1,'Post Const. TABLE'!$B$2:$D$34,2,FALSE),\"\"))","v":""},null,{"$f":"IFERROR(VLOOKUP(ROW(E12)-ROW(E$10)+1,'Post Const. TABLE'!$B$2:$H$34,3,FALSE),\"\")","v":0},{"$f":"IFERROR(VLOOKUP(ROW(F12)-ROW(F$10)+1,'Post Const. TABLE'!$B$2:$H$34,4,FALSE),\"\")","v":0}]
[{"$f":"UPPER(IFERROR(VLOOKUP(ROW(F14)-ROW(F$11)+1,'Post Const. TABLE'!$B$2:$D$34,2,FALSE),\"\"))","v":""},null,{"$f":"IFERROR(VLOOKUP(ROW(E13)-ROW(E$10)+1,'Post Const. TABLE'!$B$2:$H$34,3,FALSE),\"\")","v":""},{"$f":"IFERROR(VLOOKUP(ROW(F13)-ROW(F$10)+1,'Post Const. TABLE'!$B$2:$H$34,4,FALSE),\"\")","v":""}]
[{"$f":"UPPER(IFERROR(VLOOKUP(ROW(F15)-ROW(F$11)+1,'Post Const. TABLE'!$B$2:$D$34,2,FALSE),\"\"))","v":""},null,{"$f":"IFERROR(VLOOKUP(ROW(E14)-ROW(E$10)+1,'Post Const. TABLE'!$B$2:$H$34,3,FALSE),\"\")","v":""},{"$f":"IFERROR(VLOOKUP(ROW(F14)-ROW(F$10)+1,'Post Const. TABLE'!$B$2:$H$34,4,FALSE),\"\")","v":""}]
[{"$f":"UPPER(IFERROR(VLOOKUP(ROW(F16)-ROW(F$11)+1,'Post Const. TABLE'!$B$2:$D$34,2,FALSE),\"\"))","v":""},null,{"$f":"IFERROR(VLOOKUP(ROW(E15)-ROW(E$10)+1,'Post Const. TABLE'!$B$2:$H$34,3,FALSE),\"\")","v":""},{"$f":"IFERROR(VLOOKUP(ROW(F15)-ROW(F$10)+1,'Post Const. TABLE'!$B$2:$H$34,4,FALSE),\"\")","v":""}]
[{"$f":"UPPER(IFERROR(VLOOKUP(ROW(F17)-ROW(F$11)+1,'Post Const. TABLE'!$B$2:$D$34,2,FALSE),\"\"))","v":""},null,{"$f":"IFERROR(VLOOKUP(ROW(E16)-ROW(E$10)+1,'Post Const. TABLE'!$B$2:$H$34,3,FALSE),\"\")","v":""},{"$f":"IFERROR(VLOOKUP(ROW(F16)-ROW(F$10)+1,'Post Const. TABLE'!$B$2:$H$34,4,FALSE),\"\")","v":""}]
[{"$f":"UPPER(IFERROR(VLOOKUP(ROW(F18)-ROW(F$11)+1,'Post Const. TABLE'!$B$2:$D$34,2,FALSE),\"\"))","v":""},null,{"$f":"IFERROR(VLOOKUP(ROW(E17)-ROW(E$10)+1,'Post Const. TABLE'!$B$2:$H$34,3,FALSE),\"\")","v":""},{"$f":"IFERROR(VLOOKUP(ROW(F17)-ROW(F$10)+1,'Post Const. TABLE'!$B$2:$H$34,4,FALSE),\"\")","v":""}]
[{"$f":"UPPER(IFERROR(VLOOKUP(ROW(F19)-ROW(F$11)+1,'Post Const. TABLE'!$B$2:$D$34,2,FALSE),\"\"))","v":""},null,{"$f":"IFERROR(VLOOKUP(ROW(E18)-ROW(E$10)+1,'Post Const. TABLE'!$B$2:$H$34,3,FALSE),\"\")","v":""},{"$f":"IFERROR(VLOOKUP(ROW(F18)-ROW(F$10)+1,'Post Const. TABLE'!$B$2:$H$34,4,FALSE),\"\")","v":""}]
[{"$f":"UPPER(IFERROR(VLOOKUP(ROW(F20)-ROW(F$11)+1,'Post Const. TABLE'!$B$2:$D$34,2,FALSE),\"\"))","v":""},null,{"$f":"IFERROR(VLOOKUP(ROW(E19)-ROW(E$10)+1,'Post Const. TABLE'!$B$2:$H$34,3,FALSE),\"\")","v":""},{"$f":"IFERROR(VLOOKUP(ROW(F19)-ROW(F$10)+1,'Post Const. TABLE'!$B$2:$H$34,4,FALSE),\"\")","v":""}]
[{"$f":"UPPER(IFERROR(VLOOKUP(ROW(F21)-ROW(F$11)+1,'Post Const. TABLE'!$B$2:$D$34,2,FALSE),\"\"))","v":""},null,{"$f":"IFERROR(VLOOKUP(ROW(E20)-ROW(E$10)+1,'Post Const. TABLE'!$B$2:$H$34,3,FALSE),\"\")","v":""},{"$f":"IFERROR(VLOOKUP(ROW(F20)-ROW(F$10)+1,'Post Const. TABLE'!$B$2:$H$34,4,FALSE),\"\")","v":""}]
[{"$f":"UPPER(IFERROR(VLOOKUP(ROW(F22)-ROW(F$11)+1,'Post Const. TABLE'!$B$2:$D$34,2,FALSE),\"\"))","v":""},null,{"$f":"IFERROR(VLOOKUP(ROW(E21)-ROW(E$10)+1,'Post Const. TABLE'!$B$2:$H$34,3,FALSE),\"\")","v":""},{"$f":"IFERROR(VLOOKUP(ROW(F21)-ROW(F$10)+1,'Post Const. TABLE'!$B$2:$H$34,4,FALSE),\"\")","v":""}]
[{"$f":"UPPER(IFERROR(VLOOKUP(ROW(F23)-ROW(F$11)+1,'Post Const. TABLE'!$B$2:$D$34,2,FALSE),\"\"))","v":""},null,{"$f":"IFERROR(VLOOKUP(ROW(E22)-ROW(E$10)+1,'Post Const. TABLE'!$B$2:$H$34,3,FALSE),\"\")","v":""},{"$f":"IFERROR(VLOOKUP(ROW(F22)-ROW(F$10)+1,'Post Const. TABLE'!$B$2:$H$34,4,FALSE),\"\")","v":""}]
[{"$f":"UPPER(IFERROR(VLOOKUP(ROW(F24)-ROW(F$11)+1,'Post Const. TABLE'!$B$2:$D$34,2,FALSE),\"\"))","v":""},null,{"$f":"IFERROR(VLOOKUP(ROW(E23)-ROW(E$10)+1,'Post Const. TABLE'!$B$2:$H$34,3,FALSE),\"\")","v":""},{"$f":"IFERROR(VLOOKUP(ROW(F23)-ROW(F$10)+1,'Post Const. TABLE'!$B$2:$H$34,4,FALSE),\"\")","v":""}]
[{"$f":"UPPER(IFERROR(VLOOKUP(ROW(F25)-ROW(F$11)+1,'Post Const. TABLE'!$B$2:$D$34,2,FALSE),\"\"))","v":""},null,{"$f":"IFERROR(VLOOKUP(ROW(E24)-ROW(E$10)+1,'Post Const. TABLE'!$B$2:$H$34,3,FALSE),\"\")","v":""},{"$f":"IFERROR(VLOOKUP(ROW(F24)-ROW(F$10)+1,'Post Const. TABLE'!$B$2:$H$34,4,FALSE),\"\")","v":""}]
[{"$f":"UPPER(IFERROR(VLOOKUP(ROW(F26)-ROW(F$11)+1,'Post Const. TABLE'!$B$2:$D$34,2,FALSE),\"\"))","v":""},null,{"$f":"IFERROR(VLOOKUP(ROW(E25)-ROW(E$10)+1,'Post Const. TABLE'!$B$2:$H$34,3,FALSE),\"\")","v":""},{"$f":"IFERROR(VLOOKUP(ROW(F25)-ROW(F$10)+1,'Post Const. TABLE'!$B$2:$H$34,4,FALSE),\"\")","v":""}]
[{"$f":"UPPER(IFERROR(VLOOKUP(ROW(F27)-ROW(F$11)+1,'Post Const. TABLE'!$B$2:$D$34,2,FALSE),\"\"))","v":""},null,{"$f":"IFERROR(VLOOKUP(ROW(E26)-ROW(E$10)+1,'Post Const. TABLE'!$B$2:$H$34,3,FALSE),\"\")","v":""},{"$f":"IFERROR(VLOOKUP(ROW(F26)-ROW(F$10)+1,'Post Const. TABLE'!$B$2:$H$34,4,FALSE),\"\")","v":""}]
[{"$f":"UPPER(IFERROR(VLOOKUP(ROW(F28)-ROW(F$11)+1,'Post Const. TABLE'!$B$2:$D$34,2,FALSE),\"\"))","v":""},null,{"$f":"IFERROR(VLOOKUP(ROW(E27)-ROW(E$10)+1,'Post Const. TABLE'!$B$2:$H$34,3,FALSE),\"\")","v":""},{"$f":"IFERROR(VLOOKUP(ROW(F27)-ROW(F$10)+1,'Post Const. TABLE'!$B$2:$H$34,4,FALSE),\"\")","v":""}]
[{"$f":"UPPER(IFERROR(VLOOKUP(ROW(F29)-ROW(F$11)+1,'Post Const. TABLE'!$B$2:$D$34,2,FALSE),\"\"))","v":""},null,{"$f":"IFERROR(VLOOKUP(ROW(E28)-ROW(E$10)+1,'Post Const. TABLE'!$B$2:$H$34,3,FALSE),\"\")","v":""},{"$f":"IFERROR(VLOOKUP(ROW(F28)-ROW(F$10)+1,'Post Const. TABLE'!$B$2:$H$34,4,FALSE),\"\")","v":""}]
[{"$f":"UPPER(IFERROR(VLOOKUP(ROW(F30)-ROW(F$11)+1,'Post Const. TABLE'!$B$2:$D$34,2,FALSE),\"\"))","v":""},null,{"$f":"IFERROR(VLOOKUP(ROW(E29)-ROW(E$10)+1,'Post Const. TABLE'!$B$2:$H$34,3,FALSE),\"\")","v":""},{"$f":"IFERROR(VLOOKUP(ROW(F29)-ROW(F$10)+1,'Post Const. TABLE'!$B$2:$H$34,4,FALSE),\"\")","v":""}]
[{"$f":"UPPER(IFERROR(VLOOKUP(ROW(F31)-ROW(F$11)+1,'Post Const. TABLE'!$B$2:$D$34,2,FALSE),\"\"))","v":""},null,{"$f":"IFERROR(VLOOKUP(ROW(E30)-ROW(E$10)+1,'Post Const. TABLE'!$B$2:$H$34,3,FALSE),\"\")","v":""},{"$f":"IFERROR(VLOOKUP(ROW(F30)-ROW(F$10)+1,'Post Const. TABLE'!$B$2:$H$34,4,FALSE),\"\")","v":""}]

{"sheet":"Cx Thresholds","index":9,"n_rows":53,"n_cols":44,"rows_kept":53,"cut":false,"hidden":true,"merged":[[5,2,5,6],[4,9,4,19],[14,9,14,19],[20,9,20,19],[1,9,2,10],[1,12,2,13],[1,15,2,16],[1,18,2,19]]}
[]
[null,null,null,null,null,null,null,null,null,"Division 22 - Plumbing",null,null,"Division 23 - Mechanical",null,null,"Division 25 - Controls",null,null,"Division 26 - Electrical"]
[]
[]
[null,null,null,null,null,null,null,null,null,{"$f":"#REF!","v":{"$error":"#REF!"}}]
[null,null,"MISSION CRITICAL ITEMS",null,null,null,null,null,null,1,null,null,1,null,null,1,null,null,1]
[null,null,"if TRUE",null,"if FALSE",null,null,null,null,1,"  ",null,1,"  ",null,1,"  ",null,1,"  "]
[null,null,"Fundamental & Enhanced","Notes","Fundamental ","Enhanced ","Notes",null,null,2,"less than $200,000",null,2,"less than $200,000",null,2,"less than $200,000",null,2,"less than $200,000"]
[null,null,"Yes for any scope of work in Divisions 22, 23, 25 ,26 ","Recommend pre-design and post-construction TAB, if applicable","n/a","n/a","n/a",null,null,3,"$200,001 - $500,000",null,3,"$200,001 - $500,000",null,3,"$200,001 - $500,000",null,3,"$200,001 - $500,000"]
[null,null,"Yes for any scope of work in Divisions 22, 23, 25 ,26 ","Recommend pre-design and post-construction TAB, if applicable","n/a","n/a","n/a",null,null,4,"$500,001 - $1M ",null,4,"$500,001 - $1M ",null,4,"$500,001 - $1M ",null,4,"$500,001 - $1M "]
[null,null,"Yes for any scope of work in Divisions 22, 23, 25 ,26 ","Recommend pre-design and post-construction TAB, if applicable","n/a","n/a","n/a",null,null,5,"$1M - $4M",null,5,"$1M - $4M",null,5,"$1M - $4M",null,5,"$1M - $4M"]
[null,null,"Yes for any scope of work in Divisions 22, 23, 25 ,26 ","Recommend pre-design and post-construction TAB, if applicable","n/a","n/a","n/a",null,null,6,"greater than $4M",null,6,"greater than $4M",null,6,"greater than $4M",null,6,"greater than $4M"]
[]
[]
[null,null,null,null,null,null,null,null,null,{"$f":"#REF!","v":{"$error":"#REF!"}}]
[null,null,null,null,"Fundamental Commissioning","Enhanced Commissioning ","Notes"]
[null,null,null,null,{"$f":"AA22","v":"n/a"},{"$f":"AB22","v":"n/a"},{"$f":"AC22","v":"n/a"},null,null,1,"Laboratory/Research",null,2,"Data Center",null,3,"Patient Areas",null,4,"Food Service "]
[null,null,null,null,{"$f":"AF22","v":"n/a"},{"$f":"AG22","v":"n/a"},"n/a"]
[null,null,null,null,{"$f":"AK22","v":"n/a"},{"$f":"AL22","v":"n/a"},"n/a"]
[null,null,null,null,{"$f":"AP22","v":"n/a"},{"$f":"AQ22","v":"n/a"},"n/a",null,null,null,null,null,null,null,null,null,null,null,null,null,null,null,null,null,null,null,"Fundamental","Enhanced","Notes",null,null,"Fundamental","Enhanced","Notes",null,null,"Fundamental","Enhanced","Notes",null,null,"Fundamental","Enhanced","Notes"]
[null,null,null,null,null,null,null,null,null,"Scope of Work"]
[null,null,null,null,null,null,null,null,null,1,null,null,1,null,null,1,null,null,1,null,null,null,null,null,"DIRECTIONS:  the numbers in the table below relate to the numbers in the image of the table above.  For instance, the first number is based on the cost (less than $200k is a '1'), and the second number is based on the scope (like for like replacement is a '1').",null,{"$f":"VLOOKUP(J30,Z24:AA44,2,FALSE)","v":"n/a"},{"$f":"VLOOKUP(J30,Z24:AB44,3,FALSE)","v":"n/a"},{"$f":"VLOOKUP(J30,Z24:AC44,4,FALSE)","v":"n/a"}," ",null,{"$f":"VLOOKUP(M30,AE24:AF44,2,FALSE)","v":"n/a"},{"$f":"VLOOKUP(M30,AE24:AG44,3,FALSE)","v":"n/a"},{"$f":"VLOOKUP(M30,AE24:AH44,4,FALSE)","v":"n/a"},null,null,{"$f":"VLOOKUP(P30,AJ24:AK44,2,FALSE)","v":"n/a"},{"$f":"VLOOKUP(P30,AJ24:AL44,3,FALSE)","v":"n/a"},{"$f":"VLOOKUP(P30,AJ24:AM44,4,FALSE)","v":"n/a"},null,null,{"$f":"VLOOKUP(S30,AO24:AP44,2,FALSE)","v":"n/a"},{"$f":"VLOOKUP(S30,AO24:AQ44,3,FALSE)","v":"n/a"},{"$f":"VLOOKUP(S30,AO24:AR44,4,FALSE)","v":"n/a"}]
[null,null,null,null,null,null,null,null,null,1,"  ",null,1,"  ",null,1,"  ",null,1,"  ",null,null,null,null,null,"Division 22 - Plumbing",null,null,null,null,"Division 23 - Mechanical",null,null,null,null,"Division 25 - Controls / Integrated Automation Network Equipment",null,null," ",null,"Division 26 - Electrical"]
[null,null,null,null,null,null,null,null,null,2,"Like for Like Replacement",null,2,"Like for Like Replacement",null,2,"Like for Like Replacement",null,2,"Like for Like Replacement",null,null,null,null,"blank",11,"n/a","n/a","n/a",null,11,"n/a","n/a","n/a",null,11,"n/a","n/a","n/a",null,11,"n/a","n/a","n/a"]
[null,null,null,null,null,null,null,null,null,3,"Controls Only ",null,3,"Controls Only ",null,3,"Controls Only ",null,3,"Controls Only ",null,null,null,null,"blank",21,"n/a","n/a","n/a",null,21,"n/a","n/a","n/a",null,21,"n/a","n/a","n/a",null,21,"n/a","n/a","n/a"]
[null,null,null,null,null,null,null,null,null,4,"New System",null,4,"New System",null,4,"New System",null,4,"New System",null,null,null,null,"blank",31,"n/a","n/a","n/a",null,31,"n/a","n/a","n/a",null,31,"n/a","n/a","n/a",null,31,"n/a","n/a","n/a"]
[null,null,null,null,null,null,null,null,null,null,null,null,null,null,null,null,null,null,null,null,null,null,null,null,"blank",41,"n/a","n/a","n/a",null,41,"n/a","n/a","n/a",null,41,"n/a","n/a","n/a",null,41,"n/a","n/a","n/a"]
[null,null,null,null,null,null,null,null,null,null,null,null,null,null,null,null,null,null,null,null,null,null,null,null,"blank",51,"n/a","n/a","n/a",null,51,"n/a","n/a","n/a",null,51,"n/a","n/a","n/a",null,51,"n/a","n/a","n/a"]
[null,null,null,null,null,null,null,null,null,null,null,null,null,null,null,null,null,null,null,null,null,null,null,null,"blank",61,"n/a","n/a","n/a",null,61,"n/a","n/a","n/a",null,61,"n/a","n/a","n/a",null,61,"n/a","n/a","n/a"]
[null,null,null,null,null,null,null,null,null,{"$f":"_xlfn.NUMBERVALUE(J6&J22)","v":11},null,null,{"$f":"_xlfn.NUMBERVALUE(M6&M22)","v":11},null,null,{"$f":"_xlfn.NUMBERVALUE(P6&P22)","v":11},null,null,{"$f":"_xlfn.NUMBERVALUE(S6&S22)","v":11},null,null,null,null,null,"Controls Only",23,"No","No","n/a",null,23,"Yes, Limited","No","n/a",null,23,"Yes, Limited","No","n/a",null,23,"Yes, Limited","No","n/a"]
[null,null,null,null,null,null,null,null,null,null,null,null,null,null,null,null,null,null,null,null,null,null,null,null,"Controls Only",33,"No","No","n/a",null,33,"Yes","Yes","n/a",null,33,"Yes","Yes","n/a",null,33,"Yes","Yes","n/a"]
[null,null,null,null,null,null,null,null,null,null,null,null,null,null,null,null,null,null,null,null,null,null,null,null,"Controls Only",43,"No","No","n/a",null,43,"Yes","Yes","n/a",null,43,"Yes","Yes","n/a",null,43,"Yes","Yes","n/a"]
[null,null,null,null,null,null,null,null,null,null,null,null,null,null,null,null,null,null,null,null,null,null,null,null,"Controls Only",53,"No","No","n/a",null,53,"Yes","Yes","n/a",null,53,"Yes","Yes","n/a",null,53,"Yes","Yes","n/a"]
[null,null,null,null,null,null,null,null,null,null,null,null,null,null,null,null,null,null,null,null,null,null,null,null,"Controls Only",63,"No","No","n/a",null,63,"Yes","Yes","n/a",null,63,"Yes","Yes","n/a",null,63,"Yes","Yes","n/a"]
[null,null,null,null,null,null,null,null,null,null,null,null,null,null,null,null,null,null,null,null,null,null,null,null,"Non-Critical, Equipment Replacement\n(Like for Like Replacement)",22,"No","No","n/a"," ",22,"No","No","n/a",null,22,"n/a","n/a","n/a",null,22,"No","No","n/a"]
[null,null,null,null,null,null,null,null,null,null,null,null,null,null,null,null,null,null,null,null,null,null,null,null,"Non-Critical, Equipment Replacement\n(Like for Like Replacement)",32,"Yes, Limited","No","Recommend pre-design and post-construction TAB, if applicable"," ",32,"No","No","n/a",null,32,"n/a","n/a","n/a",null,32,"Yes, Limited","No","n/a"]
[null,null,null,null,null,null,null,null,null,null,null,null,null,null,null,null,null,null,null,null,null,null,null,null,"Non-Critical, Equipment Replacement\n(Like for Like Replacement)",42,"Yes","No","Recommend pre-design and post-construction TAB, if applicable"," ",42,"Yes, Limited","No","Recommend pre-design and post-construction TAB, if applicable",null,42,"n/a","n/a","n/a",null,42,"Yes, Limited","No","n/a"]
[null,null,null,null,null,null,null,null,null,null,null,null,null,null,null,null,null,null,null,null,null,null,null,null,"Non-Critical, Equipment Replacement\n(Like for Like Replacement)",52,"Yes","No","Recommend pre-design and post-construction TAB, if applicable"," ",52,"Yes","No","Recommend pre-design and post-construction TAB, if applicable",null,52,"n/a","n/a","n/a",null,52,"Yes","No","n/a"]
[null,null,null,null,null,null,null,null,null,null,null,null,null,null,null,null,null,null,null,null,null,null,null,null,"Non-Critical, Equipment Replacement\n(Like for Like Replacement)",62,"Yes","Yes","n/a",null,62,"Yes","Yes","n/a",null,62,"n/a","n/a","n/a",null,62,"Yes","Yes","n/a"]
[null,null,null,null,null,null,null,null,null,null,null,null,null,null,null,null,null,null,null,null,null,null,null,null,"Non-Critical, New System",24,"No","No","n/a",null,24,"No","No","n/a",null,24,"n/a","n/a","n/a",null,24,"No","No","n/a"]
[null,null,null,null,null,null,null,null,null,null,null,null,null,null,null,null,null,null,null,null,null,null,null,null,"Non-Critical, New System",34,"Yes, Limited","No","n/a",null,34,"No","No","n/a",null,34,"n/a","n/a","n/a",null,34,"Yes, Limited","No","n/a"]
[null,null,null,null,null,null,null,null,null,null,null,null,null,null,null,null,null,null,null,null,null,null,null,null,"Non-Critical, New System",44,"Yes","No","n/a",null,44,"Yes, Limited","No","n/a",null,44,"n/a","n/a","n/a",null,44,"Yes","No","n/a"]
[null,null,null,null,null,null,null,null,null,null,null,null,null,null,null,null,null,null,null,null,null,null,null,null,"Non-Critical, New System",54,"Yes","Yes","n/a",null,54,"Yes","No","n/a",null,54,"n/a","n/a","n/a",null,54,"Yes","Yes","n/a"]
[null,null,null,null,null,null,null,null,null,null,null,null,null,null,null,null,null,null,null,null,null,null,null,null,"Non-Critical, New System",64,"Yes","Yes","n/a",null,64,"Yes","Yes","n/a",null,64,"n/a","n/a","n/a",null,64,"Yes","Yes","n/a"]
[]
[]
[]
[null,null,null,null,null,null,null,null,null,null,null,null,null,null,null,null,null,null,null,null,null,null,null,null,"Division 22 - Plumbing"]
[null,null,null,null,null,null,null,null,null,null,null,null,null,null,null,null,null,null,null,null,null,null,null,null,"Division 23 - Mechanical"]
[null,null,null,null,null,null,null,null,null,null,null,null,null,null,null,null,null,null,null,null,null,null,null,null,"Division 25 - Controls / Integrated Automation Network Equipment"]
[null,null,null,null,null,null,null,null,null,null,null,null,null,null,null,null,null,null,null,null,null,null,null,null,"Division 26 - Electrical"]
[null,null,null,null,null,null,null,null,null,null,null,null,null,null,null,null,null,null,null,null,null,null,null,null,"Division 27 - Communications *Not typically commissioned by CxA"]
[null,null,null,null,null,null,null,null,null,null,null,null,null,null,null,null,null,null,null,null,null,null,null,null,"Division 28 - Electronic Safety and Security Fire Alarm *Not typically commissioned by CxA"]

{"sheet":"Scorecard","index":10,"n_rows":137,"n_cols":10,"rows_kept":137,"cut":false,"hidden":false,"merged":[]}
[null,"INSTRUCTIONS:  The green highlighed cells shall be completed by the university sustainability team in collaboration with the Project Manager at the end of the project.  "]
[]
[null,"Project Sustainability Scorecard"]
[]
[null,{"$f":"\"Project Name:         \"&'Project Information'!D14","v":"Project Name:         "}]
[null,{"$f":"\"Project Number:     \"&'Project Information'!D13","v":"Project Number:     "}]
[null,{"$f":"\"Project Manager:   \"&'Project Information'!D18","v":"Project Manager:   Facilities Operations and Development"}]
[null,{"$f":"\"Project Type:           \"&IFERROR(LEFT('Project Information'!$D$22,SEARCH(\"~*\",'Project Information'!$D$22)-1),'Project Information'!$D$22)","v":"Project Type:           Renovation"}]
[null,"Date "]
[null,null,null,null,null,null,"note:  used for conditional formatting"]
[null,"Section","Sustainability Requirement","Requirement Completed","Notes"]
[null,{"$f":"IFERROR(VLOOKUP(ROW(F12)-ROW(F$12)+1,ScorecardTABLE!$D:$G,4,FALSE),\"\")","v":0},{"$f":"IFERROR(VLOOKUP(ROW(G12)-ROW(G$12)+1,ScorecardTABLE!$D:$G,3,FALSE),\"\")","v":0},null,null,null,{"$f":"IF(B12=0,\"yes\",\"no\")","v":"yes"},{"$f":"IF(C12=0,\"yes\",\"no\")","v":"yes"},{"$f":"IF(AND(G12=\"yes\",H12=\"yes\"),\"yes\",\"\")","v":"yes"},{"$f":"COUNTIF(F12:I12,\"yes\")","v":3}]
[null,{"$f":"IFERROR(VLOOKUP(ROW(F13)-ROW(F$12)+1,ScorecardTABLE!$D:$G,4,FALSE),\"\")","v":0},{"$f":"IFERROR(VLOOKUP(ROW(G13)-ROW(G$12)+1,ScorecardTABLE!$D:$G,3,FALSE),\"\")","v":0},null,null,null,"yes","yes",{"$f":"IF(AND(G13=\"yes\",H13=\"yes\"),\"yes\",\"\")","v":"yes"},3]
[null,{"$f":"IFERROR(VLOOKUP(ROW(F14)-ROW(F$12)+1,ScorecardTABLE!$D:$G,4,FALSE),\"\")","v":0},{"$f":"IFERROR(VLOOKUP(ROW(G14)-ROW(G$12)+1,ScorecardTABLE!$D:$G,3,FALSE),\"\")","v":0},null,"\n",null,"yes","yes",{"$f":"IF(AND(G14=\"yes\",H14=\"yes\"),\"yes\",\"\")","v":"yes"},3]
[null,{"$f":"IFERROR(VLOOKUP(ROW(F15)-ROW(F$12)+1,ScorecardTABLE!$D:$G,4,FALSE),\"\")","v":0},{"$f":"IFERROR(VLOOKUP(ROW(G15)-ROW(G$12)+1,ScorecardTABLE!$D:$G,3,FALSE),\"\")","v":0},null,"\n",null,"yes","yes",{"$f":"IF(AND(G15=\"yes\",H15=\"yes\"),\"yes\",\"\")","v":"yes"},{"$f":"COUNTIF(F15:I15,\"yes\")","v":3}]
[null,{"$f":"IFERROR(VLOOKUP(ROW(F16)-ROW(F$12)+1,ScorecardTABLE!$D:$G,4,FALSE),\"\")","v":0},{"$f":"IFERROR(VLOOKUP(ROW(G16)-ROW(G$12)+1,ScorecardTABLE!$D:$G,3,FALSE),\"\")","v":0},null,"\n",null,"yes","yes",{"$f":"IF(AND(G16=\"yes\",H16=\"yes\"),\"yes\",\"\")","v":"yes"},{"$f":"COUNTIF(F16:I16,\"yes\")","v":3}]
[null,{"$f":"IFERROR(VLOOKUP(ROW(F17)-ROW(F$12)+1,ScorecardTABLE!$D:$G,4,FALSE),\"\")","v":0},{"$f":"IFERROR(VLOOKUP(ROW(G17)-ROW(G$12)+1,ScorecardTABLE!$D:$G,3,FALSE),\"\")","v":0},null,"\n",null,"yes","yes","yes",3]
[null,{"$f":"IFERROR(VLOOKUP(ROW(F18)-ROW(F$12)+1,ScorecardTABLE!$D:$G,4,FALSE),\"\")","v":0},{"$f":"IFERROR(VLOOKUP(ROW(G18)-ROW(G$12)+1,ScorecardTABLE!$D:$G,3,FALSE),\"\")","v":0},null,"\n",null,"yes","yes","yes",3]
[null,{"$f":"IFERROR(VLOOKUP(ROW(F19)-ROW(F$12)+1,ScorecardTABLE!$D:$G,4,FALSE),\"\")","v":0},{"$f":"IFERROR(VLOOKUP(ROW(G19)-ROW(G$12)+1,ScorecardTABLE!$D:$G,3,FALSE),\"\")","v":0},null,"\n",null,"yes","yes","yes",3]
[null,{"$f":"IFERROR(VLOOKUP(ROW(F20)-ROW(F$12)+1,ScorecardTABLE!$D:$G,4,FALSE),\"\")","v":0},{"$f":"IFERROR(VLOOKUP(ROW(G20)-ROW(G$12)+1,ScorecardTABLE!$D:$G,3,FALSE),\"\")","v":0},null,"\n",null,"yes","yes","yes",3]
[null,{"$f":"IFERROR(VLOOKUP(ROW(F21)-ROW(F$12)+1,ScorecardTABLE!$D:$G,4,FALSE),\"\")","v":0},{"$f":"IFERROR(VLOOKUP(ROW(G21)-ROW(G$12)+1,ScorecardTABLE!$D:$G,3,FALSE),\"\")","v":0},null,"\n",null,"yes","yes","yes",3]
[null,{"$f":"IFERROR(VLOOKUP(ROW(F22)-ROW(F$12)+1,ScorecardTABLE!$D:$G,4,FALSE),\"\")","v":0},{"$f":"IFERROR(VLOOKUP(ROW(G22)-ROW(G$12)+1,ScorecardTABLE!$D:$G,3,FALSE),\"\")","v":0},null,"\n",null,"yes","yes","yes",3]
[null,{"$f":"IFERROR(VLOOKUP(ROW(F23)-ROW(F$12)+1,ScorecardTABLE!$D:$G,4,FALSE),\"\")","v":0},{"$f":"IFERROR(VLOOKUP(ROW(G23)-ROW(G$12)+1,ScorecardTABLE!$D:$G,3,FALSE),\"\")","v":0},null,"\n",null,"yes","yes","yes",3]
[null,{"$f":"IFERROR(VLOOKUP(ROW(F24)-ROW(F$12)+1,ScorecardTABLE!$D:$G,4,FALSE),\"\")","v":0},{"$f":"IFERROR(VLOOKUP(ROW(G24)-ROW(G$12)+1,ScorecardTABLE!$D:$G,3,FALSE),\"\")","v":0},null,"\n",null,"yes","yes","yes",3]
[null,{"$f":"IFERROR(VLOOKUP(ROW(F25)-ROW(F$12)+1,ScorecardTABLE!$D:$G,4,FALSE),\"\")","v":0},{"$f":"IFERROR(VLOOKUP(ROW(G25)-ROW(G$12)+1,ScorecardTABLE!$D:$G,3,FALSE),\"\")","v":0},null,"\n",null,"yes","yes","yes",3]
[null,{"$f":"IFERROR(VLOOKUP(ROW(F26)-ROW(F$12)+1,ScorecardTABLE!$D:$G,4,FALSE),\"\")","v":0},{"$f":"IFERROR(VLOOKUP(ROW(G26)-ROW(G$12)+1,ScorecardTABLE!$D:$G,3,FALSE),\"\")","v":0},null,"\n",null,"yes","yes","yes",3]
[null,{"$f":"IFERROR(VLOOKUP(ROW(F27)-ROW(F$12)+1,ScorecardTABLE!$D:$G,4,FALSE),\"\")","v":0},{"$f":"IFERROR(VLOOKUP(ROW(G27)-ROW(G$12)+1,ScorecardTABLE!$D:$G,3,FALSE),\"\")","v":0},null,"\n",null,"yes","yes","yes",3]
[null,{"$f":"IFERROR(VLOOKUP(ROW(F28)-ROW(F$12)+1,ScorecardTABLE!$D:$G,4,FALSE),\"\")","v":0},{"$f":"IFERROR(VLOOKUP(ROW(G28)-ROW(G$12)+1,ScorecardTABLE!$D:$G,3,FALSE),\"\")","v":0},null,"\n",null,"yes","yes","yes",3]
[null,{"$f":"IFERROR(VLOOKUP(ROW(F29)-ROW(F$12)+1,ScorecardTABLE!$D:$G,4,FALSE),\"\")","v":0},{"$f":"IFERROR(VLOOKUP(ROW(G29)-ROW(G$12)+1,ScorecardTABLE!$D:$G,3,FALSE),\"\")","v":0},null,"\n",null,"yes","yes","yes",3]
[null,{"$f":"IFERROR(VLOOKUP(ROW(F30)-ROW(F$12)+1,ScorecardTABLE!$D:$G,4,FALSE),\"\")","v":0},{"$f":"IFERROR(VLOOKUP(ROW(G30)-ROW(G$12)+1,ScorecardTABLE!$D:$G,3,FALSE),\"\")","v":0},null,"\n",null,"yes","yes","yes",3]
[null,{"$f":"IFERROR(VLOOKUP(ROW(F31)-ROW(F$12)+1,ScorecardTABLE!$D:$G,4,FALSE),\"\")","v":0},{"$f":"IFERROR(VLOOKUP(ROW(G31)-ROW(G$12)+1,ScorecardTABLE!$D:$G,3,FALSE),\"\")","v":0},null,"\n",null,"yes","yes","yes",3]
[null,{"$f":"IFERROR(VLOOKUP(ROW(F32)-ROW(F$12)+1,ScorecardTABLE!$D:$G,4,FALSE),\"\")","v":0},{"$f":"IFERROR(VLOOKUP(ROW(G32)-ROW(G$12)+1,ScorecardTABLE!$D:$G,3,FALSE),\"\")","v":0},null,"\n",null,"yes","yes","yes",3]
[null,{"$f":"IFERROR(VLOOKUP(ROW(F33)-ROW(F$12)+1,ScorecardTABLE!$D:$G,4,FALSE),\"\")","v":0},{"$f":"IFERROR(VLOOKUP(ROW(G33)-ROW(G$12)+1,ScorecardTABLE!$D:$G,3,FALSE),\"\")","v":0},null,"\n",null,"yes","yes","yes",3]
[null,{"$f":"IFERROR(VLOOKUP(ROW(F34)-ROW(F$12)+1,ScorecardTABLE!$D:$G,4,FALSE),\"\")","v":0},{"$f":"IFERROR(VLOOKUP(ROW(G34)-ROW(G$12)+1,ScorecardTABLE!$D:$G,3,FALSE),\"\")","v":0},null,"\n",null,"yes","yes","yes",3]
[null,{"$f":"IFERROR(VLOOKUP(ROW(F35)-ROW(F$12)+1,ScorecardTABLE!$D:$G,4,FALSE),\"\")","v":0},{"$f":"IFERROR(VLOOKUP(ROW(G35)-ROW(G$12)+1,ScorecardTABLE!$D:$G,3,FALSE),\"\")","v":0},null,"\n",null,"yes","yes","yes",3]
[null,{"$f":"IFERROR(VLOOKUP(ROW(F36)-ROW(F$12)+1,ScorecardTABLE!$D:$G,4,FALSE),\"\")","v":0},{"$f":"IFERROR(VLOOKUP(ROW(G36)-ROW(G$12)+1,ScorecardTABLE!$D:$G,3,FALSE),\"\")","v":0},null,"\n",null,"yes","yes","yes",3]
[null,{"$f":"IFERROR(VLOOKUP(ROW(F37)-ROW(F$12)+1,ScorecardTABLE!$D:$G,4,FALSE),\"\")","v":0},{"$f":"IFERROR(VLOOKUP(ROW(G37)-ROW(G$12)+1,ScorecardTABLE!$D:$G,3,FALSE),\"\")","v":0},null,"\n",null,"yes","yes","yes",3]
[null,{"$f":"IFERROR(VLOOKUP(ROW(F38)-ROW(F$12)+1,ScorecardTABLE!$D:$G,4,FALSE),\"\")","v":0},{"$f":"IFERROR(VLOOKUP(ROW(G38)-ROW(G$12)+1,ScorecardTABLE!$D:$G,3,FALSE),\"\")","v":0},null,"\n",null,"yes","yes","yes",3]
[null,{"$f":"IFERROR(VLOOKUP(ROW(F39)-ROW(F$12)+1,ScorecardTABLE!$D:$G,4,FALSE),\"\")","v":0},{"$f":"IFERROR(VLOOKUP(ROW(G39)-ROW(G$12)+1,ScorecardTABLE!$D:$G,3,FALSE),\"\")","v":0},null,"\n",null,"yes","yes","yes",3]
[null,{"$f":"IFERROR(VLOOKUP(ROW(F40)-ROW(F$12)+1,ScorecardTABLE!$D:$G,4,FALSE),\"\")","v":0},{"$f":"IFERROR(VLOOKUP(ROW(G40)-ROW(G$12)+1,ScorecardTABLE!$D:$G,3,FALSE),\"\")","v":0},null,"\n",null,"yes","yes","yes",3]
[null,{"$f":"IFERROR(VLOOKUP(ROW(F41)-ROW(F$12)+1,ScorecardTABLE!$D:$G,4,FALSE),\"\")","v":0},{"$f":"IFERROR(VLOOKUP(ROW(G41)-ROW(G$12)+1,ScorecardTABLE!$D:$G,3,FALSE),\"\")","v":0},null,"\n",null,"yes","yes","yes",3]
[null,{"$f":"IFERROR(VLOOKUP(ROW(F42)-ROW(F$12)+1,ScorecardTABLE!$D:$G,4,FALSE),\"\")","v":0},{"$f":"IFERROR(VLOOKUP(ROW(G42)-ROW(G$12)+1,ScorecardTABLE!$D:$G,3,FALSE),\"\")","v":0},null,"\n",null,"yes","yes","yes",3]
[null,{"$f":"IFERROR(VLOOKUP(ROW(F43)-ROW(F$12)+1,ScorecardTABLE!$D:$G,4,FALSE),\"\")","v":0},{"$f":"IFERROR(VLOOKUP(ROW(G43)-ROW(G$12)+1,ScorecardTABLE!$D:$G,3,FALSE),\"\")","v":0},null,"\n",null,"yes","yes","yes",3]
[null,{"$f":"IFERROR(VLOOKUP(ROW(F44)-ROW(F$12)+1,ScorecardTABLE!$D:$G,4,FALSE),\"\")","v":0},{"$f":"IFERROR(VLOOKUP(ROW(G44)-ROW(G$12)+1,ScorecardTABLE!$D:$G,3,FALSE),\"\")","v":0},null,"\n",null,{"$f":"IF(B44=0,\"yes\",\"no\")","v":"yes"},{"$f":"IF(C44=0,\"yes\",\"no\")","v":"yes"},"yes",3]
[null,{"$f":"IFERROR(VLOOKUP(ROW(F45)-ROW(F$12)+1,ScorecardTABLE!$D:$G,4,FALSE),\"\")","v":0},{"$f":"IFERROR(VLOOKUP(ROW(G45)-ROW(G$12)+1,ScorecardTABLE!$D:$G,3,FALSE),\"\")","v":0},null,"\n",null,"yes","yes","yes",3]
[null,{"$f":"IFERROR(VLOOKUP(ROW(F46)-ROW(F$12)+1,ScorecardTABLE!$D:$G,4,FALSE),\"\")","v":0},{"$f":"IFERROR(VLOOKUP(ROW(G46)-ROW(G$12)+1,ScorecardTABLE!$D:$G,3,FALSE),\"\")","v":0},null,"\n",null,"yes","yes","yes",3]
[null,{"$f":"IFERROR(VLOOKUP(ROW(F47)-ROW(F$12)+1,ScorecardTABLE!$D:$G,4,FALSE),\"\")","v":0},{"$f":"IFERROR(VLOOKUP(ROW(G47)-ROW(G$12)+1,ScorecardTABLE!$D:$G,3,FALSE),\"\")","v":0},null,"\n",null,"yes","yes","yes",3]
[null,{"$f":"IFERROR(VLOOKUP(ROW(F48)-ROW(F$12)+1,ScorecardTABLE!$D:$G,4,FALSE),\"\")","v":0},{"$f":"IFERROR(VLOOKUP(ROW(G48)-ROW(G$12)+1,ScorecardTABLE!$D:$G,3,FALSE),\"\")","v":0},null,"\n",null,"yes","yes","yes",3]
[null,{"$f":"IFERROR(VLOOKUP(ROW(F49)-ROW(F$12)+1,ScorecardTABLE!$D:$G,4,FALSE),\"\")","v":0},{"$f":"IFERROR(VLOOKUP(ROW(G49)-ROW(G$12)+1,ScorecardTABLE!$D:$G,3,FALSE),\"\")","v":0},null,"\n",null,"yes","yes","yes",3]
[null,{"$f":"IFERROR(VLOOKUP(ROW(F50)-ROW(F$12)+1,ScorecardTABLE!$D:$G,4,FALSE),\"\")","v":0},{"$f":"IFERROR(VLOOKUP(ROW(G50)-ROW(G$12)+1,ScorecardTABLE!$D:$G,3,FALSE),\"\")","v":0},null,"\n",null,"yes","yes","yes",3]
[null,{"$f":"IFERROR(VLOOKUP(ROW(F51)-ROW(F$12)+1,ScorecardTABLE!$D:$G,4,FALSE),\"\")","v":0},{"$f":"IFERROR(VLOOKUP(ROW(G51)-ROW(G$12)+1,ScorecardTABLE!$D:$G,3,FALSE),\"\")","v":0},null,"\n",null,"yes","yes","yes",3]
[null,{"$f":"IFERROR(VLOOKUP(ROW(F52)-ROW(F$12)+1,ScorecardTABLE!$D:$G,4,FALSE),\"\")","v":0},{"$f":"IFERROR(VLOOKUP(ROW(G52)-ROW(G$12)+1,ScorecardTABLE!$D:$G,3,FALSE),\"\")","v":0},null,"\n",null,"yes","yes","yes",3]
[null,{"$f":"IFERROR(VLOOKUP(ROW(F53)-ROW(F$12)+1,ScorecardTABLE!$D:$G,4,FALSE),\"\")","v":0},{"$f":"IFERROR(VLOOKUP(ROW(G53)-ROW(G$12)+1,ScorecardTABLE!$D:$G,3,FALSE),\"\")","v":0},null,"\n",null,"yes","yes","yes",3]
[null,{"$f":"IFERROR(VLOOKUP(ROW(F54)-ROW(F$12)+1,ScorecardTABLE!$D:$G,4,FALSE),\"\")","v":0},{"$f":"IFERROR(VLOOKUP(ROW(G54)-ROW(G$12)+1,ScorecardTABLE!$D:$G,3,FALSE),\"\")","v":0},null,"\n",null,"yes","yes","yes",3]
[null,{"$f":"IFERROR(VLOOKUP(ROW(F55)-ROW(F$12)+1,ScorecardTABLE!$D:$G,4,FALSE),\"\")","v":0},{"$f":"IFERROR(VLOOKUP(ROW(G55)-ROW(G$12)+1,ScorecardTABLE!$D:$G,3,FALSE),\"\")","v":0},null,"\n",null,"yes","yes","yes",3]
[null,{"$f":"IFERROR(VLOOKUP(ROW(F56)-ROW(F$12)+1,ScorecardTABLE!$D:$G,4,FALSE),\"\")","v":0},{"$f":"IFERROR(VLOOKUP(ROW(G56)-ROW(G$12)+1,ScorecardTABLE!$D:$G,3,FALSE),\"\")","v":0},null,"\n",null,"yes","yes","yes",3]
[null,{"$f":"IFERROR(VLOOKUP(ROW(F57)-ROW(F$12)+1,ScorecardTABLE!$D:$G,4,FALSE),\"\")","v":0},{"$f":"IFERROR(VLOOKUP(ROW(G57)-ROW(G$12)+1,ScorecardTABLE!$D:$G,3,FALSE),\"\")","v":0},null,"\n",null,"yes","yes","yes",3]
[null,{"$f":"IFERROR(VLOOKUP(ROW(F58)-ROW(F$12)+1,ScorecardTABLE!$D:$G,4,FALSE),\"\")","v":0},{"$f":"IFERROR(VLOOKUP(ROW(G58)-ROW(G$12)+1,ScorecardTABLE!$D:$G,3,FALSE),\"\")","v":0},null,"\n",null,"yes","yes","yes",3]
[null,{"$f":"IFERROR(VLOOKUP(ROW(F59)-ROW(F$12)+1,ScorecardTABLE!$D:$G,4,FALSE),\"\")","v":0},{"$f":"IFERROR(VLOOKUP(ROW(G59)-ROW(G$12)+1,ScorecardTABLE!$D:$G,3,FALSE),\"\")","v":0},null,"\n",null,"yes","yes","yes",3]
[null,{"$f":"IFERROR(VLOOKUP(ROW(F60)-ROW(F$12)+1,ScorecardTABLE!$D:$G,4,FALSE),\"\")","v":0},{"$f":"IFERROR(VLOOKUP(ROW(G60)-ROW(G$12)+1,ScorecardTABLE!$D:$G,3,FALSE),\"\")","v":0},null,"\n",null,"yes","yes","yes",3]
[null,{"$f":"IFERROR(VLOOKUP(ROW(F61)-ROW(F$12)+1,ScorecardTABLE!$D:$G,4,FALSE),\"\")","v":0},{"$f":"IFERROR(VLOOKUP(ROW(G61)-ROW(G$12)+1,ScorecardTABLE!$D:$G,3,FALSE),\"\")","v":0},null,"\n",null,"yes","yes","yes",3]
[null,{"$f":"IFERROR(VLOOKUP(ROW(F62)-ROW(F$12)+1,ScorecardTABLE!$D:$G,4,FALSE),\"\")","v":0},{"$f":"IFERROR(VLOOKUP(ROW(G62)-ROW(G$12)+1,ScorecardTABLE!$D:$G,3,FALSE),\"\")","v":0},null,"\n",null,"yes","yes","yes",3]
[null,{"$f":"IFERROR(VLOOKUP(ROW(F63)-ROW(F$12)+1,ScorecardTABLE!$D:$G,4,FALSE),\"\")","v":0},{"$f":"IFERROR(VLOOKUP(ROW(G63)-ROW(G$12)+1,ScorecardTABLE!$D:$G,3,FALSE),\"\")","v":0},null,"\n",null,"yes","yes","yes",3]
[null,{"$f":"IFERROR(VLOOKUP(ROW(F64)-ROW(F$12)+1,ScorecardTABLE!$D:$G,4,FALSE),\"\")","v":0},{"$f":"IFERROR(VLOOKUP(ROW(G64)-ROW(G$12)+1,ScorecardTABLE!$D:$G,3,FALSE),\"\")","v":0},null,"\n",null,"yes","yes","yes",3]
[null,{"$f":"IFERROR(VLOOKUP(ROW(F65)-ROW(F$12)+1,ScorecardTABLE!$D:$G,4,FALSE),\"\")","v":0},{"$f":"IFERROR(VLOOKUP(ROW(G65)-ROW(G$12)+1,ScorecardTABLE!$D:$G,3,FALSE),\"\")","v":0},null,"\n",null,"yes","yes","yes",3]
[null,{"$f":"IFERROR(VLOOKUP(ROW(F66)-ROW(F$12)+1,ScorecardTABLE!$D:$G,4,FALSE),\"\")","v":0},{"$f":"IFERROR(VLOOKUP(ROW(G66)-ROW(G$12)+1,ScorecardTABLE!$D:$G,3,FALSE),\"\")","v":0},null,"\n",null,"yes","yes","yes",3]
[null,{"$f":"IFERROR(VLOOKUP(ROW(F67)-ROW(F$12)+1,ScorecardTABLE!$D:$G,4,FALSE),\"\")","v":0},{"$f":"IFERROR(VLOOKUP(ROW(G67)-ROW(G$12)+1,ScorecardTABLE!$D:$G,3,FALSE),\"\")","v":0},null,"\n",null,"yes","yes","yes",3]
[null,{"$f":"IFERROR(VLOOKUP(ROW(F68)-ROW(F$12)+1,ScorecardTABLE!$D:$G,4,FALSE),\"\")","v":0},{"$f":"IFERROR(VLOOKUP(ROW(G68)-ROW(G$12)+1,ScorecardTABLE!$D:$G,3,FALSE),\"\")","v":0},null,"\n",null,"yes","yes","yes",3]
[null,{"$f":"IFERROR(VLOOKUP(ROW(F69)-ROW(F$12)+1,ScorecardTABLE!$D:$G,4,FALSE),\"\")","v":0},{"$f":"IFERROR(VLOOKUP(ROW(G69)-ROW(G$12)+1,ScorecardTABLE!$D:$G,3,FALSE),\"\")","v":0},null,"\n",null,"yes","yes","yes",3]
[null,{"$f":"IFERROR(VLOOKUP(ROW(F70)-ROW(F$12)+1,ScorecardTABLE!$D:$G,4,FALSE),\"\")","v":0},{"$f":"IFERROR(VLOOKUP(ROW(G70)-ROW(G$12)+1,ScorecardTABLE!$D:$G,3,FALSE),\"\")","v":0},null,"\n",null,"yes","yes","yes",3]
[null,{"$f":"IFERROR(VLOOKUP(ROW(F71)-ROW(F$12)+1,ScorecardTABLE!$D:$G,4,FALSE),\"\")","v":0},{"$f":"IFERROR(VLOOKUP(ROW(G71)-ROW(G$12)+1,ScorecardTABLE!$D:$G,3,FALSE),\"\")","v":0},null,"\n",null,"yes","yes","yes",3]
[null,{"$f":"IFERROR(VLOOKUP(ROW(F72)-ROW(F$12)+1,ScorecardTABLE!$D:$G,4,FALSE),\"\")","v":0},{"$f":"IFERROR(VLOOKUP(ROW(G72)-ROW(G$12)+1,ScorecardTABLE!$D:$G,3,FALSE),\"\")","v":0},null,"\n",null,"yes","yes","yes",3]
[null,{"$f":"IFERROR(VLOOKUP(ROW(F73)-ROW(F$12)+1,ScorecardTABLE!$D:$G,4,FALSE),\"\")","v":0},{"$f":"IFERROR(VLOOKUP(ROW(G73)-ROW(G$12)+1,ScorecardTABLE!$D:$G,3,FALSE),\"\")","v":0},null,"\n",null,"yes","yes","yes",3]
[null,{"$f":"IFERROR(VLOOKUP(ROW(F74)-ROW(F$12)+1,ScorecardTABLE!$D:$G,4,FALSE),\"\")","v":0},{"$f":"IFERROR(VLOOKUP(ROW(G74)-ROW(G$12)+1,ScorecardTABLE!$D:$G,3,FALSE),\"\")","v":0},null,"\n",null,"yes","yes","yes",3]
[null,{"$f":"IFERROR(VLOOKUP(ROW(F75)-ROW(F$12)+1,ScorecardTABLE!$D:$G,4,FALSE),\"\")","v":0},{"$f":"IFERROR(VLOOKUP(ROW(G75)-ROW(G$12)+1,ScorecardTABLE!$D:$G,3,FALSE),\"\")","v":0},null,"\n",null,"yes","yes","yes",3]
[null,{"$f":"IFERROR(VLOOKUP(ROW(F76)-ROW(F$12)+1,ScorecardTABLE!$D:$G,4,FALSE),\"\")","v":0},{"$f":"IFERROR(VLOOKUP(ROW(G76)-ROW(G$12)+1,ScorecardTABLE!$D:$G,3,FALSE),\"\")","v":0},null,"\n",null,{"$f":"IF(B76=0,\"yes\",\"no\")","v":"yes"},{"$f":"IF(C76=0,\"yes\",\"no\")","v":"yes"},"yes",3]
[null,{"$f":"IFERROR(VLOOKUP(ROW(F77)-ROW(F$12)+1,ScorecardTABLE!$D:$G,4,FALSE),\"\")","v":0},{"$f":"IFERROR(VLOOKUP(ROW(G77)-ROW(G$12)+1,ScorecardTABLE!$D:$G,3,FALSE),\"\")","v":0},null,"\n",null,"yes","yes","yes",3]
[null,{"$f":"IFERROR(VLOOKUP(ROW(F78)-ROW(F$12)+1,ScorecardTABLE!$D:$G,4,FALSE),\"\")","v":0},{"$f":"IFERROR(VLOOKUP(ROW(G78)-ROW(G$12)+1,ScorecardTABLE!$D:$G,3,FALSE),\"\")","v":0},null,"\n",null,"yes","yes","yes",3]
[null,{"$f":"IFERROR(VLOOKUP(ROW(F79)-ROW(F$12)+1,ScorecardTABLE!$D:$G,4,FALSE),\"\")","v":0},{"$f":"IFERROR(VLOOKUP(ROW(G79)-ROW(G$12)+1,ScorecardTABLE!$D:$G,3,FALSE),\"\")","v":0},null,null,null,"yes","yes","yes",3]
[null,{"$f":"IFERROR(VLOOKUP(ROW(F80)-ROW(F$12)+1,ScorecardTABLE!$D:$G,4,FALSE),\"\")","v":0},{"$f":"IFERROR(VLOOKUP(ROW(G80)-ROW(G$12)+1,ScorecardTABLE!$D:$G,3,FALSE),\"\")","v":0},null,null,null,"yes","yes",{"$f":"IF(AND(G80=\"yes\",H80=\"yes\"),\"yes\",\"\")","v":"yes"},{"$f":"COUNTIF(F80:I80,\"yes\")","v":3}]
[null,{"$f":"IFERROR(VLOOKUP(ROW(F81)-ROW(F$12)+1,ScorecardTABLE!$D:$G,4,FALSE),\"\")","v":0},{"$f":"IFERROR(VLOOKUP(ROW(G81)-ROW(G$12)+1,ScorecardTABLE!$D:$G,3,FALSE),\"\")","v":0},null,null,null,"yes","yes","yes",3]
[null,{"$f":"IFERROR(VLOOKUP(ROW(F82)-ROW(F$12)+1,ScorecardTABLE!$D:$G,4,FALSE),\"\")","v":0},{"$f":"IFERROR(VLOOKUP(ROW(G82)-ROW(G$12)+1,ScorecardTABLE!$D:$G,3,FALSE),\"\")","v":0},null,null,null,"yes","yes","yes",3]
[null,{"$f":"IFERROR(VLOOKUP(ROW(F83)-ROW(F$12)+1,ScorecardTABLE!$D:$G,4,FALSE),\"\")","v":0},{"$f":"IFERROR(VLOOKUP(ROW(G83)-ROW(G$12)+1,ScorecardTABLE!$D:$G,3,FALSE),\"\")","v":0},null,null,null,"yes","yes","yes",3]
[null,{"$f":"IFERROR(VLOOKUP(ROW(F84)-ROW(F$12)+1,ScorecardTABLE!$D:$G,4,FALSE),\"\")","v":0},{"$f":"IFERROR(VLOOKUP(ROW(G84)-ROW(G$12)+1,ScorecardTABLE!$D:$G,3,FALSE),\"\")","v":0},null,null,null,"yes","yes","yes",3]
[null,{"$f":"IFERROR(VLOOKUP(ROW(F85)-ROW(F$12)+1,ScorecardTABLE!$D:$G,4,FALSE),\"\")","v":0},{"$f":"IFERROR(VLOOKUP(ROW(G85)-ROW(G$12)+1,ScorecardTABLE!$D:$G,3,FALSE),\"\")","v":0},null,null,null,"yes","yes","yes",3]
[null,{"$f":"IFERROR(VLOOKUP(ROW(F86)-ROW(F$12)+1,ScorecardTABLE!$D:$G,4,FALSE),\"\")","v":""},{"$f":"IFERROR(VLOOKUP(ROW(G86)-ROW(G$12)+1,ScorecardTABLE!$D:$G,3,FALSE),\"\")","v":""},null,null,null,"no","no","",0]
[null,{"$f":"IFERROR(VLOOKUP(ROW(F87)-ROW(F$12)+1,ScorecardTABLE!$D:$G,4,FALSE),\"\")","v":""},{"$f":"IFERROR(VLOOKUP(ROW(G87)-ROW(G$12)+1,ScorecardTABLE!$D:$G,3,FALSE),\"\")","v":""},null,null,null,"no","no","",0]
[null,{"$f":"IFERROR(VLOOKUP(ROW(F88)-ROW(F$12)+1,ScorecardTABLE!$D:$G,4,FALSE),\"\")","v":""},{"$f":"IFERROR(VLOOKUP(ROW(G88)-ROW(G$12)+1,ScorecardTABLE!$D:$G,3,FALSE),\"\")","v":""},null,null,null,"no","no","",0]
[null,{"$f":"IFERROR(VLOOKUP(ROW(F89)-ROW(F$12)+1,ScorecardTABLE!$D:$G,4,FALSE),\"\")","v":""},{"$f":"IFERROR(VLOOKUP(ROW(G89)-ROW(G$12)+1,ScorecardTABLE!$D:$G,3,FALSE),\"\")","v":""},null,null,null,"no","no","",0]
[null,{"$f":"IFERROR(VLOOKUP(ROW(F90)-ROW(F$12)+1,ScorecardTABLE!$D:$G,4,FALSE),\"\")","v":""},{"$f":"IFERROR(VLOOKUP(ROW(G90)-ROW(G$12)+1,ScorecardTABLE!$D:$G,3,FALSE),\"\")","v":""},null,null,null,"no","no","",0]
[null,{"$f":"IFERROR(VLOOKUP(ROW(F91)-ROW(F$12)+1,ScorecardTABLE!$D:$G,4,FALSE),\"\")","v":""},{"$f":"IFERROR(VLOOKUP(ROW(G91)-ROW(G$12)+1,ScorecardTABLE!$D:$G,3,FALSE),\"\")","v":""},null,null,null,"no","no","",0]
[null,{"$f":"IFERROR(VLOOKUP(ROW(F92)-ROW(F$12)+1,ScorecardTABLE!$D:$G,4,FALSE),\"\")","v":""},{"$f":"IFERROR(VLOOKUP(ROW(G92)-ROW(G$12)+1,ScorecardTABLE!$D:$G,3,FALSE),\"\")","v":""},null,null,null,"no","no","",0]
[null,{"$f":"IFERROR(VLOOKUP(ROW(F93)-ROW(F$12)+1,ScorecardTABLE!$D:$G,4,FALSE),\"\")","v":""},{"$f":"IFERROR(VLOOKUP(ROW(G93)-ROW(G$12)+1,ScorecardTABLE!$D:$G,3,FALSE),\"\")","v":""},null,null,null,"no","no","",0]
[null,{"$f":"IFERROR(VLOOKUP(ROW(F94)-ROW(F$12)+1,ScorecardTABLE!$D:$G,4,FALSE),\"\")","v":""},{"$f":"IFERROR(VLOOKUP(ROW(G94)-ROW(G$12)+1,ScorecardTABLE!$D:$G,3,FALSE),\"\")","v":""},null,null,null,"no","no","",0]
[null,{"$f":"IFERROR(VLOOKUP(ROW(F95)-ROW(F$12)+1,ScorecardTABLE!$D:$G,4,FALSE),\"\")","v":""},{"$f":"IFERROR(VLOOKUP(ROW(G95)-ROW(G$12)+1,ScorecardTABLE!$D:$G,3,FALSE),\"\")","v":""},null,null,null,"no","no",{"$f":"IF(AND(G95=\"yes\",H95=\"yes\"),\"yes\",\"\")","v":""},{"$f":"COUNTIF(F95:I95,\"yes\")","v":0}]
[null,{"$f":"IFERROR(VLOOKUP(ROW(F96)-ROW(F$12)+1,ScorecardTABLE!$D:$G,4,FALSE),\"\")","v":""},{"$f":"IFERROR(VLOOKUP(ROW(G96)-ROW(G$12)+1,ScorecardTABLE!$D:$G,3,FALSE),\"\")","v":""},null,null,null,"no","no","",0]
[null,{"$f":"IFERROR(VLOOKUP(ROW(F97)-ROW(F$12)+1,ScorecardTABLE!$D:$G,4,FALSE),\"\")","v":""},{"$f":"IFERROR(VLOOKUP(ROW(G97)-ROW(G$12)+1,ScorecardTABLE!$D:$G,3,FALSE),\"\")","v":""},null,null,null,"no","no","",0]
[null,{"$f":"IFERROR(VLOOKUP(ROW(F98)-ROW(F$12)+1,ScorecardTABLE!$D:$G,4,FALSE),\"\")","v":""},{"$f":"IFERROR(VLOOKUP(ROW(G98)-ROW(G$12)+1,ScorecardTABLE!$D:$G,3,FALSE),\"\")","v":""},null,null,null,"no","no","",0]
[null,{"$f":"IFERROR(VLOOKUP(ROW(F99)-ROW(F$12)+1,ScorecardTABLE!$D:$G,4,FALSE),\"\")","v":""},{"$f":"IFERROR(VLOOKUP(ROW(G99)-ROW(G$12)+1,ScorecardTABLE!$D:$G,3,FALSE),\"\")","v":""},null,null,null,"no","no","",0]
[null,{"$f":"IFERROR(VLOOKUP(ROW(F100)-ROW(F$12)+1,ScorecardTABLE!$D:$G,4,FALSE),\"\")","v":""},{"$f":"IFERROR(VLOOKUP(ROW(G100)-ROW(G$12)+1,ScorecardTABLE!$D:$G,3,FALSE),\"\")","v":""},null,null,null,"no","no","",0]
[null,{"$f":"IFERROR(VLOOKUP(ROW(F101)-ROW(F$12)+1,ScorecardTABLE!$D:$G,4,FALSE),\"\")","v":""},{"$f":"IFERROR(VLOOKUP(ROW(G101)-ROW(G$12)+1,ScorecardTABLE!$D:$G,3,FALSE),\"\")","v":""},null,null,null,"no","no","",0]
[null,{"$f":"IFERROR(VLOOKUP(ROW(F102)-ROW(F$12)+1,ScorecardTABLE!$D:$G,4,FALSE),\"\")","v":""},{"$f":"IFERROR(VLOOKUP(ROW(G102)-ROW(G$12)+1,ScorecardTABLE!$D:$G,3,FALSE),\"\")","v":""},null,null,null,"no","no","",0]
[null,{"$f":"IFERROR(VLOOKUP(ROW(F103)-ROW(F$12)+1,ScorecardTABLE!$D:$G,4,FALSE),\"\")","v":""},{"$f":"IFERROR(VLOOKUP(ROW(G103)-ROW(G$12)+1,ScorecardTABLE!$D:$G,3,FALSE),\"\")","v":""},null,null,null,"no","no","",0]
[null,null,null,null,null,null,"yes","yes","yes",3]
[null,null,null,null,null,null,"yes","yes","yes",3]
[null,null,null,null,null,null,"yes","yes","yes",3]
[null,null,null,null,null,null,"yes","yes","yes",3]
[null,null,null,null,null,null,{"$f":"IF(B108=0,\"yes\",\"no\")","v":"yes"},{"$f":"IF(C108=0,\"yes\",\"no\")","v":"yes"},"yes",3]
[null,null,null,null,null,null,"yes","yes","yes",3]
[null,null,null,null,null,null,"yes","yes","yes",3]
[null,null,null,null,null,null,"yes","yes","yes",3]
[null,null,null,null,null,null,"yes","yes","yes",3]
[null,null,null,null,null,null,"yes","yes","yes",3]
[null,null,null,null,null,null,"yes","yes","yes",3]
[null,null,null,null,null,null,"yes","yes","yes",3]
[null,null,null,null,null,null,"yes","yes","yes",3]
[null,null,null,null,null,null,"yes","yes","yes",3]
[null,null,null,null,null,null,"yes","yes","yes",3]
[null,null,null,null,null,null,"yes","yes","yes",3]
[null,null,null,null,null,null,"yes","yes","yes",3]
[null,null,null,null,null,null,"yes","yes","yes",3]
[null,null,null,null,null,null,"yes","yes","yes",3]
[null,null,null,null,null,null,"yes","yes","yes",3]
[null,null,null,null,null,null,"yes","yes","yes",3]
[null,null,null,null,null,null,"yes","yes","yes",3]
[null,null,null,null,null,null,"yes","yes","yes",3]
[null,null,null,null,null,null,"yes","yes",{"$f":"IF(AND(G127=\"yes\",H127=\"yes\"),\"yes\",\"\")","v":"yes"},{"$f":"COUNTIF(F127:I127,\"yes\")","v":3}]
[null,null,null,null,null,null,"yes","yes","yes",3]
[null,null,null,null,null,null,"yes","yes","yes",3]
[null,null,null,null,null,null,"yes","yes","yes",3]
[null,null,null,null,null,null,"yes","yes","yes",3]
[null,null,null,null,null,null,"yes","yes","yes",3]
[null,null,null,null,null,null,"yes","yes","yes",3]
[null,null,null,null,null,null,"yes","yes","yes",3]
[null,null,null,null,null,null,"yes","yes","yes",3]
[null,null,null,null,null,null,"yes","yes","yes",3]
[null,null,null,null,null,null,"yes","yes","yes",3]

{"sheet":"ScorecardTABLE","index":11,"n_rows":144,"n_cols":19,"rows_kept":144,"cut":false,"hidden":true,"merged":[[56,9,59,12],[64,9,69,12],[37,9,38,12],[22,9,23,12],[64,1,69,1]]}
[]
[null,null,null,"Active",null,null,null,null,null,null,null,"Dropdown list"]
[null,null,null,null,null,null,null,null,null,null,null,"Yes"]
[null,null,null,null,null,"remove or find out how to tie to the earlier checklists",null,null,null,null,null,"Partial"]
[null,null,null,null,null,null,null,null,null,null,null,"No"]
[null,null,null,null,null,null,null,null,null,null,null,"n/a"]
[null,null,null,null,null,null,null,null,null,null,null,"Variance"]
[null,null,"Title",{"$f":"IF(OR($I8=TRUE),MAX(D$3:D7)+1,0)","v":0},null,"Category:  Commissioning and Sustainability Review",null,null,{"$f":"IF(OR(I9:I14=TRUE),TRUE)","v":false},null,null,"Waiver",null,null,null,null,null,null,"PREVIOUSLY these wscorecard items were WRITTEN AS:  "]
[null,"Remove - but definitely something we want to track",null,"IF(I9=TRUE,MAX(D$1:D8)+1,0)",null,"Basic Service(s): completed ","18 20 40.1",null,{"$f":"IF(OR('MATRIX TABLE'!B4:B7>0),TRUE)","v":false},null,null,null,null,{"$f":"IF(D9>0, IF(ISBLANK(OFFSET(Scorecard!$D$11, D9, 0)),\"TBD\",OFFSET(Scorecard!$D$11, D9, 0)), \"NA\")","v":{"$error":"#VALUE!"}},{"$f":"IF(D9>0, IF(OR(ISBLANK(OFFSET(Scorecard!$E$11, D9, 0)),OFFSET(Scorecard!$E$11, D9, 0)=CHAR(10)),\"Blank\",OFFSET(Scorecard!$E$11, D9, 0)), \"NA\")","v":{"$error":"#VALUE!"}}]
[null,"could be integrated based on response from checklists",null,{"$f":"IF(I10=TRUE,MAX(D$1:D9)+1,0)","v":0},null,"Confirmed Energy Model","18 20 50.1",null,{"$f":"IF(I18=TRUE,TRUE)","v":false},null,null,null,null,{"$f":"IF(D10>0, IF(ISBLANK(OFFSET(Scorecard!$D$11, D10, 0)),\"TBD\",OFFSET(Scorecard!$D$11, D10, 0)), \"NA\")","v":"NA"},{"$f":"IF(D10>0, IF(OR(ISBLANK(OFFSET(Scorecard!$E$11, D10, 0)),OFFSET(Scorecard!$E$11, D10, 0)=CHAR(10)),\"Blank\",OFFSET(Scorecard!$E$11, D10, 0)), \"NA\")","v":"NA"},null,null,null,"Additional Service:  confirmed Energy Model"]
[null,"could be integrated based on response from checklists",null,{"$f":"IF(I11=TRUE,MAX(D$1:D10)+1,0)","v":0},null,"Confirmed Water Model","18 20 50.2",null,{"$f":"IF(I35=TRUE,TRUE)","v":false},null,null,null,null,{"$f":"IF(D11>0, IF(ISBLANK(OFFSET(Scorecard!$D$11, D11, 0)),\"TBD\",OFFSET(Scorecard!$D$11, D11, 0)), \"NA\")","v":"NA"},{"$f":"IF(D11>0, IF(OR(ISBLANK(OFFSET(Scorecard!$E$11, D11, 0)),OFFSET(Scorecard!$E$11, D11, 0)=CHAR(10)),\"Blank\",OFFSET(Scorecard!$E$11, D11, 0)), \"NA\")","v":"NA"},null,null,null,"Additional Service:  confirmed Water Model"]
[null,"covered in cx report?",null,"IF(I12=TRUE,MAX(D$1:D11)+1,0)",null,"Additional Service:  confirmed background sound levels","18 20 50.3.1",null,{"$f":"IF('MATRIX TABLE'!B63,TRUE)","v":false},null,null,null,null,{"$f":"IF(D12>0, IF(ISBLANK(OFFSET(Scorecard!$D$11, D12, 0)),\"TBD\",OFFSET(Scorecard!$D$11, D12, 0)), \"NA\")","v":{"$error":"#VALUE!"}},{"$f":"IF(D12>0, IF(OR(ISBLANK(OFFSET(Scorecard!$E$11, D12, 0)),OFFSET(Scorecard!$E$11, D12, 0)=CHAR(10)),\"Blank\",OFFSET(Scorecard!$E$11, D12, 0)), \"NA\")","v":{"$error":"#VALUE!"}},null,null,null,"Additional Service:  confirmed background sound levels"]
[null,"covered in cx report?",null,"IF(I13=TRUE,MAX(D$1:D12)+1,0)",null,"Additional Service:  confirmed lighting levels","18 20 50.3.2",null,{"$f":"IF('MATRIX TABLE'!B66,TRUE)","v":false},null,null,null,null,{"$f":"IF(D13>0, IF(ISBLANK(OFFSET(Scorecard!$D$11, D13, 0)),\"TBD\",OFFSET(Scorecard!$D$11, D13, 0)), \"NA\")","v":{"$error":"#VALUE!"}},{"$f":"IF(D13>0, IF(OR(ISBLANK(OFFSET(Scorecard!$E$11, D13, 0)),OFFSET(Scorecard!$E$11, D13, 0)=CHAR(10)),\"Blank\",OFFSET(Scorecard!$E$11, D13, 0)), \"NA\")","v":{"$error":"#VALUE!"}},null,null,null,"Additional Service:  confirmed lighting levels"]
[null,"could be integrated based on response from checklists",null,{"$f":"IF(I14=TRUE,MAX(D$1:D13)+1,0)","v":0},null,"Confirmed LCCA(s) for Energy Systems, Water Systems, and/or Materials Selection ","18 20 50.4",null,{"$f":"IF(OR(I19=TRUE,I36=TRUE,I43=TRUE),TRUE)","v":false},"Correct checkbox?",null,null,null,{"$f":"IF(D14>0, IF(ISBLANK(OFFSET(Scorecard!$D$11, D14, 0)),\"TBD\",OFFSET(Scorecard!$D$11, D14, 0)), \"NA\")","v":"NA"},{"$f":"IF(D14>0, IF(OR(ISBLANK(OFFSET(Scorecard!$E$11, D14, 0)),OFFSET(Scorecard!$E$11, D14, 0)=CHAR(10)),\"Blank\",OFFSET(Scorecard!$E$11, D14, 0)), \"NA\")","v":"NA"},null,null,null,"Additional Service:  confirmed LCCA(s)"]
[null,null,null,{"$f":"IF(AND(OR(D9:D14>0),MAX(D8:D14)>0),MAX(D3:D14)+1,\"\")","v":""}]
[null,null,"Title",{"$f":"IF(OR($I16=TRUE),MAX(D$3:D15)+1,0)","v":0},null,"Category:  Energy Efficiency",null,null,{"$f":"IF(OR('MATRIX TABLE'!B8:B25>0),TRUE)","v":false}]
[null,"variance would be needed not to… so should be able to say 'YES' for any project that has completed this SAM",null,{"$f":"IF(I17=TRUE,MAX(D$1:D16)+1,0)","v":0},null,"Complied with ASHRAE 90.1 - 2016 Energy Standards","18 30 20.1",null,{"$f":"IF(OR('MATRIX TABLE'!B11:B23>0),TRUE)","v":false},null,null,null,null,{"$f":"IF(D17>0, IF(ISBLANK(OFFSET(Scorecard!$D$11, D17, 0)),\"TBD\",OFFSET(Scorecard!$D$11, D17, 0)), \"NA\")","v":"NA"},{"$f":"IF(D17>0, IF(OR(ISBLANK(OFFSET(Scorecard!$E$11, D17, 0)),OFFSET(Scorecard!$E$11, D17, 0)=CHAR(10)),\"Blank\",OFFSET(Scorecard!$E$11, D17, 0)), \"NA\")","v":"NA"}]
[null,null,null,{"$f":"IF(I18=TRUE,MAX(D$1:D17)+1,0)","v":0},null,"Energy Use Intensity (EUI) final design meets/exceeds BDS target ","18 30 40",null,{"$f":"IF('MATRIX TABLE'!B24>0,TRUE)","v":false},null,null,null,null,{"$f":"IF(D18>0, IF(ISBLANK(OFFSET(Scorecard!$D$11, D18, 0)),\"TBD\",OFFSET(Scorecard!$D$11, D18, 0)), \"NA\")","v":"NA"},{"$f":"IF(D18>0, IF(OR(ISBLANK(OFFSET(Scorecard!$E$11, D18, 0)),OFFSET(Scorecard!$E$11, D18, 0)=CHAR(10)),\"Blank\",OFFSET(Scorecard!$E$11, D18, 0)), \"NA\")","v":"NA"}]
[null,"has to be back end…  no information in the SAM to resolve this right?",null,{"$f":"IF(I19=TRUE,MAX(D$1:D18)+1,0)","v":0},null,"Energy System proves to be Life-Cycle Cost Effective","18 30 40.4",null,{"$f":"IF('MATRIX TABLE'!B25>0,TRUE)","v":false},null,null,null,null,{"$f":"IF(D19>0, IF(ISBLANK(OFFSET(Scorecard!$D$11, D19, 0)),\"TBD\",OFFSET(Scorecard!$D$11, D19, 0)), \"NA\")","v":"NA"},{"$f":"IF(D19>0, IF(OR(ISBLANK(OFFSET(Scorecard!$E$11, D19, 0)),OFFSET(Scorecard!$E$11, D19, 0)=CHAR(10)),\"Blank\",OFFSET(Scorecard!$E$11, D19, 0)), \"NA\")","v":"NA"}]
[null,null,null,{"$f":"IF(AND(OR(D17:D19>0),MAX(D16:D19)>0),MAX(D3:D19)+1,\"\")","v":""}]
[null,null,"Title",{"$f":"IF(OR($I21=TRUE),MAX(D$3:D20)+1,0)","v":0},null,"Category:  Water Use Efficiency",null,null,{"$f":"IF(OR('MATRIX TABLE'!B28:B41>0),TRUE)","v":false},null,null,null,null,null,null,null,null,null,"Category:  Water Use Efficiency"]
[null,null,null,{"$f":"IF(I22=TRUE,MAX(D$1:D21)+1,0)","v":0},null,"Landscape Design: >= 60% planted area native and adaptive plants","18 40 30.1",null,{"$f":"IF('MATRIX TABLE'!B28>0,TRUE)","v":false},null,null,null,null,{"$f":"IF(D22>0, IF(ISBLANK(OFFSET(Scorecard!$D$11, D22, 0)),\"TBD\",OFFSET(Scorecard!$D$11, D22, 0)), \"NA\")","v":"NA"},{"$f":"IF(D22>0, IF(OR(ISBLANK(OFFSET(Scorecard!$E$11, D22, 0)),OFFSET(Scorecard!$E$11, D22, 0)=CHAR(10)),\"Blank\",OFFSET(Scorecard!$E$11, D22, 0)), \"NA\")","v":"NA"},null,null,null,"Landscape Design: >= 60% planted area native and adaptive plants"]
[null,null,null,{"$f":"IF(I23=TRUE,MAX(D$1:D22)+1,0)","v":0},null,"Irrigation Water:  max of 1/3 improved area connected to potable water","18 40 30.2",null,{"$f":"IF('MATRIX TABLE'!B29>0,TRUE)","v":false},"note:  same causes True",null,null,null,{"$f":"IF(D23>0, IF(ISBLANK(OFFSET(Scorecard!$D$11, D23, 0)),\"TBD\",OFFSET(Scorecard!$D$11, D23, 0)), \"NA\")","v":"NA"},{"$f":"IF(D23>0, IF(OR(ISBLANK(OFFSET(Scorecard!$E$11, D23, 0)),OFFSET(Scorecard!$E$11, D23, 0)=CHAR(10)),\"Blank\",OFFSET(Scorecard!$E$11, D23, 0)), \"NA\")","v":"NA"},null,null,null,"Irrigation Water:  max of 1/3 improved area connected to potable water"]
[null,null,null,{"$f":"IF(I24=TRUE,MAX(D$1:D23)+1,0)","v":0},null,"Irrigation Controls:  meet USEPA's WaterSense requirements","18 40 30.2.3",null,{"$f":"IF('MATRIX TABLE'!B29>0,TRUE)","v":false},null,null,null,null,{"$f":"IF(D24>0, IF(ISBLANK(OFFSET(Scorecard!$D$11, D24, 0)),\"TBD\",OFFSET(Scorecard!$D$11, D24, 0)), \"NA\")","v":"NA"},{"$f":"IF(D24>0, IF(OR(ISBLANK(OFFSET(Scorecard!$E$11, D24, 0)),OFFSET(Scorecard!$E$11, D24, 0)=CHAR(10)),\"Blank\",OFFSET(Scorecard!$E$11, D24, 0)), \"NA\")","v":"NA"},null,null,null,"Irrigation Controls:  meet USEPA's WaterSense requirements"]
[null,null,null,{"$f":"IF(I25=TRUE,MAX(D$1:D24)+1,0)","v":0},null,"Plumbing Fixtures and Fittings:  meet USEPA's WaterSense requirements","18 40 40.1",null,{"$f":"IF('MATRIX TABLE'!B30>0,TRUE)","v":false},null,null,null,null,{"$f":"IF(D25>0, IF(ISBLANK(OFFSET(Scorecard!$D$11, D25, 0)),\"TBD\",OFFSET(Scorecard!$D$11, D25, 0)), \"NA\")","v":"NA"},{"$f":"IF(D25>0, IF(OR(ISBLANK(OFFSET(Scorecard!$E$11, D25, 0)),OFFSET(Scorecard!$E$11, D25, 0)=CHAR(10)),\"Blank\",OFFSET(Scorecard!$E$11, D25, 0)), \"NA\")","v":"NA"},null,null,null,"Plumbing Fixtures and Fittings:  meet USEPA's WaterSense requirements"]
[null,null,null,{"$f":"IF(I26=TRUE,MAX(D$1:D25)+1,0)","v":0},null,"Appliances Water Requirement:  comply with ENERGY STAR® requirements","18 40 40.2",null,{"$f":"IF('MATRIX TABLE'!B31>0,TRUE)","v":false},null,null,null,null,{"$f":"IF(D26>0, IF(ISBLANK(OFFSET(Scorecard!$D$11, D26, 0)),\"TBD\",OFFSET(Scorecard!$D$11, D26, 0)), \"NA\")","v":"NA"},{"$f":"IF(D26>0, IF(OR(ISBLANK(OFFSET(Scorecard!$E$11, D26, 0)),OFFSET(Scorecard!$E$11, D26, 0)=CHAR(10)),\"Blank\",OFFSET(Scorecard!$E$11, D26, 0)), \"NA\")","v":"NA"},null,null,null,"Appliances Water Requirement:  comply with ENERGY STAR® requirements"]
[null,"what we really want to know is if water was saved or used efficiently, not necessariy if this specific requirement was met",null,{"$f":"IF(I27=TRUE,MAX(D$1:D26)+1,0)","v":0},null,"HVAC System & Equipment:  water use and discharge ","18 40 40.3",null,{"$f":"IF('MATRIX TABLE'!B32>0,TRUE)","v":false},null,null,null,null,{"$f":"IF(D27>0, IF(ISBLANK(OFFSET(Scorecard!$D$11, D27, 0)),\"TBD\",OFFSET(Scorecard!$D$11, D27, 0)), \"NA\")","v":"NA"},{"$f":"IF(D27>0, IF(OR(ISBLANK(OFFSET(Scorecard!$E$11, D27, 0)),OFFSET(Scorecard!$E$11, D27, 0)=CHAR(10)),\"Blank\",OFFSET(Scorecard!$E$11, D27, 0)), \"NA\")","v":"NA"},null,null,null,"HVAC System & Equipment:  water use and discharge "]
[null,"what we really want to know is if water was saved or used efficiently, not necessariy if this specific requirement was met",null,{"$f":"IF(I28=TRUE,MAX(D$1:D27)+1,0)","v":0},null,"Roofs:  potable water prohibited for roof spray systems ","18 40 40.4",null,"IF('MATRIX TABLE'!B31>0,TRUE)",null,null,null,null,{"$f":"IF(D28>0, IF(ISBLANK(OFFSET(Scorecard!$D$11, D28, 0)),\"TBD\",OFFSET(Scorecard!$D$11, D28, 0)), \"NA\")","v":"NA"},{"$f":"IF(D28>0, IF(OR(ISBLANK(OFFSET(Scorecard!$E$11, D28, 0)),OFFSET(Scorecard!$E$11, D28, 0)=CHAR(10)),\"Blank\",OFFSET(Scorecard!$E$11, D28, 0)), \"NA\")","v":"NA"},null,null,null,"Roofs:  potable water prohibited for roof spray systems "]
[null,null,null,{"$f":"IF(I29=TRUE,MAX(D$1:D28)+1,0)","v":0},null,"Commercial Food Service Operations:  meet water efficiencies","18 40 40.5",null,{"$f":"IF('MATRIX TABLE'!B34>0,TRUE)","v":false},null,null,null,null,{"$f":"IF(D29>0, IF(ISBLANK(OFFSET(Scorecard!$D$11, D29, 0)),\"TBD\",OFFSET(Scorecard!$D$11, D29, 0)), \"NA\")","v":"NA"},{"$f":"IF(D29>0, IF(OR(ISBLANK(OFFSET(Scorecard!$E$11, D29, 0)),OFFSET(Scorecard!$E$11, D29, 0)=CHAR(10)),\"Blank\",OFFSET(Scorecard!$E$11, D29, 0)), \"NA\")","v":"NA"},null,null,null,"Commercial Food Service Operations:  meet water efficiencies"]
[null,"what we really want to know is if water was saved or used efficiently, not necessariy if this specific requirement was met",null,{"$f":"IF(I30=TRUE,MAX(D$1:D29)+1,0)","v":0},null,"WMC and Laboratory/Research Facility requirements met","18 40 40.6",null,{"$f":"IF('MATRIX TABLE'!B35>0,TRUE)","v":false},null,null,null,null,{"$f":"IF(D30>0, IF(ISBLANK(OFFSET(Scorecard!$D$11, D30, 0)),\"TBD\",OFFSET(Scorecard!$D$11, D30, 0)), \"NA\")","v":"NA"},{"$f":"IF(D30>0, IF(OR(ISBLANK(OFFSET(Scorecard!$E$11, D30, 0)),OFFSET(Scorecard!$E$11, D30, 0)=CHAR(10)),\"Blank\",OFFSET(Scorecard!$E$11, D30, 0)), \"NA\")","v":"NA"},null,null,null,"WMC and Laboratory/Research Facility"]
[null,"what we really want to know is if water was saved or used efficiently, not necessariy if this specific requirement was met",null,{"$f":"IF(I31=TRUE,MAX(D$1:D30)+1,0)","v":0},null,"Special Water Features:  ornamental fountain equipment and water source","18 40 40.7",null,{"$f":"IF('MATRIX TABLE'!B36>0,TRUE)","v":false},null,null,null,null,{"$f":"IF(D31>0, IF(ISBLANK(OFFSET(Scorecard!$D$11, D31, 0)),\"TBD\",OFFSET(Scorecard!$D$11, D31, 0)), \"NA\")","v":"NA"},{"$f":"IF(D31>0, IF(OR(ISBLANK(OFFSET(Scorecard!$E$11, D31, 0)),OFFSET(Scorecard!$E$11, D31, 0)=CHAR(10)),\"Blank\",OFFSET(Scorecard!$E$11, D31, 0)), \"NA\")","v":"NA"},null,null,null,"Special Water Features:  ornamental fountain equipment and water source"]
[null,"not needed here as it is required for all new projects anyways",null,"IF(I32=TRUE,MAX(D$1:D31)+1,0)",null,"Water Utility Metering","18 40 40.8",null,null,null,null,null,null,{"$f":"IF(D32>0, IF(ISBLANK(OFFSET(Scorecard!$D$11, D32, 0)),\"TBD\",OFFSET(Scorecard!$D$11, D32, 0)), \"NA\")","v":{"$error":"#VALUE!"}},{"$f":"IF(D32>0, IF(OR(ISBLANK(OFFSET(Scorecard!$E$11, D32, 0)),OFFSET(Scorecard!$E$11, D32, 0)=CHAR(10)),\"Blank\",OFFSET(Scorecard!$E$11, D32, 0)), \"NA\")","v":{"$error":"#VALUE!"}},null,null,null,"Water Utility Metering"]
[null,"what we really want to know is if water was saved or used efficiently, not necessariy if this specific requirement was met",null,{"$f":"IF(I33=TRUE,MAX(D$1:D32)+1,0)","v":0},null,"Water Softeners:  demand-initiated regeneration controls & efficiency requirements","18 40 40.9",null,{"$f":"IF('MATRIX TABLE'!B37>0,TRUE)","v":false},null,null,null,null,{"$f":"IF(D33>0, IF(ISBLANK(OFFSET(Scorecard!$D$11, D33, 0)),\"TBD\",OFFSET(Scorecard!$D$11, D33, 0)), \"NA\")","v":"NA"},{"$f":"IF(D33>0, IF(OR(ISBLANK(OFFSET(Scorecard!$E$11, D33, 0)),OFFSET(Scorecard!$E$11, D33, 0)=CHAR(10)),\"Blank\",OFFSET(Scorecard!$E$11, D33, 0)), \"NA\")","v":"NA"},null,null,null,"Water Softeners:  demand-initiated regeneration controls & efficiency requirements"]
[null,"what we really want to know is if water was saved or used efficiently, not necessariy if this specific requirement was met",null,{"$f":"IF(I34=TRUE,MAX(D$1:D33)+1,0)","v":0},null,"Reverse Osmosis Water Treatment Systems requirements met","18 40 40.10",null,{"$f":"IF('MATRIX TABLE'!B38>0,TRUE)","v":false},null,null,null,null,{"$f":"IF(D34>0, IF(ISBLANK(OFFSET(Scorecard!$D$11, D34, 0)),\"TBD\",OFFSET(Scorecard!$D$11, D34, 0)), \"NA\")","v":"NA"},{"$f":"IF(D34>0, IF(OR(ISBLANK(OFFSET(Scorecard!$E$11, D34, 0)),OFFSET(Scorecard!$E$11, D34, 0)=CHAR(10)),\"Blank\",OFFSET(Scorecard!$E$11, D34, 0)), \"NA\")","v":"NA"},null,null,null,"Reverse Osmosis Water Treatment Systems"]
[null,null,null,{"$f":"IF(I35=TRUE,MAX(D$1:D34)+1,0)","v":0},null,"Water Use Intesity (WUI) final design meets/exceeds BDS target","18 40 40.11",null,{"$f":"IF('MATRIX TABLE'!B39>0,TRUE)","v":false},null,null,null,null,{"$f":"IF(D35>0, IF(ISBLANK(OFFSET(Scorecard!$D$11, D35, 0)),\"TBD\",OFFSET(Scorecard!$D$11, D35, 0)), \"NA\")","v":"NA"},{"$f":"IF(D35>0, IF(OR(ISBLANK(OFFSET(Scorecard!$E$11, D35, 0)),OFFSET(Scorecard!$E$11, D35, 0)=CHAR(10)),\"Blank\",OFFSET(Scorecard!$E$11, D35, 0)), \"NA\")","v":"NA"},null,null,null,"Water Use Intesity (WUI) Target"]
[null,"removed as we willl typically not be doing LCCA for water systems",null,{"$f":"IF(I36=TRUE,MAX(D$1:D35)+1,0)","v":0},null,"Water System proves to be Life-Cycle Cost Effective","18 40 50",null,{"$f":"IF('MATRIX TABLE'!B41>0,TRUE)","v":false},null,null,null,null,{"$f":"IF(D36>0, IF(ISBLANK(OFFSET(Scorecard!$D$11, D36, 0)),\"TBD\",OFFSET(Scorecard!$D$11, D36, 0)), \"NA\")","v":"NA"},{"$f":"IF(D36>0, IF(OR(ISBLANK(OFFSET(Scorecard!$E$11, D36, 0)),OFFSET(Scorecard!$E$11, D36, 0)=CHAR(10)),\"Blank\",OFFSET(Scorecard!$E$11, D36, 0)), \"NA\")","v":"NA"},null,null,null,"Water System proves to be Life-Cycle Cost Effective"]
[null,null,null,{"$f":"IF(AND(OR(D22:D36>0),MAX(D21:D36)>0),MAX(D3:D36)+1,\"\")","v":""}]
[null,null,"Title",{"$f":"IF(OR($I38=TRUE),MAX(D$3:D37)+1,0)","v":0},null,"Category:  Ecosystem Services",null,null,{"$f":"IF(OR('MATRIX TABLE'!B44>0),TRUE)","v":false},"note:  The MATRIX TABLE has more than one item for the checklists:  ESA and \"Consult University LA\"…. We do not have a scorecard item for \"conult u LA\"",null,null,null,null,null,null,null,null,"Category:  Ecosystem Services"]
[null,null,null,{"$f":"IF(I39=TRUE,MAX(D$1:D38)+1,0)","v":0},null,"Ecosystem Services improved on site","18 50 30 ",null,{"$f":"IF('MATRIX TABLE'!B44>0,TRUE)","v":false},null,null,null,null,{"$f":"IF(D39>0, IF(ISBLANK(OFFSET(Scorecard!$D$11, D39, 0)),\"TBD\",OFFSET(Scorecard!$D$11, D39, 0)), \"NA\")","v":"NA"},{"$f":"IF(D39>0, IF(OR(ISBLANK(OFFSET(Scorecard!$E$11, D39, 0)),OFFSET(Scorecard!$E$11, D39, 0)=CHAR(10)),\"Blank\",OFFSET(Scorecard!$E$11, D39, 0)), \"NA\")","v":"NA"},null,null,null,"Improve Ecosystem Services"]
[null,null,null,{"$f":"IF(AND(OR(D38>0),MAX(D38:D39)>0),MAX(D3:D39)+1,0)","v":0}]
[null,null,"Title",{"$f":"IF(OR($I41=TRUE),MAX(D$3:D40)+1,0)","v":0},null,"Category:  Materials ",null,null,{"$f":"IF(OR('MATRIX TABLE'!B48:B53>0),TRUE)","v":false},null,null,null,null,null,null,null,null,null,"Category:  Materials "]
[null,null,null,{"$f":"IF(I42=TRUE,MAX(D$1:D41)+1,0)","v":0},null,"Sustainable Value of Materials requirements met","18 60 30",null,{"$f":"IF('MATRIX TABLE'!B48>0,TRUE)","v":false},null,null,null,null,{"$f":"IF(D42>0, IF(ISBLANK(OFFSET(Scorecard!$D$11, D42, 0)),\"TBD\",OFFSET(Scorecard!$D$11, D42, 0)), \"NA\")","v":"NA"},{"$f":"IF(D42>0, IF(OR(ISBLANK(OFFSET(Scorecard!$E$11, D42, 0)),OFFSET(Scorecard!$E$11, D42, 0)=CHAR(10)),\"Blank\",OFFSET(Scorecard!$E$11, D42, 0)), \"NA\")","v":"NA"},null,null,null,"Material Sourcing"]
[null,null,null,{"$f":"IF(I43=TRUE,MAX(D$1:D42)+1,0)","v":0},null,"Materials proves to be Life-Cycle Cost Effective","18 60 30.1",null,{"$f":"IF('MATRIX TABLE'!B53>0,TRUE)","v":false},"note:  this order is slightly different than the order of the text in the MATRIX TABLE tab",null,null,null,{"$f":"IF(D43>0, IF(ISBLANK(OFFSET(Scorecard!$D$11, D43, 0)),\"TBD\",OFFSET(Scorecard!$D$11, D43, 0)), \"NA\")","v":"NA"},{"$f":"IF(D43>0, IF(OR(ISBLANK(OFFSET(Scorecard!$E$11, D43, 0)),OFFSET(Scorecard!$E$11, D43, 0)=CHAR(10)),\"Blank\",OFFSET(Scorecard!$E$11, D43, 0)), \"NA\")","v":"NA"},null,null,null,"Materials proves to be Life-Cycle Cost Effective"]
[null,"not needed as we would have this identified through downloading>",null,{"$f":"IF(I44=TRUE,MAX(D$1:D43)+1,0)","v":0},null,"Construction Waste Management Plan completed","18 60 40.1",null,{"$f":"IF('MATRIX TABLE'!B50>0,TRUE)","v":false},null,null,null,null,{"$f":"IF(D44>0, IF(ISBLANK(OFFSET(Scorecard!$D$11, D44, 0)),\"TBD\",OFFSET(Scorecard!$D$11, D44, 0)), \"NA\")","v":"NA"},{"$f":"IF(D44>0, IF(OR(ISBLANK(OFFSET(Scorecard!$E$11, D44, 0)),OFFSET(Scorecard!$E$11, D44, 0)=CHAR(10)),\"Blank\",OFFSET(Scorecard!$E$11, D44, 0)), \"NA\")","v":"NA"},null,null,null,"Construction Waste Management Plan completed"]
[null,null,null,{"$f":"IF(I45=TRUE,MAX(D$1:D44)+1,0)","v":0},null,"Construction & Demolition Waste Diversion Threshold completed","18 60 40.2",null,{"$f":"IF('MATRIX TABLE'!B51>0,TRUE)","v":false},null,null,null,null,{"$f":"IF(D45>0, IF(ISBLANK(OFFSET(Scorecard!$D$11, D45, 0)),\"TBD\",OFFSET(Scorecard!$D$11, D45, 0)), \"NA\")","v":"NA"},{"$f":"IF(D45>0, IF(OR(ISBLANK(OFFSET(Scorecard!$E$11, D45, 0)),OFFSET(Scorecard!$E$11, D45, 0)=CHAR(10)),\"Blank\",OFFSET(Scorecard!$E$11, D45, 0)), \"NA\")","v":"NA"},null,null,null,"Construction & Demolition Waste Diversion Threshold achieved"]
[null,"not needed as we would have this identified through downloading>",null,{"$f":"IF(I46=TRUE,MAX(D$1:D45)+1,0)","v":0},null,"Materials Management Plan completed ","18 60 50 ",null,{"$f":"IF('MATRIX TABLE'!B52>0,TRUE)","v":false},null,null,null,null,{"$f":"IF(D46>0, IF(ISBLANK(OFFSET(Scorecard!$D$11, D46, 0)),\"TBD\",OFFSET(Scorecard!$D$11, D46, 0)), \"NA\")","v":"NA"},{"$f":"IF(D46>0, IF(OR(ISBLANK(OFFSET(Scorecard!$E$11, D46, 0)),OFFSET(Scorecard!$E$11, D46, 0)=CHAR(10)),\"Blank\",OFFSET(Scorecard!$E$11, D46, 0)), \"NA\")","v":"NA"},null,null,null,"Materials Management Plan completed "]
[null,null,null,{"$f":"IF(AND(OR(D42:D46>0),MAX(D41:D46)>0),MAX(D10:D46)+1,0)","v":0}]
[null,null,"Title",{"$f":"IF(OR($I48=TRUE),MAX(D$3:D47)+1,0)","v":0},null,"Category:  User Experience",null,null,{"$f":"IF(OR('MATRIX TABLE'!B57:B68>0),TRUE)","v":false},null,null,null,null,null,null,null,null,null,"Category:  User Experience"]
[null,"how to put this on the back tracking piece?  WHERE IS THIS INFORMATION FOUND??? If it is on drawings, how to pull it? ",null,{"$f":"IF(I49=TRUE,MAX(D$1:D48)+1,0)","v":0},null,"Ventilation and Indoor Air Quality met","18 70 30.1",null,{"$f":"IF('MATRIX TABLE'!B57>0,TRUE)","v":false},null,null,null,null,{"$f":"IF(D49>0, IF(ISBLANK(OFFSET(Scorecard!$D$11, D49, 0)),\"TBD\",OFFSET(Scorecard!$D$11, D49, 0)), \"NA\")","v":"NA"},{"$f":"IF(D49>0, IF(OR(ISBLANK(OFFSET(Scorecard!$E$11, D49, 0)),OFFSET(Scorecard!$E$11, D49, 0)=CHAR(10)),\"Blank\",OFFSET(Scorecard!$E$11, D49, 0)), \"NA\")","v":"NA"},null,null,null,"Ventilation and Indoor Air Quality "]
[null,"couldn’t this be found in the back tracking? ",null,{"$f":"IF(I50=TRUE,MAX(D$1:D49)+1,0)","v":0},null,"Indoor Air Quality Management Plan completed","18 70 30.2",null,{"$f":"IF('MATRIX TABLE'!B58>0,TRUE)","v":false},null,null,null,null,{"$f":"IF(D50>0, IF(ISBLANK(OFFSET(Scorecard!$D$11, D50, 0)),\"TBD\",OFFSET(Scorecard!$D$11, D50, 0)), \"NA\")","v":"NA"},{"$f":"IF(D50>0, IF(OR(ISBLANK(OFFSET(Scorecard!$E$11, D50, 0)),OFFSET(Scorecard!$E$11, D50, 0)=CHAR(10)),\"Blank\",OFFSET(Scorecard!$E$11, D50, 0)), \"NA\")","v":"NA"},null,null,null,"Indoor Air Quality Management Plan  "]
[null,null,null,{"$f":"IF(I51=TRUE,MAX(D$1:D50)+1,0)","v":0},null,"Indoor Air Quality Testing met","18 70 30.3",null,{"$f":"IF('MATRIX TABLE'!B59>0,TRUE)","v":false},null,null,null,null,{"$f":"IF(D51>0, IF(ISBLANK(OFFSET(Scorecard!$D$11, D51, 0)),\"TBD\",OFFSET(Scorecard!$D$11, D51, 0)), \"NA\")","v":"NA"},{"$f":"IF(D51>0, IF(OR(ISBLANK(OFFSET(Scorecard!$E$11, D51, 0)),OFFSET(Scorecard!$E$11, D51, 0)=CHAR(10)),\"Blank\",OFFSET(Scorecard!$E$11, D51, 0)), \"NA\")","v":"NA"},null,null,null,"Indoor Air Quality Testing"]
[null,"what we really want to know is if user experience is good, not necessariy if this specific requirement was met",null,"IF(I52=TRUE,MAX(D$1:D51)+1,0)",null,"Building Entrance Design & Indoor Air Quality ","18 70 30.4",null,{"$f":"IF('MATRIX TABLE'!B60>0,TRUE)","v":false},null,null,null,null,{"$f":"IF(D52>0, IF(ISBLANK(OFFSET(Scorecard!$D$11, D52, 0)),\"TBD\",OFFSET(Scorecard!$D$11, D52, 0)), \"NA\")","v":{"$error":"#VALUE!"}},{"$f":"IF(D52>0, IF(OR(ISBLANK(OFFSET(Scorecard!$E$11, D52, 0)),OFFSET(Scorecard!$E$11, D52, 0)=CHAR(10)),\"Blank\",OFFSET(Scorecard!$E$11, D52, 0)), \"NA\")","v":{"$error":"#VALUE!"}},null,null,null,"Building Entrance Design & Indoor Air Quality "]
[null,null,null,{"$f":"IF(I53=TRUE,MAX(D$1:D52)+1,0)","v":0},null,"Interior Materials and Finishes emissions met","18 70 30.5",null,{"$f":"IF('MATRIX TABLE'!B61>0,TRUE)","v":false},null,null,null,null,{"$f":"IF(D53>0, IF(ISBLANK(OFFSET(Scorecard!$D$11, D53, 0)),\"TBD\",OFFSET(Scorecard!$D$11, D53, 0)), \"NA\")","v":"NA"},{"$f":"IF(D53>0, IF(OR(ISBLANK(OFFSET(Scorecard!$E$11, D53, 0)),OFFSET(Scorecard!$E$11, D53, 0)=CHAR(10)),\"Blank\",OFFSET(Scorecard!$E$11, D53, 0)), \"NA\")","v":"NA"},null,null,null,"Interior Materials and Finishes emissions"]
[null,null,null,{"$f":"IF(I54=TRUE,MAX(D$1:D53)+1,0)","v":0},null,"Thermal Comfort standards met","18 70 40 ",null,{"$f":"IF('MATRIX TABLE'!B62>0,TRUE)","v":false},null,null,null,null,{"$f":"IF(D54>0, IF(ISBLANK(OFFSET(Scorecard!$D$11, D54, 0)),\"TBD\",OFFSET(Scorecard!$D$11, D54, 0)), \"NA\")","v":"NA"},{"$f":"IF(D54>0, IF(OR(ISBLANK(OFFSET(Scorecard!$E$11, D54, 0)),OFFSET(Scorecard!$E$11, D54, 0)=CHAR(10)),\"Blank\",OFFSET(Scorecard!$E$11, D54, 0)), \"NA\")","v":"NA"},null,null,null,"Thermal Comfort "]
[null,"what we really want to know is if user experience is good, not necessariy if this specific requirement was met",null,"IF(I55=TRUE,MAX(D$1:D54)+1,0)",null,"Acoustical Performance ","18 70 50",null,{"$f":"IF(OR('MATRIX TABLE'!B63:B64>0),TRUE)","v":false},"note:  ttwo items relate to the Acoustic in the MATRIX TABLE tab",null,null,null,{"$f":"IF(D55>0, IF(ISBLANK(OFFSET(Scorecard!$D$11, D55, 0)),\"TBD\",OFFSET(Scorecard!$D$11, D55, 0)), \"NA\")","v":{"$error":"#VALUE!"}},{"$f":"IF(D55>0, IF(OR(ISBLANK(OFFSET(Scorecard!$E$11, D55, 0)),OFFSET(Scorecard!$E$11, D55, 0)=CHAR(10)),\"Blank\",OFFSET(Scorecard!$E$11, D55, 0)), \"NA\")","v":{"$error":"#VALUE!"}},null,null,null,"Acoustical Performance "]
[null,"what we really want to know is if user experience is good, not necessariy if this specific requirement was met",null,"IF(I56=TRUE,MAX(D$1:D55)+1,0)",null,"Equipment Vibration","18 70 55",null,{"$f":"IF('MATRIX TABLE'!B65>0,TRUE)","v":false},null,null,null,null,{"$f":"IF(D56>0, IF(ISBLANK(OFFSET(Scorecard!$D$11, D56, 0)),\"TBD\",OFFSET(Scorecard!$D$11, D56, 0)), \"NA\")","v":{"$error":"#VALUE!"}},{"$f":"IF(D56>0, IF(OR(ISBLANK(OFFSET(Scorecard!$E$11, D56, 0)),OFFSET(Scorecard!$E$11, D56, 0)=CHAR(10)),\"Blank\",OFFSET(Scorecard!$E$11, D56, 0)), \"NA\")","v":{"$error":"#VALUE!"}},null,null,null,"Equipment Vibration"]
[null,"what we really want to know is if user experience is good, not necessariy if this specific requirement was met",null,{"$f":"IF(I57=TRUE,MAX(D$1:D56)+1,0)","v":0},null,"Spatial Daylight Autonomy met","18 70 60.1",null,{"$f":"IF('MATRIX TABLE'!B66>0,TRUE)","v":false},"note:  all relate to the Daylighting and Lighting Quality info in the MATRIX TABLE tab",null,null,null,{"$f":"IF(D57>0, IF(ISBLANK(OFFSET(Scorecard!$D$11, D57, 0)),\"TBD\",OFFSET(Scorecard!$D$11, D57, 0)), \"NA\")","v":"NA"},{"$f":"IF(D57>0, IF(OR(ISBLANK(OFFSET(Scorecard!$E$11, D57, 0)),OFFSET(Scorecard!$E$11, D57, 0)=CHAR(10)),\"Blank\",OFFSET(Scorecard!$E$11, D57, 0)), \"NA\")","v":"NA"},null,null,null,"Spatial Daylight Autonomy"]
[null,"what we really want to know is if user experience is good, not necessariy if this specific requirement was met",null,"IF(I58=TRUE,MAX(D$1:D57)+1,0)",null,"Lighting Levels","18 70 60.2",null,{"$f":"IF('MATRIX TABLE'!B66>0,TRUE)","v":false},null,null,null,null,{"$f":"IF(D58>0, IF(ISBLANK(OFFSET(Scorecard!$D$11, D58, 0)),\"TBD\",OFFSET(Scorecard!$D$11, D58, 0)), \"NA\")","v":{"$error":"#VALUE!"}},{"$f":"IF(D58>0, IF(OR(ISBLANK(OFFSET(Scorecard!$E$11, D58, 0)),OFFSET(Scorecard!$E$11, D58, 0)=CHAR(10)),\"Blank\",OFFSET(Scorecard!$E$11, D58, 0)), \"NA\")","v":{"$error":"#VALUE!"}},null,null,null,"Lighting Levels"]
[null,"what we really want to know is if user experience is good, not necessariy if this specific requirement was met",null,"IF(I59=TRUE,MAX(D$1:D58)+1,0)",null,"Controls and Task Lighting","18 70 60.3",null,{"$f":"IF('MATRIX TABLE'!B66>0,TRUE)","v":false},null,null,null,null,{"$f":"IF(D59>0, IF(ISBLANK(OFFSET(Scorecard!$D$11, D59, 0)),\"TBD\",OFFSET(Scorecard!$D$11, D59, 0)), \"NA\")","v":{"$error":"#VALUE!"}},{"$f":"IF(D59>0, IF(OR(ISBLANK(OFFSET(Scorecard!$E$11, D59, 0)),OFFSET(Scorecard!$E$11, D59, 0)=CHAR(10)),\"Blank\",OFFSET(Scorecard!$E$11, D59, 0)), \"NA\")","v":{"$error":"#VALUE!"}},null,null,null,"Controls and Task Lighting"]
[null,"what we really want to know is if user experience is good, not necessariy if this specific requirement was met",null,"IF(I60=TRUE,MAX(D$1:D59)+1,0)",null,"Exterior Lighting","18 70 60.4",null,{"$f":"IF('MATRIX TABLE'!B66>0,TRUE)","v":false},null,null,null,null,{"$f":"IF(D60>0, IF(ISBLANK(OFFSET(Scorecard!$D$11, D60, 0)),\"TBD\",OFFSET(Scorecard!$D$11, D60, 0)), \"NA\")","v":{"$error":"#VALUE!"}},{"$f":"IF(D60>0, IF(OR(ISBLANK(OFFSET(Scorecard!$E$11, D60, 0)),OFFSET(Scorecard!$E$11, D60, 0)=CHAR(10)),\"Blank\",OFFSET(Scorecard!$E$11, D60, 0)), \"NA\")","v":{"$error":"#VALUE!"}},null,null,null,"Exterior Lighting"]
[null,"what we really want to know is if user experience is good, not necessariy if this specific requirement was met",null,"IF(I61=TRUE,MAX(D$1:D60)+1,0)",null,"Correlated Color Temperature (CCT) ","18 70 60.5",null,{"$f":"IF('MATRIX TABLE'!B67>0,TRUE)","v":false},null,null,null,null,{"$f":"IF(D61>0, IF(ISBLANK(OFFSET(Scorecard!$D$11, D61, 0)),\"TBD\",OFFSET(Scorecard!$D$11, D61, 0)), \"NA\")","v":{"$error":"#VALUE!"}},{"$f":"IF(D61>0, IF(OR(ISBLANK(OFFSET(Scorecard!$E$11, D61, 0)),OFFSET(Scorecard!$E$11, D61, 0)=CHAR(10)),\"Blank\",OFFSET(Scorecard!$E$11, D61, 0)), \"NA\")","v":{"$error":"#VALUE!"}},null,null,null,"Correlated Color Temperature (CCT) "]
[null,"what we really want to know is if user experience is good, not necessariy if this specific requirement was met",null,{"$f":"IF(I62=TRUE,MAX(D$1:D61)+1,0)","v":0},null,"Connection to Nature completed","18 70 70 ",null,{"$f":"IF('MATRIX TABLE'!B68>0,TRUE)","v":false},null,null,null,null,{"$f":"IF(D62>0, IF(ISBLANK(OFFSET(Scorecard!$D$11, D62, 0)),\"TBD\",OFFSET(Scorecard!$D$11, D62, 0)), \"NA\")","v":"NA"},{"$f":"IF(D62>0, IF(OR(ISBLANK(OFFSET(Scorecard!$E$11, D62, 0)),OFFSET(Scorecard!$E$11, D62, 0)=CHAR(10)),\"Blank\",OFFSET(Scorecard!$E$11, D62, 0)), \"NA\")","v":"NA"},null,null,null,"Connection to Nature"]
[null,null,null,{"$f":"IF(AND(OR(D49:D62>0),MAX(D48:D62)>0),MAX(D25:D62)+1,0)","v":0}]
[null,null,"Title","IF(OR($I64=TRUE),MAX(D$3:D63)+1,0)",null,"Category:  Life-Cycle Cost Analysis",null,null,{"$f":"IF(OR('MATRIX TABLE'!B25>0,'MATRIX TABLE'!B41>0,'MATRIX TABLE'!B53>0),TRUE)","v":false},"note:  the formula in this is slightly different than the other section headers",null,null,null,null,null,null,null,null,"Category:  Life-Cycle Cost Analysis"]
[null,"this is a requirement that I don’t think we need to track here…...info is not available in SAM and is likely to be a more complicated process ",null,"IF(I65=TRUE,MAX(D$1:D64)+1,0)",null,"LCCA used to compare Energy system alternatives","18 80 30",null,{"$f":"IF('MATRIX TABLE'!B25>0,TRUE)","v":false},"note:  each of these cells relates to something different in the MATRIX TABLE tab",null,null,null,{"$f":"IF(D65>0, IF(ISBLANK(OFFSET(Scorecard!$D$11, D65, 0)),\"TBD\",OFFSET(Scorecard!$D$11, D65, 0)), \"NA\")","v":{"$error":"#VALUE!"}},{"$f":"IF(D65>0, IF(OR(ISBLANK(OFFSET(Scorecard!$E$11, D65, 0)),OFFSET(Scorecard!$E$11, D65, 0)=CHAR(10)),\"Blank\",OFFSET(Scorecard!$E$11, D65, 0)), \"NA\")","v":{"$error":"#VALUE!"}},null,null,null,"LCCA used to compare Energy system alternatives"]
[null,null,null,"IF(I66=TRUE,MAX(D$1:D65)+1,0)",null,"LCCA used to compare Water system alternatives","18 80 30",null,{"$f":"IF('MATRIX TABLE'!B41>0,TRUE)","v":false},null,null,null,null,{"$f":"IF(D66>0, IF(ISBLANK(OFFSET(Scorecard!$D$11, D66, 0)),\"TBD\",OFFSET(Scorecard!$D$11, D66, 0)), \"NA\")","v":{"$error":"#VALUE!"}},{"$f":"IF(D66>0, IF(OR(ISBLANK(OFFSET(Scorecard!$E$11, D66, 0)),OFFSET(Scorecard!$E$11, D66, 0)=CHAR(10)),\"Blank\",OFFSET(Scorecard!$E$11, D66, 0)), \"NA\")","v":{"$error":"#VALUE!"}},null,null,null,"LCCA used to compare Water system alternatives"]
[null,null,null,"IF(I67=TRUE,MAX(D$1:D66)+1,0)",null,"LCCA used to compare Material selection alternatives","18 80 30",null,{"$f":"IF('MATRIX TABLE'!B53>0,TRUE)","v":false},null,null,null,null,{"$f":"IF(D67>0, IF(ISBLANK(OFFSET(Scorecard!$D$11, D67, 0)),\"TBD\",OFFSET(Scorecard!$D$11, D67, 0)), \"NA\")","v":{"$error":"#VALUE!"}},{"$f":"IF(D67>0, IF(OR(ISBLANK(OFFSET(Scorecard!$E$11, D67, 0)),OFFSET(Scorecard!$E$11, D67, 0)=CHAR(10)),\"Blank\",OFFSET(Scorecard!$E$11, D67, 0)), \"NA\")","v":{"$error":"#VALUE!"}},null,null,null,"LCCA used to compare Material selection alternatives"]
[null,null,null,"IF(I68=TRUE,MAX(D$1:D67)+1,0)",null,"LCCA for Total Cost of Ownership for Energy System","18 80 30",null,{"$f":"IF(I65=TRUE,TRUE)","v":false},null,null,null,null,{"$f":"IF(D68>0, IF(ISBLANK(OFFSET(Scorecard!$D$11, D68, 0)),\"TBD\",OFFSET(Scorecard!$D$11, D68, 0)), \"NA\")","v":{"$error":"#VALUE!"}},{"$f":"IF(D68>0, IF(OR(ISBLANK(OFFSET(Scorecard!$E$11, D68, 0)),OFFSET(Scorecard!$E$11, D68, 0)=CHAR(10)),\"Blank\",OFFSET(Scorecard!$E$11, D68, 0)), \"NA\")","v":{"$error":"#VALUE!"}},null,null,null,"LCCA for Total Cost of Ownership for Energy System"]
[null,null,null,"IF(I69=TRUE,MAX(D$1:D68)+1,0)",null,"LCCA for Total Cost of Ownership for Water System","18 80 30",null,{"$f":"IF(I66=TRUE,TRUE)","v":false},null,null,null,null,{"$f":"IF(D69>0, IF(ISBLANK(OFFSET(Scorecard!$D$11, D69, 0)),\"TBD\",OFFSET(Scorecard!$D$11, D69, 0)), \"NA\")","v":{"$error":"#VALUE!"}},{"$f":"IF(D69>0, IF(OR(ISBLANK(OFFSET(Scorecard!$E$11, D69, 0)),OFFSET(Scorecard!$E$11, D69, 0)=CHAR(10)),\"Blank\",OFFSET(Scorecard!$E$11, D69, 0)), \"NA\")","v":{"$error":"#VALUE!"}},null,null,null,"LCCA for Total Cost of Ownership for Water System"]
[null,null,null,"IF(I70=TRUE,MAX(D$1:D69)+1,0)",null,"LCCA for Total Cost of Ownership for Material selection","18 80 30",null,{"$f":"IF(I67=TRUE,TRUE)","v":false},null,null,null,null,{"$f":"IF(D70>0, IF(ISBLANK(OFFSET(Scorecard!$D$11, D70, 0)),\"TBD\",OFFSET(Scorecard!$D$11, D70, 0)), \"NA\")","v":{"$error":"#VALUE!"}},{"$f":"IF(D70>0, IF(OR(ISBLANK(OFFSET(Scorecard!$E$11, D70, 0)),OFFSET(Scorecard!$E$11, D70, 0)=CHAR(10)),\"Blank\",OFFSET(Scorecard!$E$11, D70, 0)), \"NA\")","v":{"$error":"#VALUE!"}},null,null,null,"LCCA for Total Cost of Ownership for Material selection"]
[null,null,null,{"$f":"IF(I71=TRUE,MAX(D$1:D70)+1,0)","v":1},null,null,null,null,{"$f":"IF(F71=\"\",TRUE,FALSE)","v":true}]
[null,null,null,{"$f":"IF(I72=TRUE,MAX(D$1:D71)+1,0)","v":2},null,null,null,null,{"$f":"IF(F72=\"\",TRUE,FALSE)","v":true}]
[null,null,null,{"$f":"IF(I73=TRUE,MAX(D$1:D72)+1,0)","v":3},null,null,null,null,true]
[null,null,null,{"$f":"IF(I74=TRUE,MAX(D$1:D73)+1,0)","v":4},null,null,null,null,true]
[null,null,null,{"$f":"IF(I75=TRUE,MAX(D$1:D74)+1,0)","v":5},null,null,null,null,true]
[null,null,null,{"$f":"IF(I76=TRUE,MAX(D$1:D75)+1,0)","v":6},null,null,null,null,true]
[null,null,null,{"$f":"IF(I77=TRUE,MAX(D$1:D76)+1,0)","v":7},null,null,null,null,true]
[null,null,null,{"$f":"IF(I78=TRUE,MAX(D$1:D77)+1,0)","v":8},null,null,null,null,true]
[null,null,null,{"$f":"IF(I79=TRUE,MAX(D$1:D78)+1,0)","v":9},null,null,null,null,true]
[null,null,null,{"$f":"IF(I80=TRUE,MAX(D$1:D79)+1,0)","v":10},null,null,null,null,true]
[null,null,null,{"$f":"IF(I81=TRUE,MAX(D$1:D80)+1,0)","v":11},null,null,null,null,true]
[null,null,null,{"$f":"IF(I82=TRUE,MAX(D$1:D81)+1,0)","v":12},null,null,null,null,true]
[null,null,null,{"$f":"IF(I83=TRUE,MAX(D$1:D82)+1,0)","v":13},null,null,null,null,true]
[null,null,null,{"$f":"IF(I84=TRUE,MAX(D$1:D83)+1,0)","v":14},null,null,null,null,true]
[null,null,null,{"$f":"IF(I85=TRUE,MAX(D$1:D84)+1,0)","v":15},null,null,null,null,true]
[null,null,null,{"$f":"IF(I86=TRUE,MAX(D$1:D85)+1,0)","v":16},null,null,null,null,true]
[null,null,null,{"$f":"IF(I87=TRUE,MAX(D$1:D86)+1,0)","v":17},null,null,null,null,true]
[null,null,null,{"$f":"IF(I88=TRUE,MAX(D$1:D87)+1,0)","v":18},null,null,null,null,true]
[null,null,null,{"$f":"IF(I89=TRUE,MAX(D$1:D88)+1,0)","v":19},null,null,null,null,true]
[null,null,null,{"$f":"IF(I90=TRUE,MAX(D$1:D89)+1,0)","v":20},null,null,null,null,true]
[null,null,null,{"$f":"IF(I91=TRUE,MAX(D$1:D90)+1,0)","v":21},null,null,null,null,true]
[null,null,null,{"$f":"IF(I92=TRUE,MAX(D$1:D91)+1,0)","v":22},null,null,null,null,true]
[null,null,null,{"$f":"IF(I93=TRUE,MAX(D$1:D92)+1,0)","v":23},null,null,null,null,true]
[null,null,null,{"$f":"IF(I94=TRUE,MAX(D$1:D93)+1,0)","v":24},null,null,null,null,true]
[null,null,null,{"$f":"IF(I95=TRUE,MAX(D$1:D94)+1,0)","v":25},null,null,null,null,true]
[null,null,null,{"$f":"IF(I96=TRUE,MAX(D$1:D95)+1,0)","v":26},null,null,null,null,true]
[null,null,null,{"$f":"IF(I97=TRUE,MAX(D$1:D96)+1,0)","v":27},null,null,null,null,true]
[null,null,null,{"$f":"IF(I98=TRUE,MAX(D$1:D97)+1,0)","v":28},null,null,null,null,true]
[null,null,null,{"$f":"IF(I99=TRUE,MAX(D$1:D98)+1,0)","v":29},null,null,null,null,true]
[null,null,null,{"$f":"IF(I100=TRUE,MAX(D$1:D99)+1,0)","v":30},null,null,null,null,{"$f":"IF(F100=\"\",TRUE,FALSE)","v":true}]
[null,null,null,{"$f":"IF(I101=TRUE,MAX(D$1:D100)+1,0)","v":31},null,null,null,null,true]
[null,null,null,{"$f":"IF(I102=TRUE,MAX(D$1:D101)+1,0)","v":32},null,null,null,null,true]
[null,null,null,{"$f":"IF(I103=TRUE,MAX(D$1:D102)+1,0)","v":33},null,null,null,null,true]
[null,null,null,{"$f":"IF(I104=TRUE,MAX(D$1:D103)+1,0)","v":34},null,null,null,null,true]
[null,null,null,{"$f":"IF(I105=TRUE,MAX(D$1:D104)+1,0)","v":35},null,null,null,null,true]
[null,null,null,{"$f":"IF(I106=TRUE,MAX(D$1:D105)+1,0)","v":36},null,null,null,null,true]
[null,null,null,{"$f":"IF(I107=TRUE,MAX(D$1:D106)+1,0)","v":37},null,null,null,null,true]
[null,null,null,{"$f":"IF(I108=TRUE,MAX(D$1:D107)+1,0)","v":38},null,null,null,null,true]
[null,null,null,{"$f":"IF(I109=TRUE,MAX(D$1:D108)+1,0)","v":39},null,null,null,null,true]
[null,null,null,{"$f":"IF(I110=TRUE,MAX(D$1:D109)+1,0)","v":40},null,null,null,null,true]
[null,null,null,{"$f":"IF(I111=TRUE,MAX(D$1:D110)+1,0)","v":41},null,null,null,null,true]
[null,null,null,{"$f":"IF(I112=TRUE,MAX(D$1:D111)+1,0)","v":42},null,null,null,null,true]
[null,null,null,{"$f":"IF(I113=TRUE,MAX(D$1:D112)+1,0)","v":43},null,null,null,null,true]
[null,null,null,{"$f":"IF(I114=TRUE,MAX(D$1:D113)+1,0)","v":44},null,null,null,null,true]
[null,null,null,{"$f":"IF(I115=TRUE,MAX(D$1:D114)+1,0)","v":45},null,null,null,null,true]
[null,null,null,{"$f":"IF(I116=TRUE,MAX(D$1:D115)+1,0)","v":46},null,null,null,null,true]
[null,null,null,{"$f":"IF(I117=TRUE,MAX(D$1:D116)+1,0)","v":47},null,null,null,null,true]
[null,null,null,{"$f":"IF(I118=TRUE,MAX(D$1:D117)+1,0)","v":48},null,null,null,null,true]
[null,null,null,{"$f":"IF(I119=TRUE,MAX(D$1:D118)+1,0)","v":49},null,null,null,null,true]
[null,null,null,{"$f":"IF(I120=TRUE,MAX(D$1:D119)+1,0)","v":50},null,null,null,null,true]
[null,null,null,{"$f":"IF(I121=TRUE,MAX(D$1:D120)+1,0)","v":51},null,null,null,null,{"$f":"IF(F121=\"\",TRUE,FALSE)","v":true}]
[null,null,null,{"$f":"IF(I122=TRUE,MAX(D$1:D121)+1,0)","v":52},null,null,null,null,true]
[null,null,null,{"$f":"IF(I123=TRUE,MAX(D$1:D122)+1,0)","v":53},null,null,null,null,true]
[null,null,null,{"$f":"IF(I124=TRUE,MAX(D$1:D123)+1,0)","v":54},null,null,null,null,true]
[null,null,null,{"$f":"IF(I125=TRUE,MAX(D$1:D124)+1,0)","v":55},null,null,null,null,true]
[null,null,null,{"$f":"IF(I126=TRUE,MAX(D$1:D125)+1,0)","v":56},null,null,null,null,true]
[null,null,null,{"$f":"IF(I127=TRUE,MAX(D$1:D126)+1,0)","v":57},null,null,null,null,true]
[null,null,null,{"$f":"IF(I128=TRUE,MAX(D$1:D127)+1,0)","v":58},null,null,null,null,true]
[null,null,null,{"$f":"IF(I129=TRUE,MAX(D$1:D128)+1,0)","v":59},null,null,null,null,true]
[null,null,null,{"$f":"IF(I130=TRUE,MAX(D$1:D129)+1,0)","v":60},null,null,null,null,true]
[null,null,null,{"$f":"IF(I131=TRUE,MAX(D$1:D130)+1,0)","v":61},null,null,null,null,true]
[null,null,null,{"$f":"IF(I132=TRUE,MAX(D$1:D131)+1,0)","v":62},null,null,null,null,true]
[null,null,null,{"$f":"IF(I133=TRUE,MAX(D$1:D132)+1,0)","v":63},null,null,null,null,true]
[null,null,null,{"$f":"IF(I134=TRUE,MAX(D$1:D133)+1,0)","v":64},null,null,null,null,true]
[null,null,null,{"$f":"IF(I135=TRUE,MAX(D$1:D134)+1,0)","v":65},null,null,null,null,true]
[null,null,null,{"$f":"IF(I136=TRUE,MAX(D$1:D135)+1,0)","v":66},null,null,null,null,true]
[null,null,null,{"$f":"IF(I137=TRUE,MAX(D$1:D136)+1,0)","v":67},null,null,null,null,true]
[null,null,null,{"$f":"IF(I138=TRUE,MAX(D$1:D137)+1,0)","v":68},null,null,null,null,true]
[null,null,null,{"$f":"IF(I139=TRUE,MAX(D$1:D138)+1,0)","v":69},null,null,null,null,{"$f":"IF(F139=\"\",TRUE,FALSE)","v":true}]
[null,null,null,{"$f":"IF(I140=TRUE,MAX(D$1:D139)+1,0)","v":70},null,null,null,null,true]
[null,null,null,{"$f":"IF(I141=TRUE,MAX(D$1:D140)+1,0)","v":71},null,null,null,null,true]
[null,null,null,{"$f":"IF(I142=TRUE,MAX(D$1:D141)+1,0)","v":72},null,null,null,null,true]
[null,null,null,{"$f":"IF(I143=TRUE,MAX(D$1:D142)+1,0)","v":73},null,null,null,null,true]
[null,null,null,{"$f":"IF(I144=TRUE,MAX(D$1:D143)+1,0)","v":74},null,null,null,null,true]

{"sheet":"MATRIX TABLE","index":12,"n_rows":68,"n_cols":25,"rows_kept":68,"cut":false,"hidden":true,"merged":[[0,0,0,2],[45,0,45,2],[12,18,14,18],[7,0,15,0],[16,0,21,0],[2,0,6,0]]}
["Energy",null,null,"New Building project type selected","Project type other than NB selected","HVAC","Lighting (Indoor)","Lighting (Outdoor)","Electrical Equipment (e.g. motors or pumps)","Building Envelope","Water Heating","Power Systems",null,"Applicable (meets cost threshold)","Cost Threshold"]
[null,null,null,null,null,{"$f":"COUNTIFS(F3:F22,FALSE,$N$3:$N$22,TRUE)+COUNTIFS(F3:F22,TRUE,$N$3:$N$22,TRUE)>0","v":true},true,true,true,true,true,true,null,null,null,null,null,null,0,null,null,{"$f":"IF('Project Information'!$D$21<214999, \"PROJECT UNDER $215,000 GO TO SMALL PROJECT CHECKLIST\",\"\")","v":"PROJECT UNDER $215,000 GO TO SMALL PROJECT CHECKLIST"}]
["Commissioning","IF(AND(OR(D3:E3=TRUE),OR(F3:L3=TRUE),'Project Information'!$D$19>='MATRIX TABLE'!O3),MAX($B$2:B2)+1,0)","18 20 00 - Building Systems Commissioning",{"$f":"$R$5=4","v":false},null,{"$f":"Matrix!$E$38=TRUE","v":false},{"$f":"Matrix!$E$39=TRUE","v":false},{"$f":"Matrix!$E$40=TRUE","v":false},null,null,null,{"$f":"Matrix!$E$44=TRUE","v":false},null,{"$f":"'Project Information'!$D$21>='MATRIX TABLE'!O3","v":false},215000,null,null,null,null,null,null,{"$f":"IF('Project Information'!$D$21>215000, \"PROJECT OVER $215,000, DOES NOT QUALIFY AS SMALL PROJECT\",\"\")","v":""}]
[null,{"$f":"IF(AND(OR(D4:E4=TRUE),OR(F4:L4=TRUE),'Project Information'!$D$21<='MATRIX TABLE'!O4),MAX($B1:B$3)+1,0)","v":0},"18 20 60.3 - Building Enclosure Testing",false,{"$f":"$R$5<>4","v":true},null,null,null,null,{"$f":"Matrix!$E$42=TRUE","v":false},null,null,null,null,500000,null,null,null,null,null,null,{"$f":"IF(OR($R$5=4,$X$5=2),\"18 20 20.2            Fundamental and Enhanced Commissioning required for applicable divisions.\",\"\")","v":""}]
[null,{"$f":"IF(AND(OR(D5:E5=TRUE),OR(F5:L5=TRUE),'Project Information'!$D$21<='MATRIX TABLE'!O5,'Project Information'!$D$21>'MATRIX TABLE'!O4),MAX($B1:B$4)+1,0)","v":0},"18 20 60.2 - Building Enclosure Commissioning (pending cost <5% total budget)",false,true,null,null,null,null,{"$f":"Matrix!$E$42=TRUE","v":false},null,null,null,null,1000000,null,null,3,"Lookup Tables",null," ","Full Commissioning Required "," ",1,"University Entity"]
[null,{"$f":"IF(AND(OR(D6:E6=TRUE),OR(F6:L6=TRUE),'Project Information'!$D$21<='MATRIX TABLE'!O6,'Project Information'!$D$21>'MATRIX TABLE'!O5),MAX($B1:B$5)+1,0)","v":0},"18 20 60.2 - Building Enclosure Commissioning (pending cost <10% total budget)",false,true,null,null,null,null,{"$f":"Matrix!$E$42=TRUE","v":false},null,null,null,null,4000000,null,null,1,"Repairs or Alterations",null,null,null,null,1,"Facilities Operations and Development"]
[null,{"$f":"IF(AND(OR(D7:E7=TRUE),OR(F7:L7=TRUE),'Project Information'!$D$21>'MATRIX TABLE'!O7),MAX($B1:B$6)+1,0)","v":0},"18 20 00 - Building Enclosure Commissioning",false,{"$f":"$R$5<>4","v":true},null,null,null,null,{"$f":"Matrix!$E$42=TRUE","v":false},null,null,null,{"$f":"'Project Information'!$D$21>='MATRIX TABLE'!O7","v":false},4000000,null,null,2,"Additions",null,null,null,null,2,"Wexner Medical Center"]
["ASHRAE codes required along with modeling",{"$f":"IF(AND(OR(D8:E8=TRUE),OR(F8:L8=TRUE),'Project Information'!$D$21>='MATRIX TABLE'!O8),MAX($B$2:B7)+1,0)","v":0},"18 30 30 - Automated Demand Response",false,{"$f":"$R$5<>4","v":true},{"$f":"Matrix!$E$38=TRUE","v":false},{"$f":"Matrix!$E$39=TRUE","v":false},null,null,null,null,null,null,{"$f":"'Project Information'!$D$21>='MATRIX TABLE'!O8","v":true},{"$f":"$S$2","v":0},null,null,3,"Renovation",null,null,null,null,3,"Student Life"]
[null,{"$f":"IF(AND(OR(D9:E9=TRUE),OR(F9:L9=TRUE),'Project Information'!$D$21>='MATRIX TABLE'!O9),MAX($B$2:B8)+1,0)","v":0},"18 30 30.1 - Automatic Control of HVAC and Lights ",false,{"$f":"$R$5<>4","v":true},{"$f":"Matrix!$E$38=TRUE","v":false},{"$f":"Matrix!$E$39=TRUE","v":false},null,null,null,null,null,null,{"$f":"'Project Information'!$D$21>='MATRIX TABLE'!O9","v":true},0,null,null,4,"New Building Construction or Whole Building Renovation*",null,null,null,null,4,"Other"]
[null,{"$f":"IF(AND(OR(D10:E10=TRUE),OR(F10:L10=TRUE),'Project Information'!$D$21>='MATRIX TABLE'!O10),MAX($B$2:B9)+1,0)","v":0},"18 30 35 - Environmental Controls",false,{"$f":"$R$5<>4","v":true},{"$f":"Matrix!$E$38=TRUE","v":false},{"$f":"Matrix!$E$39=TRUE","v":false},null,null,null,null,null,null,{"$f":"'Project Information'!$D$21>='MATRIX TABLE'!O10","v":true},0,null,null,5,"Other*"]
[null,{"$f":"IF(AND(OR(D11:E11=TRUE),OR(F11:L11=TRUE),'Project Information'!$D$21>='MATRIX TABLE'!O11),MAX($B$2:B10)+1,0)","v":0},"18 30 20.1 - ASHRAE 90.1-2016, 5.4 Building Envelope ",false,null,null,null,null,null,{"$f":"Matrix!$E$42=TRUE","v":false},null,null,null,{"$f":"'Project Information'!$D$21>='MATRIX TABLE'!O11","v":true},0]
[null,{"$f":"IF(AND(OR(D12:E12=TRUE),OR(F12:L12=TRUE),'Project Information'!$D$21>='MATRIX TABLE'!O12),MAX($B$2:B11)+1,0)","v":0},"18 30 20.1 - ASHRAE 90.1-2016, 6.4 HVAC",false,null,{"$f":"Matrix!$E$38=TRUE","v":false},null,null,null,null,null,null,null,{"$f":"'Project Information'!$D$21>='MATRIX TABLE'!O12","v":true},0]
[null,{"$f":"IF(AND(OR(D13:E13=TRUE),OR(F13:L13=TRUE),'Project Information'!$D$21>='MATRIX TABLE'!O13),MAX($B$2:B12)+1,0)","v":0},"18 30 20.1 - ASHRAE 90.1-2016, 7.4 Service Water Heating ",false,null,null,null,null,null,null,{"$f":"Matrix!$E$43=TRUE","v":false},null,null,{"$f":"'Project Information'!$D$21>='MATRIX TABLE'!O13","v":true},0,null,null,null,"*Existing buildings where the mechanical, electrical, and building envelope are all completely renovated and updated to code"]
[null,{"$f":"IF(AND(OR(D14:E14=TRUE),OR(F14:L14=TRUE),'Project Information'!$D$21>='MATRIX TABLE'!O14),MAX($B$2:B13)+1,0)","v":0},"18 30 20.1 - ASHRAE 90.1-2016, 8.4 Power",false,null,null,null,null,null,null,null,{"$f":"Matrix!$E$44=TRUE","v":false},null,{"$f":"'Project Information'!$D$21>='MATRIX TABLE'!O14","v":true},0]
[null,{"$f":"IF(AND(OR(D15:E15=TRUE),OR(F15:L15=TRUE),'Project Information'!$D$21>='MATRIX TABLE'!O15),MAX($B$2:B14)+1,0)","v":0},"18 30 20.1 - ASHRAE 90.1-2016, 9.4 Lighting ",false,null,null,{"$f":"Matrix!$E$39=TRUE","v":false},{"$f":"Matrix!$E$40=TRUE","v":false},null,null,null,null,null,{"$f":"'Project Information'!$D$21>='MATRIX TABLE'!O15","v":true},0]
[null,{"$f":"IF(AND(OR(D16:E16=TRUE),OR(F16:L16=TRUE),'Project Information'!$D$21>='MATRIX TABLE'!O16),MAX($B$2:B15)+1,0)","v":0},"18 30 20.1 - ASHRAE 90.6-2016, 10.4 Other Equipment ",false,null,null,null,null,{"$f":"Matrix!$E$41=TRUE","v":false},null,null,null,null,{"$f":"'Project Information'!$D$21>='MATRIX TABLE'!O16","v":true},0]
["ASHRAE codes required of projects other than New Buildings",{"$f":"IF(OR(B5:B7>0),MAX($B$2:B16)+1,0)","v":0},"18 30 20.1 - ASHRAE 90.1-2016, 5 Building Envelope",null,{"$f":"$R$5<>4","v":true},null,null,null,null,{"$f":"Matrix!$E$42=TRUE","v":false},null,null,null,{"$f":"'Project Information'!$D$21>='MATRIX TABLE'!O17","v":true},0,null,null,null,"*Project does not include a building"]
[null,{"$f":"IF(AND(OR(D18:E18=TRUE),OR(F18:L18=TRUE),'Project Information'!$D$21>='MATRIX TABLE'!O18),MAX($B$2:B17)+1,0)","v":0},"18 30 20.1 - ASHRAE 90.1-2016, 6 HVAC ",null,true,{"$f":"Matrix!$E$38=TRUE","v":false},null,null,null,null,null,null,null,{"$f":"'Project Information'!$D$21>='MATRIX TABLE'!O18","v":true},0]
[null,{"$f":"IF(AND(OR(D19:E19=TRUE),OR(F19:L19=TRUE),'Project Information'!$D$21>='MATRIX TABLE'!O19),MAX($B$2:B18)+1,0)","v":0},"18 30 20.1 - ASHRAE 90.1-2016, 7 Service Water Heating",null,true,null,null,null,null,null,{"$f":"Matrix!$E$43=TRUE","v":false},null,null,{"$f":"'Project Information'!$D$21>='MATRIX TABLE'!O19","v":true},0]
[null,{"$f":"IF(AND(OR(D20:E20=TRUE),OR(F20:L20=TRUE),'Project Information'!$D$21>='MATRIX TABLE'!O20),MAX($B$2:B19)+1,0)","v":0},"18 30 20.1 - ASHRAE 90.1-2016, 8 Power",null,true,null,null,null,null,null,null,{"$f":"Matrix!$E$44=TRUE","v":false},null,{"$f":"'Project Information'!$D$21>='MATRIX TABLE'!O20","v":true},0]
[null,{"$f":"IF(AND(OR(D21:E21=TRUE),OR(F21:L21=TRUE),'Project Information'!$D$21>='MATRIX TABLE'!O21),MAX($B$2:B20)+1,0)","v":0},"18 30 20.1 - ASHRAE 90.1-2016, 9 Lighting",null,true,null,{"$f":"Matrix!$E$39=TRUE","v":false},{"$f":"Matrix!$E$40=TRUE","v":false},null,null,null,null,null,{"$f":"'Project Information'!$D$21>='MATRIX TABLE'!O21","v":true},0]
[null,{"$f":"IF(AND(OR(D22:E22=TRUE),OR(F22:L22=TRUE),'Project Information'!$D$21>='MATRIX TABLE'!O22),MAX($B$2:B21)+1,0)","v":0},"18 30 20.1 - ASHRAE 90.1-2016, 10 Other Equipment",null,true,null,null,null,{"$f":"Matrix!$E$41=TRUE","v":false},null,null,null,null,{"$f":"'Project Information'!$D$21>='MATRIX TABLE'!O22","v":true},0]
["Building Modeling",{"$f":"IF(AND(OR(D23:E23=TRUE),OR(F23:L23=TRUE),'Project Information'!$D$21>='MATRIX TABLE'!O23),MAX($B$2:B22)+1,0)","v":0},"18 30 20.2 - ASHRAE 90.1-2016 App G - Performance Rating Method",{"$f":"$R$5=4","v":false},null,{"$f":"Matrix!$E$38=TRUE","v":false},{"$f":"Matrix!$E$39=TRUE","v":false},{"$f":"Matrix!$E$40=TRUE","v":false},{"$f":"Matrix!$E$41=TRUE","v":false},{"$f":"Matrix!$E$42=TRUE","v":false},{"$f":"Matrix!$E$43=TRUE","v":false},{"$f":"Matrix!$E$44=TRUE","v":false},null,{"$f":"'Project Information'!$D$21>='MATRIX TABLE'!O23","v":false},4000000]
["Site EUI Performance",{"$f":"IF(AND(OR(R5=R7,R5=R9),'Project Information'!$D$21>='MATRIX TABLE'!O24,Matrix!D45=TRUE),MAX($B$2:B23)+1,0)","v":0},"18 30 40 - Site EUI Performance",null,null,{"$f":"Matrix!$E$38=TRUE","v":false},{"$f":"Matrix!$E$39=TRUE","v":false},{"$f":"Matrix!$E$40=TRUE","v":false},{"$f":"Matrix!$E$41=TRUE","v":false},{"$f":"Matrix!$E$42=TRUE","v":false},{"$f":"Matrix!$E$43=TRUE","v":false},{"$f":"Matrix!$E$44=TRUE","v":false},null,{"$f":"'Project Information'!$D$21>='MATRIX TABLE'!O24","v":false},4000000]
["LCCA",{"$f":"IF(AND(OR(B11:B13,B16:B19,B22>0),'Project Information'!$D$21>='MATRIX TABLE'!O25),MAX($B$2:B24)+1,0)","v":0},"18 80 00 - Life-Cycle Cost Analysis for Energy Systems",{"$f":"$R$5=4","v":false},{"$f":"$R$5<>4","v":true},null,null,null,null,null,null,null,null,{"$f":"'Project Information'!$D$21>='MATRIX TABLE'!O24","v":false},215000]
[null,"IF(AND(D21=TRUE,'Project Information'!$D$19>='MATRIX TABLE'!O21),MAX($B$2:B20)+1,0)"]
["Water"]
[null,{"$f":"IF(AND(D28=TRUE,'Project Information'!$D$21>='MATRIX TABLE'!O28),MAX(B27)+1,0)","v":0},"18 40 30.1 - Landscape Design",{"$f":"Matrix!D54=TRUE","v":false},null,null,null,null,null,null,null,null,null,{"$f":"'Project Information'!$D$21>='MATRIX TABLE'!O28","v":true},{"$f":"$S$2","v":0}]
[null,{"$f":"IF(AND(D29=TRUE,'Project Information'!$D$21>='MATRIX TABLE'!O29),MAX($B$28:B28)+1,0)","v":0},"18 40 30.2 - Irrigation",{"$f":"Matrix!D55=TRUE","v":false},null,null,null,null,null,null,null,null,null,{"$f":"'Project Information'!$D$21>='MATRIX TABLE'!O29","v":true},0]
[null,{"$f":"IF(AND(D30=TRUE,'Project Information'!$D$21>='MATRIX TABLE'!O30),MAX($B$28:B29)+1,0)","v":0},"18 40 40.1 - Plumbing Fixtures and Fittings",{"$f":"Matrix!D56=TRUE","v":false},null,null,null,null,null,null,null,null,null,{"$f":"'Project Information'!$D$21>='MATRIX TABLE'!O30","v":true},0]
[null,{"$f":"IF(AND(D31=TRUE,'Project Information'!$D$21>='MATRIX TABLE'!O31),MAX($B$28:B30)+1,0)","v":0},"18 40 40.2 - Appliances",{"$f":"Matrix!D57=TRUE","v":false},null,null,null,null,null,null,null,null,null,{"$f":"'Project Information'!$D$21>='MATRIX TABLE'!O31","v":true},0]
[null,{"$f":"IF(AND(D32=TRUE,'Project Information'!$D$21>='MATRIX TABLE'!O32),MAX($B$28:B31)+1,0)","v":0},"18 40 40.3 - HVAC Systems and Equipment",{"$f":"Matrix!D58=TRUE","v":false},null,null,null,null,null,null,null,null,null,{"$f":"'Project Information'!$D$21>='MATRIX TABLE'!O32","v":true},0]
[null,{"$f":"IF(AND(D33=TRUE,'Project Information'!$D$21>='MATRIX TABLE'!O33),MAX($B$28:B32)+1,0)","v":0},"18 40 40.4 - Roof Spray & Vegetated Roofs",{"$f":"Matrix!D59=TRUE","v":false},null,null,null,null,null,null,null,null,null,{"$f":"'Project Information'!$D$21>='MATRIX TABLE'!O33","v":true},0]
[null,{"$f":"IF(AND(D34=TRUE,'Project Information'!$D$21>='MATRIX TABLE'!O34),MAX($B$28:B33)+1,0)","v":0},"18 40 40.5 - Commercial Food Service Operations",{"$f":"Matrix!D60=TRUE","v":false},null,null,null,null,null,null,null,null,null,{"$f":"'Project Information'!$D$21>='MATRIX TABLE'!O34","v":true},0]
[null,{"$f":"IF(AND(D35=TRUE,'Project Information'!$D$21>='MATRIX TABLE'!O35),MAX($B$28:B34)+1,0)","v":0},"18 40 40.6 - Medical and Laboratory Facilities",{"$f":"Matrix!D61=TRUE","v":false},null,null,null,null,null,null,null,null,null,{"$f":"'Project Information'!$D$21>='MATRIX TABLE'!O35","v":true},{"$f":"$S$2","v":0}]
[null,{"$f":"IF(AND(D36=TRUE,'Project Information'!$D$21>='MATRIX TABLE'!O36),MAX($B$28:B35)+1,0)","v":0},"18 40 40.7 - Special Water Features",{"$f":"Matrix!D62=TRUE","v":false},null,null,null,null,null,null,null,null,null,{"$f":"'Project Information'!$D$21>='MATRIX TABLE'!O36","v":true},{"$f":"$S$2","v":0}]
[null,{"$f":"IF(AND(D37=TRUE,'Project Information'!$D$21>='MATRIX TABLE'!O37),MAX($B$28:B36)+1,0)","v":0},"18 40 40.9 - Water Softeners",{"$f":"Matrix!D63=TRUE","v":false},null,null,null,null,null,null,null,null,null,{"$f":"'Project Information'!$D$21>='MATRIX TABLE'!O37","v":true},{"$f":"$S$2","v":0}]
[null,{"$f":"IF(AND(D38=TRUE,'Project Information'!$D$21>='MATRIX TABLE'!O38),MAX($B$28:B37)+1,0)","v":0},"18 40 40.10 - Reverse Osmosis (RO) Water Treatment Systems",{"$f":"Matrix!D64=TRUE","v":false},null,null,null,null,null,null,null,null,null,{"$f":"'Project Information'!$D$21>='MATRIX TABLE'!O38","v":true},{"$f":"$S$2","v":0}]
[" ",{"$f":"IF(AND(D39=TRUE,'Project Information'!$D$21>='MATRIX TABLE'!O39),MAX($B$28:B38)+1,0)","v":0},"18 40 40.11 - Water Use Intensity",{"$f":"$R$5=4","v":false},null,null,null,null,null,null,null,null,null,{"$f":"'Project Information'!$D$21>='MATRIX TABLE'!O39","v":false},4000000]
[null,{"$f":"IF(AND(D40=TRUE,'Project Information'!$D$21>='MATRIX TABLE'!O40),MAX($B$28:B39)+1,0)","v":0},"17 80 00 - Life-Cycle Cost Analysis for Water Softener alternatives",{"$f":"AND(OR(B37>0),N40=TRUE)","v":false},null,null,null,null,null,null,null,null,null,{"$f":"'Project Information'!$D$21>='MATRIX TABLE'!O40","v":false},500000]
[null,{"$f":"IF(AND(D41=TRUE,'Project Information'!$D$21>='MATRIX TABLE'!O41),MAX($B$28:B40)+1,0)","v":0},"18 80 00 - Life-Cycle Cost Analysis for RO Treatment Systems",{"$f":"AND(OR(B38>0),N41=TRUE)","v":false},null,null,null,null,null,null,null,null,null,{"$f":"'Project Information'!$D$21>='MATRIX TABLE'!O41","v":false},500000]
[]
["Ecosystem Services",null,null,"Impact to outdoor landscape / exterior site work",null,null,null,null,null,null,null,null,null,"Applicable (project type or exceeds cost threshold)","Cost Threshold"]
[null,{"$f":"IF(AND(D44=TRUE,'Project Information'!$D$21>='MATRIX TABLE'!O44),1,0)","v":0},"18 50 10 - Ecosystem Services Index Assessment",{"$f":"Matrix!$E$71","v":0},null,null,null,null,null,null,null,null,null,{"$f":"'Project Information'!$D$21>='MATRIX TABLE'!O44","v":false},215000]
[null,{"$f":"IF(AND(D45=TRUE,'Project Information'!$D$21<'MATRIX TABLE'!O45),1,0)","v":0},"Consult University Landscape Architect ",{"$f":"Matrix!$E$71","v":0},null,null,null,null,null,null,null,null,null,{"$f":"'Project Information'!$D$21>='MATRIX TABLE'!O45","v":false},215000]
["Materials",null,null,"New/Major Rebuild","Not Repairs (as LCCA will not be required on repairs)","Renovation/Repair/Addition","Construction Waste","Recycling, Compost, Trash Collection","Construction Materials","Interior Materials and Finishes","Building Envelope",null,null,"Applicable (project type or exceeds cost threshold)","Cost Threshold"]
[null,null,"Project Cost Applicable",null,null,null,{"$f":"COUNTIFS(G48:G52,FALSE,$N$48:$N$52,TRUE)+COUNTIFS(G48:G52,TRUE,$N$48:$N$52,TRUE)>0","v":false},{"$f":"COUNTIFS(H48:H52,FALSE,$N$48:$N$52,TRUE)+COUNTIFS(H48:H52,TRUE,$N$48:$N$52,TRUE)>0","v":true},{"$f":"COUNTIFS(I48:I52,FALSE,$N$48:$N$52,TRUE)+COUNTIFS(I48:I52,TRUE,$N$48:$N$52,TRUE)>0","v":false}]
[null,{"$f":"IF(AND(OR(D48:F48=TRUE),OR(G48:L48=TRUE),'Project Information'!$D$21>='MATRIX TABLE'!O48),MAX($B$47:B47)+1,0)","v":0},"18 60 30 - Sustainable Material Calculator",{"$f":"$R$5=4","v":false},null,{"$f":"$R$5<>4","v":true},null,null,{"$f":"Matrix!$E$75=TRUE","v":false},null,null,null,null,{"$f":"'Project Information'!$D$21>='MATRIX TABLE'!O48","v":false},4000000]
[null,{"$f":"IF(AND(OR(D49:F49=TRUE),OR(G49:L49=TRUE),'Project Information'!$D$21<='MATRIX TABLE'!O49),MAX($B$47:B48)+1,0)","v":0},"18 60 30 - Prescriptive Materials Matrix ",false,null,true,null,null,{"$f":"Matrix!$E$75=TRUE","v":false},null,null,null,null,{"$f":"'Project Information'!$D$21>='MATRIX TABLE'!O49","v":false},4000000]
[null,{"$f":"IF(AND(OR(D50:F50=TRUE),OR(G50:L50=TRUE),'Project Information'!$D$21>='MATRIX TABLE'!O50),MAX($B$47:B49)+1,0)","v":0},"18 60 40.1 - Construction and Demolition Waste Management Plan",false,null,true,{"$f":"Matrix!$E$76=TRUE","v":false},null,null,null,null,null,null,{"$f":"'Project Information'!$D$21>='MATRIX TABLE'!O50","v":false},1000000]
[null,{"$f":"IF(AND(OR(D51:F51=TRUE),OR(G51:L51=TRUE),'Project Information'!$D$21>='MATRIX TABLE'!O51),MAX($B$47:B50)+1,0)","v":0},"18 60 40.2 - Construction and Demolition Tracking",false,null,true,{"$f":"Matrix!$E$76=TRUE","v":false},null,null,null,null,null,null,{"$f":"'Project Information'!$D$21>='MATRIX TABLE'!O51","v":false},1000000]
[null,{"$f":"IF(AND(OR(D52:F52=TRUE),OR(G52:L52=TRUE),'Project Information'!$D$21>='MATRIX TABLE'!O52),MAX($B$47:B51)+1,0)","v":0},"18 60 50 - Materials Management Planning",false,null,true,null,{"$f":"Matrix!$E$77=TRUE","v":false},null,null,null,null,null,{"$f":"'Project Information'!$D$21>='MATRIX TABLE'!O52","v":true},{"$f":"$S$2","v":0}]
[null,{"$f":"IF(AND(E53=TRUE,OR(I53:K53=TRUE),'Project Information'!$D$21>='MATRIX TABLE'!O53),MAX($B$47:B52)+1,0)","v":0},"18 60 30.1 - Life-Cycle Cost Analysis for specific Materials",null,{"$f":"$R$5<>1","v":true},null,null,null,{"$f":"Matrix!$E$75=TRUE","v":false},{"$f":"Matrix!$E$86=TRUE","v":false},{"$f":"Matrix!$E$42=TRUE","v":false},null,null,{"$f":"'Project Information'!$D$21>='MATRIX TABLE'!O53","v":false},500000]
[]
["User Experience",null,null,"New/Major Rebuild","Renovation/Repair/Addition","HVAC","Lighting (Indoor)","Lighting (Outdoor)","Interior Materials and Finishes","Entrance/Exit Modifications",null,null,null,"Applicable (project type or exceeds cost threshold)","Cost Threshold"]
[null,null,"Project Cost Applicable",null,null,{"$f":"COUNTIFS(F57:F68,FALSE,$N$57:$N$68,TRUE)+COUNTIFS(F57:F68,TRUE,$N$57:$N$68,TRUE)>0","v":true},{"$f":"COUNTIFS(G57:G68,FALSE,$N$57:$N$68,TRUE)+COUNTIFS(G57:G68,TRUE,$N$57:$N$68,TRUE)>0","v":true},{"$f":"COUNTIFS(H57:H68,FALSE,$N$57:$N$68,TRUE)+COUNTIFS(H57:H68,TRUE,$N$57:$N$68,TRUE)>0","v":true},{"$f":"COUNTIFS(I57:I68,FALSE,$N$57:$N$68,TRUE)+COUNTIFS(I57:I68,TRUE,$N$57:$N$68,TRUE)>0","v":true},{"$f":"COUNTIFS(J57:J68,FALSE,$N$57:$N$68,TRUE)+COUNTIFS(J57:J68,TRUE,$N$57:$N$68,TRUE)>0","v":true}]
[null,{"$f":"IF(AND(OR(D57:E57=TRUE),OR(F57:L57=TRUE),'Project Information'!$D$21>='MATRIX TABLE'!O57),MAX($B$56:B56)+1,0)","v":0},"18 70 30.1 - Ventilation and IAQ Requirements",{"$f":"$R$5=4","v":false},{"$f":"$R$5<>4","v":true},{"$f":"Matrix!$E$83=TRUE","v":false},null,null,null,null,null,null,null,{"$f":"'Project Information'!$D$21>='MATRIX TABLE'!O57","v":true},{"$f":"$S$2","v":0}]
[null,{"$f":"IF(AND(OR(D58:E58=TRUE),OR(F58:L58=TRUE),'Project Information'!$D$21>='MATRIX TABLE'!O58),MAX($B$56:B57)+1,0)","v":0},"18 70 30.2 - IAQ Management Plan",false,{"$f":"$R$5<>4","v":true},{"$f":"Matrix!$E$83=TRUE","v":false},null,null,{"$f":"Matrix!$E$86=TRUE","v":false},null,null,null,null,{"$f":"'Project Information'!$D$21>='MATRIX TABLE'!O58","v":false},215000]
[null,{"$f":"IF(AND(OR(D59:E59=TRUE),OR(F59:L59=TRUE),'Project Information'!$D$21>='MATRIX TABLE'!O59),MAX($B$56:B58)+1,0)","v":0},"18 70 30.3 - IAQ Testing",false,true,{"$f":"Matrix!$E$83=TRUE","v":false},null,null,{"$f":"Matrix!$E$86=TRUE","v":false},null,null,null,null,{"$f":"'Project Information'!$D$21>='MATRIX TABLE'!O59","v":false},215000]
[null,{"$f":"IF(AND(OR(D60:E60=TRUE),OR(F60:L60=TRUE),'Project Information'!$D$21>='MATRIX TABLE'!O60),MAX($B$56:B59)+1,0)","v":0},"18 70 30.4 - Building Entrances",false,{"$f":"$R$5<>4","v":true},null,null,null,null,{"$f":"Matrix!$E$87=TRUE","v":false},null,null,null,{"$f":"'Project Information'!$D$21>='MATRIX TABLE'!O60","v":false},4000000]
[null,{"$f":"IF(AND(OR(D61:E61=TRUE),OR(F61:L61=TRUE),'Project Information'!$D$21>='MATRIX TABLE'!O61),MAX($B$56:B60)+1,0)","v":0},"18 70 30.5 - Interior Materials and Finishes",false,true,null,null,null,{"$f":"Matrix!$E$86=TRUE","v":false},{"$f":"Matrix!$E$87=TRUE","v":false},null,null,null,{"$f":"'Project Information'!$D$21>='MATRIX TABLE'!O61","v":true},0]
[null,{"$f":"IF(AND(OR(D62:E62=TRUE),OR(F62:L62=TRUE),'Project Information'!$D$21>='MATRIX TABLE'!O62),MAX($B$56:B61)+1,0)","v":0},"18 70 40 - Thermal Comfort",false,true,{"$f":"Matrix!$E$83=TRUE","v":false},null,null,null,null,null,null,null,{"$f":"'Project Information'!$D$21>='MATRIX TABLE'!O62","v":true},0]
[null,{"$f":"IF(AND(OR(D63:E63=TRUE),OR(F63:L63=TRUE),'Project Information'!$D$21>='MATRIX TABLE'!O63),MAX($B$56:B62)+1,0)","v":0},"18 70 50.1 - HVAC Background Noise Levels",false,true,{"$f":"Matrix!$E$83=TRUE","v":false},null,null,null,null,null,null,null,{"$f":"'Project Information'!$D$21>='MATRIX TABLE'!O63","v":true},0]
[null,{"$f":"IF(AND(OR(D64:E64=TRUE),OR(F64:L64=TRUE),'Project Information'!$D$21>='MATRIX TABLE'!O64),MAX($B$56:B63)+1,0)","v":0},"18 70 50.2 - Sound Transmission Class and Reverberation",false,true,{"$f":"Matrix!$E$83=TRUE","v":false},null,null,{"$f":"Matrix!$E$86=TRUE","v":false},null,null,null,null,{"$f":"'Project Information'!$D$21>='MATRIX TABLE'!O64","v":true},0]
[null,{"$f":"IF(AND(OR(D65:E65=TRUE),OR(F65:L65=TRUE),'Project Information'!$D$21>='MATRIX TABLE'!O65),MAX($B$56:B64)+1,0)","v":0},"18 70 55 - Equipment Vibration Performance",false,true,{"$f":"Matrix!$E$83=TRUE","v":false},null,null,null,null,null,null,null,{"$f":"'Project Information'!$D$21>='MATRIX TABLE'!O65","v":true},0]
[null,{"$f":"IF(AND(OR(D66:E66=TRUE),OR(F66:L66=TRUE),'Project Information'!$D$21>='MATRIX TABLE'!O66),MAX($B$56:B65)+1,0)","v":0},"18 70 60 - Daylighting and Lighting Quality",false,true,null,{"$f":"Matrix!E84=TRUE","v":false},null,null,null,null,null,null,{"$f":"'Project Information'!$D$21>='MATRIX TABLE'!O66","v":true},0]
[null,{"$f":"IF(AND(OR(D67:E67=TRUE),OR(F67:L67=TRUE),'Project Information'!$D$21>='MATRIX TABLE'!O67),MAX($B$56:B66)+1,0)","v":0},"18 70 60.4 - Exterior Lighting",false,true,null,null,{"$f":"Matrix!E85=TRUE","v":false},null,null,null,null,null,{"$f":"'Project Information'!$D$21>='MATRIX TABLE'!O67","v":true},0]
[null,{"$f":"IF(AND(OR(D68:E68=TRUE),OR(F68:L68=TRUE),'Project Information'!$D$21>='MATRIX TABLE'!O68),MAX($B$56:B67)+1,0)","v":0},"18 70 70 - Connection to Nature",false,true,null,null,null,{"$f":"Matrix!$E$86=TRUE","v":false},null,null,null,null,{"$f":"'Project Information'!$D$21>='MATRIX TABLE'!O68","v":false},215000]

{"sheet":"Small Proj TABLE","index":13,"n_rows":48,"n_cols":17,"rows_kept":48,"cut":false,"hidden":true,"merged":[[0,3,0,4]]}
["General",null,null,"SMALL PROJECT",null,"Who Completes the Task ","Task Reviewed by ","Task Approved by ","New Building","Major Renovation","Additions","All","Cost Limit for Small Projects","Matrix Check Boxes & Notes",null,"Completed?","Notes"]
[null,{"$f":"IF(AND('Project Information'!$D$21<='Small Proj TABLE'!M2,OR($I2:$L2=TRUE)),MAX(B$1:B1)+1,\"\")","v":1},{"$f":"IF(B2<>\"\",$A$1,\"\")","v":"General"},null,"00 00 17.1.1       Submit update Sustainability Applicability Matrix through eBuilder",null,null,null,null,null,null,{"$f":"'Project Information'!$D$21<=M2","v":true},215000,null,null,{"$f":"IF($B2<>\"\", IF(ISBLANK(OFFSET('Small Project Checklist'!B$9, $B2, 0)),\"TBD\",OFFSET('Small Project Checklist'!B$9, $B2, 0)), \"NA\")","v":"TBD"},{"$f":"IF($B2<>\"\", IF(ISBLANK(OFFSET('Small Project Checklist'!D$9, $B2, 0)),\"BLANK\",OFFSET('Small Project Checklist'!D$9, $B2, 0)), \"NA\")","v":"BLANK"}]
[null,{"$f":"IF(AND('Project Information'!$D$21<='Small Proj TABLE'!M3,OR($I3:$L3=TRUE)),MAX(B$1:B2)+1,\"\")","v":2},{"$f":"IF(B3<>\"\",$A$1,\"\")","v":"General"},null,"00 00 17.1.2       Submit updated OPR through eBuilder (if applicable)",null,null,null,null,null,null,{"$f":"'Project Information'!$D$21<='Small Proj TABLE'!M3","v":true},215000,null,null,{"$f":"IF($B3<>\"\", IF(ISBLANK(OFFSET('Small Project Checklist'!B$9, $B3, 0)),\"TBD\",OFFSET('Small Project Checklist'!B$9, $B3, 0)), \"NA\")","v":"TBD"},{"$f":"IF($B3<>\"\", IF(ISBLANK(OFFSET('Small Project Checklist'!D$9, $B3, 0)),\"BLANK\",OFFSET('Small Project Checklist'!D$9, $B3, 0)), \"NA\")","v":"BLANK"}]
[]
[null,{"$f":"IF(AND('Project Information'!$D$21<='Small Proj TABLE'!M5,OR($I5:$L5=TRUE)),MAX(B$1:B2)+1,\"\")","v":""},""]
["Energy",{"$f":"IF(MAX(B2:B5)>0,MAX(B2:B5)+1,\"\")","v":3}]
[null,{"$f":"IF(AND('Project Information'!$D$21<='Small Proj TABLE'!M7,OR($I7:$L7=TRUE)),MAX(B$1:B6)+1,\"\")","v":""},{"$f":"IF(B7<>\"\",$A$6,\"\")","v":""},null,"Consulted BAS regarding applicability of 18 30 30 Automated Demand Response "," ",null,null,null,null,null,{"$f":"AND('Project Information'!$D$21<='Small Proj TABLE'!M7,OR(Matrix!$E$39=TRUE,Matrix!$E$38=TRUE),'MATRIX TABLE'!$X$5<>2)","v":false},215000,"HVAC or Lighting ",null,{"$f":"IF($B7<>\"\", IF(ISBLANK(OFFSET('Small Project Checklist'!B$9, $B7, 0)),\"TBD\",OFFSET('Small Project Checklist'!B$9, $B7, 0)), \"NA\")","v":"NA"},{"$f":"IF($B7<>\"\", IF(ISBLANK(OFFSET('Small Project Checklist'!D$9, $B7, 0)),\"BLANK\",OFFSET('Small Project Checklist'!D$9, $B7, 0)), \"NA\")","v":"NA"}]
[null,{"$f":"IF(AND('Project Information'!$D$21<='Small Proj TABLE'!M8,OR($I8:$L8=TRUE)),MAX(B$1:B7)+1,\"\")","v":""},{"$f":"IF(B8<>\"\",$A$6,\"\")","v":""},null,"Consulted BAS regarding applicability of 18 30 35 Environmental Controls "," ",null,null,null,null,null,{"$f":"AND('Project Information'!$D$21<='Small Proj TABLE'!M8,OR(Matrix!$E$39=TRUE,Matrix!$E$38=TRUE))","v":false},215000,"HVAC or Lighting ",null,{"$f":"IF($B8<>\"\", IF(ISBLANK(OFFSET('Small Project Checklist'!B$9, $B8, 0)),\"TBD\",OFFSET('Small Project Checklist'!B$9, $B8, 0)), \"NA\")","v":"NA"},{"$f":"IF($B8<>\"\", IF(ISBLANK(OFFSET('Small Project Checklist'!D$9, $B8, 0)),\"BLANK\",OFFSET('Small Project Checklist'!D$9, $B8, 0)), \"NA\")","v":"NA"}]
[null,{"$f":"IF(AND('Project Information'!$D$21<=M9,OR($I9:$L9=TRUE)),MAX(B$1:B8)+1,\"\")","v":""},{"$f":"IF(B9<>\"\",$A$6,\"\")","v":""},null,"Followed 18 30 20.1 - ASHRAE 90.1-2016, 5 Building Envelope",null,null,null,null,null,null,{"$f":"AND('Project Information'!$D$21<='Small Proj TABLE'!M9,OR('MATRIX TABLE'!B17>0))","v":false},215000,null,null,{"$f":"IF($B9<>\"\", IF(ISBLANK(OFFSET('Small Project Checklist'!B$9, $B9, 0)),\"TBD\",OFFSET('Small Project Checklist'!B$9, $B9, 0)), \"NA\")","v":"NA"},{"$f":"IF($B9<>\"\", IF(ISBLANK(OFFSET('Small Project Checklist'!D$9, $B9, 0)),\"BLANK\",OFFSET('Small Project Checklist'!D$9, $B9, 0)), \"NA\")","v":"NA"}]
[null,{"$f":"IF(AND('Project Information'!$D$21<='Small Proj TABLE'!M10,OR($I10:$L10=TRUE)),MAX(B$1:B9)+1,\"\")","v":""},"",null,"Followed 18 30 20.1 - ASHRAE 90.1-2016, 6 HVAC ",null,null,null,null,null,null,{"$f":"AND('Project Information'!$D$21<='Small Proj TABLE'!M10,OR('MATRIX TABLE'!B18>0))","v":false},215000,null,null,{"$f":"IF($B10<>\"\", IF(ISBLANK(OFFSET('Small Project Checklist'!B$9, $B10, 0)),\"TBD\",OFFSET('Small Project Checklist'!B$9, $B10, 0)), \"NA\")","v":"NA"},{"$f":"IF($B10<>\"\", IF(ISBLANK(OFFSET('Small Project Checklist'!D$9, $B10, 0)),\"BLANK\",OFFSET('Small Project Checklist'!D$9, $B10, 0)), \"NA\")","v":"NA"}]
[null,{"$f":"IF(AND('Project Information'!$D$21<='Small Proj TABLE'!M11,OR($I11:$L11=TRUE)),MAX(B$1:B10)+1,\"\")","v":""},"",null,"Followed 18 30 20.1 - ASHRAE 90.1-2016, 7 Service Water Heating",null,null,null,null,null,null,{"$f":"AND('Project Information'!$D$21<='Small Proj TABLE'!M11,OR('MATRIX TABLE'!B19>0))","v":false},215000,null,null,{"$f":"IF($B11<>\"\", IF(ISBLANK(OFFSET('Small Project Checklist'!B$9, $B11, 0)),\"TBD\",OFFSET('Small Project Checklist'!B$9, $B11, 0)), \"NA\")","v":"NA"},{"$f":"IF($B11<>\"\", IF(ISBLANK(OFFSET('Small Project Checklist'!D$9, $B11, 0)),\"BLANK\",OFFSET('Small Project Checklist'!D$9, $B11, 0)), \"NA\")","v":"NA"}]
[null,{"$f":"IF(AND('Project Information'!$D$21<='Small Proj TABLE'!M12,OR($I12:$L12=TRUE)),MAX(B$1:B11)+1,\"\")","v":""},"",null,"Followed 18 30 20.1 - ASHRAE 90.1-2016, 8 Power",null,null,null,null,null,null,{"$f":"AND('Project Information'!$D$21<='Small Proj TABLE'!M12,OR('MATRIX TABLE'!B20>0))","v":false},215000,null,null,{"$f":"IF($B12<>\"\", IF(ISBLANK(OFFSET('Small Project Checklist'!B$9, $B12, 0)),\"TBD\",OFFSET('Small Project Checklist'!B$9, $B12, 0)), \"NA\")","v":"NA"},{"$f":"IF($B12<>\"\", IF(ISBLANK(OFFSET('Small Project Checklist'!D$9, $B12, 0)),\"BLANK\",OFFSET('Small Project Checklist'!D$9, $B12, 0)), \"NA\")","v":"NA"}]
[null,{"$f":"IF(AND('Project Information'!$D$21<='Small Proj TABLE'!M13,OR($I13:$L13=TRUE)),MAX(B$1:B12)+1,\"\")","v":""},"",null,"Followed 18 30 20.1 - ASHRAE 90.1-2016, 9 Lighting",null,null,null,null,null,null,{"$f":"AND('Project Information'!$D$21<='Small Proj TABLE'!M13,OR('MATRIX TABLE'!B21>0))","v":false},215000,null,null,{"$f":"IF($B13<>\"\", IF(ISBLANK(OFFSET('Small Project Checklist'!B$9, $B13, 0)),\"TBD\",OFFSET('Small Project Checklist'!B$9, $B13, 0)), \"NA\")","v":"NA"},{"$f":"IF($B13<>\"\", IF(ISBLANK(OFFSET('Small Project Checklist'!D$9, $B13, 0)),\"BLANK\",OFFSET('Small Project Checklist'!D$9, $B13, 0)), \"NA\")","v":"NA"}]
[null,{"$f":"IF(AND('Project Information'!$D$21<='Small Proj TABLE'!M14,OR($I14:$L14=TRUE)),MAX(B$1:B13)+1,\"\")","v":""},"",null,"Followed 18 30 20.1 - ASHRAE 90.1-2016, 10 Other Equipment",null,null,null,null,null,null,{"$f":"AND('Project Information'!$D$21<='Small Proj TABLE'!M14,OR('MATRIX TABLE'!B22>0))","v":false},215000,null,null,{"$f":"IF($B14<>\"\", IF(ISBLANK(OFFSET('Small Project Checklist'!B$9, $B14, 0)),\"TBD\",OFFSET('Small Project Checklist'!B$9, $B14, 0)), \"NA\")","v":"NA"},{"$f":"IF($B14<>\"\", IF(ISBLANK(OFFSET('Small Project Checklist'!D$9, $B14, 0)),\"BLANK\",OFFSET('Small Project Checklist'!D$9, $B14, 0)), \"NA\")","v":"NA"}]
[null,null,{"$f":"IF(B15<>\"\",$A$6,\"\")","v":""}]
["Water",{"$f":"IF(MAX(B7:B15)>0,MAX(B1:B15)+1,\"\")","v":""}]
[null,{"$f":"IF(AND('Project Information'!$D$21<='Small Proj TABLE'!M17,OR($I17:$L17=TRUE)),MAX(B$1:B16)+1,\"\")","v":""},{"$f":"IF(B17<>\"\",$A$16,\"\")","v":""},null,"Followed 18 40 10.1 - Landscape Design",null,null,null,null,null,null,{"$f":"AND('Project Information'!$D$21<='Small Proj TABLE'!M17,OR('MATRIX TABLE'!D28=TRUE))","v":false},{"$f":"M$2","v":215000},null,null,{"$f":"IF($B17<>\"\", IF(ISBLANK(OFFSET('Small Project Checklist'!B$9, $B17, 0)),\"TBD\",OFFSET('Small Project Checklist'!B$9, $B17, 0)), \"NA\")","v":"NA"},{"$f":"IF($B17<>\"\", IF(ISBLANK(OFFSET('Small Project Checklist'!D$9, $B17, 0)),\"BLANK\",OFFSET('Small Project Checklist'!D$9, $B17, 0)), \"NA\")","v":"NA"}]
[null,{"$f":"IF(AND('Project Information'!$D$21<='Small Proj TABLE'!M18,OR($I18:$L18=TRUE)),MAX(B$1:B17)+1,\"\")","v":""},"",null,"Followed 18 40 10.2 - Irrigation",null,null,null,null,null,null,{"$f":"AND('Project Information'!$D$21<='Small Proj TABLE'!M18,OR('MATRIX TABLE'!D29=TRUE))","v":false},215000,null,null,{"$f":"IF($B18<>\"\", IF(ISBLANK(OFFSET('Small Project Checklist'!B$9, $B18, 0)),\"TBD\",OFFSET('Small Project Checklist'!B$9, $B18, 0)), \"NA\")","v":"NA"},{"$f":"IF($B18<>\"\", IF(ISBLANK(OFFSET('Small Project Checklist'!D$9, $B18, 0)),\"BLANK\",OFFSET('Small Project Checklist'!D$9, $B18, 0)), \"NA\")","v":"NA"}]
[null,{"$f":"IF(AND('Project Information'!$D$21<='Small Proj TABLE'!M19,OR($I19:$L19=TRUE)),MAX(B$1:B18)+1,\"\")","v":""},"",null,"Followed 18 40 40.1 - Plumbing Fixtures and Fittings",null,null,null,null,null,null,{"$f":"AND('Project Information'!$D$21<='Small Proj TABLE'!M19,OR('MATRIX TABLE'!D30=TRUE))","v":false},215000,null,null,{"$f":"IF($B19<>\"\", IF(ISBLANK(OFFSET('Small Project Checklist'!B$9, $B19, 0)),\"TBD\",OFFSET('Small Project Checklist'!B$9, $B19, 0)), \"NA\")","v":"NA"},{"$f":"IF($B19<>\"\", IF(ISBLANK(OFFSET('Small Project Checklist'!D$9, $B19, 0)),\"BLANK\",OFFSET('Small Project Checklist'!D$9, $B19, 0)), \"NA\")","v":"NA"}]
[null,{"$f":"IF(AND('Project Information'!$D$21<='Small Proj TABLE'!M20,OR($I20:$L20=TRUE)),MAX(B$1:B19)+1,\"\")","v":""},"",null,"Followed 18 40 40.2 - Appliances",null,null,null,null,null,null,{"$f":"AND('Project Information'!$D$21<='Small Proj TABLE'!M20,OR('MATRIX TABLE'!D31=TRUE))","v":false},215000,null,null,{"$f":"IF($B20<>\"\", IF(ISBLANK(OFFSET('Small Project Checklist'!B$9, $B20, 0)),\"TBD\",OFFSET('Small Project Checklist'!B$9, $B20, 0)), \"NA\")","v":"NA"},{"$f":"IF($B20<>\"\", IF(ISBLANK(OFFSET('Small Project Checklist'!D$9, $B20, 0)),\"BLANK\",OFFSET('Small Project Checklist'!D$9, $B20, 0)), \"NA\")","v":"NA"}]
[null,{"$f":"IF(AND('Project Information'!$D$21<='Small Proj TABLE'!M21,OR($I21:$L21=TRUE)),MAX(B$1:B20)+1,\"\")","v":""},"",null,"Followed 18 40 40.3 - HVAC Systems and Equipment",null,null,null,null,null,null,{"$f":"AND('Project Information'!$D$21<='Small Proj TABLE'!M21,OR('MATRIX TABLE'!D32=TRUE))","v":false},215000,null,null,{"$f":"IF($B21<>\"\", IF(ISBLANK(OFFSET('Small Project Checklist'!B$9, $B21, 0)),\"TBD\",OFFSET('Small Project Checklist'!B$9, $B21, 0)), \"NA\")","v":"NA"},{"$f":"IF($B21<>\"\", IF(ISBLANK(OFFSET('Small Project Checklist'!D$9, $B21, 0)),\"BLANK\",OFFSET('Small Project Checklist'!D$9, $B21, 0)), \"NA\")","v":"NA"}]
[null,{"$f":"IF(AND('Project Information'!$D$21<='Small Proj TABLE'!M22,OR($I22:$L22=TRUE)),MAX(B$1:B21)+1,\"\")","v":""},"",null,"Followed 18 40 40.4 - Roof Spray & Vegetated Roofs",null,null,null,null,null,null,{"$f":"AND('Project Information'!$D$21<='Small Proj TABLE'!M22,OR('MATRIX TABLE'!D33=TRUE))","v":false},215000,null,null,{"$f":"IF($B22<>\"\", IF(ISBLANK(OFFSET('Small Project Checklist'!B$9, $B22, 0)),\"TBD\",OFFSET('Small Project Checklist'!B$9, $B22, 0)), \"NA\")","v":"NA"},{"$f":"IF($B22<>\"\", IF(ISBLANK(OFFSET('Small Project Checklist'!D$9, $B22, 0)),\"BLANK\",OFFSET('Small Project Checklist'!D$9, $B22, 0)), \"NA\")","v":"NA"}]
[null,{"$f":"IF(AND('Project Information'!$D$21<='Small Proj TABLE'!M23,OR($I23:$L23=TRUE)),MAX(B$1:B22)+1,\"\")","v":""},"",null,"Followed 18 40 40.5 - Commercial Food Service Operations",null,null,null,null,null,null,{"$f":"AND('Project Information'!$D$21<='Small Proj TABLE'!M23,OR('MATRIX TABLE'!D34=TRUE))","v":false},215000,null,null,{"$f":"IF($B23<>\"\", IF(ISBLANK(OFFSET('Small Project Checklist'!B$9, $B23, 0)),\"TBD\",OFFSET('Small Project Checklist'!B$9, $B23, 0)), \"NA\")","v":"NA"},{"$f":"IF($B23<>\"\", IF(ISBLANK(OFFSET('Small Project Checklist'!D$9, $B23, 0)),\"BLANK\",OFFSET('Small Project Checklist'!D$9, $B23, 0)), \"NA\")","v":"NA"}]
[null,{"$f":"IF(AND('Project Information'!$D$21<='Small Proj TABLE'!M24,OR($I24:$L24=TRUE)),MAX(B$1:B23)+1,\"\")","v":""},"",null,"Followed 18 40 40.6 - Medical and Laboratory Facilities",null,null,null,null,null,null,{"$f":"AND('Project Information'!$D$21<='Small Proj TABLE'!M24,OR('MATRIX TABLE'!D35=TRUE))","v":false},215000,null,null,{"$f":"IF($B24<>\"\", IF(ISBLANK(OFFSET('Small Project Checklist'!B$9, $B24, 0)),\"TBD\",OFFSET('Small Project Checklist'!B$9, $B24, 0)), \"NA\")","v":"NA"},{"$f":"IF($B24<>\"\", IF(ISBLANK(OFFSET('Small Project Checklist'!D$9, $B24, 0)),\"BLANK\",OFFSET('Small Project Checklist'!D$9, $B24, 0)), \"NA\")","v":"NA"}]
[null,{"$f":"IF(AND('Project Information'!$D$21<='Small Proj TABLE'!M25,OR($I25:$L25=TRUE)),MAX(B$1:B24)+1,\"\")","v":""},"",null,"Followed 18 40 40.7 - Special Water Features",null,null,null,null,null,null,{"$f":"AND('Project Information'!$D$21<='Small Proj TABLE'!M25,OR('MATRIX TABLE'!D36=TRUE))","v":false},{"$f":"M$2","v":215000},null,null,{"$f":"IF($B25<>\"\", IF(ISBLANK(OFFSET('Small Project Checklist'!B$9, $B25, 0)),\"TBD\",OFFSET('Small Project Checklist'!B$9, $B25, 0)), \"NA\")","v":"NA"},{"$f":"IF($B25<>\"\", IF(ISBLANK(OFFSET('Small Project Checklist'!D$9, $B25, 0)),\"BLANK\",OFFSET('Small Project Checklist'!D$9, $B25, 0)), \"NA\")","v":"NA"}]
[null,{"$f":"IF(AND('Project Information'!$D$21<='Small Proj TABLE'!M26,OR($I26:$L26=TRUE)),MAX(B$1:B25)+1,\"\")","v":""},"",null,"Followed 18 40 40.9 - Water Softeners",null,null,null,null,null,null,{"$f":"AND('Project Information'!$D$21<='Small Proj TABLE'!M26,OR('MATRIX TABLE'!D37=TRUE))","v":false},215000,null,null,{"$f":"IF($B26<>\"\", IF(ISBLANK(OFFSET('Small Project Checklist'!B$9, $B26, 0)),\"TBD\",OFFSET('Small Project Checklist'!B$9, $B26, 0)), \"NA\")","v":"NA"},{"$f":"IF($B26<>\"\", IF(ISBLANK(OFFSET('Small Project Checklist'!D$9, $B26, 0)),\"BLANK\",OFFSET('Small Project Checklist'!D$9, $B26, 0)), \"NA\")","v":"NA"}]
[null,{"$f":"IF(AND('Project Information'!$D$21<='Small Proj TABLE'!M27,OR($I27:$L27=TRUE)),MAX(B$1:B26)+1,\"\")","v":""},"",null,"Followed 18 40 40.10 - Reverse Osmosis Water Treatment Systems",null,null,null,null,null,null,{"$f":"AND('Project Information'!$D$21<='Small Proj TABLE'!M27,OR('MATRIX TABLE'!D38=TRUE))","v":false},215000,null,null,{"$f":"IF($B27<>\"\", IF(ISBLANK(OFFSET('Small Project Checklist'!B$9, $B27, 0)),\"TBD\",OFFSET('Small Project Checklist'!B$9, $B27, 0)), \"NA\")","v":"NA"},{"$f":"IF($B27<>\"\", IF(ISBLANK(OFFSET('Small Project Checklist'!D$9, $B27, 0)),\"BLANK\",OFFSET('Small Project Checklist'!D$9, $B27, 0)), \"NA\")","v":"NA"}]
[null,{"$f":"IF(AND('Project Information'!$D$21<='Small Proj TABLE'!M28,OR($I28:$L28=TRUE)),MAX(B$1:B16)+1,\"\")","v":""},{"$f":"IF(B28<>\"\",$A$16,\"\")","v":""}]
["Ecosystem Services",{"$f":"IF(MAX(B17:B28)>0,MAX(B1:B28)+1,\"\")","v":""}]
[null,{"$f":"IF(AND('Project Information'!$D$21<='Small Proj TABLE'!M30,OR($I30:$L30=TRUE)),MAX(B$1:B29)+1,\"\")","v":""},{"$f":"IF(B30<>\"\",$A$29,\"\")","v":""},null,"Consulted the University Landscape Architect on project early in design",null,null,null,null,null,null,{"$f":"AND('Project Information'!$D$21<='Small Proj TABLE'!M30,'MATRIX TABLE'!D44=TRUE)","v":false},{"$f":"M$2","v":215000},"Exterior Site Impact",{"$f":"Matrix!D71=TRUE","v":false},{"$f":"IF($B30<>\"\", IF(ISBLANK(OFFSET('Small Project Checklist'!B$9, $B30, 0)),\"TBD\",OFFSET('Small Project Checklist'!B$9, $B30, 0)), \"NA\")","v":"NA"},{"$f":"IF($B30<>\"\", IF(ISBLANK(OFFSET('Small Project Checklist'!D$9, $B30, 0)),\"BLANK\",OFFSET('Small Project Checklist'!D$9, $B30, 0)), \"NA\")","v":"NA"}]
[]
["Materials",{"$f":"IF(MAX(B30:B31)>0,MAX(B30:B31)+1,\"\")","v":""}]
[null,{"$f":"IF(AND('Project Information'!$D$21<='Small Proj TABLE'!M33,OR($I33:$L33=TRUE)),MAX(B$1:B32)+1,\"\")","v":""},{"$f":"IF(B33<>\"\",$A$32,\"\")","v":""},null,"Engaged appropriate group (from 18 60 50) regarding impacts to Materials Management",null,null,null,null,null,null,{"$f":"AND('Project Information'!$D$21<='Small Proj TABLE'!M33,'MATRIX TABLE'!B52>0)","v":false},{"$f":"M$2","v":215000},null,null,{"$f":"IF($B33<>\"\", IF(ISBLANK(OFFSET('Small Project Checklist'!B$9, $B33, 0)),\"TBD\",OFFSET('Small Project Checklist'!B$9, $B33, 0)), \"NA\")","v":"NA"},{"$f":"IF($B33<>\"\", IF(ISBLANK(OFFSET('Small Project Checklist'!D$9, $B33, 0)),\"BLANK\",OFFSET('Small Project Checklist'!D$9, $B33, 0)), \"NA\")","v":"NA"}]
[null,{"$f":"IF(AND('Project Information'!$D$21<='Small Proj TABLE'!M34,OR($I34:$L34=TRUE)),MAX(B$1:B33)+1,\"\")","v":""},{"$f":"IF(B34<>\"\",$A$32,\"\")","v":""},null,"Provide a breif narrative on the methods to divert Construction & Demolition debris from the landfill",null,null,null,null,null,null,null,{"$f":"M$2","v":215000},null,null,{"$f":"IF($B34<>\"\", IF(ISBLANK(OFFSET('Small Project Checklist'!B$9, $B34, 0)),\"TBD\",OFFSET('Small Project Checklist'!B$9, $B34, 0)), \"NA\")","v":"NA"},{"$f":"IF($B34<>\"\", IF(ISBLANK(OFFSET('Small Project Checklist'!D$9, $B34, 0)),\"BLANK\",OFFSET('Small Project Checklist'!D$9, $B34, 0)), \"NA\")","v":"NA"}]
[null,{"$f":"IF(AND(OR($I35:$L35=TRUE),OR(Matrix!$E$42,Matrix!$E$75,Matrix!$E$86,Matrix!$E$87=TRUE)),MAX(B$1:B34)+1,\"\")","v":""},"MATERIALS","18 60 30","Prescriptive Materials Matrix followed for applicable CSI Divisions",null,null,null,null,null,null,{"$f":"'Project Information'!$D$21<=M35","v":true},4000000]
["User Experience",{"$f":"IF(MAX(B33:B35)>0,MAX(B1:B35)+1,\"\")","v":""}]
[null,{"$f":"IF(AND('Project Information'!$D$21<='Small Proj TABLE'!M37,OR($I37:$L37=TRUE)),MAX(B$1:B36)+1,\"\")","v":""},{"$f":"IF(B37<>\"\",$A$36,\"\")","v":""},null,"Followed 18 70 30.1 - Ventilation and IAQ Requirements",null,null,null,null,null,null,{"$f":"AND('Project Information'!$D$21<='Small Proj TABLE'!M37,OR('MATRIX TABLE'!B57>0))","v":false},{"$f":"M$2","v":215000},null,null,{"$f":"IF($B37<>\"\", IF(ISBLANK(OFFSET('Small Project Checklist'!B$9, $B37, 0)),\"TBD\",OFFSET('Small Project Checklist'!B$9, $B37, 0)), \"NA\")","v":"NA"},{"$f":"IF($B37<>\"\", IF(ISBLANK(OFFSET('Small Project Checklist'!D$9, $B37, 0)),\"BLANK\",OFFSET('Small Project Checklist'!D$9, $B37, 0)), \"NA\")","v":"NA"}]
[null,{"$f":"IF(AND('Project Information'!$D$21<='Small Proj TABLE'!M38,OR($I38:$L38=TRUE)),MAX(B$1:B37)+1,\"\")","v":""},"",null,"Followed 18 70 30.4 - Building Entrances",null,null,null,null,null,null,{"$f":"AND('Project Information'!$D$21<='Small Proj TABLE'!M38,OR('MATRIX TABLE'!B60>0))","v":false},215000,null,null,{"$f":"IF($B38<>\"\", IF(ISBLANK(OFFSET('Small Project Checklist'!B$9, $B38, 0)),\"TBD\",OFFSET('Small Project Checklist'!B$9, $B38, 0)), \"NA\")","v":"NA"},{"$f":"IF($B38<>\"\", IF(ISBLANK(OFFSET('Small Project Checklist'!D$9, $B38, 0)),\"BLANK\",OFFSET('Small Project Checklist'!D$9, $B38, 0)), \"NA\")","v":"NA"}]
[null,{"$f":"IF(AND('Project Information'!$D$21<='Small Proj TABLE'!M39,OR($I39:$L39=TRUE)),MAX(B$1:B38)+1,\"\")","v":""},"",null,"Followed 18 70 30.5 - Interior Materials and Finishes",null,null,null,null,null,null,{"$f":"AND('Project Information'!$D$21<='Small Proj TABLE'!M39,OR('MATRIX TABLE'!B61>0))","v":false},215000,null,null,{"$f":"IF($B39<>\"\", IF(ISBLANK(OFFSET('Small Project Checklist'!B$9, $B39, 0)),\"TBD\",OFFSET('Small Project Checklist'!B$9, $B39, 0)), \"NA\")","v":"NA"},{"$f":"IF($B39<>\"\", IF(ISBLANK(OFFSET('Small Project Checklist'!D$9, $B39, 0)),\"BLANK\",OFFSET('Small Project Checklist'!D$9, $B39, 0)), \"NA\")","v":"NA"}]
[null,{"$f":"IF(AND('Project Information'!$D$21<='Small Proj TABLE'!M40,OR($I40:$L40=TRUE)),MAX(B$1:B39)+1,\"\")","v":""},"",null,"Followed 18 70 40 - Thermal Comfort",null,null,null,null,null,null,{"$f":"AND('Project Information'!$D$21<='Small Proj TABLE'!M40,OR('MATRIX TABLE'!B62>0))","v":false},215000,null,null,{"$f":"IF($B40<>\"\", IF(ISBLANK(OFFSET('Small Project Checklist'!B$9, $B40, 0)),\"TBD\",OFFSET('Small Project Checklist'!B$9, $B40, 0)), \"NA\")","v":"NA"},{"$f":"IF($B40<>\"\", IF(ISBLANK(OFFSET('Small Project Checklist'!D$9, $B40, 0)),\"BLANK\",OFFSET('Small Project Checklist'!D$9, $B40, 0)), \"NA\")","v":"NA"}]
[null,{"$f":"IF(AND('Project Information'!$D$21<='Small Proj TABLE'!M41,OR($I41:$L41=TRUE)),MAX(B$1:B40)+1,\"\")","v":""},"",null,"Followed 18 70 50.1 - HVAC Background Noise Levels",null,null,null,null,null,null,{"$f":"AND('Project Information'!$D$21<='Small Proj TABLE'!M41,OR('MATRIX TABLE'!B63>0))","v":false},215000,null,null,{"$f":"IF($B41<>\"\", IF(ISBLANK(OFFSET('Small Project Checklist'!B$9, $B41, 0)),\"TBD\",OFFSET('Small Project Checklist'!B$9, $B41, 0)), \"NA\")","v":"NA"},{"$f":"IF($B41<>\"\", IF(ISBLANK(OFFSET('Small Project Checklist'!D$9, $B41, 0)),\"BLANK\",OFFSET('Small Project Checklist'!D$9, $B41, 0)), \"NA\")","v":"NA"}]
[null,{"$f":"IF(AND('Project Information'!$D$21<='Small Proj TABLE'!M42,OR($I42:$L42=TRUE)),MAX(B$1:B41)+1,\"\")","v":""},"",null,"Followed 18 70 50.2 - Sound Transmission Class and Reverberation",null,null,null,null,null,null,{"$f":"AND('Project Information'!$D$21<='Small Proj TABLE'!M42,OR('MATRIX TABLE'!B64>0))","v":false},215000,null,null,{"$f":"IF($B42<>\"\", IF(ISBLANK(OFFSET('Small Project Checklist'!B$9, $B42, 0)),\"TBD\",OFFSET('Small Project Checklist'!B$9, $B42, 0)), \"NA\")","v":"NA"},{"$f":"IF($B42<>\"\", IF(ISBLANK(OFFSET('Small Project Checklist'!D$9, $B42, 0)),\"BLANK\",OFFSET('Small Project Checklist'!D$9, $B42, 0)), \"NA\")","v":"NA"}]
[null,{"$f":"IF(AND('Project Information'!$D$21<='Small Proj TABLE'!M43,OR($I43:$L43=TRUE)),MAX(B$1:B42)+1,\"\")","v":""},"",null,"Followed 18 70 55 - Equipment Vibration Performance",null,null,null,null,null,null,{"$f":"AND('Project Information'!$D$21<='Small Proj TABLE'!M43,OR('MATRIX TABLE'!B65>0))","v":false},215000,null,null,{"$f":"IF($B43<>\"\", IF(ISBLANK(OFFSET('Small Project Checklist'!B$9, $B43, 0)),\"TBD\",OFFSET('Small Project Checklist'!B$9, $B43, 0)), \"NA\")","v":"NA"},{"$f":"IF($B43<>\"\", IF(ISBLANK(OFFSET('Small Project Checklist'!D$9, $B43, 0)),\"BLANK\",OFFSET('Small Project Checklist'!D$9, $B43, 0)), \"NA\")","v":"NA"}]
[null,{"$f":"IF(AND('Project Information'!$D$21<='Small Proj TABLE'!M44,OR($I44:$L44=TRUE)),MAX(B$1:B43)+1,\"\")","v":""},"",null,"Comply with lighting levels indicated in 18 70 60.2",null,null,null,null,null,null,{"$f":"AND('Project Information'!$D$21<='Small Proj TABLE'!M44,OR('MATRIX TABLE'!B66>0))","v":false},215000,"only certain daylighting/lighting required",null,{"$f":"IF($B44<>\"\", IF(ISBLANK(OFFSET('Small Project Checklist'!B$9, $B44, 0)),\"TBD\",OFFSET('Small Project Checklist'!B$9, $B44, 0)), \"NA\")","v":"NA"},{"$f":"IF($B44<>\"\", IF(ISBLANK(OFFSET('Small Project Checklist'!D$9, $B44, 0)),\"BLANK\",OFFSET('Small Project Checklist'!D$9, $B44, 0)), \"NA\")","v":"NA"}]
[null,{"$f":"IF(AND('Project Information'!$D$21<='Small Proj TABLE'!M45,OR($I45:$L45=TRUE)),MAX(B$1:B44)+1,\"\")","v":""},"",null,"Comply with Control and Task Lighting standards as indicated in 18 70 60.3",null,null,null,null,null,null,{"$f":"AND('Project Information'!$D$21<='Small Proj TABLE'!M45,OR('MATRIX TABLE'!B66>0))","v":false},215000,"only certain daylighting/lighting required",null,{"$f":"IF($B45<>\"\", IF(ISBLANK(OFFSET('Small Project Checklist'!B$9, $B45, 0)),\"TBD\",OFFSET('Small Project Checklist'!B$9, $B45, 0)), \"NA\")","v":"NA"},{"$f":"IF($B45<>\"\", IF(ISBLANK(OFFSET('Small Project Checklist'!D$9, $B45, 0)),\"BLANK\",OFFSET('Small Project Checklist'!D$9, $B45, 0)), \"NA\")","v":"NA"}]
[null,{"$f":"IF(AND('Project Information'!$D$21<='Small Proj TABLE'!M46,OR($I46:$L46=TRUE)),MAX(B$1:B45)+1,\"\")","v":""},"",null,"Comply with Correlated Color Temperature standards as indicated in 18 70 60.5",null,null,null,null,null,null,{"$f":"AND('Project Information'!$D$21<='Small Proj TABLE'!M46,OR('MATRIX TABLE'!B66>0))","v":false},215000,"only certain daylighting/lighting required",null,{"$f":"IF($B46<>\"\", IF(ISBLANK(OFFSET('Small Project Checklist'!B$9, $B46, 0)),\"TBD\",OFFSET('Small Project Checklist'!B$9, $B46, 0)), \"NA\")","v":"NA"},{"$f":"IF($B46<>\"\", IF(ISBLANK(OFFSET('Small Project Checklist'!D$9, $B46, 0)),\"BLANK\",OFFSET('Small Project Checklist'!D$9, $B46, 0)), \"NA\")","v":"NA"}]
[null,{"$f":"IF(AND('Project Information'!$D$21<='Small Proj TABLE'!M47,OR($I47:$L47=TRUE)),MAX(B$1:B46)+1,\"\")","v":""},"",null,"Followed 18 70 60.4 - Exterior Lighting",null,null,null,null,null,null,{"$f":"AND('Project Information'!$D$21<='Small Proj TABLE'!M47,OR('MATRIX TABLE'!B67>0))","v":false},215000,null,null,{"$f":"IF($B47<>\"\", IF(ISBLANK(OFFSET('Small Project Checklist'!B$9, $B47, 0)),\"TBD\",OFFSET('Small Project Checklist'!B$9, $B47, 0)), \"NA\")","v":"NA"},{"$f":"IF($B47<>\"\", IF(ISBLANK(OFFSET('Small Project Checklist'!D$9, $B47, 0)),\"BLANK\",OFFSET('Small Project Checklist'!D$9, $B47, 0)), \"NA\")","v":"NA"}]
[null,null,{"$f":"IF(B48<>\"\",$A$36,\"\")","v":""}]

{"sheet":"Pre-Design TABLE","index":14,"n_rows":33,"n_cols":16,"rows_kept":33,"cut":false,"hidden":true,"merged":[]}
["General",null,null,null,null,"Who Completes the Task ","Task Reviewed by ","Task Approved by ","New Building","Major Renovation","Additions","All","Cost threshold ","Matrix Check Boxes & Notes","Completed?","Notes"]
[null,{"$f":"IF(OR($I2:$L2=TRUE),MAX(B1)+1,\"\")","v":1},{"$f":"IF(B2<>\"\",$A$1,\"\")","v":"General"},"00 00 17.1.1     ","Submit updated Sustainability Applicability Matrix (SAM) through eBuilder ",null,null,null,{"$f":"AND('MATRIX TABLE'!$R$5=4,'Project Information'!$D$21>=M2)","v":false},{"$f":"AND('MATRIX TABLE'!$R$5=3,'Project Information'!$D$21>=$M2)","v":true},{"$f":"AND('MATRIX TABLE'!$R$5=2,'Project Information'!$D$21>=$M2)","v":false},{"$f":"'Project Information'!$D$21>='Pre-Design TABLE'!M2","v":true},0,0,{"$f":"IF(B2<>\"\", IF(ISBLANK(OFFSET('Pre-Design Checklist '!$B$9, B2, 0)),\"TBD\",OFFSET('Pre-Design Checklist '!$B$9, B2, 0)), \"NA\")","v":"TBD"},{"$f":"IF(B2<>\"\", IF(ISBLANK(OFFSET('Pre-Design Checklist '!$E$9, B2, 0)),\"BLANK\",OFFSET('Pre-Design Checklist '!$E$9, B2, 0)), \"NA\")","v":"BLANK"}]
[null,{"$f":"IF(OR($I3:$L3=TRUE),MAX(B$1:B2)+1,\"\")","v":2},"General","00 00 17.1.2 ","Submit updated OPR through eBuilder ","A/E",null,null,{"$f":"AND('MATRIX TABLE'!$R$5=4,'Project Information'!$D$21>=M3)","v":false},{"$f":"AND('MATRIX TABLE'!$R$5=3,'Project Information'!$D$21>=$M3)","v":true},{"$f":"AND('MATRIX TABLE'!$R$5=2,'Project Information'!$D$21>=$M3)","v":false},{"$f":"'Project Information'!$D$21>='Pre-Design TABLE'!M3","v":true},0,null,{"$f":"IF(B3<>\"\", IF(ISBLANK(OFFSET('Pre-Design Checklist '!$B$9, B3, 0)),\"TBD\",OFFSET('Pre-Design Checklist '!$B$9, B3, 0)), \"NA\")","v":"TBD"},{"$f":"IF(B3<>\"\", IF(ISBLANK(OFFSET('Pre-Design Checklist '!$E$9, B3, 0)),\"BLANK\",OFFSET('Pre-Design Checklist '!$E$9, B3, 0)), \"NA\")","v":"BLANK"}]
[null,{"$f":"IF(OR($I4:$L4=TRUE),MAX(B$1:B3)+1,\"\")","v":""},"","00 00 17.1.3.1","Sustainability Charrette complete",null,null,null,{"$f":"AND('MATRIX TABLE'!$R$5=4,'Project Information'!$D$21>=M4)","v":false},{"$f":"AND('MATRIX TABLE'!$R$5=3,'Project Information'!$D$21>=$M4)","v":false},{"$f":"AND('MATRIX TABLE'!$R$5=2,'Project Information'!$D$21>=$M4)","v":false},{"$f":"'Project Information'!$D$21>='Pre-Design TABLE'!M4","v":false},4000000,null,{"$f":"IF(B4<>\"\", IF(ISBLANK(OFFSET('Pre-Design Checklist '!$B$9, B4, 0)),\"TBD\",OFFSET('Pre-Design Checklist '!$B$9, B4, 0)), \"NA\")","v":"NA"},{"$f":"IF(B4<>\"\", IF(ISBLANK(OFFSET('Pre-Design Checklist '!$E$9, B4, 0)),\"BLANK\",OFFSET('Pre-Design Checklist '!$E$9, B4, 0)), \"NA\")","v":"NA"}]
[null,{"$f":"IF(OR($I5:$L5=TRUE),MAX(B$1:B4)+1,\"\")","v":""},"","00 00 17.1.3","Project Sustainability Stakeholder Group identified ","A/E",null,null,{"$f":"AND('MATRIX TABLE'!$R$5=4,'Project Information'!$D$21>=M5)","v":false},{"$f":"AND('MATRIX TABLE'!$R$5=3,'Project Information'!$D$21>=$M5)","v":false},{"$f":"AND('MATRIX TABLE'!$R$5=2,'Project Information'!$D$21>=$M5)","v":false},{"$f":"'Project Information'!$D$21>='Pre-Design TABLE'!M5","v":false},4000000,null,{"$f":"IF(B5<>\"\", IF(ISBLANK(OFFSET('Pre-Design Checklist '!$B$9, B5, 0)),\"TBD\",OFFSET('Pre-Design Checklist '!$B$9, B5, 0)), \"NA\")","v":"NA"},{"$f":"IF(B5<>\"\", IF(ISBLANK(OFFSET('Pre-Design Checklist '!$E$9, B5, 0)),\"BLANK\",OFFSET('Pre-Design Checklist '!$E$9, B5, 0)), \"NA\")","v":"NA"}]
[null,{"$f":"IF(OR($I6:$L6=TRUE),MAX(B$1:B5)+1,\"\")","v":""},"","00 00 17.1.4","Sustainability Charrette Narrative complete","A/E",null,null,{"$f":"AND('MATRIX TABLE'!$R$5=4,'Project Information'!$D$21>=M6)","v":false},{"$f":"AND('MATRIX TABLE'!$R$5=3,'Project Information'!$D$21>=$M6)","v":false},{"$f":"AND('MATRIX TABLE'!$R$5=2,'Project Information'!$D$21>=$M6)","v":false},{"$f":"'Project Information'!$D$21>='Pre-Design TABLE'!M6","v":false},4000000,null,{"$f":"IF(B6<>\"\", IF(ISBLANK(OFFSET('Pre-Design Checklist '!$B$9, B6, 0)),\"TBD\",OFFSET('Pre-Design Checklist '!$B$9, B6, 0)), \"NA\")","v":"NA"},{"$f":"IF(B6<>\"\", IF(ISBLANK(OFFSET('Pre-Design Checklist '!$E$9, B6, 0)),\"BLANK\",OFFSET('Pre-Design Checklist '!$E$9, B6, 0)), \"NA\")","v":"NA"}]
[null,{"$f":"IF(OR($I7:$L7=TRUE),MAX(B$1:B6)+1,\"\")","v":""},"","00 00 17.1.4.3","Project Sustainability Stakeholder Group meeting frequency established  ","A/E",null,null,{"$f":"AND('MATRIX TABLE'!$R$5=4,'Project Information'!$D$21>=M7)","v":false},{"$f":"AND('MATRIX TABLE'!$R$5=3,'Project Information'!$D$21>=$M7)","v":false},{"$f":"AND('MATRIX TABLE'!$R$5=2,'Project Information'!$D$21>=$M7)","v":false},{"$f":"'Project Information'!$D$21>='Pre-Design TABLE'!M7","v":false},4000000,null,{"$f":"IF(B7<>\"\", IF(ISBLANK(OFFSET('Pre-Design Checklist '!$B$9, B7, 0)),\"TBD\",OFFSET('Pre-Design Checklist '!$B$9, B7, 0)), \"NA\")","v":"NA"},{"$f":"IF(B7<>\"\", IF(ISBLANK(OFFSET('Pre-Design Checklist '!$E$9, B7, 0)),\"BLANK\",OFFSET('Pre-Design Checklist '!$E$9, B7, 0)), \"NA\")","v":"NA"}]
["Cx & Sus. Services",{"$f":"IF(MAX(B1:B7)>0,MAX(B1:B7)+1,\"\")","v":3}]
[null,{"$f":"IF(AND($L9=TRUE,'Cx Thresholds'!E9:E12<>\"n/a\"),MAX(B$1:B8)+1,\"\")","v":""},"Cx & Sus. Services","00 00 17.1.6","CxA under contract ",null,null,null,null,null,null,{"$f":"'Project Information'!$D$21>='Pre-Design TABLE'!M9","v":true},0,"OR('MATRIX TABLE'!R5=4,AND('Project Information'!$D$21>=M9,OR('MATRIX TABLE'!B5:B7>0)))",{"$f":"IF(B9<>\"\", IF(ISBLANK(OFFSET('Pre-Design Checklist '!$B$9, B9, 0)),\"TBD\",OFFSET('Pre-Design Checklist '!$B$9, B9, 0)), \"NA\")","v":"NA"},{"$f":"IF(B9<>\"\", IF(ISBLANK(OFFSET('Pre-Design Checklist '!$E$9, B9, 0)),\"BLANK\",OFFSET('Pre-Design Checklist '!$E$9, B9, 0)), \"NA\")","v":"NA"}]
["Energy",{"$f":"IF(MAX(B9)>0,MAX(B2:B9)+1,\"\")","v":""}]
[null,{"$f":"IF(OR('MATRIX TABLE'!B8:B22>0=TRUE),MAX(B$1:B10)+1,\"\")","v":""},{"$f":"IF(B11<>\"\",$A$10,\"\")","v":""},"18 30 20","Project follows ASHRAE 90.1-2016 Mandatory Standards",null,null,null,{"$f":"AND('MATRIX TABLE'!$R$5=4,'Project Information'!$D$21>=M11)","v":false},{"$f":"AND('MATRIX TABLE'!$R$5=3,'Project Information'!$D$21>=$M11)","v":true},{"$f":"AND('MATRIX TABLE'!$R$5=2,'Project Information'!$D$21>=$M11)","v":false},{"$f":"'Project Information'!$D$21>='Pre-Design TABLE'!M11","v":true},0,null,{"$f":"IF(B11<>\"\", IF(ISBLANK(OFFSET('Pre-Design Checklist '!$B$9, B11, 0)),\"TBD\",OFFSET('Pre-Design Checklist '!$B$9, B11, 0)), \"NA\")","v":"NA"},{"$f":"IF(B11<>\"\", IF(ISBLANK(OFFSET('Pre-Design Checklist '!$E$9, B11, 0)),\"BLANK\",OFFSET('Pre-Design Checklist '!$E$9, B11, 0)), \"NA\")","v":"NA"}]
[null,{"$f":"IF(AND(OR($I12:$L12=TRUE),'MATRIX TABLE'!B24>0),MAX(B$1:B11)+1,\"\")","v":""},{"$f":"IF(B12<>\"\",$A$10,\"\")","v":""},"00 00 17.1.4.2    ","Site EUI Target set during Sustainability Charette","A/E","CxA",null,{"$f":"AND('MATRIX TABLE'!$R$5=4,'Project Information'!$D$21>=M12)","v":false},null,{"$f":"AND('MATRIX TABLE'!$R$5=2,'Project Information'!$D$21>=$M12)","v":false},null,4000000,null,{"$f":"IF(B12<>\"\", IF(ISBLANK(OFFSET('Pre-Design Checklist '!$B$9, B12, 0)),\"TBD\",OFFSET('Pre-Design Checklist '!$B$9, B12, 0)), \"NA\")","v":"NA"},{"$f":"IF(B12<>\"\", IF(ISBLANK(OFFSET('Pre-Design Checklist '!$E$9, B12, 0)),\"BLANK\",OFFSET('Pre-Design Checklist '!$E$9, B12, 0)), \"NA\")","v":"NA"}]
[null,{"$f":"IF(AND(OR($I13:$L13=TRUE),'MATRIX TABLE'!$B$24>0),MAX(B$1:B12)+1,\"\")","v":""},{"$f":"IF(B13<>\"\",$A$10,\"\")","v":""},"18 30 40.3           ","District Utilities Conversion Factors discussed during Sustainability Charrette","A/E","CxA",null,{"$f":"AND('MATRIX TABLE'!$R$5=4,'Project Information'!$D$21>=M13)","v":false},null,{"$f":"AND('MATRIX TABLE'!$R$5=2,'Project Information'!$D$21>=$M13)","v":false},null,4000000,null,{"$f":"IF(B13<>\"\", IF(ISBLANK(OFFSET('Pre-Design Checklist '!$B$9, B13, 0)),\"TBD\",OFFSET('Pre-Design Checklist '!$B$9, B13, 0)), \"NA\")","v":"NA"},{"$f":"IF(B13<>\"\", IF(ISBLANK(OFFSET('Pre-Design Checklist '!$E$9, B13, 0)),\"BLANK\",OFFSET('Pre-Design Checklist '!$E$9, B13, 0)), \"NA\")","v":"NA"}]
[null,{"$f":"IF(AND(OR($I14:$L14=TRUE),'MATRIX TABLE'!$B$24>0),MAX(B$1:B13)+1,\"\")","v":""},{"$f":"IF(B14<>\"\",$A$10,\"\")","v":""},"18 30 40","All parties from Project Sustainability Stakeholder Group agree on Site EUI Target"," ",null,null,{"$f":"AND('MATRIX TABLE'!$R$5=4,'Project Information'!$D$21>=M14)","v":false},null,{"$f":"AND('MATRIX TABLE'!$R$5=2,'Project Information'!$D$21>=$M14)","v":false},null,4000000,null,{"$f":"IF(B14<>\"\", IF(ISBLANK(OFFSET('Pre-Design Checklist '!$B$9, B14, 0)),\"TBD\",OFFSET('Pre-Design Checklist '!$B$9, B14, 0)), \"NA\")","v":"NA"},{"$f":"IF(B14<>\"\", IF(ISBLANK(OFFSET('Pre-Design Checklist '!$E$9, B14, 0)),\"BLANK\",OFFSET('Pre-Design Checklist '!$E$9, B14, 0)), \"NA\")","v":"NA"}]
["Water",{"$f":"IF(MAX(B11:B14)>0,MAX(B1:B14)+1,\"\")","v":""}]
[null,{"$f":"IF(AND(OR($I16:$L16=TRUE),'MATRIX TABLE'!$B$39>0),MAX(B$1:B15)+1,\"\")","v":""},{"$f":"IF(B16<>\"\",$A$15,\"\")","v":""},"18 40 40.11","Site WUI Target set at during Sustainability Charette","A/E","CxA",null,{"$f":"AND('MATRIX TABLE'!$R$5=4,'Project Information'!$D$21>=M16)","v":false},null,{"$f":"AND('MATRIX TABLE'!$R$5=2,'Project Information'!$D$21>=$M16)","v":false},null,4000000,null,{"$f":"IF(B16<>\"\", IF(ISBLANK(OFFSET('Pre-Design Checklist '!$B$9, B16, 0)),\"TBD\",OFFSET('Pre-Design Checklist '!$B$9, B16, 0)), \"NA\")","v":"NA"},{"$f":"IF(B16<>\"\", IF(ISBLANK(OFFSET('Pre-Design Checklist '!$E$9, B16, 0)),\"BLANK\",OFFSET('Pre-Design Checklist '!$E$9, B16, 0)), \"NA\")","v":"NA"}]
[null,{"$f":"IF(AND(OR($I17:$L17=TRUE),'MATRIX TABLE'!$B$39>0),MAX(B$1:B16)+1,\"\")","v":""},{"$f":"IF(B17<>\"\",$A$15,\"\")","v":""},"18 40 40.11","All parties from Project Sustainability Stakeholder Group agree on Site WUI Target"," ",null,null,{"$f":"AND('MATRIX TABLE'!$R$5=4,'Project Information'!$D$21>=M17)","v":false},null,{"$f":"AND('MATRIX TABLE'!$R$5=2,'Project Information'!$D$21>=$M17)","v":false},null,4000000,null,{"$f":"IF(B17<>\"\", IF(ISBLANK(OFFSET('Pre-Design Checklist '!$B$9, B17, 0)),\"TBD\",OFFSET('Pre-Design Checklist '!$B$9, B17, 0)), \"NA\")","v":"NA"},{"$f":"IF(B17<>\"\", IF(ISBLANK(OFFSET('Pre-Design Checklist '!$E$9, B17, 0)),\"BLANK\",OFFSET('Pre-Design Checklist '!$E$9, B17, 0)), \"NA\")","v":"NA"}]
["Ecosystem Services",{"$f":"IF(MAX(B16:B17)>0,MAX(B1:B17)+1,\"\")","v":""}]
[null,"IF(OR($I19:$L19=TRUE),MAX(B$1:B18)+1,\"\")",{"$f":"IF(B19<>\"\",$A$18,\"\")","v":"Ecosystem Services"},"18 50 30","Contacted the university Ecosystem Services Team for existing ESA info",null,null,null,null,null,null,{"$f":"AND('Project Information'!$D$21>='Pre-Design TABLE'!M19,'MATRIX TABLE'!D44=TRUE)","v":false},215000,"Exterior Site Impact"]
["Materials",{"$f":"IF(MAX(B19:B19)>0,MAX(B1:B19)+1,\"\")","v":""}]
[]
["User Experience",{"$f":"IF(MAX(B21:B21)>0,MAX(B1:B21)+1,\"\")","v":""}]
[]
[null,null,{"$f":"IF(B24<>\"\",$A$22,\"\")","v":""}]
[null,null,""]
[null,null,""]
[null,null,""]
[null,null,""]
[null,null,""]
[null,null,""]
[null,null,""]
[null,null,""]
[null,null,""]

{"sheet":"SD TABLE","index":15,"n_rows":47,"n_cols":19,"rows_kept":47,"cut":false,"hidden":true,"merged":[]}
["General",null,null,null,null,"Who Completes the Task ","Task Reviewed by ","Task Approved by ","New Building","Major Renovation","Additions","All","Cost threshold for Major Renovation","Matrix Check Boxes & Notes","Completed?","Notes"]
[null,{"$f":"IF(OR($I2:$L2=TRUE),MAX(B$1:B1)+1,\"\")","v":1},"General","00 00 17.1.1     ","Submit updated Sustainability Applicability Matrix through eBuilder ",null,null,null,null,null,null,{"$f":"'Project Information'!$D$21>='SD TABLE'!$M2","v":true},0,null,{"$f":"IF(B2<>\"\", IF(ISBLANK(OFFSET('SD Checklist'!$B$9, B2, 0)),\"TBD\",OFFSET('SD Checklist'!$B$9, B2, 0)), \"NA\")","v":"TBD"},{"$f":"IF(B2<>\"\", IF(ISBLANK(OFFSET('SD Checklist'!$E$9, B2, 0)),\"BLANK\",OFFSET('SD Checklist'!$E$9, B2, 0)), \"NA\")","v":"BLANK"}]
[null,{"$f":"IF(OR($I3:$L3=TRUE),MAX(B$1:B2)+1,\"\")","v":2},"General","00 00 17.1.2 ","Submit updated OPR through eBuilder ",null,null,null,null,null,null,{"$f":"'Project Information'!$D$21>='SD TABLE'!$M3","v":true},0,null,{"$f":"IF(B3<>\"\", IF(ISBLANK(OFFSET('SD Checklist'!$B$9, B3, 0)),\"TBD\",OFFSET('SD Checklist'!$B$9, B3, 0)), \"NA\")","v":"TBD"},{"$f":"IF(B3<>\"\", IF(ISBLANK(OFFSET('SD Checklist'!$E$9, B3, 0)),\"BLANK\",OFFSET('SD Checklist'!$E$9, B3, 0)), \"NA\")","v":"BLANK"}]
[null,{"$f":"IF(AND(OR($I4:$L4=TRUE),'Project Information'!$D$21>'SD TABLE'!M4),MAX(B$1:B3)+1,\"\")","v":3},"General","00 00 17.1.3.5","Basis of Design narrative delivered early in SD"," ",null,null,null,null,null,{"$f":"'Project Information'!$D$21>='SD TABLE'!$M4","v":true},0,null,{"$f":"IF(B4<>\"\", IF(ISBLANK(OFFSET('SD Checklist'!$B$9, B4, 0)),\"TBD\",OFFSET('SD Checklist'!$B$9, B4, 0)), \"NA\")","v":"TBD"},{"$f":"IF(B4<>\"\", IF(ISBLANK(OFFSET('SD Checklist'!$E$9, B4, 0)),\"BLANK\",OFFSET('SD Checklist'!$E$9, B4, 0)), \"NA\")","v":"BLANK"}]
[null,{"$f":"IF(AND(OR($I5:$L5=TRUE),'Project Information'!$D$21>'SD TABLE'!M5,'MATRIX TABLE'!B50>0),MAX(B$1:B4)+1,\"\")","v":""},"General","18 60 40","CWM Plan provided with the BoD",null,null,null,null,null,null,{"$f":"'Project Information'!$D$21>='SD TABLE'!$M5","v":false},1000000,null,{"$f":"IF(B5<>\"\", IF(ISBLANK(OFFSET('SD Checklist'!$B$9, B5, 0)),\"TBD\",OFFSET('SD Checklist'!$B$9, B5, 0)), \"NA\")","v":"NA"},{"$f":"IF(B5<>\"\", IF(ISBLANK(OFFSET('SD Checklist'!$E$9, B5, 0)),\"BLANK\",OFFSET('SD Checklist'!$E$9, B5, 0)), \"NA\")","v":"NA"}]
[null,{"$f":"IF(AND(OR($I6:$L6=TRUE),'Project Information'!$D$21>'SD TABLE'!M6),MAX(B$1:B5)+1,\"\")","v":""},"General","00 00 17.1.3.2","Complete Sustainability Workshop #1 shortly after SD begins",null,null,null,null,null,null,{"$f":"'Project Information'!$D$21>='SD TABLE'!$M6","v":false},4000000,null,{"$f":"IF(B6<>\"\", IF(ISBLANK(OFFSET('SD Checklist'!$B$9, B6, 0)),\"TBD\",OFFSET('SD Checklist'!$B$9, B6, 0)), \"NA\")","v":"NA"},{"$f":"IF(B6<>\"\", IF(ISBLANK(OFFSET('SD Checklist'!$E$9, B6, 0)),\"BLANK\",OFFSET('SD Checklist'!$E$9, B6, 0)), \"NA\")","v":"NA"}]
[null,{"$f":"IF(AND(OR($I7:$L7=TRUE),'Project Information'!$D$21>'SD TABLE'!M7),MAX(B$1:B6)+1,\"\")","v":""},"General","00 00 17.1.3.3","Complete Sustainability Workshop #2 near the end of SD",null,null,null,null,null,null,{"$f":"'Project Information'!$D$21>='SD TABLE'!$M7","v":false},4000000,null,{"$f":"IF(B7<>\"\", IF(ISBLANK(OFFSET('SD Checklist'!$B$9, B7, 0)),\"TBD\",OFFSET('SD Checklist'!$B$9, B7, 0)), \"NA\")","v":"NA"},{"$f":"IF(B7<>\"\", IF(ISBLANK(OFFSET('SD Checklist'!$E$9, B7, 0)),\"BLANK\",OFFSET('SD Checklist'!$E$9, B7, 0)), \"NA\")","v":"NA"}]
["Cx & SUS. REVIEW",{"$f":"IF(MAX($B$1:B7)>0,MAX($B$1:B7)+1,\"\")","v":4}]
[null,{"$f":"IF(OR('MATRIX TABLE'!$R$5=4,'Cx Thresholds'!$AA$22:$AR$22=\"Yes\",'Cx Thresholds'!$AA$22:$AR$22=\"Yes, Limited\"),MAX(B$1:B8)+1,\"\")","v":""},"Cx & SUS. REVIEW","18 20 40.1","Followed Exhibit B1 – Cx Supplemental Conditions to Exhibit B Article 2",null,null,null,null,null,null,null,null,null,{"$f":"IF(B9<>\"\", IF(ISBLANK(OFFSET('SD Checklist'!$B$9, B9, 0)),\"TBD\",OFFSET('SD Checklist'!$B$9, B9, 0)), \"NA\")","v":"NA"},{"$f":"IF(B9<>\"\", IF(ISBLANK(OFFSET('SD Checklist'!$E$9, B9, 0)),\"BLANK\",OFFSET('SD Checklist'!$E$9, B9, 0)), \"NA\")","v":"NA"}]
[null,{"$f":"IF(OR('MATRIX TABLE'!$R$5=4,'MATRIX TABLE'!B4:B7>0),MAX(B$1:B9)+1,\"\")","v":""},"Cx & SUS. REVIEW","18 20 40.2","Followed Exhibit B2 – BECx Supplemental Conditions to Exhibit B Article 2",null,null,null,null,null,null,null,null,null,{"$f":"IF(B10<>\"\", IF(ISBLANK(OFFSET('SD Checklist'!$B$9, B10, 0)),\"TBD\",OFFSET('SD Checklist'!$B$9, B10, 0)), \"NA\")","v":"NA"},{"$f":"IF(B10<>\"\", IF(ISBLANK(OFFSET('SD Checklist'!$E$9, B10, 0)),\"BLANK\",OFFSET('SD Checklist'!$E$9, B10, 0)), \"NA\")","v":"NA"}]
[null,{"$f":"IF(AND(OR($I11:$L11=TRUE),'MATRIX TABLE'!$B$24>0),MAX(B$1:B10)+1,\"\")","v":""},"Cx & SUS. REVIEW","18 20 50.1 ","Confirm assumptions, parameters, and output for energy modeling ",null,null,null,{"$f":"AND('MATRIX TABLE'!$R$5=4,'Project Information'!$D$21>='SD TABLE'!M11)","v":false},null,{"$f":"AND('MATRIX TABLE'!$R$5=2,'Project Information'!$D$21>=M11)","v":false},null,4000000,null,{"$f":"IF(B11<>\"\", IF(ISBLANK(OFFSET('SD Checklist'!$B$9, B11, 0)),\"TBD\",OFFSET('SD Checklist'!$B$9, B11, 0)), \"NA\")","v":"NA"},{"$f":"IF(B11<>\"\", IF(ISBLANK(OFFSET('SD Checklist'!$E$9, B11, 0)),\"BLANK\",OFFSET('SD Checklist'!$E$9, B11, 0)), \"NA\")","v":"NA"}]
[null,{"$f":"IF(AND(OR($I12:$L12=TRUE),'MATRIX TABLE'!$B$24>0),MAX(B$1:B11)+1,\"\")","v":""},"Cx & SUS. REVIEW","18 20 50.2","Confirm assumptions, parameters, and output for Water Use Intensity (WUI) calculation  ",null,null,null,{"$f":"AND('MATRIX TABLE'!$R$5=4,'Project Information'!$D$21>='SD TABLE'!M12)","v":false},null,{"$f":"AND('MATRIX TABLE'!$R$5=2,'Project Information'!$D$21>=M12)","v":false},null,4000000,null,{"$f":"IF(B12<>\"\", IF(ISBLANK(OFFSET('SD Checklist'!$B$9, B12, 0)),\"TBD\",OFFSET('SD Checklist'!$B$9, B12, 0)), \"NA\")","v":"NA"},{"$f":"IF(B12<>\"\", IF(ISBLANK(OFFSET('SD Checklist'!$E$9, B12, 0)),\"BLANK\",OFFSET('SD Checklist'!$E$9, B12, 0)), \"NA\")","v":"NA"}]
["ENERGY",{"$f":"IF(MAX($B$9:B12)>0,MAX($B$1:B12)+1,\"\")","v":""}]
[null,{"$f":"IF(OR($I14:$L14=TRUE),MAX(B$1:B13)+1,\"\")","v":""},"Energy","18 30 40","SD Energy Model completed",null,null,null,{"$f":"AND('MATRIX TABLE'!$R$5=4,'Project Information'!$D$21>='SD TABLE'!M14)","v":false},null,{"$f":"AND('MATRIX TABLE'!$R$5=4,'Project Information'!$D$21>=M14)","v":false},null,4000000,null,{"$f":"IF(B14<>\"\", IF(ISBLANK(OFFSET('SD Checklist'!$B$9, B14, 0)),\"TBD\",OFFSET('SD Checklist'!$B$9, B14, 0)), \"NA\")","v":"NA"},{"$f":"IF(B14<>\"\", IF(ISBLANK(OFFSET('SD Checklist'!$E$9, B14, 0)),\"BLANK\",OFFSET('SD Checklist'!$E$9, B14, 0)), \"NA\")","v":"NA"},"00 00 17.1.8.1"]
[null,{"$f":"IF(AND(OR($I15:$L15=TRUE),OR(Matrix!E38:E44=TRUE)),MAX(B$1:B14)+1,\"\")","v":""},"Energy","18 30 30  &  35","Building Automation Shop consulted on BAS design requirements",null,null,null,null,null,null,{"$f":"'Project Information'!$D$21>='SD TABLE'!$M15","v":true},0,"Energy, Water systems",{"$f":"IF(B15<>\"\", IF(ISBLANK(OFFSET('SD Checklist'!$B$9, B15, 0)),\"TBD\",OFFSET('SD Checklist'!$B$9, B15, 0)), \"NA\")","v":"NA"},{"$f":"IF(B15<>\"\", IF(ISBLANK(OFFSET('SD Checklist'!$E$9, B15, 0)),\"BLANK\",OFFSET('SD Checklist'!$E$9, B15, 0)), \"NA\")","v":"NA"},"00 00 17.1.8.2"]
[null,{"$f":"IF(AND(OR($I16:$L16=TRUE),'MATRIX TABLE'!$B$25>0),MAX(B$1:B15)+1,\"\")","v":""},"Energy","18 80 00","LCCAs completed to compare designs of energy systems",null,"CxA",null,null,null,null,{"$f":"'Project Information'!$D$21>='SD TABLE'!$M16","v":false},215000,null,{"$f":"IF(B16<>\"\", IF(ISBLANK(OFFSET('SD Checklist'!$B$9, B16, 0)),\"TBD\",OFFSET('SD Checklist'!$B$9, B16, 0)), \"NA\")","v":"NA"},{"$f":"IF(B16<>\"\", IF(ISBLANK(OFFSET('SD Checklist'!$E$9, B16, 0)),\"BLANK\",OFFSET('SD Checklist'!$E$9, B16, 0)), \"NA\")","v":"NA"},"00 00 17.1.8.3"]
["WATER",{"$f":"IF(MAX($B$14:B16)>0,MAX($B$1:B16)+1,\"\")","v":""}]
[null,{"$f":"IF(OR($I18:$L18=TRUE),MAX(B$1:B17)+1,\"\")","v":""},"Water","18 40 40.11","SD Water Model completed ",null,null,null,{"$f":"AND('MATRIX TABLE'!$R$5=4,'Project Information'!$D$21>='SD TABLE'!M18)","v":false},null,{"$f":"AND('MATRIX TABLE'!$R$5=4,'Project Information'!$D$21>=M18)","v":false},null,4000000,null,{"$f":"IF(B18<>\"\", IF(ISBLANK(OFFSET('SD Checklist'!$B$9, B18, 0)),\"TBD\",OFFSET('SD Checklist'!$B$9, B18, 0)), \"NA\")","v":"NA"},{"$f":"IF(B18<>\"\", IF(ISBLANK(OFFSET('SD Checklist'!$E$9, B18, 0)),\"BLANK\",OFFSET('SD Checklist'!$E$9, B18, 0)), \"NA\")","v":"NA"},"00 00 17.1.9.1"]
[null,{"$f":"IF(AND(OR($I19:$L19=TRUE),'MATRIX TABLE'!$B$41>0),MAX(B$1:B18)+1,\"\")","v":""},"Water","18 80 00","LCCAs completed to compare designs of water systems",null,"CxA",null,null,null,null,{"$f":"'Project Information'!$D$21>='SD TABLE'!$M19","v":false},215000,null,{"$f":"IF(B19<>\"\", IF(ISBLANK(OFFSET('SD Checklist'!$B$9, B19, 0)),\"TBD\",OFFSET('SD Checklist'!$B$9, B19, 0)), \"NA\")","v":"NA"},{"$f":"IF(B19<>\"\", IF(ISBLANK(OFFSET('SD Checklist'!$E$9, B19, 0)),\"BLANK\",OFFSET('SD Checklist'!$E$9, B19, 0)), \"NA\")","v":"NA"},"00 00 17.1.9.2",null,"IF(AND(OR($H19:$K19=TRUE),OR(Matrix!E36:E42=TRUE)),MAX(B$1:B18)+1,\"\")"]
["ECOSYSTEM SERVICES",{"$f":"IF(MAX($B$18:B19)>0,MAX($B$1:B19)+1,\"\")","v":""}]
[null,{"$f":"IF(OR($I21:$L21=TRUE),MAX(B$1:B20)+1,\"\")","v":""},"ECOSYSTEM SERVICES","18 50 30","Ecosystems Services Assessment completed",null,"EcoTeam",null,null,null,null,{"$f":"AND('Project Information'!$D$21>='SD TABLE'!$M21,'MATRIX TABLE'!$D$44=TRUE)","v":false},215000,"Exterior Site impact… box",{"$f":"IF(B21<>\"\", IF(ISBLANK(OFFSET('SD Checklist'!$B$9, B21, 0)),\"TBD\",OFFSET('SD Checklist'!$B$9, B21, 0)), \"NA\")","v":"NA"},{"$f":"IF(B21<>\"\", IF(ISBLANK(OFFSET('SD Checklist'!$E$9, B21, 0)),\"BLANK\",OFFSET('SD Checklist'!$E$9, B21, 0)), \"NA\")","v":"NA"},"00 00 17.1.11"]
["MATERIALS",{"$f":"IF(MAX($B$21:B21)>0,MAX($B$1:B21)+1,\"\")","v":""}]
[null,{"$f":"IF(OR($I23:$L23=TRUE),MAX(B$1:B22)+1,\"\")","v":""},"MATERIALS","18 60 50","Preliminary Materials Management (MM) Plan submited with POR",null,null,null,null,null,null,{"$f":"AND('Project Information'!$D$21>=M23,'MATRIX TABLE'!$H$52=TRUE)","v":false},0,"Recycling, Compost, Trash Collection",{"$f":"IF(B23<>\"\", IF(ISBLANK(OFFSET('SD Checklist'!$B$9, B23, 0)),\"TBD\",OFFSET('SD Checklist'!$B$9, B23, 0)), \"NA\")","v":"NA"},{"$f":"IF(B23<>\"\", IF(ISBLANK(OFFSET('SD Checklist'!$E$9, B23, 0)),\"BLANK\",OFFSET('SD Checklist'!$E$9, B23, 0)), \"NA\")","v":"NA"},"no in Div 00 at the SD phase"]
[null,{"$f":"IF('MATRIX TABLE'!$B$53>0,MAX(B$1:B23)+1,\"\")","v":""},"MATERIALS","18 60 30.1","LCCA performed on materials options",null,null,null,null,null,null,null,null,null,{"$f":"IF(B24<>\"\", IF(ISBLANK(OFFSET('SD Checklist'!$B$9, B24, 0)),\"TBD\",OFFSET('SD Checklist'!$B$9, B24, 0)), \"NA\")","v":"NA"},{"$f":"IF(B24<>\"\", IF(ISBLANK(OFFSET('SD Checklist'!$E$9, B24, 0)),\"BLANK\",OFFSET('SD Checklist'!$E$9, B24, 0)), \"NA\")","v":"NA"},"no Div 00"]
["USER EXPERIENCE",{"$f":"IF(MAX($B$23:B24)>0,MAX($B$1:B24)+1,\"\")","v":""}]
[null,{"$f":"IF(OR($I26:$L26=TRUE),MAX(B$1:B25)+1,\"\")","v":""},"USER EXPERIENCE","18 70 30.4","Building Entrance requirements followed",null,null,null,null,null,null,{"$f":"AND('Project Information'!$D$21>='SD TABLE'!$M26,'MATRIX TABLE'!B60>0)","v":false},4000000,"Entr./Exit box",{"$f":"IF(B26<>\"\", IF(ISBLANK(OFFSET('SD Checklist'!$B$9, B26, 0)),\"TBD\",OFFSET('SD Checklist'!$B$9, B26, 0)), \"NA\")","v":"NA"},{"$f":"IF(B26<>\"\", IF(ISBLANK(OFFSET('SD Checklist'!$E$9, B26, 0)),\"BLANK\",OFFSET('SD Checklist'!$E$9, B26, 0)), \"NA\")","v":"NA"},"00 00 17.1.12.1"]
[null,{"$f":"IF(OR($I27:$L27=TRUE),MAX(B$1:B26)+1,\"\")","v":""},"USER EXPERIENCE","18 70 40","Narrative of design thermal comfort strategies completed",null,null,null,null,null,null,{"$f":"AND('Project Information'!$D$21>='SD TABLE'!$M27,'MATRIX TABLE'!$F$3=TRUE)","v":false},0,"HVAC box",{"$f":"IF(B27<>\"\", IF(ISBLANK(OFFSET('SD Checklist'!$B$9, B27, 0)),\"TBD\",OFFSET('SD Checklist'!$B$9, B27, 0)), \"NA\")","v":"NA"},{"$f":"IF(B27<>\"\", IF(ISBLANK(OFFSET('SD Checklist'!$E$9, B27, 0)),\"BLANK\",OFFSET('SD Checklist'!$E$9, B27, 0)), \"NA\")","v":"NA"},"00 00 17.1.12.2"]
[null,{"$f":"IF(OR($I28:$L28=TRUE),MAX(B$1:B27)+1,\"\")","v":""},"USER EXPERIENCE","00 00 17.1.12.3","Acoustic Performance design approaches narrative completed",null,null,null,null,null,null,{"$f":"AND('Project Information'!$D$21>='SD TABLE'!$M28,'MATRIX TABLE'!$F$3=TRUE)","v":false},0,"HVAC box",{"$f":"IF(B28<>\"\", IF(ISBLANK(OFFSET('SD Checklist'!$B$9, B28, 0)),\"TBD\",OFFSET('SD Checklist'!$B$9, B28, 0)), \"NA\")","v":"NA"},{"$f":"IF(B28<>\"\", IF(ISBLANK(OFFSET('SD Checklist'!$E$9, B28, 0)),\"BLANK\",OFFSET('SD Checklist'!$E$9, B28, 0)), \"NA\")","v":"NA"},"00 00 17.1.12.3"]
[null,{"$f":"IF(OR($I29:$L29=TRUE),MAX(B$1:B28)+1,\"\")","v":""},"USER EXPERIENCE","18 70 60","Daylight levels evaluated",null,null,null,null,null,null,{"$f":"AND('Project Information'!$D$21>='SD TABLE'!$M29,'MATRIX TABLE'!$G$3=TRUE)","v":false},4000000,"Lighting Indoor box",{"$f":"IF(B29<>\"\", IF(ISBLANK(OFFSET('SD Checklist'!$B$9, B29, 0)),\"TBD\",OFFSET('SD Checklist'!$B$9, B29, 0)), \"NA\")","v":"NA"},{"$f":"IF(B29<>\"\", IF(ISBLANK(OFFSET('SD Checklist'!$E$9, B29, 0)),\"BLANK\",OFFSET('SD Checklist'!$E$9, B29, 0)), \"NA\")","v":"NA"},"00 00 17.1.12.4"]
[null,{"$f":"IF(OR($I30:$L30=TRUE),MAX(B$1:B29)+1,\"\")","v":""},"USER EXPERIENCE","18 70 60","Lighting Plan and narrative developed",null,null,null,null,null,null,{"$f":"AND('Project Information'!$D$21>='SD TABLE'!$M30,OR('MATRIX TABLE'!$G$3=TRUE,'MATRIX TABLE'!$H$3=TRUE))","v":false},0,"Lighting indoor/outdoor box",{"$f":"IF(B30<>\"\", IF(ISBLANK(OFFSET('SD Checklist'!$B$9, B30, 0)),\"TBD\",OFFSET('SD Checklist'!$B$9, B30, 0)), \"NA\")","v":"NA"},{"$f":"IF(B30<>\"\", IF(ISBLANK(OFFSET('SD Checklist'!$E$9, B30, 0)),\"BLANK\",OFFSET('SD Checklist'!$E$9, B30, 0)), \"NA\")","v":"NA"},"00 00 17.1.12.5"]
[null,{"$f":"IF(OR($I31:$L31=TRUE),MAX(B$1:B30)+1,\"\")","v":""},"USER EXPERIENCE","18 70 70","Narrative of the three (3) biophilic design strategies developed",null,null,null,{"$f":"AND('MATRIX TABLE'!$R$5=4,'Project Information'!$D$21>='SD TABLE'!$M31,'MATRIX TABLE'!$I$58=TRUE)","v":false},{"$f":"AND('MATRIX TABLE'!$R$5=3,'Project Information'!$D$21>='SD TABLE'!$M31,'MATRIX TABLE'!$I$58=TRUE)","v":false},{"$f":"AND('MATRIX TABLE'!$R$5=2,'Project Information'!$D$21>='SD TABLE'!$M31,'MATRIX TABLE'!$I$58=TRUE)","v":false},null,215000,"Interior Mtls and Finishes checkbox",{"$f":"IF(B31<>\"\", IF(ISBLANK(OFFSET('SD Checklist'!$B$9, B31, 0)),\"TBD\",OFFSET('SD Checklist'!$B$9, B31, 0)), \"NA\")","v":"NA"},{"$f":"IF(B31<>\"\", IF(ISBLANK(OFFSET('SD Checklist'!$E$9, B31, 0)),\"BLANK\",OFFSET('SD Checklist'!$E$9, B31, 0)), \"NA\")","v":"NA"},"00 00 17.1.12.6"]
[]
[]
[]
[]
[]
[]
[]
[null,null,{"$f":"IF(B39<>\"\",$A$36,\"\")","v":""}]
[null,null,""]
[null,null,""]
[null,null,""]
[null,null,""]
[null,null,""]
[null,null,""]
[null,null,""]
[null,null,""]

{"sheet":"DD TABLE","index":16,"n_rows":44,"n_cols":17,"rows_kept":44,"cut":false,"hidden":true,"merged":[]}
["General",null,null,null,null,"Who Completes the Task ","Task Reviewed by ","Task Approved by ","New Building","Major Renovation","Additions","All","Cost threshold for Major Renovation","Matrix Check Boxes & Notes","Completed?","Notes"]
[null,{"$f":"IF(OR($I2:$L2=TRUE),MAX(B$1:B1)+1,\"\")","v":1},"General","00 00 18.1.1 ","Submit updated Sustainability Applicability Matrix through eBuilder (if applicable)","PM",null,null,null,null,null,{"$f":"'Project Information'!$D$21>=M2","v":true},0,null,{"$f":"IF(B2<>\"\", IF(ISBLANK(OFFSET('DD Checklist'!$B$9, B2, 0)),\"TBD\",OFFSET('DD Checklist'!$B$9, B2, 0)), \"NA\")","v":"TBD"},{"$f":"IF(B2<>\"\", IF(ISBLANK(OFFSET('DD Checklist'!$E$9, B2, 0)),\"BLANK\",OFFSET('DD Checklist'!$E$9, B2, 0)), \"NA\")","v":"BLANK"}]
[null,{"$f":"IF(OR($I3:$L3=TRUE),MAX(B$1:B2)+1,\"\")","v":2},"General","00 00 17.1.2","Submit updated OPR through eBuilder (if applicable)",null,null,null,null,null,null,{"$f":"'Project Information'!$D$21>=M3","v":true},0,null,{"$f":"IF(B3<>\"\", IF(ISBLANK(OFFSET('DD Checklist'!$B$9, B3, 0)),\"TBD\",OFFSET('DD Checklist'!$B$9, B3, 0)), \"NA\")","v":"TBD"},{"$f":"IF(B3<>\"\", IF(ISBLANK(OFFSET('DD Checklist'!$E$9, B3, 0)),\"BLANK\",OFFSET('DD Checklist'!$E$9, B3, 0)), \"NA\")","v":"BLANK"}]
[null,{"$f":"IF(AND(OR($I4:$L4=TRUE),'Project Information'!$D$21>M4),MAX(B$1:B3)+1,\"\")","v":""},"General","00 00 18.1.8","Complete Sustainability Workshop #3 at 50% DD",null,null,null,null,null,null,{"$f":"'Project Information'!$D$21>=M4","v":false},4000000,null,{"$f":"IF(B4<>\"\", IF(ISBLANK(OFFSET('DD Checklist'!$B$9, B4, 0)),\"TBD\",OFFSET('DD Checklist'!$B$9, B4, 0)), \"NA\")","v":"NA"},{"$f":"IF(B4<>\"\", IF(ISBLANK(OFFSET('DD Checklist'!$E$9, B4, 0)),\"BLANK\",OFFSET('DD Checklist'!$E$9, B4, 0)), \"NA\")","v":"NA"}]
["Cx & SUS. REVIEW",{"$f":"IF(MAX(B2:B4)>0,MAX(B2:B4)+1,\"\")","v":3}]
[null,{"$f":"IF(OR('MATRIX TABLE'!$R$5=4,'Cx Thresholds'!$AA$22:$AR$22=\"Yes\",'Cx Thresholds'!$AA$22:$AR$22=\"Yes, Limited\"),MAX(B$1:B5)+1,\"\")","v":""},"Cx & SUS. REVIEW","18 20 40.1","Followed Exhibit B1 – Cx Supplemental Conditions to Exhibit B Article 2","CxA ",null,null,null,null,null,null,null,null,{"$f":"IF(B6<>\"\", IF(ISBLANK(OFFSET('DD Checklist'!$B$9, B6, 0)),\"TBD\",OFFSET('DD Checklist'!$B$9, B6, 0)), \"NA\")","v":"NA"},{"$f":"IF(B6<>\"\", IF(ISBLANK(OFFSET('DD Checklist'!$E$9, B6, 0)),\"BLANK\",OFFSET('DD Checklist'!$E$9, B6, 0)), \"NA\")","v":"NA"}]
[null,{"$f":"IF(OR('MATRIX TABLE'!$R$5=4,'MATRIX TABLE'!B4:B7>0),MAX(B$1:B6)+1,\"\")","v":""},"Cx & SUS. REVIEW","18 20 40.2","Followed Exhibit B2 – BECx Supplemental Conditions to Exhibit B Article 2","CxA ",null,null,null,null,null,null,null,null,{"$f":"IF(B7<>\"\", IF(ISBLANK(OFFSET('DD Checklist'!$B$9, B7, 0)),\"TBD\",OFFSET('DD Checklist'!$B$9, B7, 0)), \"NA\")","v":"NA"},{"$f":"IF(B7<>\"\", IF(ISBLANK(OFFSET('DD Checklist'!$E$9, B7, 0)),\"BLANK\",OFFSET('DD Checklist'!$E$9, B7, 0)), \"NA\")","v":"NA"}]
[null,{"$f":"IF(AND(OR($I8:$L8=TRUE),'MATRIX TABLE'!$B$24>0),MAX(B$1:B7)+1,\"\")","v":""},"Cx & SUS. REVIEW","18 20 50.1 ","Confirm assumptions, parameters, and output for updated energy model","CxA ",null,null,{"$f":"AND('MATRIX TABLE'!$R$5=4,'Project Information'!$D$21>=M8)","v":false},null,{"$f":"AND('MATRIX TABLE'!$R$5=2,'Project Information'!$D$21>=M8)","v":false},null,4000000,null,{"$f":"IF(B8<>\"\", IF(ISBLANK(OFFSET('DD Checklist'!$B$9, B8, 0)),\"TBD\",OFFSET('DD Checklist'!$B$9, B8, 0)), \"NA\")","v":"NA"},{"$f":"IF(B8<>\"\", IF(ISBLANK(OFFSET('DD Checklist'!$E$9, B8, 0)),\"BLANK\",OFFSET('DD Checklist'!$E$9, B8, 0)), \"NA\")","v":"NA"},"00 00 18.1.2.1"]
[null,{"$f":"IF(AND(OR($I9:$L9=TRUE),'MATRIX TABLE'!$B$39>0),MAX(B$1:B8)+1,\"\")","v":""},"Cx & SUS. REVIEW","18 20 50.2","Confirm assumptions, parameters, and output for updated Water Use Intensity (WUI) calculation  ",null,null,null,{"$f":"AND('MATRIX TABLE'!$R$5=4,'Project Information'!$D$21>=M9)","v":false},null,{"$f":"AND('MATRIX TABLE'!$R$5=2,'Project Information'!$D$21>=M9)","v":false},null,4000000,null,{"$f":"IF(B9<>\"\", IF(ISBLANK(OFFSET('DD Checklist'!$B$9, B9, 0)),\"TBD\",OFFSET('DD Checklist'!$B$9, B9, 0)), \"NA\")","v":"NA"},{"$f":"IF(B9<>\"\", IF(ISBLANK(OFFSET('DD Checklist'!$E$9, B9, 0)),\"BLANK\",OFFSET('DD Checklist'!$E$9, B9, 0)), \"NA\")","v":"NA"}]
["ENERGY",{"$f":"IF(MAX(B6:B9)>0,MAX(B2:B9)+1,\"\")","v":""}]
[null,{"$f":"IF(AND(OR($I11:$L11=TRUE),'MATRIX TABLE'!$B$24>0),MAX(B$1:B10)+1,\"\")","v":""},"ENERGY","18 30 40","Energy Model updated","A/E",null,null,{"$f":"AND('MATRIX TABLE'!$R$5=4,'Project Information'!$D$21>=M11)","v":false},null,{"$f":"AND('MATRIX TABLE'!$R$5=2,'Project Information'!$D$21>=M11)","v":false},null,4000000,null,{"$f":"IF(B11<>\"\", IF(ISBLANK(OFFSET('DD Checklist'!$B$9, B11, 0)),\"TBD\",OFFSET('DD Checklist'!$B$9, B11, 0)), \"NA\")","v":"NA"},{"$f":"IF(B11<>\"\", IF(ISBLANK(OFFSET('DD Checklist'!$E$9, B11, 0)),\"BLANK\",OFFSET('DD Checklist'!$E$9, B11, 0)), \"NA\")","v":"NA"},"00 00 18.1.3.1"]
[null,{"$f":"IF(AND(OR($I12:$L12=TRUE),'MATRIX TABLE'!$B$25>0),MAX(B$1:B11)+1,\"\")","v":""},"ENERGY","18 80 00","LCCAs completed to compare designs of energy systems","A/E","CxA",null,null,null,null,{"$f":"'Project Information'!$D$21>=M12","v":false},200000,null,{"$f":"IF(B12<>\"\", IF(ISBLANK(OFFSET('DD Checklist'!$B$9, B12, 0)),\"TBD\",OFFSET('DD Checklist'!$B$9, B12, 0)), \"NA\")","v":"NA"},{"$f":"IF(B12<>\"\", IF(ISBLANK(OFFSET('DD Checklist'!$E$9, B12, 0)),\"BLANK\",OFFSET('DD Checklist'!$E$9, B12, 0)), \"NA\")","v":"NA"},"00 00 18.1.3.2"]
["WATER",{"$f":"IF(MAX(B11:B12)>0,MAX(B2:B12)+1,\"\")","v":""}]
[null,{"$f":"IF(AND(OR($I14:$L14=TRUE),'MATRIX TABLE'!$B$39>0),MAX(B$1:B13)+1,\"\")","v":""},"WATER","18 40 40.11","Water Model updated ","A/E","CxA",null,{"$f":"AND('MATRIX TABLE'!$R$5=4,'Project Information'!$D$21>=M14)","v":false},null,{"$f":"AND('MATRIX TABLE'!$R$5=2,'Project Information'!$D$21>=M14)","v":false},null,4000000,null,{"$f":"IF(B14<>\"\", IF(ISBLANK(OFFSET('DD Checklist'!$B$9, B14, 0)),\"TBD\",OFFSET('DD Checklist'!$B$9, B14, 0)), \"NA\")","v":"NA"},{"$f":"IF(B14<>\"\", IF(ISBLANK(OFFSET('DD Checklist'!$E$9, B14, 0)),\"BLANK\",OFFSET('DD Checklist'!$E$9, B14, 0)), \"NA\")","v":"NA"},"00 00 18.1.4.1"]
[null,{"$f":"IF(AND(OR($I15:$L15=TRUE),'MATRIX TABLE'!$B$41>0),MAX(B$1:B14)+1,\"\")","v":""},"WATER","18 80 00","LCCAs completed to compare designs of water systems",null,null,null,null,null,null,{"$f":"'Project Information'!$D$21>=M15","v":false},200000,null,{"$f":"IF(B15<>\"\", IF(ISBLANK(OFFSET('DD Checklist'!$B$9, B15, 0)),\"TBD\",OFFSET('DD Checklist'!$B$9, B15, 0)), \"NA\")","v":"NA"},{"$f":"IF(B15<>\"\", IF(ISBLANK(OFFSET('DD Checklist'!$E$9, B15, 0)),\"BLANK\",OFFSET('DD Checklist'!$E$9, B15, 0)), \"NA\")","v":"NA"},"00 00 18.1.4.2"]
["ECOSYSTEM SERVICES",{"$f":"IF(MAX(B14:B15)>0,MAX(B2:B15)+1,\"\")","v":""}]
[null,{"$f":"IF(OR($I17:$L17=TRUE),MAX(B$1:B16)+1,\"\")","v":""},"ECOSYSTEM SERVICES","18 50 30","Ecosystems Services Assessment updated ","A/E","EcoTeam",null,null,null,null,{"$f":"AND('Project Information'!$D$21>=M17,'MATRIX TABLE'!$D$44=TRUE)","v":false},200000,"Exterior Site Work",{"$f":"IF(B17<>\"\", IF(ISBLANK(OFFSET('DD Checklist'!$B$9, B17, 0)),\"TBD\",OFFSET('DD Checklist'!$B$9, B17, 0)), \"NA\")","v":"NA"},{"$f":"IF(B17<>\"\", IF(ISBLANK(OFFSET('DD Checklist'!$E$9, B17, 0)),\"BLANK\",OFFSET('DD Checklist'!$E$9, B17, 0)), \"NA\")","v":"NA"},"00 00 18.1.6"]
["MATERIALS",{"$f":"IF(MAX(B17)>0,MAX(B2:B17)+1,\"\")","v":""}]
[null,{"$f":"IF(AND(OR($I19:$L19=TRUE),OR(Matrix!$E$42,Matrix!$E$75,Matrix!$E$86,Matrix!$E$87=TRUE)),MAX(B$1:B18)+1,\"\")","v":""},"MATERIALS","18 60 30","Provide intital Sustainable Materials Calculator","A/E",null,null,null,null,null,{"$f":"'Project Information'!$D$21>=M19","v":false},4000000,null,{"$f":"IF(B19<>\"\", IF(ISBLANK(OFFSET('DD Checklist'!$B$9, B19, 0)),\"TBD\",OFFSET('DD Checklist'!$B$9, B19, 0)), \"NA\")","v":"NA"},{"$f":"IF(B19<>\"\", IF(ISBLANK(OFFSET('DD Checklist'!$E$9, B19, 0)),\"BLANK\",OFFSET('DD Checklist'!$E$9, B19, 0)), \"NA\")","v":"NA"},"00 00 18.1.5.1"]
[null,{"$f":"IF(AND(OR($I20:$L20=TRUE),OR(Matrix!$E$42,Matrix!$E$75,Matrix!$E$86,Matrix!$E$87=TRUE)),MAX(B$1:B19)+1,\"\")","v":""},"MATERIALS","18 60 30","Prescriptive Materials Matrix followed for applicable CSI Divisions","A/E",null,null,null,null,null,{"$f":"'Project Information'!$D$21<=M20","v":true},4000000,null,{"$f":"IF(B20<>\"\", IF(ISBLANK(OFFSET('DD Checklist'!$B$9, B20, 0)),\"TBD\",OFFSET('DD Checklist'!$B$9, B20, 0)), \"NA\")","v":"NA"},{"$f":"IF(B20<>\"\", IF(ISBLANK(OFFSET('DD Checklist'!$E$9, B20, 0)),\"BLANK\",OFFSET('DD Checklist'!$E$9, B20, 0)), \"NA\")","v":"NA"},"no Div 00 "]
[null,{"$f":"IF(AND(OR($I21:$L21=TRUE),OR(Matrix!$E$77=TRUE)),MAX(B$1:B19)+1,\"\")","v":""},"MATERIALS","18 60 50 ","MM Plan updated ","A/E",null,null,null,null,null,{"$f":"'Project Information'!$D$21>=M21","v":true},0,"Recycling, Compost, Trash Collection",{"$f":"IF(B21<>\"\", IF(ISBLANK(OFFSET('DD Checklist'!$B$9, B21, 0)),\"TBD\",OFFSET('DD Checklist'!$B$9, B21, 0)), \"NA\")","v":"NA"},{"$f":"IF(B21<>\"\", IF(ISBLANK(OFFSET('DD Checklist'!$E$9, B21, 0)),\"BLANK\",OFFSET('DD Checklist'!$E$9, B21, 0)), \"NA\")","v":"NA"},"00 00 18.1.5.2"]
[null,{"$f":"IF('MATRIX TABLE'!$B$53>0,MAX(B$1:B21)+1,\"\")","v":""},"MATERIALS","18 60 30.1","LCCA updated for materials options (if applicable) ",null,null,null,null,null,null,null,null,null,{"$f":"IF(B22<>\"\", IF(ISBLANK(OFFSET('DD Checklist'!$B$9, B22, 0)),\"TBD\",OFFSET('DD Checklist'!$B$9, B22, 0)), \"NA\")","v":"NA"},{"$f":"IF(B22<>\"\", IF(ISBLANK(OFFSET('DD Checklist'!$E$9, B22, 0)),\"BLANK\",OFFSET('DD Checklist'!$E$9, B22, 0)), \"NA\")","v":"NA"}]
["USER EXPERIENCE",{"$f":"IF(MAX(B19:B22)>0,MAX(B2:B22)+1,\"\")","v":""}]
[null,{"$f":"IF(OR($I24:$L24=TRUE),MAX(B$1:B23)+1,\"\")","v":""},"USER EXPERIENCE","18 70 30 ","Perform ventilation calculations per space type","A/E",null,null,null,null,null,{"$f":"AND('Project Information'!$D$21>=M24,'MATRIX TABLE'!$F$3=TRUE)","v":false},0,"HVAC",{"$f":"IF(B24<>\"\", IF(ISBLANK(OFFSET('DD Checklist'!$B$9, B24, 0)),\"TBD\",OFFSET('DD Checklist'!$B$9, B24, 0)), \"NA\")","v":"NA"},{"$f":"IF(B24<>\"\", IF(ISBLANK(OFFSET('DD Checklist'!$E$9, B24, 0)),\"BLANK\",OFFSET('DD Checklist'!$E$9, B24, 0)), \"NA\")","v":"NA"},"00 00 18.1.7.1"]
[null,{"$f":"IF(OR($I25:$L25=TRUE),MAX(B$1:B24)+1,\"\")","v":""},"USER EXPERIENCE","18 70 40 ","Complete CBE  Thermal Comfort Tool for analysis ","A/E",null,null,null,null,null,{"$f":"AND('Project Information'!$D$21>=M25,'MATRIX TABLE'!$F$3=TRUE)","v":false},0,"HVAC",{"$f":"IF(B25<>\"\", IF(ISBLANK(OFFSET('DD Checklist'!$B$9, B25, 0)),\"TBD\",OFFSET('DD Checklist'!$B$9, B25, 0)), \"NA\")","v":"NA"},{"$f":"IF(B25<>\"\", IF(ISBLANK(OFFSET('DD Checklist'!$E$9, B25, 0)),\"BLANK\",OFFSET('DD Checklist'!$E$9, B25, 0)), \"NA\")","v":"NA"},"00 00 18.1.7.2"]
[null,{"$f":"IF(OR($I26:$L26=TRUE),MAX(B$1:B25)+1,\"\")","v":""},"USER EXPERIENCE","18 70 60","Provide updated evaluation of daylight levels ","A/E",null,null,null,null,null,{"$f":"AND('Project Information'!$D$21>=M26,'MATRIX TABLE'!$G$3=TRUE)","v":false},4000000,"Interior Lighting",{"$f":"IF(B26<>\"\", IF(ISBLANK(OFFSET('DD Checklist'!$B$9, B26, 0)),\"TBD\",OFFSET('DD Checklist'!$B$9, B26, 0)), \"NA\")","v":"NA"},{"$f":"IF(B26<>\"\", IF(ISBLANK(OFFSET('DD Checklist'!$E$9, B26, 0)),\"BLANK\",OFFSET('DD Checklist'!$E$9, B26, 0)), \"NA\")","v":"NA"},"00 00 18.1.7.3"]
[null,{"$f":"IF(OR($I27:$L27=TRUE),MAX(B$1:B26)+1,\"\")","v":""},"USER EXPERIENCE","18 70 60","Provide updated Lighting Plan and design narrative","A/E",null,null,null,null,null,{"$f":"AND('Project Information'!$D$21>=M27,OR('MATRIX TABLE'!$G$3=TRUE,'MATRIX TABLE'!$H$3=TRUE))","v":false},0,"Interior or Exterior Lighting",{"$f":"IF(B27<>\"\", IF(ISBLANK(OFFSET('DD Checklist'!$B$9, B27, 0)),\"TBD\",OFFSET('DD Checklist'!$B$9, B27, 0)), \"NA\")","v":"NA"},{"$f":"IF(B27<>\"\", IF(ISBLANK(OFFSET('DD Checklist'!$E$9, B27, 0)),\"BLANK\",OFFSET('DD Checklist'!$E$9, B27, 0)), \"NA\")","v":"NA"},"00 00 18.1.7.4"]
[null,{"$f":"IF(OR($I28:$L28=TRUE),MAX(B$1:B27)+1,\"\")","v":""},"USER EXPERIENCE","18 70 70","Updated narrative of the three (3) biophilic design strategies  ","A/E",null,null,{"$f":"AND('MATRIX TABLE'!$R$5=4,'Project Information'!$D$21>=M28,'MATRIX TABLE'!$I$58=TRUE)","v":false},{"$f":"AND('MATRIX TABLE'!$R$5=3,'Project Information'!$D$21>=M28,'MATRIX TABLE'!$I$58=TRUE)","v":false},{"$f":"AND('MATRIX TABLE'!$R$5=2,'Project Information'!$D$21>=M28,'MATRIX TABLE'!$I$58=TRUE)","v":false},null,200000,"Interior Mtls and Finishes checkbox",{"$f":"IF(B28<>\"\", IF(ISBLANK(OFFSET('DD Checklist'!$B$9, B28, 0)),\"TBD\",OFFSET('DD Checklist'!$B$9, B28, 0)), \"NA\")","v":"NA"},{"$f":"IF(B28<>\"\", IF(ISBLANK(OFFSET('DD Checklist'!$E$9, B28, 0)),\"BLANK\",OFFSET('DD Checklist'!$E$9, B28, 0)), \"NA\")","v":"NA"},"00 00 18.1.7.5"]
[null,{"$f":"IF(OR($I29:$L29=TRUE),MAX(B$1:B28)+1,\"\")","v":""}]
[]
[]
[]
[]
[]
[]
[null,null,{"$f":"IF(B36<>\"\",$A$33,\"\")","v":""}]
[null,null,""]
[null,null,""]
[null,null,""]
[null,null,""]
[null,null,""]
[null,null,""]
[null,null,""]
[null,null,""]

{"sheet":"CD TABLE","index":17,"n_rows":48,"n_cols":17,"rows_kept":48,"cut":false,"hidden":true,"merged":[]}
["General",null,null,null,null,"Who Completes the Task ","Task Reviewed by ","Task Approved by ","New Building","Major Renovation","Additions","All","Cost threshold for Major Renovation","Matrix Check Boxes & Notes",null,"Completed?","Notes"]
[null,{"$f":"IF(OR($I2:$L2=TRUE),MAX(B$1:B1)+1,\"\")","v":1},"General","00 00 19.1.1 ","Submit updated Sustainability Applicability Matrix through eBuilder (if applicable)","PM",null,null,null,null,null,{"$f":"'Project Information'!$D$21>=M2","v":true},0,null,null,{"$f":"IF(B2<>\"\", IF(ISBLANK(OFFSET('CD Checklist'!$B$9, B2, 0)),\"TBD\",OFFSET('CD Checklist'!$B$9, B2, 0)), \"NA\")","v":"TBD"},{"$f":"IF(B2<>\"\", IF(ISBLANK(OFFSET('CD Checklist'!$E$9, B2, 0)),\"BLANK\",OFFSET('CD Checklist'!$E$9, B2, 0)), \"NA\")","v":"BLANK"}]
[null,{"$f":"IF(OR($I3:$L3=TRUE),MAX(B$1:B2)+1,\"\")","v":2},"General","00 00 17.1.2","Submit updated OPR through eBuilder (if applicable)",null,null,null,null,null,null,{"$f":"'Project Information'!$D$21>=M3","v":true},0,null,null,{"$f":"IF(B3<>\"\", IF(ISBLANK(OFFSET('CD Checklist'!$B$9, B3, 0)),\"TBD\",OFFSET('CD Checklist'!$B$9, B3, 0)), \"NA\")","v":"TBD"},{"$f":"IF(B3<>\"\", IF(ISBLANK(OFFSET('CD Checklist'!$E$9, B3, 0)),\"BLANK\",OFFSET('CD Checklist'!$E$9, B3, 0)), \"NA\")","v":"BLANK"}]
[null,{"$f":"IF(AND(OR($I4:$L4=TRUE),'Project Information'!$D$21>M4),MAX(B$1:B3)+1,\"\")","v":""},"General","00 00 19.1.8","Complete Sustainability Workshop #4 at 50% CDs (GC/DB projects) or GMP Documents (CMR projects)",null,null,null,null,null,null,{"$f":"'Project Information'!$D$21>=M4","v":false},4000000,null,null,{"$f":"IF(B4<>\"\", IF(ISBLANK(OFFSET('CD Checklist'!$B$9, B4, 0)),\"TBD\",OFFSET('CD Checklist'!$B$9, B4, 0)), \"NA\")","v":"NA"},{"$f":"IF(B4<>\"\", IF(ISBLANK(OFFSET('CD Checklist'!$E$9, B4, 0)),\"BLANK\",OFFSET('CD Checklist'!$E$9, B4, 0)), \"NA\")","v":"NA"}]
["Cx & SUS. REVIEW",{"$f":"IF(MAX($B$2:B4)>0,MAX($B$2:B4)+1,\"\")","v":3}]
[null,{"$f":"IF(OR('MATRIX TABLE'!$R$5=4,'Cx Thresholds'!$AA$22:$AR$22=\"Yes\",'Cx Thresholds'!$AA$22:$AR$22=\"Yes, Limited\"),MAX(B$1:B5)+1,\"\")","v":""},"Cx & SUS. REVIEW","18 20 40.1","Followed Exhibit B1 – Cx Supplemental Conditions to Exhibit B Article 2","CxA ",null,null,{"$f":"'Project Information'!$D$21>=J6","v":true},null,null,null,4000000,null,null,{"$f":"IF(B6<>\"\", IF(ISBLANK(OFFSET('CD Checklist'!$B$9, B6, 0)),\"TBD\",OFFSET('CD Checklist'!$B$9, B6, 0)), \"NA\")","v":"NA"},{"$f":"IF(B6<>\"\", IF(ISBLANK(OFFSET('CD Checklist'!$E$9, B6, 0)),\"BLANK\",OFFSET('CD Checklist'!$E$9, B6, 0)), \"NA\")","v":"NA"}]
[null,{"$f":"IF(OR('MATRIX TABLE'!$R$5=4,'MATRIX TABLE'!B4:B7>0),MAX(B$1:B6)+1,\"\")","v":""},"Cx & SUS. REVIEW","18 20 40.2","Followed Exhibit B2 – BECx Supplemental Conditions to Exhibit B Article 2","CxA ",null,null,{"$f":"AND('MATRIX TABLE'!$R$5=4,'Project Information'!$D$21>='CD TABLE'!M7)","v":false},{"$f":"AND('MATRIX TABLE'!$R$5=3,'Project Information'!$D$21>='CD TABLE'!$M7)","v":false},{"$f":"AND('MATRIX TABLE'!$R$5=2,'Project Information'!$D$21>='CD TABLE'!$M7)","v":false},null,215000,null,null,{"$f":"IF(B7<>\"\", IF(ISBLANK(OFFSET('CD Checklist'!$B$9, B7, 0)),\"TBD\",OFFSET('CD Checklist'!$B$9, B7, 0)), \"NA\")","v":"NA"},{"$f":"IF(B7<>\"\", IF(ISBLANK(OFFSET('CD Checklist'!$E$9, B7, 0)),\"BLANK\",OFFSET('CD Checklist'!$E$9, B7, 0)), \"NA\")","v":"NA"}]
[null,{"$f":"IF(OR($I8=TRUE),MAX(B$1:B7)+1,\"\")","v":""},"Cx & SUS. REVIEW","00 00 19.1.2.1.4","Confirm assumptions, parameters, and output for updated energy model","CxA ",null,null,{"$f":"AND('MATRIX TABLE'!$R$5=4,'Project Information'!$D$21>='CD TABLE'!M8)","v":false},null,{"$f":"AND('MATRIX TABLE'!$R$5=2,'Project Information'!$D$21>=M8)","v":false},null,4000000,null,null,{"$f":"IF(B8<>\"\", IF(ISBLANK(OFFSET('CD Checklist'!$B$9, B8, 0)),\"TBD\",OFFSET('CD Checklist'!$B$9, B8, 0)), \"NA\")","v":"NA"},{"$f":"IF(B8<>\"\", IF(ISBLANK(OFFSET('CD Checklist'!$E$9, B8, 0)),\"BLANK\",OFFSET('CD Checklist'!$E$9, B8, 0)), \"NA\")","v":"NA"}]
[null,{"$f":"IF(AND(OR($I9:$L9=TRUE),'MATRIX TABLE'!$B$39>0),MAX(B$1:B8)+1,\"\")","v":""},"Cx & SUS. REVIEW","00 00 19.1.2.1.5","Confirm assumptions, parameters, and output for updated Water Use Intensity (WUI) calculation  ",null,null,null,{"$f":"AND('MATRIX TABLE'!$R$5=4,'Project Information'!$D$21>='CD TABLE'!M9)","v":false},null,{"$f":"AND('MATRIX TABLE'!$R$5=2,'Project Information'!$D$21>=M9)","v":false},null,4000000,null,null,{"$f":"IF(B9<>\"\", IF(ISBLANK(OFFSET('CD Checklist'!$B$9, B9, 0)),\"TBD\",OFFSET('CD Checklist'!$B$9, B9, 0)), \"NA\")","v":"NA"},{"$f":"IF(B9<>\"\", IF(ISBLANK(OFFSET('CD Checklist'!$E$9, B9, 0)),\"BLANK\",OFFSET('CD Checklist'!$E$9, B9, 0)), \"NA\")","v":"NA"}]
["ENERGY",{"$f":"IF(MAX($B$6:B9)>0,MAX($B$2:B9)+1,\"\")","v":""}]
[null,"IF(OR($I11:$L11=TRUE),MAX(B$1:B10)+1,\"\")","ENERGY","00 00 19.1.3.1","Performance Verification and Benchmarking ","A/E",null,null,{"$f":"AND('MATRIX TABLE'!$R$5=4,'Project Information'!$D$21>='CD TABLE'!M11)","v":false},null,null,null,4000000,null,null,{"$f":"IF(B11<>\"\", IF(ISBLANK(OFFSET('CD Checklist'!$B$9, B11, 0)),\"TBD\",OFFSET('CD Checklist'!$B$9, B11, 0)), \"NA\")","v":{"$error":"#VALUE!"}},{"$f":"IF(B11<>\"\", IF(ISBLANK(OFFSET('CD Checklist'!$E$9, B11, 0)),\"BLANK\",OFFSET('CD Checklist'!$E$9, B11, 0)), \"NA\")","v":{"$error":"#VALUE!"}}]
[null,{"$f":"IF(AND(OR($I12:$L12=TRUE),'MATRIX TABLE'!$B$24>0),MAX(B$1:B11)+1,\"\")","v":""},"ENERGY","18 30 40","Energy Model updated","A/E","CxA",null,{"$f":"AND('MATRIX TABLE'!$R$5=4,'Project Information'!$D$21>='CD TABLE'!M12)","v":false},null,{"$f":"AND('MATRIX TABLE'!$R$5=2,'Project Information'!$D$21>=M12)","v":false},null,4000000,null,null,{"$f":"IF(B12<>\"\", IF(ISBLANK(OFFSET('CD Checklist'!$B$9, B12, 0)),\"TBD\",OFFSET('CD Checklist'!$B$9, B12, 0)), \"NA\")","v":"NA"},{"$f":"IF(B12<>\"\", IF(ISBLANK(OFFSET('CD Checklist'!$E$9, B12, 0)),\"BLANK\",OFFSET('CD Checklist'!$E$9, B12, 0)), \"NA\")","v":"NA"}]
[null,{"$f":"IF(AND(OR($I13:$L13=TRUE),'MATRIX TABLE'!$B$25>0),MAX(B$1:B12)+1,\"\")","v":""},"ENERGY","18 80 00","LCCAs completed to compare designs of energy systems","A/E","CxA",null,null,null,null,{"$f":"'Project Information'!$D$21>='CD TABLE'!$M13","v":false},215000,null,null,{"$f":"IF(B13<>\"\", IF(ISBLANK(OFFSET('CD Checklist'!$B$9, B13, 0)),\"TBD\",OFFSET('CD Checklist'!$B$9, B13, 0)), \"NA\")","v":"NA"},{"$f":"IF(B13<>\"\", IF(ISBLANK(OFFSET('CD Checklist'!$E$9, B13, 0)),\"BLANK\",OFFSET('CD Checklist'!$E$9, B13, 0)), \"NA\")","v":"NA"}]
["WATER",{"$f":"IF(MAX($B$11:B13)>0,MAX($B$2:B13)+1,\"\")","v":""}]
[null,{"$f":"IF(AND(OR($I15:$L15=TRUE),'MATRIX TABLE'!$B$39>0),MAX(B$1:B14)+1,\"\")","v":""},"WATER","18 40 40.11","Water Model updated","A/E","CxA",null,{"$f":"AND('MATRIX TABLE'!$R$5=4,'Project Information'!$D$21>='CD TABLE'!M15)","v":false},null,{"$f":"AND('MATRIX TABLE'!$R$5=2,'Project Information'!$D$21>=M15)","v":false},null,4000000,null,null,{"$f":"IF(B15<>\"\", IF(ISBLANK(OFFSET('CD Checklist'!$B$9, B15, 0)),\"TBD\",OFFSET('CD Checklist'!$B$9, B15, 0)), \"NA\")","v":"NA"},{"$f":"IF(B15<>\"\", IF(ISBLANK(OFFSET('CD Checklist'!$E$9, B15, 0)),\"BLANK\",OFFSET('CD Checklist'!$E$9, B15, 0)), \"NA\")","v":"NA"}]
[null,{"$f":"IF(AND(OR($I16:$L16=TRUE),'MATRIX TABLE'!$B$41>0),MAX(B$1:B15)+1,\"\")","v":""},"WATER","18 80 00","LCCAs completed to compare designs of water systems","A/E","CxA",null,null,null,null,{"$f":"'Project Information'!$D$21>='CD TABLE'!$M16","v":false},215000,null,null,{"$f":"IF(B16<>\"\", IF(ISBLANK(OFFSET('CD Checklist'!$B$9, B16, 0)),\"TBD\",OFFSET('CD Checklist'!$B$9, B16, 0)), \"NA\")","v":"NA"},{"$f":"IF(B16<>\"\", IF(ISBLANK(OFFSET('CD Checklist'!$E$9, B16, 0)),\"BLANK\",OFFSET('CD Checklist'!$E$9, B16, 0)), \"NA\")","v":"NA"}]
["ECOSYSTEM SERVICES",{"$f":"IF(MAX($B$15:B16)>0,MAX($B$2:B16)+1,\"\")","v":""}]
[null,{"$f":"IF(OR($I18:$L18=TRUE),MAX(B$1:B17)+1,\"\")","v":""},"ECOSYSTEM SERVICES","18 50 30","Ecosystems Services Assessment updated (if applicable)","A/E","EcoTeam",null,null,null,null,{"$f":"AND('Project Information'!$D$21>=M18,'MATRIX TABLE'!$D$44=TRUE)","v":false},215000,"Exterior Site Work","00 00 19.1.6",{"$f":"IF(B18<>\"\", IF(ISBLANK(OFFSET('CD Checklist'!$B$9, B18, 0)),\"TBD\",OFFSET('CD Checklist'!$B$9, B18, 0)), \"NA\")","v":"NA"},{"$f":"IF(B18<>\"\", IF(ISBLANK(OFFSET('CD Checklist'!$E$9, B18, 0)),\"BLANK\",OFFSET('CD Checklist'!$E$9, B18, 0)), \"NA\")","v":"NA"}]
["MATERIALS",{"$f":"IF(MAX($B$18:B18)>0,MAX($B$2:B18)+1,\"\")","v":""}]
[null,{"$f":"IF(AND(OR($I20:$L20=TRUE),OR(Matrix!E75=TRUE)),MAX(B$1:B19)+1,\"\")","v":""},"MATERIALS","18 60 30","Sustainable Materials Calculator updated by A/E","A/E",null,null,null,null,null,{"$f":"'Project Information'!$D$21>='CD TABLE'!$M20","v":false},4000000,null,"00 00 19.1.5.3",{"$f":"IF(B20<>\"\", IF(ISBLANK(OFFSET('CD Checklist'!$B$9, B20, 0)),\"TBD\",OFFSET('CD Checklist'!$B$9, B20, 0)), \"NA\")","v":"NA"},{"$f":"IF(B20<>\"\", IF(ISBLANK(OFFSET('CD Checklist'!$E$9, B20, 0)),\"BLANK\",OFFSET('CD Checklist'!$E$9, B20, 0)), \"NA\")","v":"NA"}]
[null,{"$f":"IF(AND(OR($I21:$L21=TRUE),OR(Matrix!$E$42,Matrix!$E$75,Matrix!$E$86,Matrix!$E$87=TRUE)),MAX(B$1:B20)+1,\"\")","v":""},"MATERIALS","18 60 30","Prescriptive Materials Matrix deliverables updated for applicable CSI Divisions",null,null,null,null,null,null,{"$f":"'Project Information'!$D$21<=M21","v":true},4000000,null,null,{"$f":"IF(B21<>\"\", IF(ISBLANK(OFFSET('CD Checklist'!$B$9, B21, 0)),\"TBD\",OFFSET('CD Checklist'!$B$9, B21, 0)), \"NA\")","v":"NA"},{"$f":"IF(B21<>\"\", IF(ISBLANK(OFFSET('CD Checklist'!$E$9, B21, 0)),\"BLANK\",OFFSET('CD Checklist'!$E$9, B21, 0)), \"NA\")","v":"NA"}]
[null,{"$f":"IF(AND(OR($I22:$L22=TRUE),OR(Matrix!E75=TRUE)),MAX(B$1:B20)+1,\"\")","v":""},"MATERIALS","18 60 30","Once updated, Sustainable Materials Calculator turned over to Construction Manager/Design-Builder",null,null,null,null,null,null,{"$f":"'Project Information'!$D$21>='CD TABLE'!$M22","v":false},4000000,null,"00 00 19.1.5.3",{"$f":"IF(B22<>\"\", IF(ISBLANK(OFFSET('CD Checklist'!$B$9, B22, 0)),\"TBD\",OFFSET('CD Checklist'!$B$9, B22, 0)), \"NA\")","v":"NA"},{"$f":"IF(B22<>\"\", IF(ISBLANK(OFFSET('CD Checklist'!$E$9, B22, 0)),\"BLANK\",OFFSET('CD Checklist'!$E$9, B22, 0)), \"NA\")","v":"NA"}]
[null,{"$f":"IF(AND(OR($I23:$L23=TRUE),OR(Matrix!E76=TRUE)),MAX(B$1:B22)+1,\"\")","v":""},"MATERIALS","18 60 40.1","CWM Plan created","GC","RRS",null,null,null,null,{"$f":"'Project Information'!$D$21>='CD TABLE'!$M23","v":false},1000000,"[old text]   CWM Plan submitted to recycle@osu.edu ","00 00 19.1.5.1",{"$f":"IF(B23<>\"\", IF(ISBLANK(OFFSET('CD Checklist'!$B$9, B23, 0)),\"TBD\",OFFSET('CD Checklist'!$B$9, B23, 0)), \"NA\")","v":"NA"},{"$f":"IF(B23<>\"\", IF(ISBLANK(OFFSET('CD Checklist'!$E$9, B23, 0)),\"BLANK\",OFFSET('CD Checklist'!$E$9, B23, 0)), \"NA\")","v":"NA"}]
[null,{"$f":"IF(AND(OR($I24:$L24=TRUE),OR(Matrix!E76=TRUE)),MAX(B$1:B23)+1,\"\")","v":""},"MATERIALS","18 60 40.2","Construction Manager/Design-Builder shall complete the C&D tracking spreadsheet ","GC","RRS",null,null,null,null,{"$f":"'Project Information'!$D$21>='CD TABLE'!$M24","v":false},1000000,"[old text]  Construction and Demolition spreadsheet shared with General Contractor","00 00 19.1.5.2",{"$f":"IF(B24<>\"\", IF(ISBLANK(OFFSET('CD Checklist'!$B$9, B24, 0)),\"TBD\",OFFSET('CD Checklist'!$B$9, B24, 0)), \"NA\")","v":"NA"},{"$f":"IF(B24<>\"\", IF(ISBLANK(OFFSET('CD Checklist'!$E$9, B24, 0)),\"BLANK\",OFFSET('CD Checklist'!$E$9, B24, 0)), \"NA\")","v":"NA"}]
[null,{"$f":"IF(OR($I25:$L25=TRUE),MAX(B$1:B24)+1,\"\")","v":""},"MATERIALS","18 60 50","MM Plan updated ",null,null,null,null,null,null,{"$f":"AND('Project Information'!$D$21>=M25,'MATRIX TABLE'!$H$52=TRUE)","v":false},0,"Recycling, Compost, Trash Collection","no in Div 00 at the SD phase",{"$f":"IF(B25<>\"\", IF(ISBLANK(OFFSET('CD Checklist'!$B$9, B25, 0)),\"TBD\",OFFSET('CD Checklist'!$B$9, B25, 0)), \"NA\")","v":"NA"},{"$f":"IF(B25<>\"\", IF(ISBLANK(OFFSET('CD Checklist'!$E$9, B25, 0)),\"BLANK\",OFFSET('CD Checklist'!$E$9, B25, 0)), \"NA\")","v":"NA"}]
[null,{"$f":"IF('MATRIX TABLE'!$B$53>0,MAX(B$1:B25)+1,\"\")","v":""},"MATERIALS","18 60 30.1","LCCA updated for materials options (if applicable) ",null,null,null,null,null,null,null,null,null,null,{"$f":"IF(B26<>\"\", IF(ISBLANK(OFFSET('CD Checklist'!$B$9, B26, 0)),\"TBD\",OFFSET('CD Checklist'!$B$9, B26, 0)), \"NA\")","v":"NA"},{"$f":"IF(B26<>\"\", IF(ISBLANK(OFFSET('CD Checklist'!$E$9, B26, 0)),\"BLANK\",OFFSET('CD Checklist'!$E$9, B26, 0)), \"NA\")","v":"NA"}]
["USER EXPERIENCE",{"$f":"IF(MAX($B$20:B26)>0,MAX($B$2:B26)+1,\"\")","v":""}]
[null,{"$f":"IF(OR($I28:$L28=TRUE),MAX(B$1:B27)+1,\"\")","v":""},"USER EXPERIENCE","18 70 30 ","Verify project complies with appropriate IAQ ASHRAE standard","A/E",null,null,null,null,null,{"$f":"AND('Project Information'!$D$21>=M28,'MATRIX TABLE'!$F$3=TRUE)","v":false},0,"HVAC","00 00 19.1.7.1",{"$f":"IF(B28<>\"\", IF(ISBLANK(OFFSET('CD Checklist'!$B$9, B28, 0)),\"TBD\",OFFSET('CD Checklist'!$B$9, B28, 0)), \"NA\")","v":"NA"},{"$f":"IF(B28<>\"\", IF(ISBLANK(OFFSET('CD Checklist'!$E$9, B28, 0)),\"BLANK\",OFFSET('CD Checklist'!$E$9, B28, 0)), \"NA\")","v":"NA"}]
[null,{"$f":"IF(OR($I29:$L29=TRUE),MAX(B$1:B28)+1,\"\")","v":""},"USER EXPERIENCE","18 70 30.5","Verify low-emitting building materials and finishes used","A/E",null,null,null,null,null,{"$f":"AND('Project Information'!$D$21>=M29,'MATRIX TABLE'!$F$3=TRUE)","v":false},0,null,"00 00 19.1.7.2",{"$f":"IF(B29<>\"\", IF(ISBLANK(OFFSET('CD Checklist'!$B$9, B29, 0)),\"TBD\",OFFSET('CD Checklist'!$B$9, B29, 0)), \"NA\")","v":"NA"},{"$f":"IF(B29<>\"\", IF(ISBLANK(OFFSET('CD Checklist'!$E$9, B29, 0)),\"BLANK\",OFFSET('CD Checklist'!$E$9, B29, 0)), \"NA\")","v":"NA"}]
[null,{"$f":"IF(OR($I30:$L30=TRUE),MAX(B$1:B29)+1,\"\")","v":""},"USER EXPERIENCE","18 70 30.2","Construction Manager/Design-Builder shall develop and implement IAQ Management Plan","GC",null,null,null,null,null,{"$f":"AND('Project Information'!$D$21>=M30,'MATRIX TABLE'!$F$3=TRUE)","v":false},0,null,"00 00 19.1.7.3",{"$f":"IF(B30<>\"\", IF(ISBLANK(OFFSET('CD Checklist'!$B$9, B30, 0)),\"TBD\",OFFSET('CD Checklist'!$B$9, B30, 0)), \"NA\")","v":"NA"},{"$f":"IF(B30<>\"\", IF(ISBLANK(OFFSET('CD Checklist'!$E$9, B30, 0)),\"BLANK\",OFFSET('CD Checklist'!$E$9, B30, 0)), \"NA\")","v":"NA"}]
[null,{"$f":"IF(OR($I31:$L31=TRUE),MAX(B$1:B30)+1,\"\")","v":""},"USER EXPERIENCE","18 70 40 ","Ensure PMV levels","A/E",null,null,null,null,null,{"$f":"AND('Project Information'!$D$21>=M31,'MATRIX TABLE'!$F$3=TRUE)","v":false},0,null,"00 00 19.1.7.5",{"$f":"IF(B31<>\"\", IF(ISBLANK(OFFSET('CD Checklist'!$B$9, B31, 0)),\"TBD\",OFFSET('CD Checklist'!$B$9, B31, 0)), \"NA\")","v":"NA"},{"$f":"IF(B31<>\"\", IF(ISBLANK(OFFSET('CD Checklist'!$E$9, B31, 0)),\"BLANK\",OFFSET('CD Checklist'!$E$9, B31, 0)), \"NA\")","v":"NA"}]
[null,{"$f":"IF(OR($I32:$L32=TRUE),MAX(B$1:B31)+1,\"\")","v":""},"USER EXPERIENCE","18 70 40","Ensure spaces at risk for discomfort have been addressed","A/E",null,null,null,null,null,{"$f":"AND('Project Information'!$D$21>=M32,'MATRIX TABLE'!$F$3=TRUE)","v":false},0,null,"00 00 19.1.7.6",{"$f":"IF(B32<>\"\", IF(ISBLANK(OFFSET('CD Checklist'!$B$9, B32, 0)),\"TBD\",OFFSET('CD Checklist'!$B$9, B32, 0)), \"NA\")","v":"NA"},{"$f":"IF(B32<>\"\", IF(ISBLANK(OFFSET('CD Checklist'!$E$9, B32, 0)),\"BLANK\",OFFSET('CD Checklist'!$E$9, B32, 0)), \"NA\")","v":"NA"}]
[null,{"$f":"IF(OR($I33:$L33=TRUE),MAX(B$1:B32)+1,\"\")","v":""},"USER EXPERIENCE","18 70 60 ","A/E updated evaluation simulation output report of daylight levels (if applicable)","A/E",null,null,null,null,null,{"$f":"AND('Project Information'!$D$21>=M33,'MATRIX TABLE'!$G$3=TRUE)","v":false},4000000,"[old text]    Perform daylight analysis","00 00 19.1.7.7",{"$f":"IF(B33<>\"\", IF(ISBLANK(OFFSET('CD Checklist'!$B$9, B33, 0)),\"TBD\",OFFSET('CD Checklist'!$B$9, B33, 0)), \"NA\")","v":"NA"},{"$f":"IF(B33<>\"\", IF(ISBLANK(OFFSET('CD Checklist'!$E$9, B33, 0)),\"BLANK\",OFFSET('CD Checklist'!$E$9, B33, 0)), \"NA\")","v":"NA"}]
[]
[]
[]
[]
[]
[]
[null,null,{"$f":"IF(B40<>\"\",$A$37,\"\")","v":""}]
[null,null,""]
[null,null,""]
[null,null,""]
[null,null,""]
[null,null,""]
[null,null,""]
[null,null,""]
[null,null,""]

{"sheet":"Const. TABLE","index":18,"n_rows":42,"n_cols":17,"rows_kept":42,"cut":false,"hidden":true,"merged":[]}
["General",null,null,null,null,"Who Completes the Task ","Task Reviewed by ","Task Approved by ","New Building","Major Renovation","Additions","All","Cost threshold for Major Renovation","Matrix Check Boxes & Notes",null,"Completed?","Notes"]
[null,{"$f":"IF(OR($I2:$L2=TRUE),MAX(B$1:B1)+1,\"\")","v":1},"General","00 00 20.1.1","Submit updated Sustainability Applicability Matrix through eBuilder (if applicable)","PM",null,null,null,null,null,{"$f":"'Project Information'!$D$21>=M2","v":true},0,null,null,{"$f":"IF(B2<>\"\", IF(ISBLANK(OFFSET('Const. Checklist'!$B$9, B2, 0)),\"TBD\",OFFSET('Const. Checklist'!$B$9, B2, 0)), \"NA\")","v":"TBD"},{"$f":"IF(B2<>\"\", IF(ISBLANK(OFFSET('Const. Checklist'!$E$9, B2, 0)),\"BLANK\",OFFSET('Const. Checklist'!$E$9, B2, 0)), \"NA\")","v":"BLANK"}]
[null,{"$f":"IF(OR($I3:$L3=TRUE),MAX(B$1:B2)+1,\"\")","v":2},"General","00 00 17.1.2","Submit updated OPR through eBuilder (if applicable)",null,null,null,null,null,null,{"$f":"'Project Information'!$D$21>=M3","v":true},0,null,null,{"$f":"IF(B3<>\"\", IF(ISBLANK(OFFSET('Const. Checklist'!$B$9, B3, 0)),\"TBD\",OFFSET('Const. Checklist'!$B$9, B3, 0)), \"NA\")","v":"TBD"},{"$f":"IF(B3<>\"\", IF(ISBLANK(OFFSET('Const. Checklist'!$E$9, B3, 0)),\"BLANK\",OFFSET('Const. Checklist'!$E$9, B3, 0)), \"NA\")","v":"BLANK"}]
[null,{"$f":"IF(OR($I4:$L4=TRUE),MAX(B$1:B3)+1,\"\")","v":""},"General","00 00 20.1.8","Construction Kickoff Sustainability Meeting completed",null,null,null,null,null,null,{"$f":"'Project Information'!$D$21>=M4","v":false},4000000,null,null,{"$f":"IF(B4<>\"\", IF(ISBLANK(OFFSET('Const. Checklist'!$B$9, B4, 0)),\"TBD\",OFFSET('Const. Checklist'!$B$9, B4, 0)), \"NA\")","v":"NA"},{"$f":"IF(B4<>\"\", IF(ISBLANK(OFFSET('Const. Checklist'!$E$9, B4, 0)),\"BLANK\",OFFSET('Const. Checklist'!$E$9, B4, 0)), \"NA\")","v":"NA"}]
["Cx & SUS. REVIEW",{"$f":"IF(MAX($B$2:B4)>0,MAX($B$2:B4)+1,\"\")","v":3}]
[null,{"$f":"IF(OR('MATRIX TABLE'!$R$5=4,'Cx Thresholds'!$AA$22:$AR$22=\"Yes\",'Cx Thresholds'!$AA$22:$AR$22=\"Yes, Limited\"),MAX(B$1:B5)+1,\"\")","v":""},"Cx & SUS. REVIEW","18 20 40.1","Followed Exhibit B1 – Cx Supplemental Conditions to Exhibit B Article 2",null,null,null,null,null,null,null,null,null,null,{"$f":"IF(B6<>\"\", IF(ISBLANK(OFFSET('Const. Checklist'!$B$9, B6, 0)),\"TBD\",OFFSET('Const. Checklist'!$B$9, B6, 0)), \"NA\")","v":"NA"},{"$f":"IF(B6<>\"\", IF(ISBLANK(OFFSET('Const. Checklist'!$E$9, B6, 0)),\"BLANK\",OFFSET('Const. Checklist'!$E$9, B6, 0)), \"NA\")","v":"NA"}]
[null,{"$f":"IF(OR('MATRIX TABLE'!$R$5=4,'MATRIX TABLE'!B4:B7>0),MAX(B$1:B6)+1,\"\")","v":""},"Cx & SUS. REVIEW","18 20 40.2","Followed Exhibit B2 – BECx Supplemental Conditions to Exhibit B Article 2",null,null,null,null,null,null,null,null,null,null,{"$f":"IF(B7<>\"\", IF(ISBLANK(OFFSET('Const. Checklist'!$B$9, B7, 0)),\"TBD\",OFFSET('Const. Checklist'!$B$9, B7, 0)), \"NA\")","v":"NA"},{"$f":"IF(B7<>\"\", IF(ISBLANK(OFFSET('Const. Checklist'!$E$9, B7, 0)),\"BLANK\",OFFSET('Const. Checklist'!$E$9, B7, 0)), \"NA\")","v":"NA"}]
["ENERGY",{"$f":"IF(MAX($B$6:B7)>0,MAX($B$2:B7)+1,\"\")","v":""}]
[null,{"$f":"IF(AND(OR($I9:$L9=TRUE),'MATRIX TABLE'!$B$25>0),MAX(B$1:B8)+1,\"\")","v":""},"ENERGY","18 80 00","LCCA for Total Cost of Ownership for energy systems complete","A/E","CxA",null,null,null,null,{"$f":"'Project Information'!$D$21>=M9","v":false},215000,null,null,{"$f":"IF(B9<>\"\", IF(ISBLANK(OFFSET('Const. Checklist'!$B$9, B9, 0)),\"TBD\",OFFSET('Const. Checklist'!$B$9, B9, 0)), \"NA\")","v":"NA"},{"$f":"IF(B9<>\"\", IF(ISBLANK(OFFSET('Const. Checklist'!$E$9, B9, 0)),\"BLANK\",OFFSET('Const. Checklist'!$E$9, B9, 0)), \"NA\")","v":"NA"}]
["WATER",{"$f":"IF(MAX($B$9:B9)>0,MAX($B$2:B9)+1,\"\")","v":""}]
[null,{"$f":"IF(AND(OR($I11:$L11=TRUE),OR(Matrix!E58:E64=TRUE)),MAX(B$1:B10)+1,\"\")","v":""},"WATER","18 80 00","LCCA for Total Cost of Ownership for water systems complete","A/E","CxA",null,null,null,null,{"$f":"'Project Information'!$D$21>=M11","v":false},215000,null,null,{"$f":"IF(B11<>\"\", IF(ISBLANK(OFFSET('Const. Checklist'!$B$9, B11, 0)),\"TBD\",OFFSET('Const. Checklist'!$B$9, B11, 0)), \"NA\")","v":"NA"},{"$f":"IF(B11<>\"\", IF(ISBLANK(OFFSET('Const. Checklist'!$E$9, B11, 0)),\"BLANK\",OFFSET('Const. Checklist'!$E$9, B11, 0)), \"NA\")","v":"NA"}]
["MATERIALS",{"$f":"IF(MAX($B$11:B11)>0,MAX($B$2:B11)+1,\"\")","v":""}]
[null,{"$f":"IF(AND(OR($I13:$L13=TRUE),OR(Matrix!E75=TRUE)),MAX(B$1:B12)+1,\"\")","v":""},"MATERIALS","18 60 30","Sustainable Materials Calculator developed showing agreed upon buy-out targets",null,null,null,null,null,null,{"$f":"'Project Information'!$D$21>=M13","v":false},4000000,null,"00 00 20.1.5.1",{"$f":"IF(B13<>\"\", IF(ISBLANK(OFFSET('Const. Checklist'!$B$9, B13, 0)),\"TBD\",OFFSET('Const. Checklist'!$B$9, B13, 0)), \"NA\")","v":"NA"},{"$f":"IF(B13<>\"\", IF(ISBLANK(OFFSET('Const. Checklist'!$E$9, B13, 0)),\"BLANK\",OFFSET('Const. Checklist'!$E$9, B13, 0)), \"NA\")","v":"NA"}]
[null,{"$f":"IF(AND(OR($I14:$L14=TRUE),OR(Matrix!E76=TRUE)),MAX(B$1:B13)+1,\"\")","v":""},"MATERIALS","18 60 30","Final Sustainable Materials Calculator completed using as-built information ",null,null,null,null,null,null,{"$f":"'Project Information'!$D$21>=M14","v":false},4000000,null,"00 00 20.1.5.2",{"$f":"IF(B14<>\"\", IF(ISBLANK(OFFSET('Const. Checklist'!$B$9, B14, 0)),\"TBD\",OFFSET('Const. Checklist'!$B$9, B14, 0)), \"NA\")","v":"NA"},{"$f":"IF(B14<>\"\", IF(ISBLANK(OFFSET('Const. Checklist'!$E$9, B14, 0)),\"BLANK\",OFFSET('Const. Checklist'!$E$9, B14, 0)), \"NA\")","v":"NA"}]
[null,{"$f":"IF(AND(OR($I15:$L15=TRUE),OR(Matrix!$E$42,Matrix!$E$75,Matrix!$E$86,Matrix!$E$87=TRUE)),MAX(B$1:B14)+1,\"\")","v":""},"MATERIALS","18 60 30","Prescriptive Materials Matrix deliverables developed showing agreed upon buy-out targets",null,null,null,null,null,null,{"$f":"'Project Information'!$D$21<=M15","v":true},4000000,null,null,{"$f":"IF(B15<>\"\", IF(ISBLANK(OFFSET('Const. Checklist'!$B$9, B15, 0)),\"TBD\",OFFSET('Const. Checklist'!$B$9, B15, 0)), \"NA\")","v":"NA"},{"$f":"IF(B15<>\"\", IF(ISBLANK(OFFSET('Const. Checklist'!$E$9, B15, 0)),\"BLANK\",OFFSET('Const. Checklist'!$E$9, B15, 0)), \"NA\")","v":"NA"}]
[null,{"$f":"IF(AND(OR($I16:$L16=TRUE),OR(Matrix!$E$42,Matrix!$E$75,Matrix!$E$86,Matrix!$E$87=TRUE)),MAX(B$1:B15)+1,\"\")","v":""},"MATERIALS","18 60 30","Final Prescriptive Materials Matrix deliverables completed using as-built information ",null,null,null,null,null,null,{"$f":"'Project Information'!$D$21<=M16","v":true},4000000,null,null,{"$f":"IF(B16<>\"\", IF(ISBLANK(OFFSET('Const. Checklist'!$B$9, B16, 0)),\"TBD\",OFFSET('Const. Checklist'!$B$9, B16, 0)), \"NA\")","v":"NA"},{"$f":"IF(B16<>\"\", IF(ISBLANK(OFFSET('Const. Checklist'!$E$9, B16, 0)),\"BLANK\",OFFSET('Const. Checklist'!$E$9, B16, 0)), \"NA\")","v":"NA"}]
[null,{"$f":"IF(AND(OR($I17:$L17=TRUE),OR(Matrix!E76=TRUE)),MAX(B$1:B16)+1,\"\")","v":""},"MATERIALS","18 60 40.2","CWM Plan updated and Construction and Demolition Tracking spreadsheet completed","GC","RRS",null,null,null,null,{"$f":"'Project Information'!$D$21>=M17","v":false},1000000,"[old text]   Construction and Demolition spreadsheet submited to recycle@osu.edu","00 00 20.1.5",{"$f":"IF(B17<>\"\", IF(ISBLANK(OFFSET('Const. Checklist'!$B$9, B17, 0)),\"TBD\",OFFSET('Const. Checklist'!$B$9, B17, 0)), \"NA\")","v":"NA"},{"$f":"IF(B17<>\"\", IF(ISBLANK(OFFSET('Const. Checklist'!$E$9, B17, 0)),\"BLANK\",OFFSET('Const. Checklist'!$E$9, B17, 0)), \"NA\")","v":"NA"}]
[null,{"$f":"IF(OR($I18:$L18=TRUE),MAX(B$1:B17)+1,\"\")","v":""},"MATERIALS","18 60 50","MM Plan updated (if applicable)",null,null,null,null,null,null,{"$f":"AND('Project Information'!$D$21>=M18,'MATRIX TABLE'!$H$52=TRUE)","v":false},0,"Recycling, Compost, Trash Collection","no in Div 00 at the SD phase",{"$f":"IF(B18<>\"\", IF(ISBLANK(OFFSET('Const. Checklist'!$B$9, B18, 0)),\"TBD\",OFFSET('Const. Checklist'!$B$9, B18, 0)), \"NA\")","v":"NA"},{"$f":"IF(B18<>\"\", IF(ISBLANK(OFFSET('Const. Checklist'!$E$9, B18, 0)),\"BLANK\",OFFSET('Const. Checklist'!$E$9, B18, 0)), \"NA\")","v":"NA"}]
["ECOSYSTEM SERVICES",{"$f":"IF(MAX($B$13:B18)>0,MAX($B$2:B18)+1,\"\")","v":""}]
[null,{"$f":"IF(OR($I20:$L20=TRUE),MAX(B$1:B19)+1,\"\")","v":""},"ECOSYSTEM SERVICES","18 50 30","Ecosystems Services Assessment updated (if applicable)","A/E","EcoTeam",null,null,null,null,{"$f":"AND('Project Information'!$D$21>=M20,'MATRIX TABLE'!$D$44=TRUE)","v":false},215000,"Exterior Site Work",null,{"$f":"IF(B20<>\"\", IF(ISBLANK(OFFSET('Const. Checklist'!$B$9, B20, 0)),\"TBD\",OFFSET('Const. Checklist'!$B$9, B20, 0)), \"NA\")","v":"NA"},{"$f":"IF(B20<>\"\", IF(ISBLANK(OFFSET('Const. Checklist'!$E$9, B20, 0)),\"BLANK\",OFFSET('Const. Checklist'!$E$9, B20, 0)), \"NA\")","v":"NA"}]
["USER EXPERIENCE",{"$f":"IF(MAX($B$20:B20)>0,MAX($B$2:B20)+1,\"\")","v":""}]
[null,{"$f":"IF(OR($I22:$L22=TRUE),MAX(B$1:B21)+1,\"\")","v":""},"USER EXPERIENCE","18 70 30.3","Minimum ventilation rates within -5% to +10% of min. design values","A/E",null,null,null,null,null,{"$f":"AND('Project Information'!$D$21>=M22,'MATRIX TABLE'!$F$3=TRUE)","v":false},0,null,"00 00 20.1.7.3",{"$f":"IF(B22<>\"\", IF(ISBLANK(OFFSET('Const. Checklist'!$B$9, B22, 0)),\"TBD\",OFFSET('Const. Checklist'!$B$9, B22, 0)), \"NA\")","v":"NA"},{"$f":"IF(B22<>\"\", IF(ISBLANK(OFFSET('Const. Checklist'!$E$9, B22, 0)),\"BLANK\",OFFSET('Const. Checklist'!$E$9, B22, 0)), \"NA\")","v":"NA"}]
[null,{"$f":"IF(OR($I23:$L23=TRUE),MAX(B$1:B22)+1,\"\")","v":""},"USER EXPERIENCE","18 70 60 ","A/E updated evaluation simulation output report of daylight levels (if applicable)","A/E",null,null,null,null,null,{"$f":"AND('Project Information'!$D$21>=M23,'MATRIX TABLE'!$F$3=TRUE)","v":false},4000000,null,"00 00 20.1.7.1",{"$f":"IF(B23<>\"\", IF(ISBLANK(OFFSET('Const. Checklist'!$B$9, B23, 0)),\"TBD\",OFFSET('Const. Checklist'!$B$9, B23, 0)), \"NA\")","v":"NA"},{"$f":"IF(B23<>\"\", IF(ISBLANK(OFFSET('Const. Checklist'!$E$9, B23, 0)),\"BLANK\",OFFSET('Const. Checklist'!$E$9, B23, 0)), \"NA\")","v":"NA"}]
[null,{"$f":"IF(OR($I24:$L24=TRUE),MAX(B$1:B23)+1,\"\")","v":""},"USER EXPERIENCE","18 70 60 ","Provide updated Lighting Plan and design narrative (if applicable)","A/E",null,null,null,null,null,{"$f":"AND('Project Information'!$D$21>=M24,OR('MATRIX TABLE'!$G$3=TRUE,'MATRIX TABLE'!$H$3=TRUE))","v":false},0,null,"00 00 20.1.7.2",{"$f":"IF(B24<>\"\", IF(ISBLANK(OFFSET('Const. Checklist'!$B$9, B24, 0)),\"TBD\",OFFSET('Const. Checklist'!$B$9, B24, 0)), \"NA\")","v":"NA"},{"$f":"IF(B24<>\"\", IF(ISBLANK(OFFSET('Const. Checklist'!$E$9, B24, 0)),\"BLANK\",OFFSET('Const. Checklist'!$E$9, B24, 0)), \"NA\")","v":"NA"}]
[null,{"$f":"IF(OR($I25:$L25=TRUE),MAX(B$1:B24)+1,\"\")","v":""}]
[null,{"$f":"IF(OR($I26:$L26=TRUE),MAX(B$1:B25)+1,\"\")","v":""}]
[null,{"$f":"IF(OR($I27:$L27=TRUE),MAX(B$1:B26)+1,\"\")","v":""}]
[]
[]
[]
[]
[]
[]
[null,null,{"$f":"IF(B34<>\"\",$A$31,\"\")","v":""}]
[null,null,""]
[null,null,""]
[null,null,""]
[null,null,""]
[null,null,""]
[null,null,""]
[null,null,""]
[null,null,""]

{"sheet":"Post Const. TABLE","index":19,"n_rows":34,"n_cols":16,"rows_kept":34,"cut":false,"hidden":true,"merged":[]}
["General",null,null,null,"Close-out/Warranty Release/Performance Period up to 12 months post occupancy","Who Completes the Task ","Task Reviewed by ","Task Approved by ","New Building","Major Renovation","Additions","All","Cost threshold for Major Renovation","Matrix Check Boxes & Notes","Completed?","Notes"]
[null,{"$f":"IF(OR($I2:$L2=TRUE),MAX(B$1:B1)+1,\"\")","v":1},"General","00 00 21.1.1","Submit update Sustainability Applicability Matrix (if applicable)","PM",null,null,null,null,null,{"$f":"'Project Information'!$D$21>=M2","v":true},0,null,{"$f":"IF(B2<>\"\", IF(ISBLANK(OFFSET('Post Const. Checklist'!$B$9, B2, 0)),\"TBD\",OFFSET('Post Const. Checklist'!$B$9, B2, 0)), \"NA\")","v":"TBD"},{"$f":"IF(B2<>\"\", IF(ISBLANK(OFFSET('Post Const. Checklist'!$E$9, B2, 0)),\"BLANK\",OFFSET('Post Const. Checklist'!$E$9, B2, 0)), \"NA\")","v":"BLANK"}]
[null,{"$f":"IF(OR($I3:$L3=TRUE),MAX(B$1:B2)+1,\"\")","v":2},"General","00 00 17.1.2","Submit updated OPR through eBuilder (if applicable)",null,null,null,null,null,null,{"$f":"'Project Information'!$D$21>=M3","v":true},0,null,{"$f":"IF(B3<>\"\", IF(ISBLANK(OFFSET('Post Const. Checklist'!$B$9, B3, 0)),\"TBD\",OFFSET('Post Const. Checklist'!$B$9, B3, 0)), \"NA\")","v":"TBD"},{"$f":"IF(B3<>\"\", IF(ISBLANK(OFFSET('Post Const. Checklist'!$E$9, B3, 0)),\"BLANK\",OFFSET('Post Const. Checklist'!$E$9, B3, 0)), \"NA\")","v":"BLANK"}]
[null,{"$f":"IF(OR($I4:$L4=TRUE),MAX(B$1:B3)+1,\"\")","v":""},"General","00 00 21.1.4","One month post construction, conduct a sustainability “debrief” with stakeholders",null,null,null,null,null,null,{"$f":"'Project Information'!$D$21>=M4","v":false},4000000,null,{"$f":"IF(B4<>\"\", IF(ISBLANK(OFFSET('Post Const. Checklist'!$B$9, B4, 0)),\"TBD\",OFFSET('Post Const. Checklist'!$B$9, B4, 0)), \"NA\")","v":"NA"},{"$f":"IF(B4<>\"\", IF(ISBLANK(OFFSET('Post Const. Checklist'!$E$9, B4, 0)),\"BLANK\",OFFSET('Post Const. Checklist'!$E$9, B4, 0)), \"NA\")","v":"NA"}]
["Cx & SUS. REVIEW",{"$f":"IF(MAX($B$2:B4)>0,MAX($B$2:B4)+1,\"\")","v":3}]
[null,{"$f":"IF(OR('MATRIX TABLE'!$R$5=4,'Cx Thresholds'!$AA$22:$AR$22=\"Yes\",'Cx Thresholds'!$AA$22:$AR$22=\"Yes, Limited\"),MAX(B$1:B5)+1,\"\")","v":""},"Cx & SUS. REVIEW","18 20 40.1","Followed Exhibit B1 – Supplemental Conditions to Exhibit B Article 2",null,null,null,null,null,null,null,null,null,{"$f":"IF(B6<>\"\", IF(ISBLANK(OFFSET('Post Const. Checklist'!$B$9, B6, 0)),\"TBD\",OFFSET('Post Const. Checklist'!$B$9, B6, 0)), \"NA\")","v":"NA"},{"$f":"IF(B6<>\"\", IF(ISBLANK(OFFSET('Post Const. Checklist'!$E$9, B6, 0)),\"BLANK\",OFFSET('Post Const. Checklist'!$E$9, B6, 0)), \"NA\")","v":"NA"}]
[null,{"$f":"IF(OR('MATRIX TABLE'!$R$5=4,'MATRIX TABLE'!B4:B7>0),MAX(B$1:B6)+1,\"\")","v":""},"Cx & SUS. REVIEW","18 20 40.2","Followed Exhibit B2 – Supplemental Conditions to Exhibit B Article 2",null,null,null,null,null,null,null,null,null,{"$f":"IF(B7<>\"\", IF(ISBLANK(OFFSET('Post Const. Checklist'!$B$9, B7, 0)),\"TBD\",OFFSET('Post Const. Checklist'!$B$9, B7, 0)), \"NA\")","v":"NA"},{"$f":"IF(B7<>\"\", IF(ISBLANK(OFFSET('Post Const. Checklist'!$E$9, B7, 0)),\"BLANK\",OFFSET('Post Const. Checklist'!$E$9, B7, 0)), \"NA\")","v":"NA"}]
["ENERGY",{"$f":"IF(MAX($B$6:B7)>0,MAX($B$2:B7)+1,\"\")","v":""}]
[null,{"$f":"IF(OR($I9:$L9=TRUE),MAX(B$1:B8)+1,\"\")","v":""},"ENERGY","00 00 21.1.3.1","Calibrate Energy Model (if performance EUI is 10% above approved design EUI Target)",null,null,null,{"$f":"AND('MATRIX TABLE'!$R$5=4,'Project Information'!$D$21>=M9)","v":false},null,null,null,4000000,null,{"$f":"IF(B9<>\"\", IF(ISBLANK(OFFSET('Post Const. Checklist'!$B$9, B9, 0)),\"TBD\",OFFSET('Post Const. Checklist'!$B$9, B9, 0)), \"NA\")","v":"NA"},{"$f":"IF(B9<>\"\", IF(ISBLANK(OFFSET('Post Const. Checklist'!$E$9, B9, 0)),\"BLANK\",OFFSET('Post Const. Checklist'!$E$9, B9, 0)), \"NA\")","v":"NA"}]
["WATER",{"$f":"IF(MAX($B$9:B9)>0,MAX($B$2:B9)+1,\"\")","v":""}]
[null,{"$f":"IF(OR($I11:$L11=TRUE),MAX(B$1:B10)+1,\"\")","v":""},"WATER"]
["MATERIALS",{"$f":"IF(MAX($B$11:B11)>0,MAX($B$2:B11)+1,\"\")","v":""}]
[null,{"$f":"IF(OR($I13:$L13=TRUE),MAX(B$1:B12)+1,\"\")","v":""},"MATERIALS"]
[null,{"$f":"IF(AND(L14=TRUE,Matrix!E76=TRUE),MAX(B$1:B13)+1,\"\")","v":""},"MATERIALS","18 60 40.2","CWM Plan and Construction and Demolition Tracking spreadsheet completed for closeout","GC","RRS",null,null,null,null,{"$f":"'Project Information'!$D$21>=M14","v":false},1000000]
[]
["ECOSYSTEM SERVICES",{"$f":"IF(MAX($B$13:B13)>0,MAX($B$2:B13)+1,\"\")","v":""}]
[null,{"$f":"IF(OR($I17:$L17=TRUE),MAX(B$1:B16)+1,\"\")","v":""},"ECOSYSTEM SERVICES"]
["USER EXPERIENCE",{"$f":"IF(MAX($B$17:B17)>0,MAX($B$2:B17)+1,\"\")","v":""}]
[null,{"$f":"IF(OR($I19:$L19=TRUE),MAX(B$1:B18)+1,\"\")","v":""},"USER EXPERIENCE"]
[]
[]
[]
[]
[]
[]
[null,null,{"$f":"IF(B26<>\"\",$A$23,\"\")","v":""}]
[null,null,""]
[null,null,""]
[null,null,""]
[null,null,""]
[null,null,""]
[null,null,""]
[null,null,""]
[null,null,""]

{"sheet":"Info to Export Matrix","index":20,"n_rows":4,"n_cols":62,"rows_kept":4,"cut":false,"hidden":true,"merged":[]}
[]
[]
[null,"Project Number","Project Name","Brief Project Description","University Jurisdiction","Project Manager","Date","Total Project Cost","Type of Project","Prepared by","Laboratory/Research","Data Center","Food Service","Plumbing-Division Construction Cost","Plumbing-Scope of Work","Plumbing-Fundamental Commissioning","Plumbing-Enhanced Commissioning","Plumbing-Notes","Mechanical-Division Construction Cost","Mechanical-Scope of Work","Mechanical-Fundamental Commissioning","Mechanical-Enhanced Commissioning","Mechanical-Notes","Controls-Division Construction Cost","Controls-Scope of Work","Controls-Fundamental Commissionioing","Controls-Enhanced Commissioning","Controls-Notes","Electrical-Division Construction Cost","Electrical-Scope of Work","Electrical-Fundamental Commissionioing","Electrical-Enhanced Commissioning","Electrical-Notes","HVAC","Lighting (Indoor)","Lighting (Outdoor)","Electrical Equipment (e.g. motors or pumps)","Building Envelope","Water Heating","Power Systems","Site EUI","Landscape Design","Irrigation","Plumbing Fixtures and Fittings","Appliances","HVAC2","Roof Spray Systems","Commercial Food Service Operations","Medical and Laboratory Facilities","Special Water Features","Water Softeners","Reverse Osmosis Water Treatments Systems","Water Use Intensity","Impact to outdoor landscape","Construction Materials","Construction Waste","Recycling, Compost, Trash Collection","HVAC3","Lighting(Indoor)2","Lighting(Outdoor)2","Interior Materials and Finishes","Entrance/Exit Modifications"]
[null,{"$f":"_xlfn.CONCAT(\"OSU-\",'Project Information'!D13)","v":"OSU-"},{"$f":"'Project Information'!D14","v":0},{"$f":"IF('Project Information'!D15=0,\"\",'Project Information'!D15)","v":""},{"$f":"'Project Information'!D18","v":"Facilities Operations and Development"},{"$f":"IF('Project Information'!D19=0,\"\",'Project Information'!D19)","v":""},{"$f":"IF('Project Information'!D20=0,\"\",'Project Information'!D20)","v":""},{"$f":"'Project Information'!D21","v":10000},{"$f":"IFERROR('Project Information'!D22,\"Other*\")","v":"Renovation"},{"$f":"IF('Project Information'!D25=0,\"\",'Project Information'!D25)","v":""},{"$f":"Matrix!D18=TRUE","v":false},{"$f":"Matrix!D19=TRUE","v":false},{"$f":"Matrix!D20=TRUE","v":false},{"$f":"VLOOKUP('Cx Thresholds'!J6,'Cx Thresholds'!J7:K12,2)","v":"  "},{"$f":"VLOOKUP('Cx Thresholds'!J22,'Cx Thresholds'!J23:K26,2)","v":"  "},{"$f":"'Cx Thresholds'!AA22","v":"n/a"},{"$f":"'Cx Thresholds'!AB22","v":"n/a"},{"$f":"'Cx Thresholds'!AC22","v":"n/a"},{"$f":"VLOOKUP('Cx Thresholds'!M6,'Cx Thresholds'!M7:N12,2)","v":"  "},{"$f":"VLOOKUP('Cx Thresholds'!M22,'Cx Thresholds'!M23:N26,2)","v":"  "},{"$f":"'Cx Thresholds'!AF22","v":"n/a"},{"$f":"'Cx Thresholds'!AG22","v":"n/a"},{"$f":"'Cx Thresholds'!AH22","v":"n/a"},{"$f":"VLOOKUP('Cx Thresholds'!P6,'Cx Thresholds'!P7:Q12,2)","v":"  "},{"$f":"VLOOKUP('Cx Thresholds'!P22,'Cx Thresholds'!P23:Q26,2)","v":"  "},{"$f":"'Cx Thresholds'!AK22","v":"n/a"},{"$f":"'Cx Thresholds'!AL22","v":"n/a"},{"$f":"'Cx Thresholds'!AM22","v":"n/a"},{"$f":"VLOOKUP('Cx Thresholds'!S6,'Cx Thresholds'!S7:T12,2)","v":"  "},{"$f":"VLOOKUP('Cx Thresholds'!S22,'Cx Thresholds'!S23:T26,2)","v":"  "},{"$f":"'Cx Thresholds'!AP22","v":"n/a"},{"$f":"'Cx Thresholds'!AQ22","v":"n/a"},{"$f":"'Cx Thresholds'!AR22","v":"n/a"},{"$f":"Matrix!D38=TRUE","v":false},{"$f":"Matrix!D39=TRUE","v":false},{"$f":"Matrix!D40=TRUE","v":false},{"$f":"Matrix!D41=TRUE","v":false},{"$f":"Matrix!D42=TRUE","v":false},{"$f":"Matrix!D43=TRUE","v":false},{"$f":"Matrix!D44=TRUE","v":false},{"$f":"Matrix!D45=TRUE","v":false},{"$f":"Matrix!D54=TRUE","v":false},{"$f":"Matrix!D55=TRUE","v":false},{"$f":"Matrix!D56=TRUE","v":false},{"$f":"Matrix!D57=TRUE","v":false},{"$f":"Matrix!D58=TRUE","v":false},{"$f":"Matrix!D59=TRUE","v":false},{"$f":"Matrix!D60=TRUE","v":false},{"$f":"Matrix!D61=TRUE","v":false},{"$f":"Matrix!D62=TRUE","v":false},{"$f":"Matrix!D63=TRUE","v":false},{"$f":"Matrix!D64=TRUE","v":false},{"$f":"Matrix!D65=TRUE","v":false},{"$f":"Matrix!D71=TRUE","v":false},{"$f":"Matrix!D75=TRUE","v":false},{"$f":"Matrix!D76=TRUE","v":false},{"$f":"Matrix!D77=TRUE","v":false},{"$f":"Matrix!E83=TRUE","v":false},{"$f":"Matrix!E84=TRUE","v":false},{"$f":"Matrix!E85=TRUE","v":false},{"$f":"Matrix!E86=TRUE","v":false},{"$f":"Matrix!E87=TRUE","v":false}]

{"sheet":"Info to Export Checklist","index":21,"n_rows":4,"n_cols":143,"rows_kept":4,"cut":false,"hidden":true,"merged":[]}
[]
[]
["Project Number","00 00 17.1.1       Submit update Sustainability Applicability Matrix through eBuilder","00 00 17.1.2       Submit updated OPR through eBuilder (if applicable)","Consulted BAS regarding applicability of 18 30 30 Automated Demand Response ","Consulted BAS regarding applicability of 18 30 35 Environmental Controls ","Followed 18 30 20.1 - ASHRAE 90.1-2016, 5 Building Envelope","Followed 18 30 20.1 - ASHRAE 90.1-2016, 6 HVAC ","Followed 18 30 20.1 - ASHRAE 90.1-2016, 7 Service Water Heating","Followed 18 30 20.1 - ASHRAE 90.1-2016, 8 Power","Followed 18 30 20.1 - ASHRAE 90.1-2016, 9 Lighting","Followed 18 30 20.1 - ASHRAE 90.1-2016, 10 Other Equipment","Followed 18 40 10.1 - Landscape Design","Followed 18 40 10.2 - Irrigation","Followed 18 40 20.1 - Plumbing Fixtures and Fittings","Followed 18 40 20.2 - Appliances","Followed 18 40 20.3 - HVAC Systems and Equipment","Followed 18 40 20.4 - Roof Spray & Vegetated Roofs","Followed 18 40 20.5 - Commercial Food Service Operations","Followed 18 40 20.6 - Medical and Laboratory Facilities","Followed 18 40 20.7 - Special Water Features","Followed 18 40 20.9 - Water Softeners","Followed 18 40 20.10 - Reverse Osmosis Water Treatment Systems","Consulted the University Landscape Architect on project early in design","Engaged appropriate group (from 18 60 50) regarding impacts to Materials Management","Provide a breif narrative on the methods to divert Construction & Demolition debris from the landfill","Followed 18 70 30.1 - Ventilation and IAQ Requirements","Followed 18 70 30.4 - Building Entrances","Followed 18 70 30.5 - Interior Materials and Finishes","Followed 18 70 40 - Thermal Comfort","Followed 18 70 50.1 - HVAC Background Noise Levels","Followed 18 70 50.2 - Sound Transmission Class and Reverberation","Followed 18 70 55 - Equipment Vibration Performance","Comply with lighting levels indicated in 18 70 60.2","Comply with Control and Task Lighting standards as indicated in 18 70 60.3","Comply with Correlated Color Temperature standards as indicated in 18 70 60.5","Followed 18 70 60.4 - Exterior Lighting","Submit updated Sustainability Applicability Matrix (SAM) through eBuilder ","Submit updated OPR through eBuilder ","Sustainability Charrette complete","Project Sustainability Stakeholder Group identified ","Sustainability Charrette Narrative complete","Project Sustainability Stakeholder Group meeting frequency established  ","CxA under contract ","Project follows ASHRAE 90.1-2016 Mandatory Standards","Site EUI Target set during Sustainability Charette","District Utilities Conversion Factors discussed during Sustainability Charrette","All parties from Project Sustainability Stakeholder Group agree on Site EUI Target","Site WUI Target set at during Sustainability Charette","All parties from Project Sustainability Stakeholder Group agree on Site WUI Target","Submit updated Sustainability Applicability Matrix through eBuilder ","Submit updated OPR through eBuilder ","Basis of Design narrative delivered early in SD","CWM Plan provided with the BoD","Complete Sustainability Workshop #1 shortly after SD begins","Complete Sustainability Workshop #2 near the end of SD","Followed Exhibit B1 – Supplemental Conditions to Exhibit B Article 2","Followed Exhibit B2 – Supplemental Conditions to Exhibit B Article 2","Confirm assumptions, parameters, and output for energy modeling ","Confirm assumptions, parameters, and output for Water Use Intensity (WUI) calculation  ","SD Energy Model completed","Building Automation Shop consulted on BAS design requirements","LCCAs completed to compare designs of energy systems","SD Water Model completed ","LCCAs completed to compare designs of water systems","Ecosystems Services Assessment completed","Preliminary Materials Management (MM) Plan submited with POR","LCCA performed on materials options","Building Entrance requirements followed","Narrative of design thermal comfort strategies completed","Acoustic Performance design approaches narrative completed","Daylight levels evaluated","Lighting Plan and narrative developed","Narrative of the three (3) biophilic design strategies developed","Submit updated Sustainability Applicability Matrix through eBuilder (if applicable)","Submit updated OPR through eBuilder (if applicable)","Complete Sustainability Workshop #3 at 50% DD","Confirm assumptions, parameters, and output for updated energy model","Confirm assumptions, parameters, and output for updated Water Use Intensity (WUI) calculation  ","Followed Exhibit B1 – Supplemental Conditions to Exhibit B Article 2","Followed Exhibit B2 – Supplemental Conditions to Exhibit B Article 2","Energy Model updated","LCCAs completed to compare designs of energy systems","Water Model updated ","LCCAs completed to compare designs of water systems","Ecosystems Services Assessment updated ","Provide intital Sustainable Materials Calculator","Prescriptive Materials Matrix followed for applicable CSI Divisions","MM Plan updated ","LCCA updated for materials options (if applicable) ","Perform ventilation calculations per space type","Complete CBE  Thermal Comfort Tool for analysis ","Provide updated evaluation of daylight levels ","Provide updated Lighting Plan and design narrative","Updated narrative of the three (3) biophilic design strategies  ","Submit updated Sustainability Applicability Matrix through eBuilder (if applicable)","Submit updated OPR through eBuilder (if applicable)","Complete Sustainability Workshop #4 at 50% CDs (GC/DB projects) or GMP Documents (CMR projects)","Followed Exhibit B1 – Supplemental Conditions to Exhibit B Article 2","Followed Exhibit B2 – Supplemental Conditions to Exhibit B Article 2","Confirm assumptions, parameters, and output for updated energy model","Confirm assumptions, parameters, and output for updated Water Use Intensity (WUI) calculation  ","Performance Verification and Benchmarking ","Energy Model updated","LCCAs completed to compare designs of energy systems","Water Model updated","LCCAs completed to compare designs of water systems","Ecosystems Services Assessment updated (if applicable)","Sustainable Materials Calculator updated by A/E","Prescriptive Materials Matrix deliverables updated for applicable CSI Divisions","Once updated, Sustainable Materials Calculator turned over to Construction Manager/Design-Builder","CWM Plan created","Construction Manager/Design-Builder shall complete the C&D tracking spreadsheet ","MM Plan updated ","LCCA updated for materials options (if applicable) ","Verify project complies with appropriate IAQ ASHRAE standard","Verify low-emitting building materials and finishes used","Construction Manager/Design-Builder shall develop and implement IAQ Management Plan","Ensure PMV levels","Ensure spaces at risk for discomfort have been addressed","A/E updated evaluation simulation output report of daylight levels (if applicable)","Submit updated Sustainability Applicability Matrix through eBuilder (if applicable)","Submit updated OPR through eBuilder (if applicable)","Construction Kickoff Sustainability Meeting completed","Followed Exhibit B1 – Supplemental Conditions to Exhibit B Article 2","Followed Exhibit B2 – Supplemental Conditions to Exhibit B Article 2","LCCA for Total Cost of Ownership for energy systems complete","LCCA for Total Cost of Ownership for water systems complete","Sustainable Materials Calculator developed showing agreed upon buy-out targets","Final Sustainable Materials Calculator completed using as-built information ","Prescriptive Materials Matrix deliverables developed showing agreed upon buy-out targets","Final Prescriptive Materials Matrix deliverables completed using as-built information ","CWM Plan updated and Construction and Demolition Tracking spreadsheet completed","MM Plan updated (if applicable)","Ecosystems Services Assessment updated (if applicable)","Minimum ventilation rates within -5% to +10% of min. design values","A/E updated evaluation simulation output report of daylight levels (if applicable)","Provide updated Lighting Plan and design narrative (if applicable)","Submit update Sustainability Applicability Matrix (if applicable)","Submit updated OPR through eBuilder (if applicable)","One month post construction, conduct a sustainability “debrief” with stakeholders","Followed Exhibit B1 – Supplemental Conditions to Exhibit B Article 2","Followed Exhibit B2 – Supplemental Conditions to Exhibit B Article 2","Calibrate Energy Model (if performance EUI is 10% above approved design EUI Target)"]
[{"$f":"_xlfn.CONCAT(\"OSU-\",'Project Information'!D13)","v":"OSU-"},{"$f":"TRANSPOSE('Small Proj TABLE'!P2:P3)","v":"TBD"},"TBD",{"$f":"TRANSPOSE('Small Proj TABLE'!P7:P14)","v":"NA"},"NA","NA","NA","NA","NA","NA","NA",{"$f":"TRANSPOSE('Small Proj TABLE'!P17:P27)","v":"NA"},"NA","NA","NA","NA","NA","NA","NA","NA","NA","NA",{"$f":"'Small Proj TABLE'!P30","v":"NA"},{"$f":"TRANSPOSE('Small Proj TABLE'!P33:P34)","v":"NA"},"NA",{"$f":"TRANSPOSE('Small Proj TABLE'!P37:P47)","v":"NA"},"NA","NA","NA","NA","NA","NA","NA","NA","NA","NA",{"$f":"TRANSPOSE('Pre-Design TABLE'!O2:O7)","v":"TBD"},"TBD","NA","NA","NA","NA",{"$f":"'Pre-Design TABLE'!O9","v":"NA"},{"$f":"TRANSPOSE('Pre-Design TABLE'!O11:O14)","v":"NA"},"NA","NA","NA",{"$f":"TRANSPOSE('Pre-Design TABLE'!O16:O17)","v":"NA"},"NA",{"$f":"TRANSPOSE('SD TABLE'!O2:O7)","v":"TBD"},"TBD","TBD","NA","NA","NA",{"$f":"TRANSPOSE('SD TABLE'!O9:O12)","v":"NA"},"NA","NA","NA",{"$f":"TRANSPOSE('SD TABLE'!O14:O16)","v":"NA"},"NA","NA",{"$f":"TRANSPOSE('SD TABLE'!O18:O19)","v":"NA"},"NA",{"$f":"'SD TABLE'!O21","v":"NA"},{"$f":"TRANSPOSE('SD TABLE'!O23:O24)","v":"NA"},"NA",{"$f":"TRANSPOSE('SD TABLE'!O26:O31)","v":"NA"},"NA","NA","NA","NA","NA",{"$f":"TRANSPOSE('DD TABLE'!O2:O4)","v":"TBD"},"TBD","NA",{"$f":"TRANSPOSE('DD TABLE'!O8:O9)","v":"NA"},"NA",null,null,{"$f":"TRANSPOSE('DD TABLE'!O11:O12)","v":"NA"},"NA",{"$f":"TRANSPOSE('DD TABLE'!O14:O15)","v":"NA"},"NA",{"$f":"TRANSPOSE('DD TABLE'!O17)","v":"NA"},{"$f":"TRANSPOSE('DD TABLE'!O19:O22)","v":"NA"},"NA","NA","NA",{"$f":"TRANSPOSE('DD TABLE'!O24:O28)","v":"NA"},"NA","NA","NA","NA",{"$f":"TRANSPOSE('CD TABLE'!P2:P4)","v":"TBD"},"TBD","NA",{"$f":"TRANSPOSE('CD TABLE'!P6:P9)","v":"NA"},"NA","NA","NA",{"$f":"TRANSPOSE('CD TABLE'!P11:P13)","v":{"$error":"#VALUE!"}},"NA","NA",{"$f":"TRANSPOSE('CD TABLE'!P15:P16)","v":"NA"},"NA",{"$f":"'CD TABLE'!P18","v":"NA"},{"$f":"TRANSPOSE('CD TABLE'!P20:P26)","v":"NA"},"NA","NA","NA","NA","NA","NA",{"$f":"TRANSPOSE('CD TABLE'!P28:P33)","v":"NA"},"NA","NA","NA","NA","NA",{"$f":"TRANSPOSE('Const. TABLE'!P2:P4)","v":"TBD"},"TBD","NA",{"$f":"TRANSPOSE('Const. TABLE'!P6:P7)","v":"NA"},"NA",{"$f":"'Const. TABLE'!P9","v":"NA"},{"$f":"'Const. TABLE'!P11","v":"NA"},{"$f":"TRANSPOSE('Const. TABLE'!P13:P18)","v":"NA"},"NA","NA","NA","NA","NA",{"$f":"'Const. TABLE'!P20","v":"NA"},{"$f":"TRANSPOSE('Const. TABLE'!P22:P24)","v":"NA"},"NA","NA",{"$f":"TRANSPOSE('Post Const. TABLE'!O2:O4)","v":"TBD"},"TBD","NA",{"$f":"TRANSPOSE('Post Const. TABLE'!O6:O7)","v":"NA"},"NA",{"$f":"'Post Const. TABLE'!O9","v":"NA"}]

{"sheet":"Info to Export Checklist Notes","index":22,"n_rows":3,"n_cols":144,"rows_kept":3,"cut":false,"hidden":true,"merged":[]}
[]
[null,"Project Number","00 00 17.1.1       Submit update Sustainability Applicability Matrix through eBuilder","00 00 17.1.2       Submit updated OPR through eBuilder (if applicable)","Consulted BAS regarding applicability of 18 30 30 Automated Demand Response ","Consulted BAS regarding applicability of 18 30 35 Environmental Controls ","Followed 18 30 20.1 - ASHRAE 90.1-2016, 5 Building Envelope","Followed 18 30 20.1 - ASHRAE 90.1-2016, 6 HVAC ","Followed 18 30 20.1 - ASHRAE 90.1-2016, 7 Service Water Heating","Followed 18 30 20.1 - ASHRAE 90.1-2016, 8 Power","Followed 18 30 20.1 - ASHRAE 90.1-2016, 9 Lighting","Followed 18 30 20.1 - ASHRAE 90.1-2016, 10 Other Equipment","Followed 18 40 10.1 - Landscape Design","Followed 18 40 10.2 - Irrigation","Followed 18 40 20.1 - Plumbing Fixtures and Fittings","Followed 18 40 20.2 - Appliances","Followed 18 40 20.3 - HVAC Systems and Equipment","Followed 18 40 20.4 - Roof Spray & Vegetated Roofs","Followed 18 40 20.5 - Commercial Food Service Operations","Followed 18 40 20.6 - Medical and Laboratory Facilities","Followed 18 40 20.7 - Special Water Features","Followed 18 40 20.9 - Water Softeners","Followed 18 40 20.10 - Reverse Osmosis Water Treatment Systems","Consulted the University Landscape Architect on project early in design","Engaged appropriate group (from 18 60 50) regarding impacts to Materials Management","Provide a breif narrative on the methods to divert Construction & Demolition debris from the landfill","Followed 18 70 30.1 - Ventilation and IAQ Requirements","Followed 18 70 30.4 - Building Entrances","Followed 18 70 30.5 - Interior Materials and Finishes","Followed 18 70 40 - Thermal Comfort","Followed 18 70 50.1 - HVAC Background Noise Levels","Followed 18 70 50.2 - Sound Transmission Class and Reverberation","Followed 18 70 55 - Equipment Vibration Performance","Comply with lighting levels indicated in 18 70 60.2","Comply with Control and Task Lighting standards as indicated in 18 70 60.3","Comply with Correlated Color Temperature standards as indicated in 18 70 60.5","Followed 18 70 60.4 - Exterior Lighting","Submit updated Sustainability Applicability Matrix (SAM) through eBuilder ","Submit updated OPR through eBuilder ","Sustainability Charrette complete","Project Sustainability Stakeholder Group identified ","Sustainability Charrette Narrative complete","Project Sustainability Stakeholder Group meeting frequency established  ","CxA under contract ","Project follows ASHRAE 90.1-2016 Mandatory Standards","Site EUI Target set during Sustainability Charette","District Utilities Conversion Factors discussed during Sustainability Charrette","All parties from Project Sustainability Stakeholder Group agree on Site EUI Target","Site WUI Target set at during Sustainability Charette","All parties from Project Sustainability Stakeholder Group agree on Site WUI Target","Submit updated Sustainability Applicability Matrix through eBuilder ","Submit updated OPR through eBuilder ","Basis of Design narrative delivered early in SD","CWM Plan provided with the BoD","Complete Sustainability Workshop #1 shortly after SD begins","Complete Sustainability Workshop #2 near the end of SD","Followed Exhibit B1 – Supplemental Conditions to Exhibit B Article 2","Followed Exhibit B2 – Supplemental Conditions to Exhibit B Article 2","Confirm assumptions, parameters, and output for energy modeling ","Confirm assumptions, parameters, and output for Water Use Intensity (WUI) calculation  ","SD Energy Model completed","Building Automation Shop consulted on BAS design requirements","LCCAs completed to compare designs of energy systems","SD Water Model completed ","LCCAs completed to compare designs of water systems","Ecosystems Services Assessment completed","Preliminary Materials Management (MM) Plan submited with POR","LCCA performed on materials options","Building Entrance requirements followed","Narrative of design thermal comfort strategies completed","Acoustic Performance design approaches narrative completed","Daylight levels evaluated","Lighting Plan and narrative developed","Narrative of the three (3) biophilic design strategies developed","Submit updated Sustainability Applicability Matrix through eBuilder (if applicable)","Submit updated OPR through eBuilder (if applicable)","Complete Sustainability Workshop #3 at 50% DD","Confirm assumptions, parameters, and output for updated energy model","Confirm assumptions, parameters, and output for updated Water Use Intensity (WUI) calculation  ","Followed Exhibit B1 – Supplemental Conditions to Exhibit B Article 2","Followed Exhibit B2 – Supplemental Conditions to Exhibit B Article 2","Energy Model updated","LCCAs completed to compare designs of energy systems","Water Model updated ","LCCAs completed to compare designs of water systems","Ecosystems Services Assessment updated ","Provide intital Sustainable Materials Calculator","Prescriptive Materials Matrix followed for applicable CSI Divisions","MM Plan updated ","LCCA updated for materials options (if applicable) ","Perform ventilation calculations per space type","Complete CBE  Thermal Comfort Tool for analysis ","Provide updated evaluation of daylight levels ","Provide updated Lighting Plan and design narrative","Updated narrative of the three (3) biophilic design strategies  ","Submit updated Sustainability Applicability Matrix through eBuilder (if applicable)","Submit updated OPR through eBuilder (if applicable)","Complete Sustainability Workshop #4 at 50% CDs (GC/DB projects) or GMP Documents (CMR projects)","Followed Exhibit B1 – Supplemental Conditions to Exhibit B Article 2","Followed Exhibit B2 – Supplemental Conditions to Exhibit B Article 2","Confirm assumptions, parameters, and output for updated energy model","Confirm assumptions, parameters, and output for updated Water Use Intensity (WUI) calculation  ","Performance Verification and Benchmarking ","Energy Model updated","LCCAs completed to compare designs of energy systems","Water Model updated","LCCAs completed to compare designs of water systems","Ecosystems Services Assessment updated (if applicable)","Sustainable Materials Calculator updated by A/E","Prescriptive Materials Matrix deliverables updated for applicable CSI Divisions","Once updated, Sustainable Materials Calculator turned over to Construction Manager/Design-Builder","CWM Plan created","Construction Manager/Design-Builder shall complete the C&D tracking spreadsheet ","MM Plan updated ","LCCA updated for materials options (if applicable) ","Verify project complies with appropriate IAQ ASHRAE standard","Verify low-emitting building materials and finishes used","Construction Manager/Design-Builder shall develop and implement IAQ Management Plan","Ensure PMV levels","Ensure spaces at risk for discomfort have been addressed","A/E updated evaluation simulation output report of daylight levels (if applicable)","Submit updated Sustainability Applicability Matrix through eBuilder (if applicable)","Submit updated OPR through eBuilder (if applicable)","Construction Kickoff Sustainability Meeting completed","Followed Exhibit B1 – Supplemental Conditions to Exhibit B Article 2","Followed Exhibit B2 – Supplemental Conditions to Exhibit B Article 2","LCCA for Total Cost of Ownership for energy systems complete","LCCA for Total Cost of Ownership for water systems complete","Sustainable Materials Calculator developed showing agreed upon buy-out targets","Final Sustainable Materials Calculator completed using as-built information ","Prescriptive Materials Matrix deliverables developed showing agreed upon buy-out targets","Final Prescriptive Materials Matrix deliverables completed using as-built information ","CWM Plan updated and Construction and Demolition Tracking spreadsheet completed","MM Plan updated (if applicable)","Ecosystems Services Assessment updated (if applicable)","Minimum ventilation rates within -5% to +10% of min. design values","A/E updated evaluation simulation output report of daylight levels (if applicable)","Provide updated Lighting Plan and design narrative (if applicable)","Submit update Sustainability Applicability Matrix (if applicable)","Submit updated OPR through eBuilder (if applicable)","One month post construction, conduct a sustainability “debrief” with stakeholders","Followed Exhibit B1 – Supplemental Conditions to Exhibit B Article 2","Followed Exhibit B2 – Supplemental Conditions to Exhibit B Article 2","Calibrate Energy Model (if performance EUI is 10% above approved design EUI Target)"]
[null,{"$f":"_xlfn.CONCAT(\"OSU-\",'Project Information'!D13)","v":"OSU-"},{"$f":"TRANSPOSE('Small Proj TABLE'!Q2:Q3)","v":"BLANK"},"BLANK",{"$f":"TRANSPOSE('Small Proj TABLE'!Q7:Q14)","v":"NA"},"NA","NA","NA","NA","NA","NA","NA",{"$f":"TRANSPOSE('Small Proj TABLE'!Q17:Q27)","v":"NA"},"NA","NA","NA","NA","NA","NA","NA","NA","NA","NA",{"$f":"'Small Proj TABLE'!Q30","v":"NA"},{"$f":"TRANSPOSE('Small Proj TABLE'!Q33:Q34)","v":"NA"},"NA",{"$f":"TRANSPOSE('Small Proj TABLE'!Q37:Q47)","v":"NA"},"NA","NA","NA","NA","NA","NA","NA","NA","NA","NA",{"$f":"TRANSPOSE('Pre-Design TABLE'!P2:P7)","v":"BLANK"},"BLANK","NA","NA","NA","NA",{"$f":"TRANSPOSE('Pre-Design TABLE'!P9)","v":"NA"},{"$f":"TRANSPOSE('Pre-Design TABLE'!P11:P14)","v":"NA"},"NA","NA","NA",{"$f":"TRANSPOSE('Pre-Design TABLE'!P16:P17)","v":"NA"},"NA",{"$f":"TRANSPOSE('SD TABLE'!P2:P7)","v":"BLANK"},"BLANK","BLANK","NA","NA","NA",{"$f":"TRANSPOSE('SD TABLE'!P9:P12)","v":"NA"},"NA","NA","NA",{"$f":"TRANSPOSE('SD TABLE'!P14:P16)","v":"NA"},"NA","NA",{"$f":"TRANSPOSE('SD TABLE'!P18:P19)","v":"NA"},"NA",{"$f":"TRANSPOSE('SD TABLE'!P21)","v":"NA"},{"$f":"TRANSPOSE('SD TABLE'!P23:P24)","v":"NA"},"NA",{"$f":"TRANSPOSE('SD TABLE'!P26:P31)","v":"NA"},"NA","NA","NA","NA","NA",{"$f":"TRANSPOSE('DD TABLE'!P2:P4)","v":"BLANK"},"BLANK","NA",{"$f":"TRANSPOSE('DD TABLE'!P8:P9)","v":"NA"},"NA",null,null,{"$f":"TRANSPOSE('DD TABLE'!P11:P12)","v":"NA"},"NA",{"$f":"TRANSPOSE('DD TABLE'!P14:P15)","v":"NA"},"NA",{"$f":"'DD TABLE'!P17","v":"NA"},{"$f":"TRANSPOSE('DD TABLE'!P19:P22)","v":"NA"},"NA","NA","NA",{"$f":"TRANSPOSE('DD TABLE'!P24:P28)","v":"NA"},"NA","NA","NA","NA",{"$f":"TRANSPOSE('CD TABLE'!Q2:Q4)","v":"BLANK"},"BLANK","NA",{"$f":"TRANSPOSE('CD TABLE'!Q6:Q9)","v":"NA"},"NA","NA","NA",{"$f":"TRANSPOSE('CD TABLE'!Q11:Q13)","v":{"$error":"#VALUE!"}},"NA","NA",{"$f":"TRANSPOSE('CD TABLE'!Q15:Q16)","v":"NA"},"NA",{"$f":"'CD TABLE'!Q18","v":"NA"},{"$f":"TRANSPOSE('CD TABLE'!Q20:Q26)","v":"NA"},"NA","NA","NA","NA","NA","NA",{"$f":"TRANSPOSE('CD TABLE'!Q28:Q33)","v":"NA"},"NA","NA","NA","NA","NA",{"$f":"TRANSPOSE('Const. TABLE'!Q2:Q4)","v":"BLANK"},"BLANK","NA",{"$f":"TRANSPOSE('Const. TABLE'!Q6:Q7)","v":"NA"},"NA",{"$f":"TRANSPOSE('Const. TABLE'!Q9)","v":"NA"},{"$f":"'Const. TABLE'!Q11","v":"NA"},{"$f":"TRANSPOSE('Const. TABLE'!Q13:Q18)","v":"NA"},"NA","NA","NA","NA","NA",{"$f":"TRANSPOSE('Const. TABLE'!Q20)","v":"NA"},{"$f":"TRANSPOSE('Const. TABLE'!Q22:Q24)","v":"NA"},"NA","NA",{"$f":"TRANSPOSE('Post Const. TABLE'!P2:P4)","v":"BLANK"},"BLANK","NA",{"$f":"TRANSPOSE('Post Const. TABLE'!P6:P7)","v":"NA"},"NA",{"$f":"'Post Const. TABLE'!P9","v":"NA"}]

{"sheet":"Info to Export Scorecard","index":23,"n_rows":4,"n_cols":52,"rows_kept":4,"cut":false,"hidden":true,"merged":[]}
[]
[]
[null,"Project Number","Basic Service(s): completed ","Additional Service:  confirmed Energy Model","Additional Service:  confirmed Water Model","Additional Service:  confirmed background sound levels","Additional Service:  confirmed lighting levels","Additional Service:  confirmed LCCA(s)","Complied with ASHRAE 90.1 - 2016 Energy Standards","Energy Modeling & Energy Use Intensity (EUI) Site Target ","Energy System proves to be Life-Cycle Cost Effective","Landscape Design: >= 60% planted area native and adaptive plants","Irrigation Water:  max of 1/3 improved area connected to potable water","Irrigation Controls:  meet USEPA's WaterSense requirements","Plumbing Fixtures and Fittings:  meet USEPA's WaterSense requirements","Appliances Water Requirement:  comply with ENERGY STAR® requirements","HVAC System & Equipment:  water use and discharge ","Roofs:  potable water prohibited for roof spray systems ","Commercial Food Service Operations:  meet water efficiencies","WMC and Laboratory/Research Facility","Special Water Features:  ornamental fountain equipment and water source","Water Utility Metering","Water Softeners:  demand-initiated regeneration controls & efficiency requirements","Reverse Osmosis Water Treatment Systems","Water Use Intesity (WUI) Target","Water System proves to be Life-Cycle Cost Effective","Improve Ecosystem Services","Material Sourcing","Materials proves to be Life-Cycle Cost Effective","Construction Waste Management Plan completed","Construction & Demolition Waste Diversion Threshold achieved","Materials Management Plan completed ","Ventilation and Indoor Air Quality ","Indoor Air Quality Management Plan  ","Indoor Air Quality Testing","Building Entrance Design & Indoor Air Quality ","Interior Materials and Finishes emissions","Thermal Comfort ","Acoustical Performance ","Equipment Vibration","Spatial Daylight Autonomy","Lighting Levels","Controls and Task Lighting","Exterior Lighting","Correlated Color Temperature (CCT) ","Connection to Nature","LCCA used to compare Energy system alternatives","LCCA used to compare Water system alternatives","LCCA used to compare Material selection alternatives","LCCA for Total Cost of Ownership for Energy System","LCCA for Total Cost of Ownership for Water System","LCCA for Total Cost of Ownership for Material selection"]
[null,{"$f":"'Info to Export Matrix'!B4","v":"OSU-"},{"$f":"TRANSPOSE(ScorecardTABLE!N9:N14)","v":{"$error":"#VALUE!"}},"NA","NA",{"$error":"#VALUE!"},{"$error":"#VALUE!"},"NA",{"$f":"TRANSPOSE(ScorecardTABLE!N17:N19)","v":"NA"},"NA","NA",{"$f":"TRANSPOSE(ScorecardTABLE!N22:N36)","v":"NA"},"NA","NA","NA","NA","NA","NA","NA","NA","NA",{"$error":"#VALUE!"},"NA","NA","NA","NA",{"$f":"ScorecardTABLE!N39","v":"NA"},{"$f":"TRANSPOSE(ScorecardTABLE!N42:N46)","v":"NA"},"NA","NA","NA","NA",{"$f":"TRANSPOSE(ScorecardTABLE!N49:N62)","v":"NA"},"NA","NA",{"$error":"#VALUE!"},"NA","NA",{"$error":"#VALUE!"},{"$error":"#VALUE!"},"NA",{"$error":"#VALUE!"},{"$error":"#VALUE!"},{"$error":"#VALUE!"},{"$error":"#VALUE!"},"NA",{"$f":"TRANSPOSE(ScorecardTABLE!N65:N70)","v":{"$error":"#VALUE!"}},{"$error":"#VALUE!"},{"$error":"#VALUE!"},{"$error":"#VALUE!"},{"$error":"#VALUE!"},{"$error":"#VALUE!"}]

{"sheet":"Info to Export Scorecard Notes","index":24,"n_rows":4,"n_cols":52,"rows_kept":4,"cut":false,"hidden":true,"merged":[]}
[]
[]
[null,"Project Number","Basic Service(s): completed ","Additional Service:  confirmed Energy Model","Additional Service:  confirmed Water Model","Additional Service:  confirmed background sound levels","Additional Service:  confirmed lighting levels","Additional Service:  confirmed LCCA(s)","Complied with ASHRAE 90.1 - 2016 Energy Standards","Energy Modeling & Energy Use Intensity (EUI) Site Target ","Energy System proves to be Life-Cycle Cost Effective","Landscape Design: >= 60% planted area native and adaptive plants","Irrigation Water:  max of 1/3 improved area connected to potable water","Irrigation Controls:  meet USEPA's WaterSense requirements","Plumbing Fixtures and Fittings:  meet USEPA's WaterSense requirements","Appliances Water Requirement:  comply with ENERGY STAR® requirements","HVAC System & Equipment:  water use and discharge ","Roofs:  potable water prohibited for roof spray systems ","Commercial Food Service Operations:  meet water efficiencies","WMC and Laboratory/Research Facility","Special Water Features:  ornamental fountain equipment and water source","Water Utility Metering","Water Softeners:  demand-initiated regeneration controls & efficiency requirements","Reverse Osmosis Water Treatment Systems","Water Use Intesity (WUI) Target","Water System proves to be Life-Cycle Cost Effective","Improve Ecosystem Services","Material Sourcing","Materials proves to be Life-Cycle Cost Effective","Construction Waste Management Plan completed","Construction & Demolition Waste Diversion Threshold achieved","Materials Management Plan completed ","Ventilation and Indoor Air Quality ","Indoor Air Quality Management Plan  ","Indoor Air Quality Testing","Building Entrance Design & Indoor Air Quality ","Interior Materials and Finishes emissions","Thermal Comfort ","Acoustical Performance ","Equipment Vibration","Spatial Daylight Autonomy","Lighting Levels","Controls and Task Lighting","Exterior Lighting","Correlated Color Temperature (CCT) ","Connection to Nature","LCCA used to compare Energy system alternatives","LCCA used to compare Water system alternatives","LCCA used to compare Material selection alternatives","LCCA for Total Cost of Ownership for Energy System","LCCA for Total Cost of Ownership for Water System","LCCA for Total Cost of Ownership for Material selection"]
[null,{"$f":"'Info to Export Matrix'!B4","v":"OSU-"},{"$f":"TRANSPOSE(ScorecardTABLE!O9:O14)","v":{"$error":"#VALUE!"}},"NA","NA",{"$error":"#VALUE!"},{"$error":"#VALUE!"},"NA",{"$f":"TRANSPOSE(ScorecardTABLE!O17:O19)","v":"NA"},"NA","NA",{"$f":"TRANSPOSE(ScorecardTABLE!O22:O36)","v":"NA"},"NA","NA","NA","NA","NA","NA","NA","NA","NA",{"$error":"#VALUE!"},"NA","NA","NA","NA",{"$f":"ScorecardTABLE!O39","v":"NA"},{"$f":"TRANSPOSE(ScorecardTABLE!O42:O46)","v":"NA"},"NA","NA","NA","NA",{"$f":"TRANSPOSE(ScorecardTABLE!O49:O62)","v":"NA"},"NA","NA",{"$error":"#VALUE!"},"NA","NA",{"$error":"#VALUE!"},{"$error":"#VALUE!"},"NA",{"$error":"#VALUE!"},{"$error":"#VALUE!"},{"$error":"#VALUE!"},{"$error":"#VALUE!"},"NA",{"$f":"TRANSPOSE(ScorecardTABLE!O65:O70)","v":{"$error":"#VALUE!"}},{"$error":"#VALUE!"},{"$error":"#VALUE!"},{"$error":"#VALUE!"},{"$error":"#VALUE!"},{"$error":"#VALUE!"}]